Workbook

Sheet Year 7 Girls
B1: Total Number of Runners | C1: Race Complete (Y/N) | D1: Y | F1: Y | H1: Y | J1: Y | L1: Y | U1: =IF(D1="Y",1,0) -> 1 | W1: =IF(F1="Y",1,0) -> 1 | Y1: =IF(H1="Y",1,0) -> 1 | AA1: =IF(J1="Y",1,0) -> 1 | AC1: =IF(L1="Y",1,0) -> 1 | AE1: =SUM(U1:AC1) -> 5
B2: =COUNTA(B5:B300) -> 87 | C2: No of Finishers | D2: =MAX(D5:D151) -> 59 | E2: =MAX(E5:E151) -> 59 | F2: 50 | G2: 50 | H2: 50 | I2: 50 | J2: 39 | K2: 39 | L2: 47
C3: Number of results recorded | D3: =COUNTIF(D5:D150,">0") -> 59 | F3: =COUNTIF(G5:G150,">0") -> 50 | H3: 48 | J3: 39 | L3: 45
A4: Reset Column | B4: Name | C4: School | D4: Race 1 | E4: Normalised result -1 | F4: Race 2 | G4: Normalised result -2 | H4: Race 3 | I4: Normalised result -3 | J4: Race 4 | K4: Normalised result -4 | L4: Race 5 | M4: Normalised result -5 | O4: Total (All Races) | P4: Lowest Place Finish | Q4: Final Total | R4: Number of Races Completed | S4: League contender? (No. of races - missed) | T4: Elidgible For League Title | U4: Competed in race 1 0 = YES | W4: Competed in race 2 0 = YES | Y4: Competed in race 3 0 = YES | AA4: Competed in race 4 0 = YES | AC4: Competed in race 5 0 = YES
A5: 58 | B5: Rachel Nealon | C5: Brookvale High School | D5: 1 | E5: =IF(D5="-",0,D5) -> 1 | F5: 2 | G5: =IF(F5="-",0,F5) -> 2 | H5: 1 | I5: =IF(H5="-",0,H5) -> 1 | J5: 7 | K5: =IF(J5="-",0,J5) -> 7 | L5: 1 | M5: =IF(L5="-",0,L5) -> 1 | O5: =E5+G5+I5+K5+M5 -> 12 | P5: =MAX(D5,F5,H5,J5,L5) -> 7 | Q5: =IF(S5=1,O5,IF(S5=0,(O5-P5),"-")) -> 5 | R5: =COUNTIF(U5:AD5,"=TRUE") -> 5 | S5: =AE$1-R5 -> 0 | T5: =IF(S5<2,"Yes","No") -> Yes | U5: =IF(D5="-",1,0)*U$1 -> 0 | V5: =AND(U5=0,U$1=1) -> TRUE | W5: =IF(F5="-",1,0)*W$1 -> 0 | X5: =AND(W5=0,W$1=1) -> TRUE | Y5: =IF(H5="-",1,0)*Y$1 -> 0 | Z5: =AND(Y5=0,Y$1=1) -> TRUE | AA5: =IF(J5="-",1,0)*AA$1 -> 0 | AB5: =AND(AA5=0,AA$1=1) -> TRUE | AC5: =IF(L5="-",1,0)*AC$1 -> 0 | AD5: =AND(AC5=0,AC$1=1) -> TRUE
A6: 21 | B6: Hollie Gamble | C6: Brookvale High School | D6: 2 | E6: =IF(D6="-",0,D6) -> 2 | F6: 1 | G6: =IF(F6="-",0,F6) -> 1 | H6: 2 | I6: =IF(H6="-",0,H6) -> 2 | J6: 1 | K6: =IF(J6="-",0,J6) -> 1 | L6: 2 | M6: =IF(L6="-",0,L6) -> 2 | O6: =E6+G6+I6+K6+M6 -> 8 | P6: =MAX(D6,F6,H6,J6,L6) -> 2 | Q6: =IF(S6=1,O6,IF(S6=0,(O6-P6),"-")) -> 6 | R6: =COUNTIF(U6:AD6,"=TRUE") -> 5 | S6: =AE$1-R6 -> 0 | T6: =IF(S6<2,"Yes","No") -> Yes | U6: =IF(D6="-",1,0)*U$1 -> 0 | V6: =AND(U6=0,U$1=1) -> TRUE | W6: =IF(F6="-",1,0)*W$1 -> 0 | X6: =AND(W6=0,W$1=1) -> TRUE | Y6: =IF(H6="-",1,0)*Y$1 -> 0 | Z6: =AND(Y6=0,Y$1=1) -> TRUE | AA6: =IF(J6="-",1,0)*AA$1 -> 0 | AB6: =AND(AA6=0,AA$1=1) -> TRUE | AC6: =IF(L6="-",1,0)*AC$1 -> 0 | AD6: =AND(AC6=0,AC$1=1) -> TRUE
A7: 30 | B7: Maya Stokes | C7: Castle Rock High School | D7: 7 | E7: =IF(D7="-",0,D7) -> 7 | F7: 7 | G7: =IF(F7="-",0,F7) -> 7 | H7: 4 | I7: =IF(H7="-",0,H7) -> 4 | J7: 3 | K7: =IF(J7="-",0,J7) -> 3 | L7: 3 | M7: =IF(L7="-",0,L7) -> 3 | O7: =E7+G7+I7+K7+M7 -> 24 | P7: =MAX(D7,F7,H7,J7,L7) -> 7 | Q7: =IF(S7=1,O7,IF(S7=0,(O7-P7),"-")) -> 17 | R7: =COUNTIF(U7:AD7,"=TRUE") -> 5 | S7: =AE$1-R7 -> 0 | T7: =IF(S7<2,"Yes","No") -> Yes | U7: =IF(D7="-",1,0)*U$1 -> 0 | V7: =AND(U7=0,U$1=1) -> TRUE | W7: =IF(F7="-",1,0)*W$1 -> 0 | X7: =AND(W7=0,W$1=1) -> TRUE | Y7: =IF(H7="-",1,0)*Y$1 -> 0 | Z7: =AND(Y7=0,Y$1=1) -> TRUE | AA7: =IF(J7="-",1,0)*AA$1 -> 0 | AB7: =AND(AA7=0,AA$1=1) -> TRUE | AC7: =IF(L7="-",1,0)*AC$1 -> 0 | AD7: =AND(AC7=0,AC$1=1) -> TRUE
A8: 47 | B8: Rosie Timlock | C8: The Martin High School | D8: 4 | E8: =IF(D8="-",0,D8) -> 4 | F8: 3 | G8: =IF(F8="-",0,F8) -> 3 | H8: 3 | I8: =IF(H8="-",0,H8) -> 3 | J8: 2 | K8: =IF(J8="-",0,J8) -> 2 | L8: 4 | M8: =IF(L8="-",0,L8) -> 4 | O8: =E8+G8+I8+K8+M8 -> 16 | P8: =MAX(D8,F8,H8,J8,L8) -> 4 | Q8: =IF(S8=1,O8,IF(S8=0,(O8-P8),"-")) -> 12 | R8: =COUNTIF(U8:AD8,"=TRUE") -> 5 | S8: =AE$1-R8 -> 0 | T8: =IF(S8<2,"Yes","No") -> Yes | U8: =IF(D8="-",1,0)*U$1 -> 0 | V8: =AND(U8=0,U$1=1) -> TRUE | W8: =IF(F8="-",1,0)*W$1 -> 0 | X8: =AND(W8=0,W$1=1) -> TRUE | Y8: =IF(H8="-",1,0)*Y$1 -> 0 | Z8: =AND(Y8=0,Y$1=1) -> TRUE | AA8: =IF(J8="-",1,0)*AA$1 -> 0 | AB8: =AND(AA8=0,AA$1=1) -> TRUE | AC8: =IF(L8="-",1,0)*AC$1 -> 0 | AD8: =AND(AC8=0,AC$1=1) -> TRUE
A9: 37 | B9: Lizzie Clapp | C9: Welland Park Academy | D9: 5 | E9: =IF(D9="-",0,D9) -> 5 | F9: 4 | G9: =IF(F9="-",0,F9) -> 4 | H9: - | I9: =IF(H9="-",0,H9) -> 0 | J9: 4 | K9: =IF(J9="-",0,J9) -> 4 | L9: 5 | M9: =IF(L9="-",0,L9) -> 5 | O9: =E9+G9+I9+K9+M9 -> 18 | P9: =MAX(D9,F9,H9,J9,L9) -> 5 | Q9: =IF(S9=1,O9,IF(S9=0,(O9-P9),"-")) -> 18 | R9: =COUNTIF(U9:AD9,"=TRUE") -> 4 | S9: =AE$1-R9 -> 1 | T9: =IF(S9<2,"Yes","No") -> Yes | U9: =IF(D9="-",1,0)*U$1 -> 0 | V9: =AND(U9=0,U$1=1) -> TRUE | W9: =IF(F9="-",1,0)*W$1 -> 0 | X9: =AND(W9=0,W$1=1) -> TRUE | Y9: =IF(H9="-",1,0)*Y$1 -> 1 | Z9: =AND(Y9=0,Y$1=1) -> FALSE | AA9: =IF(J9="-",1,0)*AA$1 -> 0 | AB9: =AND(AA9=0,AA$1=1) -> TRUE | AC9: =IF(L9="-",1,0)*AC$1 -> 0 | AD9: =AND(AC9=0,AC$1=1) -> TRUE
A10: 8 | B10: Sophie Thorpe | C10: English Martyrs Catholic School | D10: 6 | E10: =IF(D10="-",0,D10) -> 6 | F10: 5 | G10: =IF(F10="-",0,F10) -> 5 | H10: 6 | I10: =IF(H10="-",0,H10) -> 6 | J10: 8 | K10: =IF(J10="-",0,J10) -> 8 | L10: 6 | M10: =IF(L10="-",0,L10) -> 6 | O10: =E10+G10+I10+K10+M10 -> 31 | P10: =MAX(D10,F10,H10,J10,L10) -> 8 | Q10: =IF(S10=1,O10,IF(S10=0,(O10-P10),"-")) -> 23 | R10: =COUNTIF(U10:AD10,"=TRUE") -> 5 | S10: =AE$1-R10 -> 0 | T10: =IF(S10<2,"Yes","No") -> Yes | U10: =IF(D10="-",1,0)*U$1 -> 0 | V10: =AND(U10=0,U$1=1) -> TRUE | W10: =IF(F10="-",1,0)*W$1 -> 0 | X10: =AND(W10=0,W$1=1) -> TRUE | Y10: =IF(H10="-",1,0)*Y$1 -> 0 | Z10: =AND(Y10=0,Y$1=1) -> TRUE | AA10: =IF(J10="-",1,0)*AA$1 -> 0 | AB10: =AND(AA10=0,AA$1=1) -> TRUE | AC10: =IF(L10="-",1,0)*AC$1 -> 0 | AD10: =AND(AC10=0,AC$1=1) -> TRUE
A11: 79 | B11: Olivia Godsell | C11: Ivanhoe College | D11: 13 | E11: =IF(D11="-",0,D11) -> 13 | F11: - | G11: =IF(F11="-",0,F11) -> 0 | H11: 10 | I11: =IF(H11="-",0,H11) -> 10 | J11: 9 | K11: =IF(J11="-",0,J11) -> 9 | L11: 7 | M11: =IF(L11="-",0,L11) -> 7 | O11: =E11+G11+I11+K11+M11 -> 39 | P11: =MAX(D11,F11,H11,J11,L11) -> 13 | Q11: =IF(S11=1,O11,IF(S11=0,(O11-P11),"-")) -> 39 | R11: =COUNTIF(U11:AD11,"=TRUE") -> 4 | S11: =AE$1-R11 -> 1 | T11: =IF(S11<2,"Yes","No") -> Yes | U11: =IF(D11="-",1,0)*U$1 -> 0 | V11: =AND(U11=0,U$1=1) -> TRUE | W11: =IF(F11="-",1,0)*W$1 -> 1 | X11: =AND(W11=0,W$1=1) -> FALSE | Y11: =IF(H11="-",1,0)*Y$1 -> 0 | Z11: =AND(Y11=0,Y$1=1) -> TRUE | AA11: =IF(J11="-",1,0)*AA$1 -> 0 | AB11: =AND(AA11=0,AA$1=1) -> TRUE | AC11: =IF(L11="-",1,0)*AC$1 -> 0 | AD11: =AND(AC11=0,AC$1=1) -> TRUE
A12: 68 | B12: Grace Alvey | C12: Woodbrook Vale School | D12: 8 | E12: =IF(D12="-",0,D12) -> 8 | F12: 6 | G12: =IF(F12="-",0,F12) -> 6 | H12: 5 | I12: =IF(H12="-",0,H12) -> 5 | J12: 5 | K12: =IF(J12="-",0,J12) -> 5 | L12: 8 | M12: =IF(L12="-",0,L12) -> 8 | O12: =E12+G12+I12+K12+M12 -> 32 | P12: =MAX(D12,F12,H12,J12,L12) -> 8 | Q12: =IF(S12=1,O12,IF(S12=0,(O12-P12),"-")) -> 24 | R12: =COUNTIF(U12:AD12,"=TRUE") -> 5 | S12: =AE$1-R12 -> 0 | T12: =IF(S12<2,"Yes","No") -> Yes | U12: =IF(D12="-",1,0)*U$1 -> 0 | V12: =AND(U12=0,U$1=1) -> TRUE | W12: =IF(F12="-",1,0)*W$1 -> 0 | X12: =AND(W12=0,W$1=1) -> TRUE | Y12: =IF(H12="-",1,0)*Y$1 -> 0 | Z12: =AND(Y12=0,Y$1=1) -> TRUE | AA12: =IF(J12="-",1,0)*AA$1 -> 0 | AB12: =AND(AA12=0,AA$1=1) -> TRUE | AC12: =IF(L12="-",1,0)*AC$1 -> 0 | AD12: =AND(AC12=0,AC$1=1) -> TRUE
A13: 49 | B13: Eva Walters | C13: Thomas Estley CC | D13: 11 | E13: =IF(D13="-",0,D13) -> 11 | F13: 8 | G13: =IF(F13="-",0,F13) -> 8 | H13: 8 | I13: =IF(H13="-",0,H13) -> 8 | J13: 6 | K13: =IF(J13="-",0,J13) -> 6 | L13: 9 | M13: =IF(L13="-",0,L13) -> 9 | O13: =E13+G13+I13+K13+M13 -> 42 | P13: =MAX(D13,F13,H13,J13,L13) -> 11 | Q13: =IF(S13=1,O13,IF(S13=0,(O13-P13),"-")) -> 31 | R13: =COUNTIF(U13:AD13,"=TRUE") -> 5 | S13: =AE$1-R13 -> 0 | T13: =IF(S13<2,"Yes","No") -> Yes | U13: =IF(D13="-",1,0)*U$1 -> 0 | V13: =AND(U13=0,U$1=1) -> TRUE | W13: =IF(F13="-",1,0)*W$1 -> 0 | X13: =AND(W13=0,W$1=1) -> TRUE | Y13: =IF(H13="-",1,0)*Y$1 -> 0 | Z13: =AND(Y13=0,Y$1=1) -> TRUE | AA13: =IF(J13="-",1,0)*AA$1 -> 0 | AB13: =AND(AA13=0,AA$1=1) -> TRUE | AC13: =IF(L13="-",1,0)*AC$1 -> 0 | AD13: =AND(AC13=0,AC$1=1) -> TRUE
A14: 10 | B14: Karandeep Thandi | C14: Brookvale High School | D14: 18 | E14: =IF(D14="-",0,D14) -> 18 | F14: 11 | G14: =IF(F14="-",0,F14) -> 11 | H14: 11 | I14: =IF(H14="-",0,H14) -> 11 | J14: - | K14: =IF(J14="-",0,J14) -> 0 | L14: 10 | M14: =IF(L14="-",0,L14) -> 10 | O14: =E14+G14+I14+K14+M14 -> 50 | P14: =MAX(D14,F14,H14,J14,L14) -> 18 | Q14: =IF(S14=1,O14,IF(S14=0,(O14-P14),"-")) -> 50 | R14: =COUNTIF(U14:AD14,"=TRUE") -> 4 | S14: =AE$1-R14 -> 1 | T14: =IF(S14<2,"Yes","No") -> Yes | U14: =IF(D14="-",1,0)*U$1 -> 0 | V14: =AND(U14=0,U$1=1) -> TRUE | W14: =IF(F14="-",1,0)*W$1 -> 0 | X14: =AND(W14=0,W$1=1) -> TRUE | Y14: =IF(H14="-",1,0)*Y$1 -> 0 | Z14: =AND(Y14=0,Y$1=1) -> TRUE | AA14: =IF(J14="-",1,0)*AA$1 -> 1 | AB14: =AND(AA14=0,AA$1=1) -> FALSE | AC14: =IF(L14="-",1,0)*AC$1 -> 0 | AD14: =AND(AC14=0,AC$1=1) -> TRUE
A15: 81 | B15: Henrietta Magill | C15: Manor High School | D15: 12 | E15: =IF(D15="-",0,D15) -> 12 | F15: 10 | G15: =IF(F15="-",0,F15) -> 10 | H15: 9 | I15: =IF(H15="-",0,H15) -> 9 | J15: 10 | K15: =IF(J15="-",0,J15) -> 10 | L15: 11 | M15: =IF(L15="-",0,L15) -> 11 | O15: =E15+G15+I15+K15+M15 -> 52 | P15: =MAX(D15,F15,H15,J15,L15) -> 12 | Q15: =IF(S15=1,O15,IF(S15=0,(O15-P15),"-")) -> 40 | R15: =COUNTIF(U15:AD15,"=TRUE") -> 5 | S15: =AE$1-R15 -> 0 | T15: =IF(S15<2,"Yes","No") -> Yes | U15: =IF(D15="-",1,0)*U$1 -> 0 | V15: =AND(U15=0,U$1=1) -> TRUE | W15: =IF(F15="-",1,0)*W$1 -> 0 | X15: =AND(W15=0,W$1=1) -> TRUE | Y15: =IF(H15="-",1,0)*Y$1 -> 0 | Z15: =AND(Y15=0,Y$1=1) -> TRUE | AA15: =IF(J15="-",1,0)*AA$1 -> 0 | AB15: =AND(AA15=0,AA$1=1) -> TRUE | AC15: =IF(L15="-",1,0)*AC$1 -> 0 | AD15: =AND(AC15=0,AC$1=1) -> TRUE
A16: 18 | B16: Maddy Holohan | C16: English Martyrs Catholic School | D16: 14 | E16: =IF(D16="-",0,D16) -> 14 | F16: - | G16: =IF(F16="-",0,F16) -> 0 | H16: 14 | I16: =IF(H16="-",0,H16) -> 14 | J16: 13 | K16: =IF(J16="-",0,J16) -> 13 | L16: 12 | M16: =IF(L16="-",0,L16) -> 12 | O16: =E16+G16+I16+K16+M16 -> 53 | P16: =MAX(D16,F16,H16,J16,L16) -> 14 | Q16: =IF(S16=1,O16,IF(S16=0,(O16-P16),"-")) -> 53 | R16: =COUNTIF(U16:AD16,"=TRUE") -> 4 | S16: =AE$1-R16 -> 1 | T16: =IF(S16<2,"Yes","No") -> Yes | U16: =IF(D16="-",1,0)*U$1 -> 0 | V16: =AND(U16=0,U$1=1) -> TRUE | W16: =IF(F16="-",1,0)*W$1 -> 1 | X16: =AND(W16=0,W$1=1) -> FALSE | Y16: =IF(H16="-",1,0)*Y$1 -> 0 | Z16: =AND(Y16=0,Y$1=1) -> TRUE | AA16: =IF(J16="-",1,0)*AA$1 -> 0 | AB16: =AND(AA16=0,AA$1=1) -> TRUE | AC16: =IF(L16="-",1,0)*AC$1 -> 0 | AD16: =AND(AC16=0,AC$1=1) -> TRUE
A17: 28 | B17: Sophie Ward | C17: Kibworth High School | D17: 20 | E17: =IF(D17="-",0,D17) -> 20 | F17: 15 | G17: =IF(F17="-",0,F17) -> 15 | H17: 35 | I17: =IF(H17="-",0,H17) -> 35 | J17: 25 | K17: =IF(J17="-",0,J17) -> 25 | L17: 13 | M17: =IF(L17="-",0,L17) -> 13 | O17: =E17+G17+I17+K17+M17 -> 108 | P17: =MAX(D17,F17,H17,J17,L17) -> 35 | Q17: =IF(S17=1,O17,IF(S17=0,(O17-P17),"-")) -> 73 | R17: =COUNTIF(U17:AD17,"=TRUE") -> 5 | S17: =AE$1-R17 -> 0 | T17: =IF(S17<2,"Yes","No") -> Yes | U17: =IF(D17="-",1,0)*U$1 -> 0 | V17: =AND(U17=0,U$1=1) -> TRUE | W17: =IF(F17="-",1,0)*W$1 -> 0 | X17: =AND(W17=0,W$1=1) -> TRUE | Y17: =IF(H17="-",1,0)*Y$1 -> 0 | Z17: =AND(Y17=0,Y$1=1) -> TRUE | AA17: =IF(J17="-",1,0)*AA$1 -> 0 | AB17: =AND(AA17=0,AA$1=1) -> TRUE | AC17: =IF(L17="-",1,0)*AC$1 -> 0 | AD17: =AND(AC17=0,AC$1=1) -> TRUE
A18: 75 | B18: Sinead Kirk | C18: Kibworth High School | D18: 17 | E18: =IF(D18="-",0,D18) -> 17 | F18: 14 | G18: =IF(F18="-",0,F18) -> 14 | H18: 12 | I18: =IF(H18="-",0,H18) -> 12 | J18: - | K18: =IF(J18="-",0,J18) -> 0 | L18: 14 | M18: =IF(L18="-",0,L18) -> 14 | O18: =E18+G18+I18+K18+M18 -> 57 | P18: =MAX(D18,F18,H18,J18,L18) -> 17 | Q18: =IF(S18=1,O18,IF(S18=0,(O18-P18),"-")) -> 57 | R18: =COUNTIF(U18:AD18,"=TRUE") -> 4 | S18: =AE$1-R18 -> 1 | T18: =IF(S18<2,"Yes","No") -> Yes | U18: =IF(D18="-",1,0)*U$1 -> 0 | V18: =AND(U18=0,U$1=1) -> TRUE | W18: =IF(F18="-",1,0)*W$1 -> 0 | X18: =AND(W18=0,W$1=1) -> TRUE | Y18: =IF(H18="-",1,0)*Y$1 -> 0 | Z18: =AND(Y18=0,Y$1=1) -> TRUE | AA18: =IF(J18="-",1,0)*AA$1 -> 1 | AB18: =AND(AA18=0,AA$1=1) -> FALSE | AC18: =IF(L18="-",1,0)*AC$1 -> 0 | AD18: =AND(AC18=0,AC$1=1) -> TRUE
A19: 36 | B19: Grace Lovett-Brunt | C19: Uppingham CC | D19: - | E19: =IF(D19="-",0,D19) -> 0 | F19: 12 | G19: =IF(F19="-",0,F19) -> 12 | H19: 16 | I19: =IF(H19="-",0,H19) -> 16 | J19: 12 | K19: =IF(J19="-",0,J19) -> 12 | L19: 15 | M19: =IF(L19="-",0,L19) -> 15 | O19: =E19+G19+I19+K19+M19 -> 55 | P19: =MAX(D19,F19,H19,J19,L19) -> 16 | Q19: =IF(S19=1,O19,IF(S19=0,(O19-P19),"-")) -> 55 | R19: =COUNTIF(U19:AD19,"=TRUE") -> 4 | S19: =AE$1-R19 -> 1 | T19: =IF(S19<2,"Yes","No") -> Yes | U19: =IF(D19="-",1,0)*U$1 -> 1 | V19: =AND(U19=0,U$1=1) -> FALSE | W19: =IF(F19="-",1,0)*W$1 -> 0 | X19: =AND(W19=0,W$1=1) -> TRUE | Y19: =IF(H19="-",1,0)*Y$1 -> 0 | Z19: =AND(Y19=0,Y$1=1) -> TRUE | AA19: =IF(J19="-",1,0)*AA$1 -> 0 | AB19: =AND(AA19=0,AA$1=1) -> TRUE | AC19: =IF(L19="-",1,0)*AC$1 -> 0 | AD19: =AND(AC19=0,AC$1=1) -> TRUE
A20: 80 | B20: Tameika Clarke | C20: Thomas Estley CC | D20: - | E20: =IF(D20="-",0,D20) -> 0 | F20: - | G20: =IF(F20="-",0,F20) -> 0 | H20: 22 | I20: =IF(H20="-",0,H20) -> 22 | J20: 21 | K20: =IF(J20="-",0,J20) -> 21 | L20: 16 | M20: =IF(L20="-",0,L20) -> 16 | O20: =E20+G20+I20+K20+M20 -> 59 | P20: =MAX(D20,F20,H20,J20,L20) -> 22 | Q20: =IF(S20=1,O20,IF(S20=0,(O20-P20),"-")) -> - | R20: =COUNTIF(U20:AD20,"=TRUE") -> 3 | S20: =AE$1-R20 -> 2 | T20: =IF(S20<2,"Yes","No") -> No | U20: =IF(D20="-",1,0)*U$1 -> 1 | V20: =AND(U20=0,U$1=1) -> FALSE | W20: =IF(F20="-",1,0)*W$1 -> 1 | X20: =AND(W20=0,W$1=1) -> FALSE | Y20: =IF(H20="-",1,0)*Y$1 -> 0 | Z20: =AND(Y20=0,Y$1=1) -> TRUE | AA20: =IF(J20="-",1,0)*AA$1 -> 0 | AB20: =AND(AA20=0,AA$1=1) -> TRUE | AC20: =IF(L20="-",1,0)*AC$1 -> 0 | AD20: =AND(AC20=0,AC$1=1) -> TRUE
A21: 73 | B21: Charlotte Perry | C21: The Market Bosworth School | D21: 24 | E21: =IF(D21="-",0,D21) -> 24 | F21: - | G21: =IF(F21="-",0,F21) -> 0 | H21: 20 | I21: =IF(H21="-",0,H21) -> 20 | J21: 11 | K21: =IF(J21="-",0,J21) -> 11 | L21: 17 | M21: =IF(L21="-",0,L21) -> 17 | O21: =E21+G21+I21+K21+M21 -> 72 | P21: =MAX(D21,F21,H21,J21,L21) -> 24 | Q21: =IF(S21=1,O21,IF(S21=0,(O21-P21),"-")) -> 72 | R21: =COUNTIF(U21:AD21,"=TRUE") -> 4 | S21: =AE$1-R21 -> 1 | T21: =IF(S21<2,"Yes","No") -> Yes | U21: =IF(D21="-",1,0)*U$1 -> 0 | V21: =AND(U21=0,U$1=1) -> TRUE | W21: =IF(F21="-",1,0)*W$1 -> 1 | X21: =AND(W21=0,W$1=1) -> FALSE | Y21: =IF(H21="-",1,0)*Y$1 -> 0 | Z21: =AND(Y21=0,Y$1=1) -> TRUE | AA21: =IF(J21="-",1,0)*AA$1 -> 0 | AB21: =AND(AA21=0,AA$1=1) -> TRUE | AC21: =IF(L21="-",1,0)*AC$1 -> 0 | AD21: =AND(AC21=0,AC$1=1) -> TRUE
A22: 1 | B22: Holly Benzie | C22: Humphrey Perkins School | D22: - | E22: =IF(D22="-",0,D22) -> 0 | F22: - | G22: =IF(F22="-",0,F22) -> 0 | H22: 31 | I22: =IF(H22="-",0,H22) -> 31 | J22: - | K22: =IF(J22="-",0,J22) -> 0 | L22: 18 | M22: =IF(L22="-",0,L22) -> 18 | O22: =E22+G22+I22+K22+M22 -> 49 | P22: =MAX(D22,F22,H22,J22,L22) -> 31 | Q22: =IF(S22=1,O22,IF(S22=0,(O22-P22),"-")) -> - | R22: =COUNTIF(U22:AD22,"=TRUE") -> 2 | S22: =AE$1-R22 -> 3 | T22: =IF(S22<2,"Yes","No") -> No | U22: =IF(D22="-",1,0)*U$1 -> 1 | V22: =AND(U22=0,U$1=1) -> FALSE | W22: =IF(F22="-",1,0)*W$1 -> 1 | X22: =AND(W22=0,W$1=1) -> FALSE | Y22: =IF(H22="-",1,0)*Y$1 -> 0 | Z22: =AND(Y22=0,Y$1=1) -> TRUE | AA22: =IF(J22="-",1,0)*AA$1 -> 1 | AB22: =AND(AA22=0,AA$1=1) -> FALSE | AC22: =IF(L22="-",1,0)*AC$1 -> 0 | AD22: =AND(AC22=0,AC$1=1) -> TRUE
A23: 25 | B23: Ashlynne Scott | C23: Welland Park Academy | D23: - | E23: =IF(D23="-",0,D23) -> 0 | F23: - | G23: =IF(F23="-",0,F23) -> 0 | H23: 19 | I23: =IF(H23="-",0,H23) -> 19 | J23: 16 | K23: =IF(J23="-",0,J23) -> 16 | L23: 19 | M23: =IF(L23="-",0,L23) -> 19 | O23: =E23+G23+I23+K23+M23 -> 54 | P23: =MAX(D23,F23,H23,J23,L23) -> 19 | Q23: =IF(S23=1,O23,IF(S23=0,(O23-P23),"-")) -> - | R23: =COUNTIF(U23:AD23,"=TRUE") -> 3 | S23: =AE$1-R23 -> 2 | T23: =IF(S23<2,"Yes","No") -> No | U23: =IF(D23="-",1,0)*U$1 -> 1 | V23: =AND(U23=0,U$1=1) -> FALSE | W23: =IF(F23="-",1,0)*W$1 -> 1 | X23: =AND(W23=0,W$1=1) -> FALSE | Y23: =IF(H23="-",1,0)*Y$1 -> 0 | Z23: =AND(Y23=0,Y$1=1) -> TRUE | AA23: =IF(J23="-",1,0)*AA$1 -> 0 | AB23: =AND(AA23=0,AA$1=1) -> TRUE | AC23: =IF(L23="-",1,0)*AC$1 -> 0 | AD23: =AND(AC23=0,AC$1=1) -> TRUE
A24: 43 | B24: Samantha Dyson-Jackson | C24: The Market Bosworth School | D24: 26 | E24: =IF(D24="-",0,D24) -> 26 | F24: 21 | G24: =IF(F24="-",0,F24) -> 21 | H24: 21 | I24: =IF(H24="-",0,H24) -> 21 | J24: 20 | K24: =IF(J24="-",0,J24) -> 20 | L24: 20 | M24: =IF(L24="-",0,L24) -> 20 | O24: =E24+G24+I24+K24+M24 -> 108 | P24: =MAX(D24,F24,H24,J24,L24) -> 26 | Q24: =IF(S24=1,O24,IF(S24=0,(O24-P24),"-")) -> 82 | R24: =COUNTIF(U24:AD24,"=TRUE") -> 5 | S24: =AE$1-R24 -> 0 | T24: =IF(S24<2,"Yes","No") -> Yes | U24: =IF(D24="-",1,0)*U$1 -> 0 | V24: =AND(U24=0,U$1=1) -> TRUE | W24: =IF(F24="-",1,0)*W$1 -> 0 | X24: =AND(W24=0,W$1=1) -> TRUE | Y24: =IF(H24="-",1,0)*Y$1 -> 0 | Z24: =AND(Y24=0,Y$1=1) -> TRUE | AA24: =IF(J24="-",1,0)*AA$1 -> 0 | AB24: =AND(AA24=0,AA$1=1) -> TRUE | AC24: =IF(L24="-",1,0)*AC$1 -> 0 | AD24: =AND(AC24=0,AC$1=1) -> TRUE
A25: 83 | B25: Hannah Gillespie | C25: John Ferneley College | D25: 16 | E25: =IF(D25="-",0,D25) -> 16 | F25: 18 | G25: =IF(F25="-",0,F25) -> 18 | H25: 24 | I25: =IF(H25="-",0,H25) -> 24 | J25: 24 | K25: =IF(J25="-",0,J25) -> 24 | L25: 21 | M25: =IF(L25="-",0,L25) -> 21 | O25: =E25+G25+I25+K25+M25 -> 103 | P25: =MAX(D25,F25,H25,J25,L25) -> 24 | Q25: =IF(S25=1,O25,IF(S25=0,(O25-P25),"-")) -> 79 | R25: =COUNTIF(U25:AD25,"=TRUE") -> 5 | S25: =AE$1-R25 -> 0 | T25: =IF(S25<2,"Yes","No") -> Yes | U25: =IF(D25="-",1,0)*U$1 -> 0 | V25: =AND(U25=0,U$1=1) -> TRUE | W25: =IF(F25="-",1,0)*W$1 -> 0 | X25: =AND(W25=0,W$1=1) -> TRUE | Y25: =IF(H25="-",1,0)*Y$1 -> 0 | Z25: =AND(Y25=0,Y$1=1) -> TRUE | AA25: =IF(J25="-",1,0)*AA$1 -> 0 | AB25: =AND(AA25=0,AA$1=1) -> TRUE | AC25: =IF(L25="-",1,0)*AC$1 -> 0 | AD25: =AND(AC25=0,AC$1=1) -> TRUE
A26: 11 | B26: Bethany Wallis | C26: Welland Park Academy | D26: 15 | E26: =IF(D26="-",0,D26) -> 15 | F26: 16 | G26: =IF(F26="-",0,F26) -> 16 | H26: 15 | I26: =IF(H26="-",0,H26) -> 15 | J26: 15 | K26: =IF(J26="-",0,J26) -> 15 | L26: 22 | M26: =IF(L26="-",0,L26) -> 22 | O26: =E26+G26+I26+K26+M26 -> 83 | P26: =MAX(D26,F26,H26,J26,L26) -> 22 | Q26: =IF(S26=1,O26,IF(S26=0,(O26-P26),"-")) -> 61 | R26: =COUNTIF(U26:AD26,"=TRUE") -> 5 | S26: =AE$1-R26 -> 0 | T26: =IF(S26<2,"Yes","No") -> Yes | U26: =IF(D26="-",1,0)*U$1 -> 0 | V26: =AND(U26=0,U$1=1) -> TRUE | W26: =IF(F26="-",1,0)*W$1 -> 0 | X26: =AND(W26=0,W$1=1) -> TRUE | Y26: =IF(H26="-",1,0)*Y$1 -> 0 | Z26: =AND(Y26=0,Y$1=1) -> TRUE | AA26: =IF(J26="-",1,0)*AA$1 -> 0 | AB26: =AND(AA26=0,AA$1=1) -> TRUE | AC26: =IF(L26="-",1,0)*AC$1 -> 0 | AD26: =AND(AC26=0,AC$1=1) -> TRUE
A27: 50 | B27: Sian Edwards | C27: Lutterworth High School | D27: 23 | E27: =IF(D27="-",0,D27) -> 23 | F27: 22 | G27: =IF(F27="-",0,F27) -> 22 | H27: 18 | I27: =IF(H27="-",0,H27) -> 18 | J27: 18 | K27: =IF(J27="-",0,J27) -> 18 | L27: 23 | M27: =IF(L27="-",0,L27) -> 23 | O27: =E27+G27+I27+K27+M27 -> 104 | P27: =MAX(D27,F27,H27,J27,L27) -> 23 | Q27: =IF(S27=1,O27,IF(S27=0,(O27-P27),"-")) -> 81 | R27: =COUNTIF(U27:AD27,"=TRUE") -> 5 | S27: =AE$1-R27 -> 0 | T27: =IF(S27<2,"Yes","No") -> Yes | U27: =IF(D27="-",1,0)*U$1 -> 0 | V27: =AND(U27=0,U$1=1) -> TRUE | W27: =IF(F27="-",1,0)*W$1 -> 0 | X27: =AND(W27=0,W$1=1) -> TRUE | Y27: =IF(H27="-",1,0)*Y$1 -> 0 | Z27: =AND(Y27=0,Y$1=1) -> TRUE | AA27: =IF(J27="-",1,0)*AA$1 -> 0 | AB27: =AND(AA27=0,AA$1=1) -> TRUE | AC27: =IF(L27="-",1,0)*AC$1 -> 0 | AD27: =AND(AC27=0,AC$1=1) -> TRUE
A28: 52 | B28: Lauren Uptold | C28: Welland Park Academy | D28: 21 | E28: =IF(D28="-",0,D28) -> 21 | F28: 13 | G28: =IF(F28="-",0,F28) -> 13 | H28: 23 | I28: =IF(H28="-",0,H28) -> 23 | J28: - | K28: =IF(J28="-",0,J28) -> 0 | L28: 24 | M28: =IF(L28="-",0,L28) -> 24 | O28: =E28+G28+I28+K28+M28 -> 81 | P28: =MAX(D28,F28,H28,J28,L28) -> 24 | Q28: =IF(S28=1,O28,IF(S28=0,(O28-P28),"-")) -> 81 | R28: =COUNTIF(U28:AD28,"=TRUE") -> 4 | S28: =AE$1-R28 -> 1 | T28: =IF(S28<2,"Yes","No") -> Yes | U28: =IF(D28="-",1,0)*U$1 -> 0 | V28: =AND(U28=0,U$1=1) -> TRUE | W28: =IF(F28="-",1,0)*W$1 -> 0 | X28: =AND(W28=0,W$1=1) -> TRUE | Y28: =IF(H28="-",1,0)*Y$1 -> 0 | Z28: =AND(Y28=0,Y$1=1) -> TRUE | AA28: =IF(J28="-",1,0)*AA$1 -> 1 | AB28: =AND(AA28=0,AA$1=1) -> FALSE | AC28: =IF(L28="-",1,0)*AC$1 -> 0 | AD28: =AND(AC28=0,AC$1=1) -> TRUE
A29: 5 | B29: Marleen Thandi | C29: Brookvale High School | D29: - | E29: =IF(D29="-",0,D29) -> 0 | F29: - | G29: =IF(F29="-",0,F29) -> 0 | H29: - | I29: =IF(H29="-",0,H29) -> 0 | J29: - | K29: =IF(J29="-",0,J29) -> 0 | L29: 25 | M29: =IF(L29="-",0,L29) -> 25 | O29: =E29+G29+I29+K29+M29 -> 25 | P29: =MAX(D29,F29,H29,J29,L29) -> 25 | Q29: =IF(S29=1,O29,IF(S29=0,(O29-P29),"-")) -> - | R29: =COUNTIF(U29:AD29,"=TRUE") -> 1 | S29: =AE$1-R29 -> 4 | T29: =IF(S29<2,"Yes","No") -> No | U29: =IF(D29="-",1,0)*U$1 -> 1 | V29: =AND(U29=0,U$1=1) -> FALSE | W29: =IF(F29="-",1,0)*W$1 -> 1 | X29: =AND(W29=0,W$1=1) -> FALSE | Y29: =IF(H29="-",1,0)*Y$1 -> 1 | Z29: =AND(Y29=0,Y$1=1) -> FALSE | AA29: =IF(J29="-",1,0)*AA$1 -> 1 | AB29: =AND(AA29=0,AA$1=1) -> FALSE | AC29: =IF(L29="-",1,0)*AC$1 -> 0 | AD29: =AND(AC29=0,AC$1=1) -> TRUE
A30: 29 | B30: Holly Jones | C30: Leysland High School | D30: - | F30: 24 | G30: =IF(F30="-",0,F30) -> 24 | H30: 28 | I30: =IF(H30="-",0,H30) -> 28 | J30: - | K30: =IF(J30="-",0,J30) -> 0 | L30: 26 | M30: =IF(L30="-",0,L30) -> 26 | O30: =E30+G30+I30+K30+M30 -> 78 | P30: =MAX(D30,F30,H30,J30,L30) -> 28 | Q30: =IF(S30=1,O30,IF(S30=0,(O30-P30),"-")) -> - | R30: =COUNTIF(U30:AD30,"=TRUE") -> 3 | S30: =AE$1-R30 -> 2 | T30: =IF(S30<2,"Yes","No") -> No | U30: =IF(D30="-",1,0)*U$1 -> 1 | V30: =AND(U30=0,U$1=1) -> FALSE | W30: =IF(F30="-",1,0)*W$1 -> 0 | X30: =AND(W30=0,W$1=1) -> TRUE | Y30: =IF(H30="-",1,0)*Y$1 -> 0 | Z30: =AND(Y30=0,Y$1=1) -> TRUE | AA30: =IF(J30="-",1,0)*AA$1 -> 1 | AB30: =AND(AA30=0,AA$1=1) -> FALSE | AC30: =IF(L30="-",1,0)*AC$1 -> 0 | AD30: =AND(AC30=0,AC$1=1) -> TRUE
A31: 14 | B31: Jenny Sharpe | C31: John Ferneley College | D31: 30 | E31: =IF(D31="-",0,D31) -> 30 | F31: - | G31: =IF(F31="-",0,F31) -> 0 | H31: - | I31: =IF(H31="-",0,H31) -> 0 | J31: 30 | K31: =IF(J31="-",0,J31) -> 30 | L31: 27 | M31: =IF(L31="-",0,L31) -> 27 | O31: =E31+G31+I31+K31+M31 -> 87 | P31: =MAX(D31,F31,H31,J31,L31) -> 30 | Q31: =IF(S31=1,O31,IF(S31=0,(O31-P31),"-")) -> - | R31: =COUNTIF(U31:AD31,"=TRUE") -> 3 | S31: =AE$1-R31 -> 2 | T31: =IF(S31<2,"Yes","No") -> No | U31: =IF(D31="-",1,0)*U$1 -> 0 | V31: =AND(U31=0,U$1=1) -> TRUE | W31: =IF(F31="-",1,0)*W$1 -> 1 | X31: =AND(W31=0,W$1=1) -> FALSE | Y31: =IF(H31="-",1,0)*Y$1 -> 1 | Z31: =AND(Y31=0,Y$1=1) -> FALSE | AA31: =IF(J31="-",1,0)*AA$1 -> 0 | AB31: =AND(AA31=0,AA$1=1) -> TRUE | AC31: =IF(L31="-",1,0)*AC$1 -> 0 | AD31: =AND(AC31=0,AC$1=1) -> TRUE
A32: 61 | B32: Sophie Perry | C32: The Market Bosworth School | D32: 27 | E32: =IF(D32="-",0,D32) -> 27 | F32: 30 | G32: =IF(F32="-",0,F32) -> 30 | H32: 33 | I32: =IF(H32="-",0,H32) -> 33 | J32: 19 | K32: =IF(J32="-",0,J32) -> 19 | L32: 28 | M32: =IF(L32="-",0,L32) -> 28 | O32: =E32+G32+I32+K32+M32 -> 137 | P32: =MAX(D32,F32,H32,J32,L32) -> 33 | Q32: =IF(S32=1,O32,IF(S32=0,(O32-P32),"-")) -> 104 | R32: =COUNTIF(U32:AD32,"=TRUE") -> 5 | S32: =AE$1-R32 -> 0 | T32: =IF(S32<2,"Yes","No") -> Yes | U32: =IF(D32="-",1,0)*U$1 -> 0 | V32: =AND(U32=0,U$1=1) -> TRUE | W32: =IF(F32="-",1,0)*W$1 -> 0 | X32: =AND(W32=0,W$1=1) -> TRUE | Y32: =IF(H32="-",1,0)*Y$1 -> 0 | Z32: =AND(Y32=0,Y$1=1) -> TRUE | AA32: =IF(J32="-",1,0)*AA$1 -> 0 | AB32: =AND(AA32=0,AA$1=1) -> TRUE | AC32: =IF(L32="-",1,0)*AC$1 -> 0 | AD32: =AND(AC32=0,AC$1=1) -> TRUE
A33: 72 | B33: Kerry Christie | C33: Lutterworth High School | D33: 43 | E33: =IF(D33="-",0,D33) -> 43 | F33: 38 | G33: =IF(F33="-",0,F33) -> 38 | H33: 38 | I33: =IF(H33="-",0,H33) -> 38 | J33: 28 | K33: =IF(J33="-",0,J33) -> 28 | L33: 30 | M33: =IF(L33="-",0,L33) -> 30 | O33: =E33+G33+I33+K33+M33 -> 177 | P33: =MAX(D33,F33,H33,J33,L33) -> 43 | Q33: =IF(S33=1,O33,IF(S33=0,(O33-P33),"-")) -> 134 | R33: =COUNTIF(U33:AD33,"=TRUE") -> 5 | S33: =AE$1-R33 -> 0 | T33: =IF(S33<2,"Yes","No") -> Yes | U33: =IF(D33="-",1,0)*U$1 -> 0 | V33: =AND(U33=0,U$1=1) -> TRUE | W33: =IF(F33="-",1,0)*W$1 -> 0 | X33: =AND(W33=0,W$1=1) -> TRUE | Y33: =IF(H33="-",1,0)*Y$1 -> 0 | Z33: =AND(Y33=0,Y$1=1) -> TRUE | AA33: =IF(J33="-",1,0)*AA$1 -> 0 | AB33: =AND(AA33=0,AA$1=1) -> TRUE | AC33: =IF(L33="-",1,0)*AC$1 -> 0 | AD33: =AND(AC33=0,AC$1=1) -> TRUE
A34: 17 | B34: Megan Webster | C34: Woodbrook Vale School | D34: - | E34: =IF(D34="-",0,D34) -> 0 | F34: 23 | G34: =IF(F34="-",0,F34) -> 23 | H34: 25 | I34: =IF(H34="-",0,H34) -> 25 | J34: 17 | K34: =IF(J34="-",0,J34) -> 17 | L34: 31 | M34: =IF(L34="-",0,L34) -> 31 | O34: =E34+G34+I34+K34+M34 -> 96 | P34: =MAX(D34,F34,H34,J34,L34) -> 31 | Q34: =IF(S34=1,O34,IF(S34=0,(O34-P34),"-")) -> 96 | R34: =COUNTIF(U34:AD34,"=TRUE") -> 4 | S34: =AE$1-R34 -> 1 | T34: =IF(S34<2,"Yes","No") -> Yes | U34: =IF(D34="-",1,0)*U$1 -> 1 | V34: =AND(U34=0,U$1=1) -> FALSE | W34: =IF(F34="-",1,0)*W$1 -> 0 | X34: =AND(W34=0,W$1=1) -> TRUE | Y34: =IF(H34="-",1,0)*Y$1 -> 0 | Z34: =AND(Y34=0,Y$1=1) -> TRUE | AA34: =IF(J34="-",1,0)*AA$1 -> 0 | AB34: =AND(AA34=0,AA$1=1) -> TRUE | AC34: =IF(L34="-",1,0)*AC$1 -> 0 | AD34: =AND(AC34=0,AC$1=1) -> TRUE
A35: 42 | B35: Grace Hobson | C35: Thomas Estley CC | D35: 32 | E35: =IF(D35="-",0,D35) -> 32 | F35: - | G35: =IF(F35="-",0,F35) -> 0 | H35: 32 | I35: =IF(H35="-",0,H35) -> 32 | J35: 27 | K35: =IF(J35="-",0,J35) -> 27 | L35: 32 | M35: =IF(L35="-",0,L35) -> 32 | O35: =E35+G35+I35+K35+M35 -> 123 | P35: =MAX(D35,F35,H35,J35,L35) -> 32 | Q35: =IF(S35=1,O35,IF(S35=0,(O35-P35),"-")) -> 123 | R35: =COUNTIF(U35:AD35,"=TRUE") -> 4 | S35: =AE$1-R35 -> 1 | T35: =IF(S35<2,"Yes","No") -> Yes | U35: =IF(D35="-",1,0)*U$1 -> 0 | V35: =AND(U35=0,U$1=1) -> TRUE | W35: =IF(F35="-",1,0)*W$1 -> 1 | X35: =AND(W35=0,W$1=1) -> FALSE | Y35: =IF(H35="-",1,0)*Y$1 -> 0 | Z35: =AND(Y35=0,Y$1=1) -> TRUE | AA35: =IF(J35="-",1,0)*AA$1 -> 0 | AB35: =AND(AA35=0,AA$1=1) -> TRUE | AC35: =IF(L35="-",1,0)*AC$1 -> 0 | AD35: =AND(AC35=0,AC$1=1) -> TRUE
A36: 51 | B36: Ravenn Cook | C36: Woodbrook Vale School | D36: 22 | E36: =IF(D36="-",0,D36) -> 22 | F36: 19 | G36: =IF(F36="-",0,F36) -> 19 | H36: 29 | I36: =IF(H36="-",0,H36) -> 29 | J36: 14 | K36: =IF(J36="-",0,J36) -> 14 | L36: 33 | M36: =IF(L36="-",0,L36) -> 33 | O36: =E36+G36+I36+K36+M36 -> 117 | P36: =MAX(D36,F36,H36,J36,L36) -> 33 | Q36: =IF(S36=1,O36,IF(S36=0,(O36-P36),"-")) -> 84 | R36: =COUNTIF(U36:AD36,"=TRUE") -> 5 | S36: =AE$1-R36 -> 0 | T36: =IF(S36<2,"Yes","No") -> Yes | U36: =IF(D36="-",1,0)*U$1 -> 0 | V36: =AND(U36=0,U$1=1) -> TRUE | W36: =IF(F36="-",1,0)*W$1 -> 0 | X36: =AND(W36=0,W$1=1) -> TRUE | Y36: =IF(H36="-",1,0)*Y$1 -> 0 | Z36: =AND(Y36=0,Y$1=1) -> TRUE | AA36: =IF(J36="-",1,0)*AA$1 -> 0 | AB36: =AND(AA36=0,AA$1=1) -> TRUE | AC36: =IF(L36="-",1,0)*AC$1 -> 0 | AD36: =AND(AC36=0,AC$1=1) -> TRUE
A37: 15 | B37: Libby Cooper | C37: Humphrey Perkins School | D37: 34 | E37: =IF(D37="-",0,D37) -> 34 | F37: 33 | G37: =IF(F37="-",0,F37) -> 33 | H37: 36 | I37: =IF(H37="-",0,H37) -> 36 | J37: 26 | K37: =IF(J37="-",0,J37) -> 26 | L37: 34 | M37: =IF(L37="-",0,L37) -> 34 | O37: =E37+G37+I37+K37+M37 -> 163 | P37: =MAX(D37,F37,H37,J37,L37) -> 36 | Q37: =IF(S37=1,O37,IF(S37=0,(O37-P37),"-")) -> 127 | R37: =COUNTIF(U37:AD37,"=TRUE") -> 5 | S37: =AE$1-R37 -> 0 | T37: =IF(S37<2,"Yes","No") -> Yes | U37: =IF(D37="-",1,0)*U$1 -> 0 | V37: =AND(U37=0,U$1=1) -> TRUE | W37: =IF(F37="-",1,0)*W$1 -> 0 | X37: =AND(W37=0,W$1=1) -> TRUE | Y37: =IF(H37="-",1,0)*Y$1 -> 0 | Z37: =AND(Y37=0,Y$1=1) -> TRUE | AA37: =IF(J37="-",1,0)*AA$1 -> 0 | AB37: =AND(AA37=0,AA$1=1) -> TRUE | AC37: =IF(L37="-",1,0)*AC$1 -> 0 | AD37: =AND(AC37=0,AC$1=1) -> TRUE
A38: 41 | B38: Lillian Smith | C38: Woodbrook Vale School | D38: - | E38: =IF(D38="-",0,D38) -> 0 | F38: 32 | G38: =IF(F38="-",0,F38) -> 32 | H38: - | I38: =IF(H38="-",0,H38) -> 0 | J38: 29 | K38: =IF(J38="-",0,J38) -> 29 | L38: 35 | M38: =IF(L38="-",0,L38) -> 35 | O38: =E38+G38+I38+K38+M38 -> 96 | P38: =MAX(D38,F38,H38,J38,L38) -> 35 | Q38: =IF(S38=1,O38,IF(S38=0,(O38-P38),"-")) -> - | R38: =COUNTIF(U38:AD38,"=TRUE") -> 3 | S38: =AE$1-R38 -> 2 | T38: =IF(S38<2,"Yes","No") -> No | U38: =IF(D38="-",1,0)*U$1 -> 1 | V38: =AND(U38=0,U$1=1) -> FALSE | W38: =IF(F38="-",1,0)*W$1 -> 0 | X38: =AND(W38=0,W$1=1) -> TRUE | Y38: =IF(H38="-",1,0)*Y$1 -> 1 | Z38: =AND(Y38=0,Y$1=1) -> FALSE | AA38: =IF(J38="-",1,0)*AA$1 -> 0 | AB38: =AND(AA38=0,AA$1=1) -> TRUE | AC38: =IF(L38="-",1,0)*AC$1 -> 0 | AD38: =AND(AC38=0,AC$1=1) -> TRUE
A39: 27 | B39: Nazar Hamude | C39: Kibworth High School | D39: 49 | E39: =IF(D39="-",0,D39) -> 49 | F39: - | G39: =IF(F39="-",0,F39) -> 0 | H39: 50 | I39: =IF(H39="-",0,H39) -> 50 | J39: 32 | K39: =IF(J39="-",0,J39) -> 32 | L39: 37 | M39: =IF(L39="-",0,L39) -> 37 | O39: =E39+G39+I39+K39+M39 -> 168 | P39: =MAX(D39,F39,H39,J39,L39) -> 50 | Q39: =IF(S39=1,O39,IF(S39=0,(O39-P39),"-")) -> 168 | R39: =COUNTIF(U39:AD39,"=TRUE") -> 4 | S39: =AE$1-R39 -> 1 | T39: =IF(S39<2,"Yes","No") -> Yes | U39: =IF(D39="-",1,0)*U$1 -> 0 | V39: =AND(U39=0,U$1=1) -> TRUE | W39: =IF(F39="-",1,0)*W$1 -> 1 | X39: =AND(W39=0,W$1=1) -> FALSE | Y39: =IF(H39="-",1,0)*Y$1 -> 0 | Z39: =AND(Y39=0,Y$1=1) -> TRUE | AA39: =IF(J39="-",1,0)*AA$1 -> 0 | AB39: =AND(AA39=0,AA$1=1) -> TRUE | AC39: =IF(L39="-",1,0)*AC$1 -> 0 | AD39: =AND(AC39=0,AC$1=1) -> TRUE
A40: 40 | B40: Isobelle Wilebore | C40: Redmoor Academy | D40: 36 | E40: =IF(D40="-",0,D40) -> 36 | F40: 25 | G40: =IF(F40="-",0,F40) -> 25 | H40: 39 | I40: =IF(H40="-",0,H40) -> 39 | J40: 34 | K40: =IF(J40="-",0,J40) -> 34 | L40: 38 | M40: =IF(L40="-",0,L40) -> 38 | O40: =E40+G40+I40+K40+M40 -> 172 | P40: =MAX(D40,F40,H40,J40,L40) -> 39 | Q40: =IF(S40=1,O40,IF(S40=0,(O40-P40),"-")) -> 133 | R40: =COUNTIF(U40:AD40,"=TRUE") -> 5 | S40: =AE$1-R40 -> 0 | T40: =IF(S40<2,"Yes","No") -> Yes | U40: =IF(D40="-",1,0)*U$1 -> 0 | V40: =AND(U40=0,U$1=1) -> TRUE | W40: =IF(F40="-",1,0)*W$1 -> 0 | X40: =AND(W40=0,W$1=1) -> TRUE | Y40: =IF(H40="-",1,0)*Y$1 -> 0 | Z40: =AND(Y40=0,Y$1=1) -> TRUE | AA40: =IF(J40="-",1,0)*AA$1 -> 0 | AB40: =AND(AA40=0,AA$1=1) -> TRUE | AC40: =IF(L40="-",1,0)*AC$1 -> 0 | AD40: =AND(AC40=0,AC$1=1) -> TRUE
A41: 31 | B41: Holly Kennerson | C41: Redmoor Academy | D41: - | E41: =IF(D41="-",0,D41) -> 0 | F41: - | G41: =IF(F41="-",0,F41) -> 0 | H41: 46 | I41: =IF(H41="-",0,H41) -> 46 | J41: 39 | K41: =IF(J41="-",0,J41) -> 39 | L41: 39 | M41: =IF(L41="-",0,L41) -> 39 | O41: =E41+G41+I41+K41+M41 -> 124 | P41: =MAX(D41,F41,H41,J41,L41) -> 46 | Q41: =IF(S41=1,O41,IF(S41=0,(O41-P41),"-")) -> - | R41: =COUNTIF(U41:AD41,"=TRUE") -> 3 | S41: =AE$1-R41 -> 2 | T41: =IF(S41<2,"Yes","No") -> No | U41: =IF(D41="-",1,0)*U$1 -> 1 | V41: =AND(U41=0,U$1=1) -> FALSE | W41: =IF(F41="-",1,0)*W$1 -> 1 | X41: =AND(W41=0,W$1=1) -> FALSE | Y41: =IF(H41="-",1,0)*Y$1 -> 0 | Z41: =AND(Y41=0,Y$1=1) -> TRUE | AA41: =IF(J41="-",1,0)*AA$1 -> 0 | AB41: =AND(AA41=0,AA$1=1) -> TRUE | AC41: =IF(L41="-",1,0)*AC$1 -> 0 | AD41: =AND(AC41=0,AC$1=1) -> TRUE
A42: 48 | B42: Ella Moore | C42: Thomas Estley CC | D42: 42 | E42: =IF(D42="-",0,D42) -> 42 | F42: 36 | G42: =IF(F42="-",0,F42) -> 36 | H42: - | I42: =IF(H42="-",0,H42) -> 0 | J42: 33 | K42: =IF(J42="-",0,J42) -> 33 | L42: 40 | M42: =IF(L42="-",0,L42) -> 40 | O42: =E42+G42+I42+K42+M42 -> 151 | P42: =MAX(D42,F42,H42,J42,L42) -> 42 | Q42: =IF(S42=1,O42,IF(S42=0,(O42-P42),"-")) -> 151 | R42: =COUNTIF(U42:AD42,"=TRUE") -> 4 | S42: =AE$1-R42 -> 1 | T42: =IF(S42<2,"Yes","No") -> Yes | U42: =IF(D42="-",1,0)*U$1 -> 0 | V42: =AND(U42=0,U$1=1) -> TRUE | W42: =IF(F42="-",1,0)*W$1 -> 0 | X42: =AND(W42=0,W$1=1) -> TRUE | Y42: =IF(H42="-",1,0)*Y$1 -> 1 | Z42: =AND(Y42=0,Y$1=1) -> FALSE | AA42: =IF(J42="-",1,0)*AA$1 -> 0 | AB42: =AND(AA42=0,AA$1=1) -> TRUE | AC42: =IF(L42="-",1,0)*AC$1 -> 0 | AD42: =AND(AC42=0,AC$1=1) -> TRUE
A43: 16 | B43: Emma Thomas | C43: Redmoor Academy | D43: 33 | E43: =IF(D43="-",0,D43) -> 33 | F43: 29 | G43: =IF(F43="-",0,F43) -> 29 | H43: 40 | I43: =IF(H43="-",0,H43) -> 40 | J43: 37 | K43: =IF(J43="-",0,J43) -> 37 | L43: 41 | M43: =IF(L43="-",0,L43) -> 41 | O43: =E43+G43+I43+K43+M43 -> 180 | P43: =MAX(D43,F43,H43,J43,L43) -> 41 | Q43: =IF(S43=1,O43,IF(S43=0,(O43-P43),"-")) -> 139 | R43: =COUNTIF(U43:AD43,"=TRUE") -> 5 | S43: =AE$1-R43 -> 0 | T43: =IF(S43<2,"Yes","No") -> Yes | U43: =IF(D43="-",1,0)*U$1 -> 0 | V43: =AND(U43=0,U$1=1) -> TRUE | W43: =IF(F43="-",1,0)*W$1 -> 0 | X43: =AND(W43=0,W$1=1) -> TRUE | Y43: =IF(H43="-",1,0)*Y$1 -> 0 | Z43: =AND(Y43=0,Y$1=1) -> TRUE | AA43: =IF(J43="-",1,0)*AA$1 -> 0 | AB43: =AND(AA43=0,AA$1=1) -> TRUE | AC43: =IF(L43="-",1,0)*AC$1 -> 0 | AD43: =AND(AC43=0,AC$1=1) -> TRUE
A44: 64 | B44: Molly Smallwood | C44: St Pauls Catholic School | D44: - | E44: =IF(D44="-",0,D44) -> 0 | F44: - | G44: =IF(F44="-",0,F44) -> 0 | H44: - | I44: =IF(H44="-",0,H44) -> 0 | J44: - | K44: =IF(J44="-",0,J44) -> 0 | L44: 42 | M44: =IF(L44="-",0,L44) -> 42 | O44: =E44+G44+I44+K44+M44 -> 42 | P44: =MAX(D44,F44,H44,J44,L44) -> 42 | Q44: =IF(S44=1,O44,IF(S44=0,(O44-P44),"-")) -> - | R44: =COUNTIF(U44:AD44,"=TRUE") -> 1 | S44: =AE$1-R44 -> 4 | T44: =IF(S44<2,"Yes","No") -> No | U44: =IF(D44="-",1,0)*U$1 -> 1 | V44: =AND(U44=0,U$1=1) -> FALSE | W44: =IF(F44="-",1,0)*W$1 -> 1 | X44: =AND(W44=0,W$1=1) -> FALSE | Y44: =IF(H44="-",1,0)*Y$1 -> 1 | Z44: =AND(Y44=0,Y$1=1) -> FALSE | AA44: =IF(J44="-",1,0)*AA$1 -> 1 | AB44: =AND(AA44=0,AA$1=1) -> FALSE | AC44: =IF(L44="-",1,0)*AC$1 -> 0 | AD44: =AND(AC44=0,AC$1=1) -> TRUE
A45: 32 | B45: Amy Roulston | C45: Humphrey Perkins School | D45: 41 | E45: =IF(D45="-",0,D45) -> 41 | F45: 28 | G45: =IF(F45="-",0,F45) -> 28 | H45: - | I45: =IF(H45="-",0,H45) -> 0 | J45: 23 | K45: =IF(J45="-",0,J45) -> 23 | L45: 43 | M45: =IF(L45="-",0,L45) -> 43 | O45: =E45+G45+I45+K45+M45 -> 135 | P45: =MAX(D45,F45,H45,J45,L45) -> 43 | Q45: =IF(S45=1,O45,IF(S45=0,(O45-P45),"-")) -> 135 | R45: =COUNTIF(U45:AD45,"=TRUE") -> 4 | S45: =AE$1-R45 -> 1 | T45: =IF(S45<2,"Yes","No") -> Yes | U45: =IF(D45="-",1,0)*U$1 -> 0 | V45: =AND(U45=0,U$1=1) -> TRUE | W45: =IF(F45="-",1,0)*W$1 -> 0 | X45: =AND(W45=0,W$1=1) -> TRUE | Y45: =IF(H45="-",1,0)*Y$1 -> 1 | Z45: =AND(Y45=0,Y$1=1) -> FALSE | AA45: =IF(J45="-",1,0)*AA$1 -> 0 | AB45: =AND(AA45=0,AA$1=1) -> TRUE | AC45: =IF(L45="-",1,0)*AC$1 -> 0 | AD45: =AND(AC45=0,AC$1=1) -> TRUE
A46: 4 | B46: Lucy James | C46: Kibworth High School | D46: - | E46: =IF(D46="-",0,D46) -> 0 | F46: 42 | G46: =IF(F46="-",0,F46) -> 42 | H46: 47 | I46: =IF(H46="-",0,H46) -> 47 | J46: 38 | K46: =IF(J46="-",0,J46) -> 38 | L46: 44 | M46: =IF(L46="-",0,L46) -> 44 | O46: =E46+G46+I46+K46+M46 -> 171 | P46: =MAX(D46,F46,H46,J46,L46) -> 47 | Q46: =IF(S46=1,O46,IF(S46=0,(O46-P46),"-")) -> 171 | R46: =COUNTIF(U46:AD46,"=TRUE") -> 4 | S46: =AE$1-R46 -> 1 | T46: =IF(S46<2,"Yes","No") -> Yes | U46: =IF(D46="-",1,0)*U$1 -> 1 | V46: =AND(U46=0,U$1=1) -> FALSE | W46: =IF(F46="-",1,0)*W$1 -> 0 | X46: =AND(W46=0,W$1=1) -> TRUE | Y46: =IF(H46="-",1,0)*Y$1 -> 0 | Z46: =AND(Y46=0,Y$1=1) -> TRUE | AA46: =IF(J46="-",1,0)*AA$1 -> 0 | AB46: =AND(AA46=0,AA$1=1) -> TRUE | AC46: =IF(L46="-",1,0)*AC$1 -> 0 | AD46: =AND(AC46=0,AC$1=1) -> TRUE
A47: 77 | B47: Chloe Burgess | C47: Redmoor Academy | D47: - | E47: =IF(D47="-",0,D47) -> 0 | F47: - | G47: =IF(F47="-",0,F47) -> 0 | H47: - | I47: =IF(H47="-",0,H47) -> 0 | J47: - | K47: =IF(J47="-",0,J47) -> 0 | L47: 45 | M47: =IF(L47="-",0,L47) -> 45 | O47: =E47+G47+I47+K47+M47 -> 45 | P47: =MAX(D47,F47,H47,J47,L47) -> 45 | Q47: =IF(S47=1,O47,IF(S47=0,(O47-P47),"-")) -> - | R47: =COUNTIF(U47:AD47,"=TRUE") -> 1 | S47: =AE$1-R47 -> 4 | T47: =IF(S47<2,"Yes","No") -> No | U47: =IF(D47="-",1,0)*U$1 -> 1 | V47: =AND(U47=0,U$1=1) -> FALSE | W47: =IF(F47="-",1,0)*W$1 -> 1 | X47: =AND(W47=0,W$1=1) -> FALSE | Y47: =IF(H47="-",1,0)*Y$1 -> 1 | Z47: =AND(Y47=0,Y$1=1) -> FALSE | AA47: =IF(J47="-",1,0)*AA$1 -> 1 | AB47: =AND(AA47=0,AA$1=1) -> FALSE | AC47: =IF(L47="-",1,0)*AC$1 -> 0 | AD47: =AND(AC47=0,AC$1=1) -> TRUE
A48: 22 | B48: Darcy Lewis | C48: Uppingham CC | D48: - | E48: =IF(D48="-",0,D48) -> 0 | F48: - | G48: =IF(F48="-",0,F48) -> 0 | H48: - | I48: =IF(H48="-",0,H48) -> 0 | J48: - | K48: =IF(J48="-",0,J48) -> 0 | L48: 46 | M48: =IF(L48="-",0,L48) -> 46 | O48: =E48+G48+I48+K48+M48 -> 46 | P48: =MAX(D48,F48,H48,J48,L48) -> 46 | Q48: =IF(S48=1,O48,IF(S48=0,(O48-P48),"-")) -> - | R48: =COUNTIF(U48:AD48,"=TRUE") -> 1 | S48: =AE$1-R48 -> 4 | T48: =IF(S48<2,"Yes","No") -> No | U48: =IF(D48="-",1,0)*U$1 -> 1 | V48: =AND(U48=0,U$1=1) -> FALSE | W48: =IF(F48="-",1,0)*W$1 -> 1 | X48: =AND(W48=0,W$1=1) -> FALSE | Y48: =IF(H48="-",1,0)*Y$1 -> 1 | Z48: =AND(Y48=0,Y$1=1) -> FALSE | AA48: =IF(J48="-",1,0)*AA$1 -> 1 | AB48: =AND(AA48=0,AA$1=1) -> FALSE | AC48: =IF(L48="-",1,0)*AC$1 -> 0 | AD48: =AND(AC48=0,AC$1=1) -> TRUE
A49: 6 | B49: Jessica Jones | C49: Uppingham CC | D49: - | E49: =IF(D49="-",0,D49) -> 0 | F49: - | G49: =IF(F49="-",0,F49) -> 0 | H49: - | I49: =IF(H49="-",0,H49) -> 0 | J49: - | K49: =IF(J49="-",0,J49) -> 0 | L49: 47 | M49: =IF(L49="-",0,L49) -> 47 | O49: =E49+G49+I49+K49+M49 -> 47 | P49: =MAX(D49,F49,H49,J49,L49) -> 47 | Q49: =IF(S49=1,O49,IF(S49=0,(O49-P49),"-")) -> - | R49: =COUNTIF(U49:AD49,"=TRUE") -> 1 | S49: =AE$1-R49 -> 4 | T49: =IF(S49<2,"Yes","No") -> No | U49: =IF(D49="-",1,0)*U$1 -> 1 | V49: =AND(U49=0,U$1=1) -> FALSE | W49: =IF(F49="-",1,0)*W$1 -> 1 | X49: =AND(W49=0,W$1=1) -> FALSE | Y49: =IF(H49="-",1,0)*Y$1 -> 1 | Z49: =AND(Y49=0,Y$1=1) -> FALSE | AA49: =IF(J49="-",1,0)*AA$1 -> 1 | AB49: =AND(AA49=0,AA$1=1) -> FALSE | AC49: =IF(L49="-",1,0)*AC$1 -> 0 | AD49: =AND(AC49=0,AC$1=1) -> TRUE
A50: 19 | B50: Jessica Tansley | C50: Brookvale High School | D50: 28 | E50: =IF(D50="-",0,D50) -> 28 | F50: - | G50: =IF(F50="-",0,F50) -> 0 | H50: 27 | I50: =IF(H50="-",0,H50) -> 27 | J50: 22 | K50: =IF(J50="-",0,J50) -> 22 | L50: - | M50: =IF(L50="-",0,L50) -> 0 | O50: =E50+G50+I50+K50+M50 -> 77 | P50: =MAX(D50,F50,H50,J50,L50) -> 28 | Q50: =IF(S50=1,O50,IF(S50=0,(O50-P50),"-")) -> - | R50: =COUNTIF(U50:AD50,"=TRUE") -> 3 | S50: =AE$1-R50 -> 2 | T50: =IF(S50<2,"Yes","No") -> No | U50: =IF(D50="-",1,0)*U$1 -> 0 | V50: =AND(U50=0,U$1=1) -> TRUE | W50: =IF(F50="-",1,0)*W$1 -> 1 | X50: =AND(W50=0,W$1=1) -> FALSE | Y50: =IF(H50="-",1,0)*Y$1 -> 0 | Z50: =AND(Y50=0,Y$1=1) -> TRUE | AA50: =IF(J50="-",1,0)*AA$1 -> 0 | AB50: =AND(AA50=0,AA$1=1) -> TRUE | AC50: =IF(L50="-",1,0)*AC$1 -> 1 | AD50: =AND(AC50=0,AC$1=1) -> FALSE
A51: 53 | B51: Lucy Smith | C51: Thomas Estley CC | D51: 38 | E51: =IF(D51="-",0,D51) -> 38 | F51: - | G51: =IF(F51="-",0,F51) -> 0 | H51: 37 | I51: =IF(H51="-",0,H51) -> 37 | J51: 31 | K51: =IF(J51="-",0,J51) -> 31 | L51: - | M51: =IF(L51="-",0,L51) -> 0 | O51: =E51+G51+I51+K51+M51 -> 106 | P51: =MAX(D51,F51,H51,J51,L51) -> 38 | Q51: =IF(S51=1,O51,IF(S51=0,(O51-P51),"-")) -> - | R51: =COUNTIF(U51:AD51,"=TRUE") -> 3 | S51: =AE$1-R51 -> 2 | T51: =IF(S51<2,"Yes","No") -> No | U51: =IF(D51="-",1,0)*U$1 -> 0 | V51: =AND(U51=0,U$1=1) -> TRUE | W51: =IF(F51="-",1,0)*W$1 -> 1 | X51: =AND(W51=0,W$1=1) -> FALSE | Y51: =IF(H51="-",1,0)*Y$1 -> 0 | Z51: =AND(Y51=0,Y$1=1) -> TRUE | AA51: =IF(J51="-",1,0)*AA$1 -> 0 | AB51: =AND(AA51=0,AA$1=1) -> TRUE | AC51: =IF(L51="-",1,0)*AC$1 -> 1 | AD51: =AND(AC51=0,AC$1=1) -> FALSE
A52: 54 | B52: Evie Anderson | C52: Welland Park Academy | D52: 44 | E52: =IF(D52="-",0,D52) -> 44 | F52: 47 | G52: =IF(F52="-",0,F52) -> 47 | H52: 42 | I52: =IF(H52="-",0,H52) -> 42 | J52: 35 | K52: =IF(J52="-",0,J52) -> 35 | L52: - | M52: =IF(L52="-",0,L52) -> 0 | O52: =E52+G52+I52+K52+M52 -> 168 | P52: =MAX(D52,F52,H52,J52,L52) -> 47 | Q52: =IF(S52=1,O52,IF(S52=0,(O52-P52),"-")) -> 168 | R52: =COUNTIF(U52:AD52,"=TRUE") -> 4 | S52: =AE$1-R52 -> 1 | T52: =IF(S52<2,"Yes","No") -> Yes | U52: =IF(D52="-",1,0)*U$1 -> 0 | V52: =AND(U52=0,U$1=1) -> TRUE | W52: =IF(F52="-",1,0)*W$1 -> 0 | X52: =AND(W52=0,W$1=1) -> TRUE | Y52: =IF(H52="-",1,0)*Y$1 -> 0 | Z52: =AND(Y52=0,Y$1=1) -> TRUE | AA52: =IF(J52="-",1,0)*AA$1 -> 0 | AB52: =AND(AA52=0,AA$1=1) -> TRUE | AC52: =IF(L52="-",1,0)*AC$1 -> 1 | AD52: =AND(AC52=0,AC$1=1) -> FALSE
A53: 84 | B53: Isobel Collinson | C53: Woodbrook Vale School | D53: 40 | E53: =IF(D53="-",0,D53) -> 40 | F53: 39 | G53: =IF(F53="-",0,F53) -> 39 | H53: 48 | I53: =IF(H53="-",0,H53) -> 48 | J53: 36 | K53: =IF(J53="-",0,J53) -> 36 | L53: - | M53: =IF(L53="-",0,L53) -> 0 | O53: =E53+G53+I53+K53+M53 -> 163 | P53: =MAX(D53,F53,H53,J53,L53) -> 48 | Q53: =IF(S53=1,O53,IF(S53=0,(O53-P53),"-")) -> 163 | R53: =COUNTIF(U53:AD53,"=TRUE") -> 4 | S53: =AE$1-R53 -> 1 | T53: =IF(S53<2,"Yes","No") -> Yes | U53: =IF(D53="-",1,0)*U$1 -> 0 | V53: =AND(U53=0,U$1=1) -> TRUE | W53: =IF(F53="-",1,0)*W$1 -> 0 | X53: =AND(W53=0,W$1=1) -> TRUE | Y53: =IF(H53="-",1,0)*Y$1 -> 0 | Z53: =AND(Y53=0,Y$1=1) -> TRUE | AA53: =IF(J53="-",1,0)*AA$1 -> 0 | AB53: =AND(AA53=0,AA$1=1) -> TRUE | AC53: =IF(L53="-",1,0)*AC$1 -> 1 | AD53: =AND(AC53=0,AC$1=1) -> FALSE
A54: 44 | B54: Margot Buchanan | C54: Leicester Grammar School | D54: - | E54: =IF(D54="-",0,D54) -> 0 | F54: - | G54: =IF(F54="-",0,F54) -> 0 | H54: 7 | I54: =IF(H54="-",0,H54) -> 7 | J54: - | K54: =IF(J54="-",0,J54) -> 0 | L54: - | M54: =IF(L54="-",0,L54) -> 0 | O54: =E54+G54+I54+K54+M54 -> 7 | P54: =MAX(D54,F54,H54,J54,L54) -> 7 | Q54: =IF(S54=1,O54,IF(S54=0,(O54-P54),"-")) -> - | R54: =COUNTIF(U54:AD54,"=TRUE") -> 1 | S54: =AE$1-R54 -> 4 | T54: =IF(S54<2,"Yes","No") -> No | U54: =IF(D54="-",1,0)*U$1 -> 1 | V54: =AND(U54=0,U$1=1) -> FALSE | W54: =IF(F54="-",1,0)*W$1 -> 1 | X54: =AND(W54=0,W$1=1) -> FALSE | Y54: =IF(H54="-",1,0)*Y$1 -> 0 | Z54: =AND(Y54=0,Y$1=1) -> TRUE | AA54: =IF(J54="-",1,0)*AA$1 -> 1 | AB54: =AND(AA54=0,AA$1=1) -> FALSE | AC54: =IF(L54="-",1,0)*AC$1 -> 1 | AD54: =AND(AC54=0,AC$1=1) -> FALSE
A55: 39 | B55: Jasmine Greenaway | C55: Ivanhoe College | D55: 9 | E55: =IF(D55="-",0,D55) -> 9 | F55: 9 | G55: =IF(F55="-",0,F55) -> 9 | H55: 13 | I55: =IF(H55="-",0,H55) -> 13 | J55: - | K55: =IF(J55="-",0,J55) -> 0 | L55: - | M55: =IF(L55="-",0,L55) -> 0 | O55: =E55+G55+I55+K55+M55 -> 31 | P55: =MAX(D55,F55,H55,J55,L55) -> 13 | Q55: =IF(S55=1,O55,IF(S55=0,(O55-P55),"-")) -> - | R55: =COUNTIF(U55:AD55,"=TRUE") -> 3 | S55: =AE$1-R55 -> 2 | T55: =IF(S55<2,"Yes","No") -> No | U55: =IF(D55="-",1,0)*U$1 -> 0 | V55: =AND(U55=0,U$1=1) -> TRUE | W55: =IF(F55="-",1,0)*W$1 -> 0 | X55: =AND(W55=0,W$1=1) -> TRUE | Y55: =IF(H55="-",1,0)*Y$1 -> 0 | Z55: =AND(Y55=0,Y$1=1) -> TRUE | AA55: =IF(J55="-",1,0)*AA$1 -> 1 | AB55: =AND(AA55=0,AA$1=1) -> FALSE | AC55: =IF(L55="-",1,0)*AC$1 -> 1 | AD55: =AND(AC55=0,AC$1=1) -> FALSE
A56: 3 | B56: Prianka Dhokia | C56: Leicester Grammar School | D56: - | E56: =IF(D56="-",0,D56) -> 0 | F56: 17 | G56: =IF(F56="-",0,F56) -> 17 | H56: 17 | I56: =IF(H56="-",0,H56) -> 17 | J56: - | K56: =IF(J56="-",0,J56) -> 0 | L56: - | M56: =IF(L56="-",0,L56) -> 0 | O56: =E56+G56+I56+K56+M56 -> 34 | P56: =MAX(D56,F56,H56,J56,L56) -> 17 | Q56: =IF(S56=1,O56,IF(S56=0,(O56-P56),"-")) -> - | R56: =COUNTIF(U56:AD56,"=TRUE") -> 2 | S56: =AE$1-R56 -> 3 | T56: =IF(S56<2,"Yes","No") -> No | U56: =IF(D56="-",1,0)*U$1 -> 1 | V56: =AND(U56=0,U$1=1) -> FALSE | W56: =IF(F56="-",1,0)*W$1 -> 0 | X56: =AND(W56=0,W$1=1) -> TRUE | Y56: =IF(H56="-",1,0)*Y$1 -> 0 | Z56: =AND(Y56=0,Y$1=1) -> TRUE | AA56: =IF(J56="-",1,0)*AA$1 -> 1 | AB56: =AND(AA56=0,AA$1=1) -> FALSE | AC56: =IF(L56="-",1,0)*AC$1 -> 1 | AD56: =AND(AC56=0,AC$1=1) -> FALSE
A57: 76 | B57: Bea Spencer | C57: Welland Park Academy | D57: 25 | E57: =IF(D57="-",0,D57) -> 25 | F57: 27 | G57: =IF(F57="-",0,F57) -> 27 | H57: 26 | I57: =IF(H57="-",0,H57) -> 26 | J57: - | K57: =IF(J57="-",0,J57) -> 0 | L57: - | M57: =IF(L57="-",0,L57) -> 0 | O57: =E57+G57+I57+K57+M57 -> 78 | P57: =MAX(D57,F57,H57,J57,L57) -> 27 | Q57: =IF(S57=1,O57,IF(S57=0,(O57-P57),"-")) -> - | R57: =COUNTIF(U57:AD57,"=TRUE") -> 3 | S57: =AE$1-R57 -> 2 | T57: =IF(S57<2,"Yes","No") -> No | U57: =IF(D57="-",1,0)*U$1 -> 0 | V57: =AND(U57=0,U$1=1) -> TRUE | W57: =IF(F57="-",1,0)*W$1 -> 0 | X57: =AND(W57=0,W$1=1) -> TRUE | Y57: =IF(H57="-",1,0)*Y$1 -> 0 | Z57: =AND(Y57=0,Y$1=1) -> TRUE | AA57: =IF(J57="-",1,0)*AA$1 -> 1 | AB57: =AND(AA57=0,AA$1=1) -> FALSE | AC57: =IF(L57="-",1,0)*AC$1 -> 1 | AD57: =AND(AC57=0,AC$1=1) -> FALSE
A58: 55 | B58: Niamh Heneghan | C58: Lutterworth High School | D58: - | E58: =IF(D58="-",0,D58) -> 0 | F58: - | G58: =IF(F58="-",0,F58) -> 0 | H58: 30 | I58: =IF(H58="-",0,H58) -> 30 | J58: - | K58: =IF(J58="-",0,J58) -> 0 | L58: - | M58: =IF(L58="-",0,L58) -> 0 | O58: =E58+G58+I58+K58+M58 -> 30 | P58: =MAX(D58,F58,H58,J58,L58) -> 30 | Q58: =IF(S58=1,O58,IF(S58=0,(O58-P58),"-")) -> - | R58: =COUNTIF(U58:AD58,"=TRUE") -> 1 | S58: =AE$1-R58 -> 4 | T58: =IF(S58<2,"Yes","No") -> No | U58: =IF(D58="-",1,0)*U$1 -> 1 | V58: =AND(U58=0,U$1=1) -> FALSE | W58: =IF(F58="-",1,0)*W$1 -> 1 | X58: =AND(W58=0,W$1=1) -> FALSE | Y58: =IF(H58="-",1,0)*Y$1 -> 0 | Z58: =AND(Y58=0,Y$1=1) -> TRUE | AA58: =IF(J58="-",1,0)*AA$1 -> 1 | AB58: =AND(AA58=0,AA$1=1) -> FALSE | AC58: =IF(L58="-",1,0)*AC$1 -> 1 | AD58: =AND(AC58=0,AC$1=1) -> FALSE
A59: 69 | B59: Sophie Williams | C59: Leicester Grammar School | D59: - | E59: =IF(D59="-",0,D59) -> 0 | F59: - | G59: =IF(F59="-",0,F59) -> 0 | H59: 34 | I59: =IF(H59="-",0,H59) -> 34 | J59: - | K59: =IF(J59="-",0,J59) -> 0 | L59: - | M59: =IF(L59="-",0,L59) -> 0 | O59: =E59+G59+I59+K59+M59 -> 34 | P59: =MAX(D59,F59,H59,J59,L59) -> 34 | Q59: =IF(S59=1,O59,IF(S59=0,(O59-P59),"-")) -> - | R59: =COUNTIF(U59:AD59,"=TRUE") -> 1 | S59: =AE$1-R59 -> 4 | T59: =IF(S59<2,"Yes","No") -> No | U59: =IF(D59="-",1,0)*U$1 -> 1 | V59: =AND(U59=0,U$1=1) -> FALSE | W59: =IF(F59="-",1,0)*W$1 -> 1 | X59: =AND(W59=0,W$1=1) -> FALSE | Y59: =IF(H59="-",1,0)*Y$1 -> 0 | Z59: =AND(Y59=0,Y$1=1) -> TRUE | AA59: =IF(J59="-",1,0)*AA$1 -> 1 | AB59: =AND(AA59=0,AA$1=1) -> FALSE | AC59: =IF(L59="-",1,0)*AC$1 -> 1 | AD59: =AND(AC59=0,AC$1=1) -> FALSE
A60: 63 | B60: Sally Herron | C60: Catmose College | D60: - | F60: - | G60: =IF(F60="-",0,F60) -> 0 | H60: 41 | I60: =IF(H60="-",0,H60) -> 41 | J60: - | K60: =IF(J60="-",0,J60) -> 0 | L60: - | M60: =IF(L60="-",0,L60) -> 0 | O60: =E60+G60+I60+K60+M60 -> 41 | P60: =MAX(D60,F60,H60,J60,L60) -> 41 | Q60: =IF(S60=1,O60,IF(S60=0,(O60-P60),"-")) -> - | R60: =COUNTIF(U60:AD60,"=TRUE") -> 1 | S60: =AE$1-R60 -> 4 | T60: =IF(S60<2,"Yes","No") -> No | U60: =IF(D60="-",1,0)*U$1 -> 1 | V60: =AND(U60=0,U$1=1) -> FALSE | W60: =IF(F60="-",1,0)*W$1 -> 1 | X60: =AND(W60=0,W$1=1) -> FALSE | Y60: =IF(H60="-",1,0)*Y$1 -> 0 | Z60: =AND(Y60=0,Y$1=1) -> TRUE | AA60: =IF(J60="-",1,0)*AA$1 -> 1 | AB60: =AND(AA60=0,AA$1=1) -> FALSE | AC60: =IF(L60="-",1,0)*AC$1 -> 1 | AD60: =AND(AC60=0,AC$1=1) -> FALSE
A61: 33 | B61: Naomi Clarke-Myers | C61: Sir Jonathon North CC | D61: - | E61: =IF(D61="-",0,D61) -> 0 | F61: 31 | G61: =IF(F61="-",0,F61) -> 31 | H61: 43 | I61: =IF(H61="-",0,H61) -> 43 | J61: - | K61: =IF(J61="-",0,J61) -> 0 | L61: - | M61: =IF(L61="-",0,L61) -> 0 | O61: =E61+G61+I61+K61+M61 -> 74 | P61: =MAX(D61,F61,H61,J61,L61) -> 43 | Q61: =IF(S61=1,O61,IF(S61=0,(O61-P61),"-")) -> - | R61: =COUNTIF(U61:AD61,"=TRUE") -> 2 | S61: =AE$1-R61 -> 3 | T61: =IF(S61<2,"Yes","No") -> No | U61: =IF(D61="-",1,0)*U$1 -> 1 | V61: =AND(U61=0,U$1=1) -> FALSE | W61: =IF(F61="-",1,0)*W$1 -> 0 | X61: =AND(W61=0,W$1=1) -> TRUE | Y61: =IF(H61="-",1,0)*Y$1 -> 0 | Z61: =AND(Y61=0,Y$1=1) -> TRUE | AA61: =IF(J61="-",1,0)*AA$1 -> 1 | AB61: =AND(AA61=0,AA$1=1) -> FALSE | AC61: =IF(L61="-",1,0)*AC$1 -> 1 | AD61: =AND(AC61=0,AC$1=1) -> FALSE
A62: 46 | B62: Maha Malik | C62: Manor High School | D62: 50 | E62: =IF(D62="-",0,D62) -> 50 | F62: - | G62: =IF(F62="-",0,F62) -> 0 | H62: 49 | I62: =IF(H62="-",0,H62) -> 49 | J62: - | K62: =IF(J62="-",0,J62) -> 0 | L62: - | M62: =IF(L62="-",0,L62) -> 0 | O62: =E62+G62+I62+K62+M62 -> 99 | P62: =MAX(D62,F62,H62,J62,L62) -> 50 | Q62: =IF(S62=1,O62,IF(S62=0,(O62-P62),"-")) -> - | R62: =COUNTIF(U62:AD62,"=TRUE") -> 2 | S62: =AE$1-R62 -> 3 | T62: =IF(S62<2,"Yes","No") -> No | U62: =IF(D62="-",1,0)*U$1 -> 0 | V62: =AND(U62=0,U$1=1) -> TRUE | W62: =IF(F62="-",1,0)*W$1 -> 1 | X62: =AND(W62=0,W$1=1) -> FALSE | Y62: =IF(H62="-",1,0)*Y$1 -> 0 | Z62: =AND(Y62=0,Y$1=1) -> TRUE | AA62: =IF(J62="-",1,0)*AA$1 -> 1 | AB62: =AND(AA62=0,AA$1=1) -> FALSE | AC62: =IF(L62="-",1,0)*AC$1 -> 1 | AD62: =AND(AC62=0,AC$1=1) -> FALSE
A63: 9 | B63: Holly Cook | C63: Leicester Grammar School | D63: 29 | E63: =IF(D63="-",0,D63) -> 29 | F63: 20 | G63: =IF(F63="-",0,F63) -> 20 | H63: - | I63: =IF(H63="-",0,H63) -> 0 | J63: - | K63: =IF(J63="-",0,J63) -> 0 | L63: - | M63: =IF(L63="-",0,L63) -> 0 | O63: =E63+G63+I63+K63+M63 -> 49 | P63: =MAX(D63,F63,H63,J63,L63) -> 29 | Q63: =IF(S63=1,O63,IF(S63=0,(O63-P63),"-")) -> - | R63: =COUNTIF(U63:AD63,"=TRUE") -> 2 | S63: =AE$1-R63 -> 3 | T63: =IF(S63<2,"Yes","No") -> No | U63: =IF(D63="-",1,0)*U$1 -> 0 | V63: =AND(U63=0,U$1=1) -> TRUE | W63: =IF(F63="-",1,0)*W$1 -> 0 | X63: =AND(W63=0,W$1=1) -> TRUE | Y63: =IF(H63="-",1,0)*Y$1 -> 1 | Z63: =AND(Y63=0,Y$1=1) -> FALSE | AA63: =IF(J63="-",1,0)*AA$1 -> 1 | AB63: =AND(AA63=0,AA$1=1) -> FALSE | AC63: =IF(L63="-",1,0)*AC$1 -> 1 | AD63: =AND(AC63=0,AC$1=1) -> FALSE
A64: 62 | B64: Charlotte Lethbridge | C64: De Lisle College | D64: - | E64: =IF(D64="-",0,D64) -> 0 | F64: 26 | G64: =IF(F64="-",0,F64) -> 26 | H64: - | I64: =IF(H64="-",0,H64) -> 0 | J64: - | K64: =IF(J64="-",0,J64) -> 0 | L64: - | M64: =IF(L64="-",0,L64) -> 0 | O64: =E64+G64+I64+K64+M64 -> 26 | P64: =MAX(D64,F64,H64,J64,L64) -> 26 | Q64: =IF(S64=1,O64,IF(S64=0,(O64-P64),"-")) -> - | R64: =COUNTIF(U64:AD64,"=TRUE") -> 1 | S64: =AE$1-R64 -> 4 | T64: =IF(S64<2,"Yes","No") -> No | U64: =IF(D64="-",1,0)*U$1 -> 1 | V64: =AND(U64=0,U$1=1) -> FALSE | W64: =IF(F64="-",1,0)*W$1 -> 0 | X64: =AND(W64=0,W$1=1) -> TRUE | Y64: =IF(H64="-",1,0)*Y$1 -> 1 | Z64: =AND(Y64=0,Y$1=1) -> FALSE | AA64: =IF(J64="-",1,0)*AA$1 -> 1 | AB64: =AND(AA64=0,AA$1=1) -> FALSE | AC64: =IF(L64="-",1,0)*AC$1 -> 1 | AD64: =AND(AC64=0,AC$1=1) -> FALSE
A65: 34 | B65: Harriet Bird | C65: Brookvale High School | D65: 45 | E65: =IF(D65="-",0,D65) -> 45 | F65: 34 | G65: =IF(F65="-",0,F65) -> 34 | H65: - | I65: =IF(H65="-",0,H65) -> 0 | J65: - | K65: =IF(J65="-",0,J65) -> 0 | L65: - | M65: =IF(L65="-",0,L65) -> 0 | O65: =E65+G65+I65+K65+M65 -> 79 | P65: =MAX(D65,F65,H65,J65,L65) -> 45 | Q65: =IF(S65=1,O65,IF(S65=0,(O65-P65),"-")) -> - | R65: =COUNTIF(U65:AD65,"=TRUE") -> 2 | S65: =AE$1-R65 -> 3 | T65: =IF(S65<2,"Yes","No") -> No | U65: =IF(D65="-",1,0)*U$1 -> 0 | V65: =AND(U65=0,U$1=1) -> TRUE | W65: =IF(F65="-",1,0)*W$1 -> 0 | X65: =AND(W65=0,W$1=1) -> TRUE | Y65: =IF(H65="-",1,0)*Y$1 -> 1 | Z65: =AND(Y65=0,Y$1=1) -> FALSE | AA65: =IF(J65="-",1,0)*AA$1 -> 1 | AB65: =AND(AA65=0,AA$1=1) -> FALSE | AC65: =IF(L65="-",1,0)*AC$1 -> 1 | AD65: =AND(AC65=0,AC$1=1) -> FALSE
A66: 59 | B66: Kiara Weaver | C66: De Lisle College | D66: - | E66: =IF(D66="-",0,D66) -> 0 | F66: 35 | G66: =IF(F66="-",0,F66) -> 35 | H66: - | I66: =IF(H66="-",0,H66) -> 0 | J66: - | K66: =IF(J66="-",0,J66) -> 0 | L66: - | M66: =IF(L66="-",0,L66) -> 0 | O66: =E66+G66+I66+K66+M66 -> 35 | P66: =MAX(D66,F66,H66,J66,L66) -> 35 | Q66: =IF(S66=1,O66,IF(S66=0,(O66-P66),"-")) -> - | R66: =COUNTIF(U66:AD66,"=TRUE") -> 1 | S66: =AE$1-R66 -> 4 | T66: =IF(S66<2,"Yes","No") -> No | U66: =IF(D66="-",1,0)*U$1 -> 1 | V66: =AND(U66=0,U$1=1) -> FALSE | W66: =IF(F66="-",1,0)*W$1 -> 0 | X66: =AND(W66=0,W$1=1) -> TRUE | Y66: =IF(H66="-",1,0)*Y$1 -> 1 | Z66: =AND(Y66=0,Y$1=1) -> FALSE | AA66: =IF(J66="-",1,0)*AA$1 -> 1 | AB66: =AND(AA66=0,AA$1=1) -> FALSE | AC66: =IF(L66="-",1,0)*AC$1 -> 1 | AD66: =AND(AC66=0,AC$1=1) -> FALSE
A67: 23 | B67: Anna Young | C67: Kibworth High School | D67: - | E67: =IF(D67="-",0,D67) -> 0 | F67: 37 | G67: =IF(F67="-",0,F67) -> 37 | H67: - | I67: =IF(H67="-",0,H67) -> 0 | J67: - | K67: =IF(J67="-",0,J67) -> 0 | L67: - | M67: =IF(L67="-",0,L67) -> 0 | O67: =E67+G67+I67+K67+M67 -> 37 | P67: =MAX(D67,F67,H67,J67,L67) -> 37 | Q67: =IF(S67=1,O67,IF(S67=0,(O67-P67),"-")) -> - | R67: =COUNTIF(U67:AD67,"=TRUE") -> 1 | S67: =AE$1-R67 -> 4 | T67: =IF(S67<2,"Yes","No") -> No | U67: =IF(D67="-",1,0)*U$1 -> 1 | V67: =AND(U67=0,U$1=1) -> FALSE | W67: =IF(F67="-",1,0)*W$1 -> 0 | X67: =AND(W67=0,W$1=1) -> TRUE | Y67: =IF(H67="-",1,0)*Y$1 -> 1 | Z67: =AND(Y67=0,Y$1=1) -> FALSE | AA67: =IF(J67="-",1,0)*AA$1 -> 1 | AB67: =AND(AA67=0,AA$1=1) -> FALSE | AC67: =IF(L67="-",1,0)*AC$1 -> 1 | AD67: =AND(AC67=0,AC$1=1) -> FALSE
A68: 65 | B68: Aisha Amos-Howell | C68: Kibworth High School | D68: - | E68: =IF(D68="-",0,D68) -> 0 | F68: 40 | G68: =IF(F68="-",0,F68) -> 40 | H68: - | I68: =IF(H68="-",0,H68) -> 0 | J68: - | K68: =IF(J68="-",0,J68) -> 0 | L68: - | M68: =IF(L68="-",0,L68) -> 0 | O68: =E68+G68+I68+K68+M68 -> 40 | P68: =MAX(D68,F68,H68,J68,L68) -> 40 | Q68: =IF(S68=1,O68,IF(S68=0,(O68-P68),"-")) -> - | R68: =COUNTIF(U68:AD68,"=TRUE") -> 1 | S68: =AE$1-R68 -> 4 | T68: =IF(S68<2,"Yes","No") -> No | U68: =IF(D68="-",1,0)*U$1 -> 1 | V68: =AND(U68=0,U$1=1) -> FALSE | W68: =IF(F68="-",1,0)*W$1 -> 0 | X68: =AND(W68=0,W$1=1) -> TRUE | Y68: =IF(H68="-",1,0)*Y$1 -> 1 | Z68: =AND(Y68=0,Y$1=1) -> FALSE | AA68: =IF(J68="-",1,0)*AA$1 -> 1 | AB68: =AND(AA68=0,AA$1=1) -> FALSE | AC68: =IF(L68="-",1,0)*AC$1 -> 1 | AD68: =AND(AC68=0,AC$1=1) -> FALSE
A69: 45 | B69: Lucy James | C69: Brookvale High School | D69: - | E69: =IF(D69="-",0,D69) -> 0 | F69: 41 | G69: =IF(F69="-",0,F69) -> 41 | H69: - | I69: =IF(H69="-",0,H69) -> 0 | J69: - | K69: =IF(J69="-",0,J69) -> 0 | L69: - | M69: =IF(L69="-",0,L69) -> 0 | O69: =E69+G69+I69+K69+M69 -> 41 | P69: =MAX(D69,F69,H69,J69,L69) -> 41 | Q69: =IF(S69=1,O69,IF(S69=0,(O69-P69),"-")) -> - | R69: =COUNTIF(U69:AD69,"=TRUE") -> 1 | S69: =AE$1-R69 -> 4 | T69: =IF(S69<2,"Yes","No") -> No | U69: =IF(D69="-",1,0)*U$1 -> 1 | V69: =AND(U69=0,U$1=1) -> FALSE | W69: =IF(F69="-",1,0)*W$1 -> 0 | X69: =AND(W69=0,W$1=1) -> TRUE | Y69: =IF(H69="-",1,0)*Y$1 -> 1 | Z69: =AND(Y69=0,Y$1=1) -> FALSE | AA69: =IF(J69="-",1,0)*AA$1 -> 1 | AB69: =AND(AA69=0,AA$1=1) -> FALSE | AC69: =IF(L69="-",1,0)*AC$1 -> 1 | AD69: =AND(AC69=0,AC$1=1) -> FALSE
A70: 87 | B70: Autumn Bates | C70: The Martin High School | D70: 55 | E70: =IF(D70="-",0,D70) -> 55 | F70: 43 | G70: =IF(F70="-",0,F70) -> 43 | H70: - | I70: =IF(H70="-",0,H70) -> 0 | J70: - | K70: =IF(J70="-",0,J70) -> 0 | L70: - | M70: =IF(L70="-",0,L70) -> 0 | O70: =E70+G70+I70+K70+M70 -> 98 | P70: =MAX(D70,F70,H70,J70,L70) -> 55 | Q70: =IF(S70=1,O70,IF(S70=0,(O70-P70),"-")) -> - | R70: =COUNTIF(U70:AD70,"=TRUE") -> 2 | S70: =AE$1-R70 -> 3 | T70: =IF(S70<2,"Yes","No") -> No | U70: =IF(D70="-",1,0)*U$1 -> 0 | V70: =AND(U70=0,U$1=1) -> TRUE | W70: =IF(F70="-",1,0)*W$1 -> 0 | X70: =AND(W70=0,W$1=1) -> TRUE | Y70: =IF(H70="-",1,0)*Y$1 -> 1 | Z70: =AND(Y70=0,Y$1=1) -> FALSE | AA70: =IF(J70="-",1,0)*AA$1 -> 1 | AB70: =AND(AA70=0,AA$1=1) -> FALSE | AC70: =IF(L70="-",1,0)*AC$1 -> 1 | AD70: =AND(AC70=0,AC$1=1) -> FALSE
A71: 7 | B71: Momina Khan | C71: Manor High School | D71: - | E71: =IF(D71="-",0,D71) -> 0 | F71: 44 | G71: =IF(F71="-",0,F71) -> 44 | H71: - | I71: =IF(H71="-",0,H71) -> 0 | J71: - | K71: =IF(J71="-",0,J71) -> 0 | L71: - | M71: =IF(L71="-",0,L71) -> 0 | O71: =E71+G71+I71+K71+M71 -> 44 | P71: =MAX(D71,F71,H71,J71,L71) -> 44 | Q71: =IF(S71=1,O71,IF(S71=0,(O71-P71),"-")) -> - | R71: =COUNTIF(U71:AD71,"=TRUE") -> 1 | S71: =AE$1-R71 -> 4 | T71: =IF(S71<2,"Yes","No") -> No | U71: =IF(D71="-",1,0)*U$1 -> 1 | V71: =AND(U71=0,U$1=1) -> FALSE | W71: =IF(F71="-",1,0)*W$1 -> 0 | X71: =AND(W71=0,W$1=1) -> TRUE | Y71: =IF(H71="-",1,0)*Y$1 -> 1 | Z71: =AND(Y71=0,Y$1=1) -> FALSE | AA71: =IF(J71="-",1,0)*AA$1 -> 1 | AB71: =AND(AA71=0,AA$1=1) -> FALSE | AC71: =IF(L71="-",1,0)*AC$1 -> 1 | AD71: =AND(AC71=0,AC$1=1) -> FALSE
A72: 78 | B72: Saniyah Sheikh | C72: Crown Hills CC | D72: 48 | E72: =IF(D72="-",0,D72) -> 48 | F72: 45 | G72: =IF(F72="-",0,F72) -> 45 | H72: - | I72: =IF(H72="-",0,H72) -> 0 | J72: - | K72: =IF(J72="-",0,J72) -> 0 | L72: - | M72: =IF(L72="-",0,L72) -> 0 | O72: =E72+G72+I72+K72+M72 -> 93 | P72: =MAX(D72,F72,H72,J72,L72) -> 48 | Q72: =IF(S72=1,O72,IF(S72=0,(O72-P72),"-")) -> - | R72: =COUNTIF(U72:AD72,"=TRUE") -> 2 | S72: =AE$1-R72 -> 3 | T72: =IF(S72<2,"Yes","No") -> No | U72: =IF(D72="-",1,0)*U$1 -> 0 | V72: =AND(U72=0,U$1=1) -> TRUE | W72: =IF(F72="-",1,0)*W$1 -> 0 | X72: =AND(W72=0,W$1=1) -> TRUE | Y72: =IF(H72="-",1,0)*Y$1 -> 1 | Z72: =AND(Y72=0,Y$1=1) -> FALSE | AA72: =IF(J72="-",1,0)*AA$1 -> 1 | AB72: =AND(AA72=0,AA$1=1) -> FALSE | AC72: =IF(L72="-",1,0)*AC$1 -> 1 | AD72: =AND(AC72=0,AC$1=1) -> FALSE
A73: 26 | B73: Holly Hunt | C73: De Lisle College | D73: - | E73: =IF(D73="-",0,D73) -> 0 | F73: 46 | G73: =IF(F73="-",0,F73) -> 46 | H73: - | I73: =IF(H73="-",0,H73) -> 0 | J73: - | K73: =IF(J73="-",0,J73) -> 0 | L73: - | M73: =IF(L73="-",0,L73) -> 0 | O73: =E73+G73+I73+K73+M73 -> 46 | P73: =MAX(D73,F73,H73,J73,L73) -> 46 | Q73: =IF(S73=1,O73,IF(S73=0,(O73-P73),"-")) -> - | R73: =COUNTIF(U73:AD73,"=TRUE") -> 1 | S73: =AE$1-R73 -> 4 | T73: =IF(S73<2,"Yes","No") -> No | U73: =IF(D73="-",1,0)*U$1 -> 1 | V73: =AND(U73=0,U$1=1) -> FALSE | W73: =IF(F73="-",1,0)*W$1 -> 0 | X73: =AND(W73=0,W$1=1) -> TRUE | Y73: =IF(H73="-",1,0)*Y$1 -> 1 | Z73: =AND(Y73=0,Y$1=1) -> FALSE | AA73: =IF(J73="-",1,0)*AA$1 -> 1 | AB73: =AND(AA73=0,AA$1=1) -> FALSE | AC73: =IF(L73="-",1,0)*AC$1 -> 1 | AD73: =AND(AC73=0,AC$1=1) -> FALSE
A74: 35 | B74: Millie Currnock | C74: John Ferneley College | D74: - | E74: =IF(D74="-",0,D74) -> 0 | F74: 48 | G74: =IF(F74="-",0,F74) -> 48 | H74: - | I74: =IF(H74="-",0,H74) -> 0 | J74: - | K74: =IF(J74="-",0,J74) -> 0 | L74: - | M74: =IF(L74="-",0,L74) -> 0 | O74: =E74+G74+I74+K74+M74 -> 48 | P74: =MAX(D74,F74,H74,J74,L74) -> 48 | Q74: =IF(S74=1,O74,IF(S74=0,(O74-P74),"-")) -> - | R74: =COUNTIF(U74:AD74,"=TRUE") -> 1 | S74: =AE$1-R74 -> 4 | T74: =IF(S74<2,"Yes","No") -> No | U74: =IF(D74="-",1,0)*U$1 -> 1 | V74: =AND(U74=0,U$1=1) -> FALSE | W74: =IF(F74="-",1,0)*W$1 -> 0 | X74: =AND(W74=0,W$1=1) -> TRUE | Y74: =IF(H74="-",1,0)*Y$1 -> 1 | Z74: =AND(Y74=0,Y$1=1) -> FALSE | AA74: =IF(J74="-",1,0)*AA$1 -> 1 | AB74: =AND(AA74=0,AA$1=1) -> FALSE | AC74: =IF(L74="-",1,0)*AC$1 -> 1 | AD74: =AND(AC74=0,AC$1=1) -> FALSE
A75: 38 | B75: Holly Godden | C75: Welland Park Academy | D75: 58 | E75: =IF(D75="-",0,D75) -> 58 | F75: 49 | G75: =IF(F75="-",0,F75) -> 49 | H75: - | I75: =IF(H75="-",0,H75) -> 0 | J75: - | K75: =IF(J75="-",0,J75) -> 0 | L75: - | M75: =IF(L75="-",0,L75) -> 0 | O75: =E75+G75+I75+K75+M75 -> 107 | P75: =MAX(D75,F75,H75,J75,L75) -> 58 | Q75: =IF(S75=1,O75,IF(S75=0,(O75-P75),"-")) -> - | R75: =COUNTIF(U75:AD75,"=TRUE") -> 2 | S75: =AE$1-R75 -> 3 | T75: =IF(S75<2,"Yes","No") -> No | U75: =IF(D75="-",1,0)*U$1 -> 0 | V75: =AND(U75=0,U$1=1) -> TRUE | W75: =IF(F75="-",1,0)*W$1 -> 0 | X75: =AND(W75=0,W$1=1) -> TRUE | Y75: =IF(H75="-",1,0)*Y$1 -> 1 | Z75: =AND(Y75=0,Y$1=1) -> FALSE | AA75: =IF(J75="-",1,0)*AA$1 -> 1 | AB75: =AND(AA75=0,AA$1=1) -> FALSE | AC75: =IF(L75="-",1,0)*AC$1 -> 1 | AD75: =AND(AC75=0,AC$1=1) -> FALSE
A76: 70 | B76: Khadija Nabi | C76: Crown Hills CC | D76: 59 | E76: =IF(D76="-",0,D76) -> 59 | F76: 50 | G76: =IF(F76="-",0,F76) -> 50 | H76: - | I76: =IF(H76="-",0,H76) -> 0 | J76: - | K76: =IF(J76="-",0,J76) -> 0 | L76: - | M76: =IF(L76="-",0,L76) -> 0 | O76: =E76+G76+I76+K76+M76 -> 109 | P76: =MAX(D76,F76,H76,J76,L76) -> 59 | Q76: =IF(S76=1,O76,IF(S76=0,(O76-P76),"-")) -> - | R76: =COUNTIF(U76:AD76,"=TRUE") -> 2 | S76: =AE$1-R76 -> 3 | T76: =IF(S76<2,"Yes","No") -> No | U76: =IF(D76="-",1,0)*U$1 -> 0 | V76: =AND(U76=0,U$1=1) -> TRUE | W76: =IF(F76="-",1,0)*W$1 -> 0 | X76: =AND(W76=0,W$1=1) -> TRUE | Y76: =IF(H76="-",1,0)*Y$1 -> 1 | Z76: =AND(Y76=0,Y$1=1) -> FALSE | AA76: =IF(J76="-",1,0)*AA$1 -> 1 | AB76: =AND(AA76=0,AA$1=1) -> FALSE | AC76: =IF(L76="-",1,0)*AC$1 -> 1 | AD76: =AND(AC76=0,AC$1=1) -> FALSE
A77: 2 | B77: Maisie Elliott | C77: Lutterworth High School | D77: 3 | E77: =IF(D77="-",0,D77) -> 3 | F77: - | G77: =IF(F77="-",0,F77) -> 0 | H77: - | I77: =IF(H77="-",0,H77) -> 0 | J77: - | K77: =IF(J77="-",0,J77) -> 0 | L77: - | M77: =IF(L77="-",0,L77) -> 0 | O77: =E77+G77+I77+K77+M77 -> 3 | P77: =MAX(D77,F77,H77,J77,L77) -> 3 | Q77: =IF(S77=1,O77,IF(S77=0,(O77-P77),"-")) -> - | R77: =COUNTIF(U77:AD77,"=TRUE") -> 1 | S77: =AE$1-R77 -> 4 | T77: =IF(S77<2,"Yes","No") -> No | U77: =IF(D77="-",1,0)*U$1 -> 0 | V77: =AND(U77=0,U$1=1) -> TRUE | W77: =IF(F77="-",1,0)*W$1 -> 1 | X77: =AND(W77=0,W$1=1) -> FALSE | Y77: =IF(H77="-",1,0)*Y$1 -> 1 | Z77: =AND(Y77=0,Y$1=1) -> FALSE | AA77: =IF(J77="-",1,0)*AA$1 -> 1 | AB77: =AND(AA77=0,AA$1=1) -> FALSE | AC77: =IF(L77="-",1,0)*AC$1 -> 1 | AD77: =AND(AC77=0,AC$1=1) -> FALSE
A78: 13 | B78: Rachel Lawrence | C78: De Lisle College | D78: 10 | E78: =IF(D78="-",0,D78) -> 10 | F78: - | G78: =IF(F78="-",0,F78) -> 0 | H78: - | I78: =IF(H78="-",0,H78) -> 0 | J78: - | K78: =IF(J78="-",0,J78) -> 0 | L78: - | M78: =IF(L78="-",0,L78) -> 0 | O78: =E78+G78+I78+K78+M78 -> 10 | P78: =MAX(D78,F78,H78,J78,L78) -> 10 | Q78: =IF(S78=1,O78,IF(S78=0,(O78-P78),"-")) -> - | R78: =COUNTIF(U78:AD78,"=TRUE") -> 1 | S78: =AE$1-R78 -> 4 | T78: =IF(S78<2,"Yes","No") -> No | U78: =IF(D78="-",1,0)*U$1 -> 0 | V78: =AND(U78=0,U$1=1) -> TRUE | W78: =IF(F78="-",1,0)*W$1 -> 1 | X78: =AND(W78=0,W$1=1) -> FALSE | Y78: =IF(H78="-",1,0)*Y$1 -> 1 | Z78: =AND(Y78=0,Y$1=1) -> FALSE | AA78: =IF(J78="-",1,0)*AA$1 -> 1 | AB78: =AND(AA78=0,AA$1=1) -> FALSE | AC78: =IF(L78="-",1,0)*AC$1 -> 1 | AD78: =AND(AC78=0,AC$1=1) -> FALSE
A79: 88 | B79: Natasha Martin | C79: Thomas Estley CC | D79: 19 | E79: =IF(D79="-",0,D79) -> 19 | F79: - | G79: =IF(F79="-",0,F79) -> 0 | H79: - | I79: =IF(H79="-",0,H79) -> 0 | J79: - | K79: =IF(J79="-",0,J79) -> 0 | L79: - | M79: =IF(L79="-",0,L79) -> 0 | O79: =E79+G79+I79+K79+M79 -> 19 | P79: =MAX(D79,F79,H79,J79,L79) -> 19 | Q79: =IF(S79=1,O79,IF(S79=0,(O79-P79),"-")) -> - | R79: =COUNTIF(U79:AD79,"=TRUE") -> 1 | S79: =AE$1-R79 -> 4 | T79: =IF(S79<2,"Yes","No") -> No | U79: =IF(D79="-",1,0)*U$1 -> 0 | V79: =AND(U79=0,U$1=1) -> TRUE | W79: =IF(F79="-",1,0)*W$1 -> 1 | X79: =AND(W79=0,W$1=1) -> FALSE | Y79: =IF(H79="-",1,0)*Y$1 -> 1 | Z79: =AND(Y79=0,Y$1=1) -> FALSE | AA79: =IF(J79="-",1,0)*AA$1 -> 1 | AB79: =AND(AA79=0,AA$1=1) -> FALSE | AC79: =IF(L79="-",1,0)*AC$1 -> 1 | AD79: =AND(AC79=0,AC$1=1) -> FALSE
A80: 57 | B80: Mia Champneys-Davies | C80: Castle Donington CC | D80: 31 | E80: =IF(D80="-",0,D80) -> 31 | F80: - | G80: =IF(F80="-",0,F80) -> 0 | H80: - | I80: =IF(H80="-",0,H80) -> 0 | J80: - | K80: =IF(J80="-",0,J80) -> 0 | L80: - | M80: =IF(L80="-",0,L80) -> 0 | O80: =E80+G80+I80+K80+M80 -> 31 | P80: =MAX(D80,F80,H80,J80,L80) -> 31 | Q80: =IF(S80=1,O80,IF(S80=0,(O80-P80),"-")) -> - | R80: =COUNTIF(U80:AD80,"=TRUE") -> 1 | S80: =AE$1-R80 -> 4 | T80: =IF(S80<2,"Yes","No") -> No | U80: =IF(D80="-",1,0)*U$1 -> 0 | V80: =AND(U80=0,U$1=1) -> TRUE | W80: =IF(F80="-",1,0)*W$1 -> 1 | X80: =AND(W80=0,W$1=1) -> FALSE | Y80: =IF(H80="-",1,0)*Y$1 -> 1 | Z80: =AND(Y80=0,Y$1=1) -> FALSE | AA80: =IF(J80="-",1,0)*AA$1 -> 1 | AB80: =AND(AA80=0,AA$1=1) -> FALSE | AC80: =IF(L80="-",1,0)*AC$1 -> 1 | AD80: =AND(AC80=0,AC$1=1) -> FALSE
A81: 85 | B81: Celia ? | C81: Woodbrook Vale School | D81: 35 | E81: =IF(D81="-",0,D81) -> 35 | F81: - | G81: =IF(F81="-",0,F81) -> 0 | H81: - | I81: =IF(H81="-",0,H81) -> 0 | J81: - | K81: =IF(J81="-",0,J81) -> 0 | L81: - | M81: =IF(L81="-",0,L81) -> 0 | O81: =E81+G81+I81+K81+M81 -> 35 | P81: =MAX(D81,F81,H81,J81,L81) -> 35 | Q81: =IF(S81=1,O81,IF(S81=0,(O81-P81),"-")) -> - | R81: =COUNTIF(U81:AD81,"=TRUE") -> 1 | S81: =AE$1-R81 -> 4 | T81: =IF(S81<2,"Yes","No") -> No | U81: =IF(D81="-",1,0)*U$1 -> 0 | V81: =AND(U81=0,U$1=1) -> TRUE | W81: =IF(F81="-",1,0)*W$1 -> 1 | X81: =AND(W81=0,W$1=1) -> FALSE | Y81: =IF(H81="-",1,0)*Y$1 -> 1 | Z81: =AND(Y81=0,Y$1=1) -> FALSE | AA81: =IF(J81="-",1,0)*AA$1 -> 1 | AB81: =AND(AA81=0,AA$1=1) -> FALSE | AC81: =IF(L81="-",1,0)*AC$1 -> 1 | AD81: =AND(AC81=0,AC$1=1) -> FALSE
A82: 56 | B82: Olivia Young | C82: John Ferneley College | D82: 37 | E82: =IF(D82="-",0,D82) -> 37 | F82: - | G82: =IF(F82="-",0,F82) -> 0 | H82: - | I82: =IF(H82="-",0,H82) -> 0 | J82: - | K82: =IF(J82="-",0,J82) -> 0 | L82: - | M82: =IF(L82="-",0,L82) -> 0 | O82: =E82+G82+I82+K82+M82 -> 37 | P82: =MAX(D82,F82,H82,J82,L82) -> 37 | Q82: =IF(S82=1,O82,IF(S82=0,(O82-P82),"-")) -> - | R82: =COUNTIF(U82:AD82,"=TRUE") -> 1 | S82: =AE$1-R82 -> 4 | T82: =IF(S82<2,"Yes","No") -> No | U82: =IF(D82="-",1,0)*U$1 -> 0 | V82: =AND(U82=0,U$1=1) -> TRUE | W82: =IF(F82="-",1,0)*W$1 -> 1 | X82: =AND(W82=0,W$1=1) -> FALSE | Y82: =IF(H82="-",1,0)*Y$1 -> 1 | Z82: =AND(Y82=0,Y$1=1) -> FALSE | AA82: =IF(J82="-",1,0)*AA$1 -> 1 | AB82: =AND(AA82=0,AA$1=1) -> FALSE | AC82: =IF(L82="-",1,0)*AC$1 -> 1 | AD82: =AND(AC82=0,AC$1=1) -> FALSE
A83: 86 | B83: Erin Tattersall | C83: The Martin High School | D83: 39 | E83: =IF(D83="-",0,D83) -> 39 | F83: - | G83: =IF(F83="-",0,F83) -> 0 | H83: - | I83: =IF(H83="-",0,H83) -> 0 | J83: - | K83: =IF(J83="-",0,J83) -> 0 | L83: - | M83: =IF(L83="-",0,L83) -> 0 | O83: =E83+G83+I83+K83+M83 -> 39 | P83: =MAX(D83,F83,H83,J83,L83) -> 39 | Q83: =IF(S83=1,O83,IF(S83=0,(O83-P83),"-")) -> - | R83: =COUNTIF(U83:AD83,"=TRUE") -> 1 | S83: =AE$1-R83 -> 4 | T83: =IF(S83<2,"Yes","No") -> No | U83: =IF(D83="-",1,0)*U$1 -> 0 | V83: =AND(U83=0,U$1=1) -> TRUE | W83: =IF(F83="-",1,0)*W$1 -> 1 | X83: =AND(W83=0,W$1=1) -> FALSE | Y83: =IF(H83="-",1,0)*Y$1 -> 1 | Z83: =AND(Y83=0,Y$1=1) -> FALSE | AA83: =IF(J83="-",1,0)*AA$1 -> 1 | AB83: =AND(AA83=0,AA$1=1) -> FALSE | AC83: =IF(L83="-",1,0)*AC$1 -> 1 | AD83: =AND(AC83=0,AC$1=1) -> FALSE
A84: 67 | B84: Jade Beeson | C84: De Lisle College | D84: 46 | E84: =IF(D84="-",0,D84) -> 46 | F84: - | G84: =IF(F84="-",0,F84) -> 0 | H84: - | I84: =IF(H84="-",0,H84) -> 0 | J84: - | K84: =IF(J84="-",0,J84) -> 0 | L84: - | M84: =IF(L84="-",0,L84) -> 0 | O84: =E84+G84+I84+K84+M84 -> 46 | P84: =MAX(D84,F84,H84,J84,L84) -> 46 | Q84: =IF(S84=1,O84,IF(S84=0,(O84-P84),"-")) -> - | R84: =COUNTIF(U84:AD84,"=TRUE") -> 1 | S84: =AE$1-R84 -> 4 | T84: =IF(S84<2,"Yes","No") -> No | U84: =IF(D84="-",1,0)*U$1 -> 0 | V84: =AND(U84=0,U$1=1) -> TRUE | W84: =IF(F84="-",1,0)*W$1 -> 1 | X84: =AND(W84=0,W$1=1) -> FALSE | Y84: =IF(H84="-",1,0)*Y$1 -> 1 | Z84: =AND(Y84=0,Y$1=1) -> FALSE | AA84: =IF(J84="-",1,0)*AA$1 -> 1 | AB84: =AND(AA84=0,AA$1=1) -> FALSE | AC84: =IF(L84="-",1,0)*AC$1 -> 1 | AD84: =AND(AC84=0,AC$1=1) -> FALSE
A85: 24 | B85: Lily Ingram | C85: Loughborough High School | D85: 47 | E85: =IF(D85="-",0,D85) -> 47 | F85: - | G85: =IF(F85="-",0,F85) -> 0 | H85: - | I85: =IF(H85="-",0,H85) -> 0 | J85: - | K85: =IF(J85="-",0,J85) -> 0 | L85: - | M85: =IF(L85="-",0,L85) -> 0 | O85: =E85+G85+I85+K85+M85 -> 47 | P85: =MAX(D85,F85,H85,J85,L85) -> 47 | Q85: =IF(S85=1,O85,IF(S85=0,(O85-P85),"-")) -> - | R85: =COUNTIF(U85:AD85,"=TRUE") -> 1 | S85: =AE$1-R85 -> 4 | T85: =IF(S85<2,"Yes","No") -> No | U85: =IF(D85="-",1,0)*U$1 -> 0 | V85: =AND(U85=0,U$1=1) -> TRUE | W85: =IF(F85="-",1,0)*W$1 -> 1 | X85: =AND(W85=0,W$1=1) -> FALSE | Y85: =IF(H85="-",1,0)*Y$1 -> 1 | Z85: =AND(Y85=0,Y$1=1) -> FALSE | AA85: =IF(J85="-",1,0)*AA$1 -> 1 | AB85: =AND(AA85=0,AA$1=1) -> FALSE | AC85: =IF(L85="-",1,0)*AC$1 -> 1 | AD85: =AND(AC85=0,AC$1=1) -> FALSE
A86: 74 | B86: Eva Macdonald | C86: Loughborough High School | D86: 51 | E86: =IF(D86="-",0,D86) -> 51 | F86: - | G86: =IF(F86="-",0,F86) -> 0 | H86: - | I86: =IF(H86="-",0,H86) -> 0 | J86: - | K86: =IF(J86="-",0,J86) -> 0 | L86: - | M86: =IF(L86="-",0,L86) -> 0 | O86: =E86+G86+I86+K86+M86 -> 51 | P86: =MAX(D86,F86,H86,J86,L86) -> 51 | Q86: =IF(S86=1,O86,IF(S86=0,(O86-P86),"-")) -> - | R86: =COUNTIF(U86:AD86,"=TRUE") -> 1 | S86: =AE$1-R86 -> 4 | T86: =IF(S86<2,"Yes","No") -> No | U86: =IF(D86="-",1,0)*U$1 -> 0 | V86: =AND(U86=0,U$1=1) -> TRUE | W86: =IF(F86="-",1,0)*W$1 -> 1 | X86: =AND(W86=0,W$1=1) -> FALSE | Y86: =IF(H86="-",1,0)*Y$1 -> 1 | Z86: =AND(Y86=0,Y$1=1) -> FALSE | AA86: =IF(J86="-",1,0)*AA$1 -> 1 | AB86: =AND(AA86=0,AA$1=1) -> FALSE | AC86: =IF(L86="-",1,0)*AC$1 -> 1 | AD86: =AND(AC86=0,AC$1=1) -> FALSE
A87: 82 | B87: Ellie Barton | C87: John Ferneley College | D87: 52 | E87: =IF(D87="-",0,D87) -> 52 | F87: - | G87: =IF(F87="-",0,F87) -> 0 | H87: - | I87: =IF(H87="-",0,H87) -> 0 | J87: - | K87: =IF(J87="-",0,J87) -> 0 | L87: - | M87: =IF(L87="-",0,L87) -> 0 | O87: =E87+G87+I87+K87+M87 -> 52 | P87: =MAX(D87,F87,H87,J87,L87) -> 52 | Q87: =IF(S87=1,O87,IF(S87=0,(O87-P87),"-")) -> - | R87: =COUNTIF(U87:AD87,"=TRUE") -> 1 | S87: =AE$1-R87 -> 4 | T87: =IF(S87<2,"Yes","No") -> No | U87: =IF(D87="-",1,0)*U$1 -> 0 | V87: =AND(U87=0,U$1=1) -> TRUE | W87: =IF(F87="-",1,0)*W$1 -> 1 | X87: =AND(W87=0,W$1=1) -> FALSE | Y87: =IF(H87="-",1,0)*Y$1 -> 1 | Z87: =AND(Y87=0,Y$1=1) -> FALSE | AA87: =IF(J87="-",1,0)*AA$1 -> 1 | AB87: =AND(AA87=0,AA$1=1) -> FALSE | AC87: =IF(L87="-",1,0)*AC$1 -> 1 | AD87: =AND(AC87=0,AC$1=1) -> FALSE
A88: 71 | B88: Ayesha Patel | C88: Loughborough High School | D88: 53 | E88: =IF(D88="-",0,D88) -> 53 | F88: - | G88: =IF(F88="-",0,F88) -> 0 | H88: - | I88: =IF(H88="-",0,H88) -> 0 | J88: - | K88: =IF(J88="-",0,J88) -> 0 | L88: - | M88: =IF(L88="-",0,L88) -> 0 | O88: =E88+G88+I88+K88+M88 -> 53 | P88: =MAX(D88,F88,H88,J88,L88) -> 53 | Q88: =IF(S88=1,O88,IF(S88=0,(O88-P88),"-")) -> - | R88: =COUNTIF(U88:AD88,"=TRUE") -> 1 | S88: =AE$1-R88 -> 4 | T88: =IF(S88<2,"Yes","No") -> No | U88: =IF(D88="-",1,0)*U$1 -> 0 | V88: =AND(U88=0,U$1=1) -> TRUE | W88: =IF(F88="-",1,0)*W$1 -> 1 | X88: =AND(W88=0,W$1=1) -> FALSE | Y88: =IF(H88="-",1,0)*Y$1 -> 1 | Z88: =AND(Y88=0,Y$1=1) -> FALSE | AA88: =IF(J88="-",1,0)*AA$1 -> 1 | AB88: =AND(AA88=0,AA$1=1) -> FALSE | AC88: =IF(L88="-",1,0)*AC$1 -> 1 | AD88: =AND(AC88=0,AC$1=1) -> FALSE
A89: 60 | B89: Francesca Gosling | C89: St Martins | D89: 54 | E89: =IF(D89="-",0,D89) -> 54 | F89: - | G89: =IF(F89="-",0,F89) -> 0 | H89: - | I89: =IF(H89="-",0,H89) -> 0 | J89: - | K89: =IF(J89="-",0,J89) -> 0 | L89: - | M89: =IF(L89="-",0,L89) -> 0 | O89: =E89+G89+I89+K89+M89 -> 54 | P89: =MAX(D89,F89,H89,J89,L89) -> 54 | Q89: =IF(S89=1,O89,IF(S89=0,(O89-P89),"-")) -> - | R89: =COUNTIF(U89:AD89,"=TRUE") -> 1 | S89: =AE$1-R89 -> 4 | T89: =IF(S89<2,"Yes","No") -> No | U89: =IF(D89="-",1,0)*U$1 -> 0 | V89: =AND(U89=0,U$1=1) -> TRUE | W89: =IF(F89="-",1,0)*W$1 -> 1 | X89: =AND(W89=0,W$1=1) -> FALSE | Y89: =IF(H89="-",1,0)*Y$1 -> 1 | Z89: =AND(Y89=0,Y$1=1) -> FALSE | AA89: =IF(J89="-",1,0)*AA$1 -> 1 | AB89: =AND(AA89=0,AA$1=1) -> FALSE | AC89: =IF(L89="-",1,0)*AC$1 -> 1 | AD89: =AND(AC89=0,AC$1=1) -> FALSE
A90: 20 | B90: Holly Lewis | C90: John Ferneley College | D90: 56 | E90: =IF(D90="-",0,D90) -> 56 | F90: - | G90: =IF(F90="-",0,F90) -> 0 | H90: - | I90: =IF(H90="-",0,H90) -> 0 | J90: - | K90: =IF(J90="-",0,J90) -> 0 | L90: - | M90: =IF(L90="-",0,L90) -> 0 | O90: =E90+G90+I90+K90+M90 -> 56 | P90: =MAX(D90,F90,H90,J90,L90) -> 56 | Q90: =IF(S90=1,O90,IF(S90=0,(O90-P90),"-")) -> - | R90: =COUNTIF(U90:AD90,"=TRUE") -> 1 | S90: =AE$1-R90 -> 4 | T90: =IF(S90<2,"Yes","No") -> No | U90: =IF(D90="-",1,0)*U$1 -> 0 | V90: =AND(U90=0,U$1=1) -> TRUE | W90: =IF(F90="-",1,0)*W$1 -> 1 | X90: =AND(W90=0,W$1=1) -> FALSE | Y90: =IF(H90="-",1,0)*Y$1 -> 1 | Z90: =AND(Y90=0,Y$1=1) -> FALSE | AA90: =IF(J90="-",1,0)*AA$1 -> 1 | AB90: =AND(AA90=0,AA$1=1) -> FALSE | AC90: =IF(L90="-",1,0)*AC$1 -> 1 | AD90: =AND(AC90=0,AC$1=1) -> FALSE
A91: 12 | B91: Grace Weston | C91: John Ferneley College | D91: 57 | E91: =IF(D91="-",0,D91) -> 57 | F91: - | G91: =IF(F91="-",0,F91) -> 0 | H91: - | I91: =IF(H91="-",0,H91) -> 0 | J91: - | K91: =IF(J91="-",0,J91) -> 0 | L91: - | M91: =IF(L91="-",0,L91) -> 0 | O91: =E91+G91+I91+K91+M91 -> 57 | P91: =MAX(D91,F91,H91,J91,L91) -> 57 | Q91: =IF(S91=1,O91,IF(S91=0,(O91-P91),"-")) -> - | R91: =COUNTIF(U91:AD91,"=TRUE") -> 1 | S91: =AE$1-R91 -> 4 | T91: =IF(S91<2,"Yes","No") -> No | U91: =IF(D91="-",1,0)*U$1 -> 0 | V91: =AND(U91=0,U$1=1) -> TRUE | W91: =IF(F91="-",1,0)*W$1 -> 1 | X91: =AND(W91=0,W$1=1) -> FALSE | Y91: =IF(H91="-",1,0)*Y$1 -> 1 | Z91: =AND(Y91=0,Y$1=1) -> FALSE | AA91: =IF(J91="-",1,0)*AA$1 -> 1 | AB91: =AND(AA91=0,AA$1=1) -> FALSE | AC91: =IF(L91="-",1,0)*AC$1 -> 1 | AD91: =AND(AC91=0,AC$1=1) -> FALSE
A92: 66 | C92: - | D92: - | E92: =IF(D92="-",0,D92) -> 0 | F92: - | G92: =IF(F92="-",0,F92) -> 0 | H92: - | I92: =IF(H92="-",0,H92) -> 0 | J92: - | K92: =IF(J92="-",0,J92) -> 0 | L92: - | M92: =IF(L92="-",0,L92) -> 0 | O92: =E92+G92+I92+K92+M92 -> 0 | P92: =MAX(D92,F92,H92,J92,L92) -> 0 | Q92: =IF(S92=1,O92,IF(S92=0,(O92-P92),"-")) -> - | R92: =COUNTIF(U92:AD92,"=TRUE") -> 0 | S92: =AE$1-R92 -> 5 | T92: =IF(S92<2,"Yes","No") -> No | U92: =IF(D92="-",1,0)*U$1 -> 1 | V92: =AND(U92=0,U$1=1) -> FALSE | W92: =IF(F92="-",1,0)*W$1 -> 1 | X92: =AND(W92=0,W$1=1) -> FALSE | Y92: =IF(H92="-",1,0)*Y$1 -> 1 | Z92: =AND(Y92=0,Y$1=1) -> FALSE | AA92: =IF(J92="-",1,0)*AA$1 -> 1 | AB92: =AND(AA92=0,AA$1=1) -> FALSE | AC92: =IF(L92="-",1,0)*AC$1 -> 1 | AD92: =AND(AC92=0,AC$1=1) -> FALSE
A93: 89 | C93: - | D93: - | E93: =IF(D93="-",0,D93) -> 0 | F93: - | G93: =IF(F93="-",0,F93) -> 0 | H93: - | I93: =IF(H93="-",0,H93) -> 0 | J93: - | K93: =IF(J93="-",0,J93) -> 0 | L93: - | M93: =IF(L93="-",0,L93) -> 0 | O93: =E93+G93+I93+K93+M93 -> 0 | P93: =MAX(D93,F93,H93,J93,L93) -> 0 | Q93: =IF(S93=1,O93,IF(S93=0,(O93-P93),"-")) -> - | R93: =COUNTIF(U93:AD93,"=TRUE") -> 0 | S93: =AE$1-R93 -> 5 | T93: =IF(S93<2,"Yes","No") -> No | U93: =IF(D93="-",1,0)*U$1 -> 1 | V93: =AND(U93=0,U$1=1) -> FALSE | W93: =IF(F93="-",1,0)*W$1 -> 1 | X93: =AND(W93=0,W$1=1) -> FALSE | Y93: =IF(H93="-",1,0)*Y$1 -> 1 | Z93: =AND(Y93=0,Y$1=1) -> FALSE | AA93: =IF(J93="-",1,0)*AA$1 -> 1 | AB93: =AND(AA93=0,AA$1=1) -> FALSE | AC93: =IF(L93="-",1,0)*AC$1 -> 1 | AD93: =AND(AC93=0,AC$1=1) -> FALSE
A94: 90 | C94: - | D94: - | E94: =IF(D94="-",0,D94) -> 0 | F94: - | G94: =IF(F94="-",0,F94) -> 0 | H94: - | I94: =IF(H94="-",0,H94) -> 0 | J94: - | K94: =IF(J94="-",0,J94) -> 0 | L94: - | M94: =IF(L94="-",0,L94) -> 0 | O94: =E94+G94+I94+K94+M94 -> 0 | P94: =MAX(D94,F94,H94,J94,L94) -> 0 | Q94: =IF(S94=1,O94,IF(S94=0,(O94-P94),"-")) -> - | R94: =COUNTIF(U94:AD94,"=TRUE") -> 0 | S94: =AE$1-R94 -> 5 | T94: =IF(S94<2,"Yes","No") -> No | U94: =IF(D94="-",1,0)*U$1 -> 1 | V94: =AND(U94=0,U$1=1) -> FALSE | W94: =IF(F94="-",1,0)*W$1 -> 1 | X94: =AND(W94=0,W$1=1) -> FALSE | Y94: =IF(H94="-",1,0)*Y$1 -> 1 | Z94: =AND(Y94=0,Y$1=1) -> FALSE | AA94: =IF(J94="-",1,0)*AA$1 -> 1 | AB94: =AND(AA94=0,AA$1=1) -> FALSE | AC94: =IF(L94="-",1,0)*AC$1 -> 1 | AD94: =AND(AC94=0,AC$1=1) -> FALSE
A95: 91 | C95: - | D95: - | E95: =IF(D95="-",0,D95) -> 0 | F95: - | G95: =IF(F95="-",0,F95) -> 0 | H95: - | I95: =IF(H95="-",0,H95) -> 0 | J95: - | K95: =IF(J95="-",0,J95) -> 0 | L95: - | M95: =IF(L95="-",0,L95) -> 0 | O95: =E95+G95+I95+K95+M95 -> 0 | P95: =MAX(D95,F95,H95,J95,L95) -> 0 | Q95: =IF(S95=1,O95,IF(S95=0,(O95-P95),"-")) -> - | R95: =COUNTIF(U95:AD95,"=TRUE") -> 0 | S95: =AE$1-R95 -> 5 | T95: =IF(S95<2,"Yes","No") -> No | U95: =IF(D95="-",1,0)*U$1 -> 1 | V95: =AND(U95=0,U$1=1) -> FALSE | W95: =IF(F95="-",1,0)*W$1 -> 1 | X95: =AND(W95=0,W$1=1) -> FALSE | Y95: =IF(H95="-",1,0)*Y$1 -> 1 | Z95: =AND(Y95=0,Y$1=1) -> FALSE | AA95: =IF(J95="-",1,0)*AA$1 -> 1 | AB95: =AND(AA95=0,AA$1=1) -> FALSE | AC95: =IF(L95="-",1,0)*AC$1 -> 1 | AD95: =AND(AC95=0,AC$1=1) -> FALSE
A96: 92 | C96: - | D96: - | E96: =IF(D96="-",0,D96) -> 0 | F96: - | G96: =IF(F96="-",0,F96) -> 0 | H96: - | I96: =IF(H96="-",0,H96) -> 0 | J96: - | K96: =IF(J96="-",0,J96) -> 0 | L96: - | M96: =IF(L96="-",0,L96) -> 0 | O96: =E96+G96+I96+K96+M96 -> 0 | P96: =MAX(D96,F96,H96,J96,L96) -> 0 | Q96: =IF(S96=1,O96,IF(S96=0,(O96-P96),"-")) -> - | R96: =COUNTIF(U96:AD96,"=TRUE") -> 0 | S96: =AE$1-R96 -> 5 | T96: =IF(S96<2,"Yes","No") -> No | U96: =IF(D96="-",1,0)*U$1 -> 1 | V96: =AND(U96=0,U$1=1) -> FALSE | W96: =IF(F96="-",1,0)*W$1 -> 1 | X96: =AND(W96=0,W$1=1) -> FALSE | Y96: =IF(H96="-",1,0)*Y$1 -> 1 | Z96: =AND(Y96=0,Y$1=1) -> FALSE | AA96: =IF(J96="-",1,0)*AA$1 -> 1 | AB96: =AND(AA96=0,AA$1=1) -> FALSE | AC96: =IF(L96="-",1,0)*AC$1 -> 1 | AD96: =AND(AC96=0,AC$1=1) -> FALSE
A97: 93 | C97: - | D97: - | E97: =IF(D97="-",0,D97) -> 0 | F97: - | G97: =IF(F97="-",0,F97) -> 0 | H97: - | I97: =IF(H97="-",0,H97) -> 0 | J97: - | K97: =IF(J97="-",0,J97) -> 0 | L97: - | M97: =IF(L97="-",0,L97) -> 0 | O97: =E97+G97+I97+K97+M97 -> 0 | P97: =MAX(D97,F97,H97,J97,L97) -> 0 | Q97: =IF(S97=1,O97,IF(S97=0,(O97-P97),"-")) -> - | R97: =COUNTIF(U97:AD97,"=TRUE") -> 0 | S97: =AE$1-R97 -> 5 | T97: =IF(S97<2,"Yes","No") -> No | U97: =IF(D97="-",1,0)*U$1 -> 1 | V97: =AND(U97=0,U$1=1) -> FALSE | W97: =IF(F97="-",1,0)*W$1 -> 1 | X97: =AND(W97=0,W$1=1) -> FALSE | Y97: =IF(H97="-",1,0)*Y$1 -> 1 | Z97: =AND(Y97=0,Y$1=1) -> FALSE | AA97: =IF(J97="-",1,0)*AA$1 -> 1 | AB97: =AND(AA97=0,AA$1=1) -> FALSE | AC97: =IF(L97="-",1,0)*AC$1 -> 1 | AD97: =AND(AC97=0,AC$1=1) -> FALSE
A98: 94 | C98: - | D98: - | E98: =IF(D98="-",0,D98) -> 0 | F98: - | G98: =IF(F98="-",0,F98) -> 0 | H98: - | I98: =IF(H98="-",0,H98) -> 0 | J98: - | K98: =IF(J98="-",0,J98) -> 0 | L98: - | M98: =IF(L98="-",0,L98) -> 0 | O98: =E98+G98+I98+K98+M98 -> 0 | P98: =MAX(D98,F98,H98,J98,L98) -> 0 | Q98: =IF(S98=1,O98,IF(S98=0,(O98-P98),"-")) -> - | R98: =COUNTIF(U98:AD98,"=TRUE") -> 0 | S98: =AE$1-R98 -> 5 | T98: =IF(S98<2,"Yes","No") -> No | U98: =IF(D98="-",1,0)*U$1 -> 1 | V98: =AND(U98=0,U$1=1) -> FALSE | W98: =IF(F98="-",1,0)*W$1 -> 1 | X98: =AND(W98=0,W$1=1) -> FALSE | Y98: =IF(H98="-",1,0)*Y$1 -> 1 | Z98: =AND(Y98=0,Y$1=1) -> FALSE | AA98: =IF(J98="-",1,0)*AA$1 -> 1 | AB98: =AND(AA98=0,AA$1=1) -> FALSE | AC98: =IF(L98="-",1,0)*AC$1 -> 1 | AD98: =AND(AC98=0,AC$1=1) -> FALSE
A99: 95 | C99: - | D99: - | E99: =IF(D99="-",0,D99) -> 0 | F99: - | G99: =IF(F99="-",0,F99) -> 0 | H99: - | I99: =IF(H99="-",0,H99) -> 0 | J99: - | K99: =IF(J99="-",0,J99) -> 0 | L99: - | M99: =IF(L99="-",0,L99) -> 0 | O99: =E99+G99+I99+K99+M99 -> 0 | P99: =MAX(D99,F99,H99,J99,L99) -> 0 | Q99: =IF(S99=1,O99,IF(S99=0,(O99-P99),"-")) -> - | R99: =COUNTIF(U99:AD99,"=TRUE") -> 0 | S99: =AE$1-R99 -> 5 | T99: =IF(S99<2,"Yes","No") -> No | U99: =IF(D99="-",1,0)*U$1 -> 1 | V99: =AND(U99=0,U$1=1) -> FALSE | W99: =IF(F99="-",1,0)*W$1 -> 1 | X99: =AND(W99=0,W$1=1) -> FALSE | Y99: =IF(H99="-",1,0)*Y$1 -> 1 | Z99: =AND(Y99=0,Y$1=1) -> FALSE | AA99: =IF(J99="-",1,0)*AA$1 -> 1 | AB99: =AND(AA99=0,AA$1=1) -> FALSE | AC99: =IF(L99="-",1,0)*AC$1 -> 1 | AD99: =AND(AC99=0,AC$1=1) -> FALSE
A100: 96 | C100: - | D100: - | E100: =IF(D100="-",0,D100) -> 0 | F100: - | G100: =IF(F100="-",0,F100) -> 0 | H100: - | I100: =IF(H100="-",0,H100) -> 0 | J100: - | K100: =IF(J100="-",0,J100) -> 0 | L100: - | M100: =IF(L100="-",0,L100) -> 0 | O100: =E100+G100+I100+K100+M100 -> 0 | P100: =MAX(D100,F100,H100,J100,L100) -> 0 | Q100: =IF(S100=1,O100,IF(S100=0,(O100-P100),"-")) -> - | R100: =COUNTIF(U100:AD100,"=TRUE") -> 0 | S100: =AE$1-R100 -> 5 | T100: =IF(S100<2,"Yes","No") -> No | U100: =IF(D100="-",1,0)*U$1 -> 1 | V100: =AND(U100=0,U$1=1) -> FALSE | W100: =IF(F100="-",1,0)*W$1 -> 1 | X100: =AND(W100=0,W$1=1) -> FALSE | Y100: =IF(H100="-",1,0)*Y$1 -> 1 | Z100: =AND(Y100=0,Y$1=1) -> FALSE | AA100: =IF(J100="-",1,0)*AA$1 -> 1 | AB100: =AND(AA100=0,AA$1=1) -> FALSE | AC100: =IF(L100="-",1,0)*AC$1 -> 1 | AD100: =AND(AC100=0,AC$1=1) -> FALSE
A101: 97 | C101: - | D101: - | E101: =IF(D101="-",0,D101) -> 0 | F101: - | G101: =IF(F101="-",0,F101) -> 0 | H101: - | I101: =IF(H101="-",0,H101) -> 0 | J101: - | K101: =IF(J101="-",0,J101) -> 0 | L101: - | M101: =IF(L101="-",0,L101) -> 0 | O101: =E101+G101+I101+K101+M101 -> 0 | P101: =MAX(D101,F101,H101,J101,L101) -> 0 | Q101: =IF(S101=1,O101,IF(S101=0,(O101-P101),"-")) -> - | R101: =COUNTIF(U101:AD101,"=TRUE") -> 0 | S101: =AE$1-R101 -> 5 | T101: =IF(S101<2,"Yes","No") -> No | U101: =IF(D101="-",1,0)*U$1 -> 1 | V101: =AND(U101=0,U$1=1) -> FALSE | W101: =IF(F101="-",1,0)*W$1 -> 1 | X101: =AND(W101=0,W$1=1) -> FALSE | Y101: =IF(H101="-",1,0)*Y$1 -> 1 | Z101: =AND(Y101=0,Y$1=1) -> FALSE | AA101: =IF(J101="-",1,0)*AA$1 -> 1 | AB101: =AND(AA101=0,AA$1=1) -> FALSE | AC101: =IF(L101="-",1,0)*AC$1 -> 1 | AD101: =AND(AC101=0,AC$1=1) -> FALSE
A102: 98 | C102: - | D102: - | E102: =IF(D102="-",0,D102) -> 0 | F102: - | G102: =IF(F102="-",0,F102) -> 0 | H102: - | I102: =IF(H102="-",0,H102) -> 0 | J102: - | K102: =IF(J102="-",0,J102) -> 0 | L102: - | M102: =IF(L102="-",0,L102) -> 0 | O102: =E102+G102+I102+K102+M102 -> 0 | P102: =MAX(D102,F102,H102,J102,L102) -> 0 | Q102: =IF(S102=1,O102,IF(S102=0,(O102-P102),"-")) -> - | R102: =COUNTIF(U102:AD102,"=TRUE") -> 0 | S102: =AE$1-R102 -> 5 | T102: =IF(S102<2,"Yes","No") -> No | U102: =IF(D102="-",1,0)*U$1 -> 1 | V102: =AND(U102=0,U$1=1) -> FALSE | W102: =IF(F102="-",1,0)*W$1 -> 1 | X102: =AND(W102=0,W$1=1) -> FALSE | Y102: =IF(H102="-",1,0)*Y$1 -> 1 | Z102: =AND(Y102=0,Y$1=1) -> FALSE | AA102: =IF(J102="-",1,0)*AA$1 -> 1 | AB102: =AND(AA102=0,AA$1=1) -> FALSE | AC102: =IF(L102="-",1,0)*AC$1 -> 1 | AD102: =AND(AC102=0,AC$1=1) -> FALSE
A103: 99 | C103: - | D103: - | E103: =IF(D103="-",0,D103) -> 0 | F103: - | G103: =IF(F103="-",0,F103) -> 0 | H103: - | I103: =IF(H103="-",0,H103) -> 0 | J103: - | K103: =IF(J103="-",0,J103) -> 0 | L103: - | M103: =IF(L103="-",0,L103) -> 0 | O103: =E103+G103+I103+K103+M103 -> 0 | P103: =MAX(D103,F103,H103,J103,L103) -> 0 | Q103: =IF(S103=1,O103,IF(S103=0,(O103-P103),"-")) -> - | R103: =COUNTIF(U103:AD103,"=TRUE") -> 0 | S103: =AE$1-R103 -> 5 | T103: =IF(S103<2,"Yes","No") -> No | U103: =IF(D103="-",1,0)*U$1 -> 1 | V103: =AND(U103=0,U$1=1) -> FALSE | W103: =IF(F103="-",1,0)*W$1 -> 1 | X103: =AND(W103=0,W$1=1) -> FALSE | Y103: =IF(H103="-",1,0)*Y$1 -> 1 | Z103: =AND(Y103=0,Y$1=1) -> FALSE | AA103: =IF(J103="-",1,0)*AA$1 -> 1 | AB103: =AND(AA103=0,AA$1=1) -> FALSE | AC103: =IF(L103="-",1,0)*AC$1 -> 1 | AD103: =AND(AC103=0,AC$1=1) -> FALSE
A104: 100 | C104: - | D104: - | E104: =IF(D104="-",0,D104) -> 0 | F104: - | G104: =IF(F104="-",0,F104) -> 0 | H104: - | I104: =IF(H104="-",0,H104) -> 0 | J104: - | K104: =IF(J104="-",0,J104) -> 0 | L104: - | M104: =IF(L104="-",0,L104) -> 0 | O104: =E104+G104+I104+K104+M104 -> 0 | P104: =MAX(D104,F104,H104,J104,L104) -> 0 | Q104: =IF(S104=1,O104,IF(S104=0,(O104-P104),"-")) -> - | R104: =COUNTIF(U104:AD104,"=TRUE") -> 0 | S104: =AE$1-R104 -> 5 | T104: =IF(S104<2,"Yes","No") -> No | U104: =IF(D104="-",1,0)*U$1 -> 1 | V104: =AND(U104=0,U$1=1) -> FALSE | W104: =IF(F104="-",1,0)*W$1 -> 1 | X104: =AND(W104=0,W$1=1) -> FALSE | Y104: =IF(H104="-",1,0)*Y$1 -> 1 | Z104: =AND(Y104=0,Y$1=1) -> FALSE | AA104: =IF(J104="-",1,0)*AA$1 -> 1 | AB104: =AND(AA104=0,AA$1=1) -> FALSE | AC104: =IF(L104="-",1,0)*AC$1 -> 1 | AD104: =AND(AC104=0,AC$1=1) -> FALSE
A105: 101 | C105: - | D105: - | E105: =IF(D105="-",0,D105) -> 0 | F105: - | G105: =IF(F105="-",0,F105) -> 0 | H105: - | I105: =IF(H105="-",0,H105) -> 0 | J105: - | K105: =IF(J105="-",0,J105) -> 0 | L105: - | M105: =IF(L105="-",0,L105) -> 0 | O105: =E105+G105+I105+K105+M105 -> 0 | P105: =MAX(D105,F105,H105,J105,L105) -> 0 | Q105: =IF(S105=1,O105,IF(S105=0,(O105-P105),"-")) -> - | R105: =COUNTIF(U105:AD105,"=TRUE") -> 0 | S105: =AE$1-R105 -> 5 | T105: =IF(S105<2,"Yes","No") -> No | U105: =IF(D105="-",1,0)*U$1 -> 1 | V105: =AND(U105=0,U$1=1) -> FALSE | W105: =IF(F105="-",1,0)*W$1 -> 1 | X105: =AND(W105=0,W$1=1) -> FALSE | Y105: =IF(H105="-",1,0)*Y$1 -> 1 | Z105: =AND(Y105=0,Y$1=1) -> FALSE | AA105: =IF(J105="-",1,0)*AA$1 -> 1 | AB105: =AND(AA105=0,AA$1=1) -> FALSE | AC105: =IF(L105="-",1,0)*AC$1 -> 1 | AD105: =AND(AC105=0,AC$1=1) -> FALSE
A106: 102 | C106: - | D106: - | E106: =IF(D106="-",0,D106) -> 0 | F106: - | G106: =IF(F106="-",0,F106) -> 0 | H106: - | I106: =IF(H106="-",0,H106) -> 0 | J106: - | K106: =IF(J106="-",0,J106) -> 0 | L106: - | M106: =IF(L106="-",0,L106) -> 0 | O106: =E106+G106+I106+K106+M106 -> 0 | P106: =MAX(D106,F106,H106,J106,L106) -> 0 | Q106: =IF(S106=1,O106,IF(S106=0,(O106-P106),"-")) -> - | R106: =COUNTIF(U106:AD106,"=TRUE") -> 0 | S106: =AE$1-R106 -> 5 | T106: =IF(S106<2,"Yes","No") -> No | U106: =IF(D106="-",1,0)*U$1 -> 1 | V106: =AND(U106=0,U$1=1) -> FALSE | W106: =IF(F106="-",1,0)*W$1 -> 1 | X106: =AND(W106=0,W$1=1) -> FALSE | Y106: =IF(H106="-",1,0)*Y$1 -> 1 | Z106: =AND(Y106=0,Y$1=1) -> FALSE | AA106: =IF(J106="-",1,0)*AA$1 -> 1 | AB106: =AND(AA106=0,AA$1=1) -> FALSE | AC106: =IF(L106="-",1,0)*AC$1 -> 1 | AD106: =AND(AC106=0,AC$1=1) -> FALSE
A107: 103 | C107: - | D107: - | E107: =IF(D107="-",0,D107) -> 0 | F107: - | G107: =IF(F107="-",0,F107) -> 0 | H107: - | I107: =IF(H107="-",0,H107) -> 0 | J107: - | K107: =IF(J107="-",0,J107) -> 0 | L107: - | M107: =IF(L107="-",0,L107) -> 0 | O107: =E107+G107+I107+K107+M107 -> 0 | P107: =MAX(D107,F107,H107,J107,L107) -> 0 | Q107: =IF(S107=1,O107,IF(S107=0,(O107-P107),"-")) -> - | R107: =COUNTIF(U107:AD107,"=TRUE") -> 0 | S107: =AE$1-R107 -> 5 | T107: =IF(S107<2,"Yes","No") -> No | U107: =IF(D107="-",1,0)*U$1 -> 1 | V107: =AND(U107=0,U$1=1) -> FALSE | W107: =IF(F107="-",1,0)*W$1 -> 1 | X107: =AND(W107=0,W$1=1) -> FALSE | Y107: =IF(H107="-",1,0)*Y$1 -> 1 | Z107: =AND(Y107=0,Y$1=1) -> FALSE | AA107: =IF(J107="-",1,0)*AA$1 -> 1 | AB107: =AND(AA107=0,AA$1=1) -> FALSE | AC107: =IF(L107="-",1,0)*AC$1 -> 1 | AD107: =AND(AC107=0,AC$1=1) -> FALSE
A108: 104 | C108: - | D108: - | E108: =IF(D108="-",0,D108) -> 0 | F108: - | G108: =IF(F108="-",0,F108) -> 0 | H108: - | I108: =IF(H108="-",0,H108) -> 0 | J108: - | K108: =IF(J108="-",0,J108) -> 0 | L108: - | M108: =IF(L108="-",0,L108) -> 0 | O108: =E108+G108+I108+K108+M108 -> 0 | P108: =MAX(D108,F108,H108,J108,L108) -> 0 | Q108: =IF(S108=1,O108,IF(S108=0,(O108-P108),"-")) -> - | R108: =COUNTIF(U108:AD108,"=TRUE") -> 0 | S108: =AE$1-R108 -> 5 | T108: =IF(S108<2,"Yes","No") -> No | U108: =IF(D108="-",1,0)*U$1 -> 1 | V108: =AND(U108=0,U$1=1) -> FALSE | W108: =IF(F108="-",1,0)*W$1 -> 1 | X108: =AND(W108=0,W$1=1) -> FALSE | Y108: =IF(H108="-",1,0)*Y$1 -> 1 | Z108: =AND(Y108=0,Y$1=1) -> FALSE | AA108: =IF(J108="-",1,0)*AA$1 -> 1 | AB108: =AND(AA108=0,AA$1=1) -> FALSE | AC108: =IF(L108="-",1,0)*AC$1 -> 1 | AD108: =AND(AC108=0,AC$1=1) -> FALSE
A109: 105 | C109: - | D109: - | E109: =IF(D109="-",0,D109) -> 0 | F109: - | G109: =IF(F109="-",0,F109) -> 0 | H109: - | I109: =IF(H109="-",0,H109) -> 0 | J109: - | K109: =IF(J109="-",0,J109) -> 0 | L109: - | M109: =IF(L109="-",0,L109) -> 0 | O109: =E109+G109+I109+K109+M109 -> 0 | P109: =MAX(D109,F109,H109,J109,L109) -> 0 | Q109: =IF(S109=1,O109,IF(S109=0,(O109-P109),"-")) -> - | R109: =COUNTIF(U109:AD109,"=TRUE") -> 0 | S109: =AE$1-R109 -> 5 | T109: =IF(S109<2,"Yes","No") -> No | U109: =IF(D109="-",1,0)*U$1 -> 1 | V109: =AND(U109=0,U$1=1) -> FALSE | W109: =IF(F109="-",1,0)*W$1 -> 1 | X109: =AND(W109=0,W$1=1) -> FALSE | Y109: =IF(H109="-",1,0)*Y$1 -> 1 | Z109: =AND(Y109=0,Y$1=1) -> FALSE | AA109: =IF(J109="-",1,0)*AA$1 -> 1 | AB109: =AND(AA109=0,AA$1=1) -> FALSE | AC109: =IF(L109="-",1,0)*AC$1 -> 1 | AD109: =AND(AC109=0,AC$1=1) -> FALSE
A110: 106 | C110: - | D110: - | E110: =IF(D110="-",0,D110) -> 0 | F110: - | G110: =IF(F110="-",0,F110) -> 0 | H110: - | I110: =IF(H110="-",0,H110) -> 0 | J110: - | K110: =IF(J110="-",0,J110) -> 0 | L110: - | M110: =IF(L110="-",0,L110) -> 0 | O110: =E110+G110+I110+K110+M110 -> 0 | P110: =MAX(D110,F110,H110,J110,L110) -> 0 | Q110: =IF(S110=1,O110,IF(S110=0,(O110-P110),"-")) -> - | R110: =COUNTIF(U110:AD110,"=TRUE") -> 0 | S110: =AE$1-R110 -> 5 | T110: =IF(S110<2,"Yes","No") -> No | U110: =IF(D110="-",1,0)*U$1 -> 1 | V110: =AND(U110=0,U$1=1) -> FALSE | W110: =IF(F110="-",1,0)*W$1 -> 1 | X110: =AND(W110=0,W$1=1) -> FALSE | Y110: =IF(H110="-",1,0)*Y$1 -> 1 | Z110: =AND(Y110=0,Y$1=1) -> FALSE | AA110: =IF(J110="-",1,0)*AA$1 -> 1 | AB110: =AND(AA110=0,AA$1=1) -> FALSE | AC110: =IF(L110="-",1,0)*AC$1 -> 1 | AD110: =AND(AC110=0,AC$1=1) -> FALSE
A111: 107 | C111: - | D111: - | E111: =IF(D111="-",0,D111) -> 0 | F111: - | G111: =IF(F111="-",0,F111) -> 0 | H111: - | I111: =IF(H111="-",0,H111) -> 0 | J111: - | K111: =IF(J111="-",0,J111) -> 0 | L111: - | M111: =IF(L111="-",0,L111) -> 0 | O111: =E111+G111+I111+K111+M111 -> 0 | P111: =MAX(D111,F111,H111,J111,L111) -> 0 | Q111: =IF(S111=1,O111,IF(S111=0,(O111-P111),"-")) -> - | R111: =COUNTIF(U111:AD111,"=TRUE") -> 0 | S111: =AE$1-R111 -> 5 | T111: =IF(S111<2,"Yes","No") -> No | U111: =IF(D111="-",1,0)*U$1 -> 1 | V111: =AND(U111=0,U$1=1) -> FALSE | W111: =IF(F111="-",1,0)*W$1 -> 1 | X111: =AND(W111=0,W$1=1) -> FALSE | Y111: =IF(H111="-",1,0)*Y$1 -> 1 | Z111: =AND(Y111=0,Y$1=1) -> FALSE | AA111: =IF(J111="-",1,0)*AA$1 -> 1 | AB111: =AND(AA111=0,AA$1=1) -> FALSE | AC111: =IF(L111="-",1,0)*AC$1 -> 1 | AD111: =AND(AC111=0,AC$1=1) -> FALSE
A112: 108 | C112: - | D112: - | E112: =IF(D112="-",0,D112) -> 0 | F112: - | G112: =IF(F112="-",0,F112) -> 0 | H112: - | I112: =IF(H112="-",0,H112) -> 0 | J112: - | K112: =IF(J112="-",0,J112) -> 0 | L112: - | M112: =IF(L112="-",0,L112) -> 0 | O112: =E112+G112+I112+K112+M112 -> 0 | P112: =MAX(D112,F112,H112,J112,L112) -> 0 | Q112: =IF(S112=1,O112,IF(S112=0,(O112-P112),"-")) -> - | R112: =COUNTIF(U112:AD112,"=TRUE") -> 0 | S112: =AE$1-R112 -> 5 | T112: =IF(S112<2,"Yes","No") -> No | U112: =IF(D112="-",1,0)*U$1 -> 1 | V112: =AND(U112=0,U$1=1) -> FALSE | W112: =IF(F112="-",1,0)*W$1 -> 1 | X112: =AND(W112=0,W$1=1) -> FALSE | Y112: =IF(H112="-",1,0)*Y$1 -> 1 | Z112: =AND(Y112=0,Y$1=1) -> FALSE | AA112: =IF(J112="-",1,0)*AA$1 -> 1 | AB112: =AND(AA112=0,AA$1=1) -> FALSE | AC112: =IF(L112="-",1,0)*AC$1 -> 1 | AD112: =AND(AC112=0,AC$1=1) -> FALSE
A113: 109 | C113: - | D113: - | E113: =IF(D113="-",0,D113) -> 0 | F113: - | G113: =IF(F113="-",0,F113) -> 0 | H113: - | I113: =IF(H113="-",0,H113) -> 0 | J113: - | K113: =IF(J113="-",0,J113) -> 0 | L113: - | M113: =IF(L113="-",0,L113) -> 0 | O113: =E113+G113+I113+K113+M113 -> 0 | P113: =MAX(D113,F113,H113,J113,L113) -> 0 | Q113: =IF(S113=1,O113,IF(S113=0,(O113-P113),"-")) -> - | R113: =COUNTIF(U113:AD113,"=TRUE") -> 0 | S113: =AE$1-R113 -> 5 | T113: =IF(S113<2,"Yes","No") -> No | U113: =IF(D113="-",1,0)*U$1 -> 1 | V113: =AND(U113=0,U$1=1) -> FALSE | W113: =IF(F113="-",1,0)*W$1 -> 1 | X113: =AND(W113=0,W$1=1) -> FALSE | Y113: =IF(H113="-",1,0)*Y$1 -> 1 | Z113: =AND(Y113=0,Y$1=1) -> FALSE | AA113: =IF(J113="-",1,0)*AA$1 -> 1 | AB113: =AND(AA113=0,AA$1=1) -> FALSE | AC113: =IF(L113="-",1,0)*AC$1 -> 1 | AD113: =AND(AC113=0,AC$1=1) -> FALSE
A114: 110 | C114: - | D114: - | E114: =IF(D114="-",0,D114) -> 0 | F114: - | G114: =IF(F114="-",0,F114) -> 0 | H114: - | I114: =IF(H114="-",0,H114) -> 0 | J114: - | K114: =IF(J114="-",0,J114) -> 0 | L114: - | M114: =IF(L114="-",0,L114) -> 0 | O114: =E114+G114+I114+K114+M114 -> 0 | P114: =MAX(D114,F114,H114,J114,L114) -> 0 | Q114: =IF(S114=1,O114,IF(S114=0,(O114-P114),"-")) -> - | R114: =COUNTIF(U114:AD114,"=TRUE") -> 0 | S114: =AE$1-R114 -> 5 | T114: =IF(S114<2,"Yes","No") -> No | U114: =IF(D114="-",1,0)*U$1 -> 1 | V114: =AND(U114=0,U$1=1) -> FALSE | W114: =IF(F114="-",1,0)*W$1 -> 1 | X114: =AND(W114=0,W$1=1) -> FALSE | Y114: =IF(H114="-",1,0)*Y$1 -> 1 | Z114: =AND(Y114=0,Y$1=1) -> FALSE | AA114: =IF(J114="-",1,0)*AA$1 -> 1 | AB114: =AND(AA114=0,AA$1=1) -> FALSE | AC114: =IF(L114="-",1,0)*AC$1 -> 1 | AD114: =AND(AC114=0,AC$1=1) -> FALSE
A115: 111 | C115: - | D115: - | E115: =IF(D115="-",0,D115) -> 0 | F115: - | G115: =IF(F115="-",0,F115) -> 0 | H115: - | I115: =IF(H115="-",0,H115) -> 0 | J115: - | K115: =IF(J115="-",0,J115) -> 0 | L115: - | M115: =IF(L115="-",0,L115) -> 0 | O115: =E115+G115+I115+K115+M115 -> 0 | P115: =MAX(D115,F115,H115,J115,L115) -> 0 | Q115: =IF(S115=1,O115,IF(S115=0,(O115-P115),"-")) -> - | R115: =COUNTIF(U115:AD115,"=TRUE") -> 0 | S115: =AE$1-R115 -> 5 | T115: =IF(S115<2,"Yes","No") -> No | U115: =IF(D115="-",1,0)*U$1 -> 1 | V115: =AND(U115=0,U$1=1) -> FALSE | W115: =IF(F115="-",1,0)*W$1 -> 1 | X115: =AND(W115=0,W$1=1) -> FALSE | Y115: =IF(H115="-",1,0)*Y$1 -> 1 | Z115: =AND(Y115=0,Y$1=1) -> FALSE | AA115: =IF(J115="-",1,0)*AA$1 -> 1 | AB115: =AND(AA115=0,AA$1=1) -> FALSE | AC115: =IF(L115="-",1,0)*AC$1 -> 1 | AD115: =AND(AC115=0,AC$1=1) -> FALSE
A116: 112 | C116: - | D116: - | E116: =IF(D116="-",0,D116) -> 0 | F116: - | G116: =IF(F116="-",0,F116) -> 0 | H116: - | I116: =IF(H116="-",0,H116) -> 0 | J116: - | K116: =IF(J116="-",0,J116) -> 0 | L116: - | M116: =IF(L116="-",0,L116) -> 0 | O116: =E116+G116+I116+K116+M116 -> 0 | P116: =MAX(D116,F116,H116,J116,L116) -> 0 | Q116: =IF(S116=1,O116,IF(S116=0,(O116-P116),"-")) -> - | R116: =COUNTIF(U116:AD116,"=TRUE") -> 0 | S116: =AE$1-R116 -> 5 | T116: =IF(S116<2,"Yes","No") -> No | U116: =IF(D116="-",1,0)*U$1 -> 1 | V116: =AND(U116=0,U$1=1) -> FALSE | W116: =IF(F116="-",1,0)*W$1 -> 1 | X116: =AND(W116=0,W$1=1) -> FALSE | Y116: =IF(H116="-",1,0)*Y$1 -> 1 | Z116: =AND(Y116=0,Y$1=1) -> FALSE | AA116: =IF(J116="-",1,0)*AA$1 -> 1 | AB116: =AND(AA116=0,AA$1=1) -> FALSE | AC116: =IF(L116="-",1,0)*AC$1 -> 1 | AD116: =AND(AC116=0,AC$1=1) -> FALSE
A117: 113 | C117: - | D117: - | E117: =IF(D117="-",0,D117) -> 0 | F117: - | G117: =IF(F117="-",0,F117) -> 0 | H117: - | I117: =IF(H117="-",0,H117) -> 0 | J117: - | K117: =IF(J117="-",0,J117) -> 0 | L117: - | M117: =IF(L117="-",0,L117) -> 0 | O117: =E117+G117+I117+K117+M117 -> 0 | P117: =MAX(D117,F117,H117,J117,L117) -> 0 | Q117: =IF(S117=1,O117,IF(S117=0,(O117-P117),"-")) -> - | R117: =COUNTIF(U117:AD117,"=TRUE") -> 0 | S117: =AE$1-R117 -> 5 | T117: =IF(S117<2,"Yes","No") -> No | U117: =IF(D117="-",1,0)*U$1 -> 1 | V117: =AND(U117=0,U$1=1) -> FALSE | W117: =IF(F117="-",1,0)*W$1 -> 1 | X117: =AND(W117=0,W$1=1) -> FALSE | Y117: =IF(H117="-",1,0)*Y$1 -> 1 | Z117: =AND(Y117=0,Y$1=1) -> FALSE | AA117: =IF(J117="-",1,0)*AA$1 -> 1 | AB117: =AND(AA117=0,AA$1=1) -> FALSE | AC117: =IF(L117="-",1,0)*AC$1 -> 1 | AD117: =AND(AC117=0,AC$1=1) -> FALSE
A118: 114 | C118: - | D118: - | E118: =IF(D118="-",0,D118) -> 0 | F118: - | G118: =IF(F118="-",0,F118) -> 0 | H118: - | I118: =IF(H118="-",0,H118) -> 0 | J118: - | K118: =IF(J118="-",0,J118) -> 0 | L118: - | M118: =IF(L118="-",0,L118) -> 0 | O118: =E118+G118+I118+K118+M118 -> 0 | P118: =MAX(D118,F118,H118,J118,L118) -> 0 | Q118: =IF(S118=1,O118,IF(S118=0,(O118-P118),"-")) -> - | R118: =COUNTIF(U118:AD118,"=TRUE") -> 0 | S118: =AE$1-R118 -> 5 | T118: =IF(S118<2,"Yes","No") -> No | U118: =IF(D118="-",1,0)*U$1 -> 1 | V118: =AND(U118=0,U$1=1) -> FALSE | W118: =IF(F118="-",1,0)*W$1 -> 1 | X118: =AND(W118=0,W$1=1) -> FALSE | Y118: =IF(H118="-",1,0)*Y$1 -> 1 | Z118: =AND(Y118=0,Y$1=1) -> FALSE | AA118: =IF(J118="-",1,0)*AA$1 -> 1 | AB118: =AND(AA118=0,AA$1=1) -> FALSE | AC118: =IF(L118="-",1,0)*AC$1 -> 1 | AD118: =AND(AC118=0,AC$1=1) -> FALSE
A119: 115 | C119: - | D119: - | E119: =IF(D119="-",0,D119) -> 0 | F119: - | G119: =IF(F119="-",0,F119) -> 0 | H119: - | I119: =IF(H119="-",0,H119) -> 0 | J119: - | K119: =IF(J119="-",0,J119) -> 0 | L119: - | M119: =IF(L119="-",0,L119) -> 0 | O119: =E119+G119+I119+K119+M119 -> 0 | P119: =MAX(D119,F119,H119,J119,L119) -> 0 | Q119: =IF(S119=1,O119,IF(S119=0,(O119-P119),"-")) -> - | R119: =COUNTIF(U119:AD119,"=TRUE") -> 0 | S119: =AE$1-R119 -> 5 | T119: =IF(S119<2,"Yes","No") -> No | U119: =IF(D119="-",1,0)*U$1 -> 1 | V119: =AND(U119=0,U$1=1) -> FALSE | W119: =IF(F119="-",1,0)*W$1 -> 1 | X119: =AND(W119=0,W$1=1) -> FALSE | Y119: =IF(H119="-",1,0)*Y$1 -> 1 | Z119: =AND(Y119=0,Y$1=1) -> FALSE | AA119: =IF(J119="-",1,0)*AA$1 -> 1 | AB119: =AND(AA119=0,AA$1=1) -> FALSE | AC119: =IF(L119="-",1,0)*AC$1 -> 1 | AD119: =AND(AC119=0,AC$1=1) -> FALSE
A120: 116 | C120: - | D120: - | E120: =IF(D120="-",0,D120) -> 0 | F120: - | G120: =IF(F120="-",0,F120) -> 0 | H120: - | I120: =IF(H120="-",0,H120) -> 0 | J120: - | K120: =IF(J120="-",0,J120) -> 0 | L120: - | M120: =IF(L120="-",0,L120) -> 0 | O120: =E120+G120+I120+K120+M120 -> 0 | P120: =MAX(D120,F120,H120,J120,L120) -> 0 | Q120: =IF(S120=1,O120,IF(S120=0,(O120-P120),"-")) -> - | R120: =COUNTIF(U120:AD120,"=TRUE") -> 0 | S120: =AE$1-R120 -> 5 | T120: =IF(S120<2,"Yes","No") -> No | U120: =IF(D120="-",1,0)*U$1 -> 1 | V120: =AND(U120=0,U$1=1) -> FALSE | W120: =IF(F120="-",1,0)*W$1 -> 1 | X120: =AND(W120=0,W$1=1) -> FALSE | Y120: =IF(H120="-",1,0)*Y$1 -> 1 | Z120: =AND(Y120=0,Y$1=1) -> FALSE | AA120: =IF(J120="-",1,0)*AA$1 -> 1 | AB120: =AND(AA120=0,AA$1=1) -> FALSE | AC120: =IF(L120="-",1,0)*AC$1 -> 1 | AD120: =AND(AC120=0,AC$1=1) -> FALSE
A121: 117 | C121: - | D121: - | E121: =IF(D121="-",0,D121) -> 0 | F121: - | G121: =IF(F121="-",0,F121) -> 0 | H121: - | I121: =IF(H121="-",0,H121) -> 0 | J121: - | K121: =IF(J121="-",0,J121) -> 0 | L121: - | M121: =IF(L121="-",0,L121) -> 0 | O121: =E121+G121+I121+K121+M121 -> 0 | P121: =MAX(D121,F121,H121,J121,L121) -> 0 | Q121: =IF(S121=1,O121,IF(S121=0,(O121-P121),"-")) -> - | R121: =COUNTIF(U121:AD121,"=TRUE") -> 0 | S121: =AE$1-R121 -> 5 | T121: =IF(S121<2,"Yes","No") -> No | U121: =IF(D121="-",1,0)*U$1 -> 1 | V121: =AND(U121=0,U$1=1) -> FALSE | W121: =IF(F121="-",1,0)*W$1 -> 1 | X121: =AND(W121=0,W$1=1) -> FALSE | Y121: =IF(H121="-",1,0)*Y$1 -> 1 | Z121: =AND(Y121=0,Y$1=1) -> FALSE | AA121: =IF(J121="-",1,0)*AA$1 -> 1 | AB121: =AND(AA121=0,AA$1=1) -> FALSE | AC121: =IF(L121="-",1,0)*AC$1 -> 1 | AD121: =AND(AC121=0,AC$1=1) -> FALSE
A122: 118 | C122: - | D122: - | E122: =IF(D122="-",0,D122) -> 0 | F122: - | G122: =IF(F122="-",0,F122) -> 0 | H122: - | I122: =IF(H122="-",0,H122) -> 0 | J122: - | K122: =IF(J122="-",0,J122) -> 0 | L122: - | M122: =IF(L122="-",0,L122) -> 0 | O122: =E122+G122+I122+K122+M122 -> 0 | P122: =MAX(D122,F122,H122,J122,L122) -> 0 | Q122: =IF(S122=1,O122,IF(S122=0,(O122-P122),"-")) -> - | R122: =COUNTIF(U122:AD122,"=TRUE") -> 0 | S122: =AE$1-R122 -> 5 | T122: =IF(S122<2,"Yes","No") -> No | U122: =IF(D122="-",1,0)*U$1 -> 1 | V122: =AND(U122=0,U$1=1) -> FALSE | W122: =IF(F122="-",1,0)*W$1 -> 1 | X122: =AND(W122=0,W$1=1) -> FALSE | Y122: =IF(H122="-",1,0)*Y$1 -> 1 | Z122: =AND(Y122=0,Y$1=1) -> FALSE | AA122: =IF(J122="-",1,0)*AA$1 -> 1 | AB122: =AND(AA122=0,AA$1=1) -> FALSE | AC122: =IF(L122="-",1,0)*AC$1 -> 1 | AD122: =AND(AC122=0,AC$1=1) -> FALSE
A123: 119 | C123: - | D123: - | E123: =IF(D123="-",0,D123) -> 0 | F123: - | G123: =IF(F123="-",0,F123) -> 0 | H123: - | I123: =IF(H123="-",0,H123) -> 0 | J123: - | K123: =IF(J123="-",0,J123) -> 0 | L123: - | M123: =IF(L123="-",0,L123) -> 0 | O123: =E123+G123+I123+K123+M123 -> 0 | P123: =MAX(D123,F123,H123,J123,L123) -> 0 | Q123: =IF(S123=1,O123,IF(S123=0,(O123-P123),"-")) -> - | R123: =COUNTIF(U123:AD123,"=TRUE") -> 0 | S123: =AE$1-R123 -> 5 | T123: =IF(S123<2,"Yes","No") -> No | U123: =IF(D123="-",1,0)*U$1 -> 1 | V123: =AND(U123=0,U$1=1) -> FALSE | W123: =IF(F123="-",1,0)*W$1 -> 1 | X123: =AND(W123=0,W$1=1) -> FALSE | Y123: =IF(H123="-",1,0)*Y$1 -> 1 | Z123: =AND(Y123=0,Y$1=1) -> FALSE | AA123: =IF(J123="-",1,0)*AA$1 -> 1 | AB123: =AND(AA123=0,AA$1=1) -> FALSE | AC123: =IF(L123="-",1,0)*AC$1 -> 1 | AD123: =AND(AC123=0,AC$1=1) -> FALSE
A124: 120 | C124: - | D124: - | E124: =IF(D124="-",0,D124) -> 0 | F124: - | G124: =IF(F124="-",0,F124) -> 0 | H124: - | I124: =IF(H124="-",0,H124) -> 0 | J124: - | K124: =IF(J124="-",0,J124) -> 0 | L124: - | M124: =IF(L124="-",0,L124) -> 0 | O124: =E124+G124+I124+K124+M124 -> 0 | P124: =MAX(D124,F124,H124,J124,L124) -> 0 | Q124: =IF(S124=1,O124,IF(S124=0,(O124-P124),"-")) -> - | R124: =COUNTIF(U124:AD124,"=TRUE") -> 0 | S124: =AE$1-R124 -> 5 | T124: =IF(S124<2,"Yes","No") -> No | U124: =IF(D124="-",1,0)*U$1 -> 1 | V124: =AND(U124=0,U$1=1) -> FALSE | W124: =IF(F124="-",1,0)*W$1 -> 1 | X124: =AND(W124=0,W$1=1) -> FALSE | Y124: =IF(H124="-",1,0)*Y$1 -> 1 | Z124: =AND(Y124=0,Y$1=1) -> FALSE | AA124: =IF(J124="-",1,0)*AA$1 -> 1 | AB124: =AND(AA124=0,AA$1=1) -> FALSE | AC124: =IF(L124="-",1,0)*AC$1 -> 1 | AD124: =AND(AC124=0,AC$1=1) -> FALSE
A125: 121 | C125: - | D125: - | E125: =IF(D125="-",0,D125) -> 0 | F125: - | G125: =IF(F125="-",0,F125) -> 0 | H125: - | I125: =IF(H125="-",0,H125) -> 0 | J125: - | K125: =IF(J125="-",0,J125) -> 0 | L125: - | M125: =IF(L125="-",0,L125) -> 0 | O125: =E125+G125+I125+K125+M125 -> 0 | P125: =MAX(D125,F125,H125,J125,L125) -> 0 | Q125: =IF(S125=1,O125,IF(S125=0,(O125-P125),"-")) -> - | R125: =COUNTIF(U125:AD125,"=TRUE") -> 0 | S125: =AE$1-R125 -> 5 | T125: =IF(S125<2,"Yes","No") -> No | U125: =IF(D125="-",1,0)*U$1 -> 1 | V125: =AND(U125=0,U$1=1) -> FALSE | W125: =IF(F125="-",1,0)*W$1 -> 1 | X125: =AND(W125=0,W$1=1) -> FALSE | Y125: =IF(H125="-",1,0)*Y$1 -> 1 | Z125: =AND(Y125=0,Y$1=1) -> FALSE | AA125: =IF(J125="-",1,0)*AA$1 -> 1 | AB125: =AND(AA125=0,AA$1=1) -> FALSE | AC125: =IF(L125="-",1,0)*AC$1 -> 1 | AD125: =AND(AC125=0,AC$1=1) -> FALSE
A126: 122 | C126: - | D126: - | E126: =IF(D126="-",0,D126) -> 0 | F126: - | G126: =IF(F126="-",0,F126) -> 0 | H126: - | I126: =IF(H126="-",0,H126) -> 0 | J126: - | K126: =IF(J126="-",0,J126) -> 0 | L126: - | M126: =IF(L126="-",0,L126) -> 0 | O126: =E126+G126+I126+K126+M126 -> 0 | P126: =MAX(D126,F126,H126,J126,L126) -> 0 | Q126: =IF(S126=1,O126,IF(S126=0,(O126-P126),"-")) -> - | R126: =COUNTIF(U126:AD126,"=TRUE") -> 0 | S126: =AE$1-R126 -> 5 | T126: =IF(S126<2,"Yes","No") -> No | U126: =IF(D126="-",1,0)*U$1 -> 1 | V126: =AND(U126=0,U$1=1) -> FALSE | W126: =IF(F126="-",1,0)*W$1 -> 1 | X126: =AND(W126=0,W$1=1) -> FALSE | Y126: =IF(H126="-",1,0)*Y$1 -> 1 | Z126: =AND(Y126=0,Y$1=1) -> FALSE | AA126: =IF(J126="-",1,0)*AA$1 -> 1 | AB126: =AND(AA126=0,AA$1=1) -> FALSE | AC126: =IF(L126="-",1,0)*AC$1 -> 1 | AD126: =AND(AC126=0,AC$1=1) -> FALSE
A127: 123 | C127: - | D127: - | E127: =IF(D127="-",0,D127) -> 0 | F127: - | G127: =IF(F127="-",0,F127) -> 0 | H127: - | I127: =IF(H127="-",0,H127) -> 0 | J127: - | K127: =IF(J127="-",0,J127) -> 0 | L127: - | M127: =IF(L127="-",0,L127) -> 0 | O127: =E127+G127+I127+K127+M127 -> 0 | P127: =MAX(D127,F127,H127,J127,L127) -> 0 | Q127: =IF(S127=1,O127,IF(S127=0,(O127-P127),"-")) -> - | R127: =COUNTIF(U127:AD127,"=TRUE") -> 0 | S127: =AE$1-R127 -> 5 | T127: =IF(S127<2,"Yes","No") -> No | U127: =IF(D127="-",1,0)*U$1 -> 1 | V127: =AND(U127=0,U$1=1) -> FALSE | W127: =IF(F127="-",1,0)*W$1 -> 1 | X127: =AND(W127=0,W$1=1) -> FALSE | Y127: =IF(H127="-",1,0)*Y$1 -> 1 | Z127: =AND(Y127=0,Y$1=1) -> FALSE | AA127: =IF(J127="-",1,0)*AA$1 -> 1 | AB127: =AND(AA127=0,AA$1=1) -> FALSE | AC127: =IF(L127="-",1,0)*AC$1 -> 1 | AD127: =AND(AC127=0,AC$1=1) -> FALSE
A128: 124 | C128: - | D128: - | E128: =IF(D128="-",0,D128) -> 0 | F128: - | G128: =IF(F128="-",0,F128) -> 0 | H128: - | I128: =IF(H128="-",0,H128) -> 0 | J128: - | K128: =IF(J128="-",0,J128) -> 0 | L128: - | M128: =IF(L128="-",0,L128) -> 0 | O128: =E128+G128+I128+K128+M128 -> 0 | P128: =MAX(D128,F128,H128,J128,L128) -> 0 | Q128: =IF(S128=1,O128,IF(S128=0,(O128-P128),"-")) -> - | R128: =COUNTIF(U128:AD128,"=TRUE") -> 0 | S128: =AE$1-R128 -> 5 | T128: =IF(S128<2,"Yes","No") -> No | U128: =IF(D128="-",1,0)*U$1 -> 1 | V128: =AND(U128=0,U$1=1) -> FALSE | W128: =IF(F128="-",1,0)*W$1 -> 1 | X128: =AND(W128=0,W$1=1) -> FALSE | Y128: =IF(H128="-",1,0)*Y$1 -> 1 | Z128: =AND(Y128=0,Y$1=1) -> FALSE | AA128: =IF(J128="-",1,0)*AA$1 -> 1 | AB128: =AND(AA128=0,AA$1=1) -> FALSE | AC128: =IF(L128="-",1,0)*AC$1 -> 1 | AD128: =AND(AC128=0,AC$1=1) -> FALSE
A129: 125 | C129: - | D129: - | E129: =IF(D129="-",0,D129) -> 0 | F129: - | G129: =IF(F129="-",0,F129) -> 0 | H129: - | I129: =IF(H129="-",0,H129) -> 0 | J129: - | K129: =IF(J129="-",0,J129) -> 0 | L129: - | M129: =IF(L129="-",0,L129) -> 0 | O129: =E129+G129+I129+K129+M129 -> 0 | P129: =MAX(D129,F129,H129,J129,L129) -> 0 | Q129: =IF(S129=1,O129,IF(S129=0,(O129-P129),"-")) -> - | R129: =COUNTIF(U129:AD129,"=TRUE") -> 0 | S129: =AE$1-R129 -> 5 | T129: =IF(S129<2,"Yes","No") -> No | U129: =IF(D129="-",1,0)*U$1 -> 1 | V129: =AND(U129=0,U$1=1) -> FALSE | W129: =IF(F129="-",1,0)*W$1 -> 1 | X129: =AND(W129=0,W$1=1) -> FALSE | Y129: =IF(H129="-",1,0)*Y$1 -> 1 | Z129: =AND(Y129=0,Y$1=1) -> FALSE | AA129: =IF(J129="-",1,0)*AA$1 -> 1 | AB129: =AND(AA129=0,AA$1=1) -> FALSE | AC129: =IF(L129="-",1,0)*AC$1 -> 1 | AD129: =AND(AC129=0,AC$1=1) -> FALSE
A130: 126 | C130: - | D130: - | E130: =IF(D130="-",0,D130) -> 0 | F130: - | G130: =IF(F130="-",0,F130) -> 0 | H130: - | I130: =IF(H130="-",0,H130) -> 0 | J130: - | K130: =IF(J130="-",0,J130) -> 0 | L130: - | M130: =IF(L130="-",0,L130) -> 0 | O130: =E130+G130+I130+K130+M130 -> 0 | P130: =MAX(D130,F130,H130,J130,L130) -> 0 | Q130: =IF(S130=1,O130,IF(S130=0,(O130-P130),"-")) -> - | R130: =COUNTIF(U130:AD130,"=TRUE") -> 0 | S130: =AE$1-R130 -> 5 | T130: =IF(S130<2,"Yes","No") -> No | U130: =IF(D130="-",1,0)*U$1 -> 1 | V130: =AND(U130=0,U$1=1) -> FALSE | W130: =IF(F130="-",1,0)*W$1 -> 1 | X130: =AND(W130=0,W$1=1) -> FALSE | Y130: =IF(H130="-",1,0)*Y$1 -> 1 | Z130: =AND(Y130=0,Y$1=1) -> FALSE | AA130: =IF(J130="-",1,0)*AA$1 -> 1 | AB130: =AND(AA130=0,AA$1=1) -> FALSE | AC130: =IF(L130="-",1,0)*AC$1 -> 1 | AD130: =AND(AC130=0,AC$1=1) -> FALSE
A131: 127 | C131: - | D131: - | E131: =IF(D131="-",0,D131) -> 0 | F131: - | G131: =IF(F131="-",0,F131) -> 0 | H131: - | I131: =IF(H131="-",0,H131) -> 0 | J131: - | K131: =IF(J131="-",0,J131) -> 0 | L131: - | M131: =IF(L131="-",0,L131) -> 0 | O131: =E131+G131+I131+K131+M131 -> 0 | P131: =MAX(D131,F131,H131,J131,L131) -> 0 | Q131: =IF(S131=1,O131,IF(S131=0,(O131-P131),"-")) -> - | R131: =COUNTIF(U131:AD131,"=TRUE") -> 0 | S131: =AE$1-R131 -> 5 | T131: =IF(S131<2,"Yes","No") -> No | U131: =IF(D131="-",1,0)*U$1 -> 1 | V131: =AND(U131=0,U$1=1) -> FALSE | W131: =IF(F131="-",1,0)*W$1 -> 1 | X131: =AND(W131=0,W$1=1) -> FALSE | Y131: =IF(H131="-",1,0)*Y$1 -> 1 | Z131: =AND(Y131=0,Y$1=1) -> FALSE | AA131: =IF(J131="-",1,0)*AA$1 -> 1 | AB131: =AND(AA131=0,AA$1=1) -> FALSE | AC131: =IF(L131="-",1,0)*AC$1 -> 1 | AD131: =AND(AC131=0,AC$1=1) -> FALSE
A132: 128 | C132: - | D132: - | E132: =IF(D132="-",0,D132) -> 0 | F132: - | G132: =IF(F132="-",0,F132) -> 0 | H132: - | I132: =IF(H132="-",0,H132) -> 0 | J132: - | K132: =IF(J132="-",0,J132) -> 0 | L132: - | M132: =IF(L132="-",0,L132) -> 0 | O132: =E132+G132+I132+K132+M132 -> 0 | P132: =MAX(D132,F132,H132,J132,L132) -> 0 | Q132: =IF(S132=1,O132,IF(S132=0,(O132-P132),"-")) -> - | R132: =COUNTIF(U132:AD132,"=TRUE") -> 0 | S132: =AE$1-R132 -> 5 | T132: =IF(S132<2,"Yes","No") -> No | U132: =IF(D132="-",1,0)*U$1 -> 1 | V132: =AND(U132=0,U$1=1) -> FALSE | W132: =IF(F132="-",1,0)*W$1 -> 1 | X132: =AND(W132=0,W$1=1) -> FALSE | Y132: =IF(H132="-",1,0)*Y$1 -> 1 | Z132: =AND(Y132=0,Y$1=1) -> FALSE | AA132: =IF(J132="-",1,0)*AA$1 -> 1 | AB132: =AND(AA132=0,AA$1=1) -> FALSE | AC132: =IF(L132="-",1,0)*AC$1 -> 1 | AD132: =AND(AC132=0,AC$1=1) -> FALSE
A133: 129 | C133: - | D133: - | E133: =IF(D133="-",0,D133) -> 0 | F133: - | G133: =IF(F133="-",0,F133) -> 0 | H133: - | I133: =IF(H133="-",0,H133) -> 0 | J133: - | K133: =IF(J133="-",0,J133) -> 0 | L133: - | M133: =IF(L133="-",0,L133) -> 0 | O133: =E133+G133+I133+K133+M133 -> 0 | P133: =MAX(D133,F133,H133,J133,L133) -> 0 | Q133: =IF(S133=1,O133,IF(S133=0,(O133-P133),"-")) -> - | R133: =COUNTIF(U133:AD133,"=TRUE") -> 0 | S133: =AE$1-R133 -> 5 | T133: =IF(S133<2,"Yes","No") -> No | U133: =IF(D133="-",1,0)*U$1 -> 1 | V133: =AND(U133=0,U$1=1) -> FALSE | W133: =IF(F133="-",1,0)*W$1 -> 1 | X133: =AND(W133=0,W$1=1) -> FALSE | Y133: =IF(H133="-",1,0)*Y$1 -> 1 | Z133: =AND(Y133=0,Y$1=1) -> FALSE | AA133: =IF(J133="-",1,0)*AA$1 -> 1 | AB133: =AND(AA133=0,AA$1=1) -> FALSE | AC133: =IF(L133="-",1,0)*AC$1 -> 1 | AD133: =AND(AC133=0,AC$1=1) -> FALSE
A134: 130 | C134: - | D134: - | E134: =IF(D134="-",0,D134) -> 0 | F134: - | G134: =IF(F134="-",0,F134) -> 0 | H134: - | I134: =IF(H134="-",0,H134) -> 0 | J134: - | K134: =IF(J134="-",0,J134) -> 0 | L134: - | M134: =IF(L134="-",0,L134) -> 0 | O134: =E134+G134+I134+K134+M134 -> 0 | P134: =MAX(D134,F134,H134,J134,L134) -> 0 | Q134: =IF(S134=1,O134,IF(S134=0,(O134-P134),"-")) -> - | R134: =COUNTIF(U134:AD134,"=TRUE") -> 0 | S134: =AE$1-R134 -> 5 | T134: =IF(S134<2,"Yes","No") -> No | U134: =IF(D134="-",1,0)*U$1 -> 1 | V134: =AND(U134=0,U$1=1) -> FALSE | W134: =IF(F134="-",1,0)*W$1 -> 1 | X134: =AND(W134=0,W$1=1) -> FALSE | Y134: =IF(H134="-",1,0)*Y$1 -> 1 | Z134: =AND(Y134=0,Y$1=1) -> FALSE | AA134: =IF(J134="-",1,0)*AA$1 -> 1 | AB134: =AND(AA134=0,AA$1=1) -> FALSE | AC134: =IF(L134="-",1,0)*AC$1 -> 1 | AD134: =AND(AC134=0,AC$1=1) -> FALSE
A135: 131 | C135: - | D135: - | E135: =IF(D135="-",0,D135) -> 0 | F135: - | G135: =IF(F135="-",0,F135) -> 0 | H135: - | I135: =IF(H135="-",0,H135) -> 0 | J135: - | K135: =IF(J135="-",0,J135) -> 0 | L135: - | M135: =IF(L135="-",0,L135) -> 0 | O135: =E135+G135+I135+K135+M135 -> 0 | P135: =MAX(D135,F135,H135,J135,L135) -> 0 | Q135: =IF(S135=1,O135,IF(S135=0,(O135-P135),"-")) -> - | R135: =COUNTIF(U135:AD135,"=TRUE") -> 0 | S135: =AE$1-R135 -> 5 | T135: =IF(S135<2,"Yes","No") -> No | U135: =IF(D135="-",1,0)*U$1 -> 1 | V135: =AND(U135=0,U$1=1) -> FALSE | W135: =IF(F135="-",1,0)*W$1 -> 1 | X135: =AND(W135=0,W$1=1) -> FALSE | Y135: =IF(H135="-",1,0)*Y$1 -> 1 | Z135: =AND(Y135=0,Y$1=1) -> FALSE | AA135: =IF(J135="-",1,0)*AA$1 -> 1 | AB135: =AND(AA135=0,AA$1=1) -> FALSE | AC135: =IF(L135="-",1,0)*AC$1 -> 1 | AD135: =AND(AC135=0,AC$1=1) -> FALSE
A136: 132 | C136: - | D136: - | E136: =IF(D136="-",0,D136) -> 0 | F136: - | G136: =IF(F136="-",0,F136) -> 0 | H136: - | I136: =IF(H136="-",0,H136) -> 0 | J136: - | K136: =IF(J136="-",0,J136) -> 0 | L136: - | M136: =IF(L136="-",0,L136) -> 0 | O136: =E136+G136+I136+K136+M136 -> 0 | P136: =MAX(D136,F136,H136,J136,L136) -> 0 | Q136: =IF(S136=1,O136,IF(S136=0,(O136-P136),"-")) -> - | R136: =COUNTIF(U136:AD136,"=TRUE") -> 0 | S136: =AE$1-R136 -> 5 | T136: =IF(S136<2,"Yes","No") -> No | U136: =IF(D136="-",1,0)*U$1 -> 1 | V136: =AND(U136=0,U$1=1) -> FALSE | W136: =IF(F136="-",1,0)*W$1 -> 1 | X136: =AND(W136=0,W$1=1) -> FALSE | Y136: =IF(H136="-",1,0)*Y$1 -> 1 | Z136: =AND(Y136=0,Y$1=1) -> FALSE | AA136: =IF(J136="-",1,0)*AA$1 -> 1 | AB136: =AND(AA136=0,AA$1=1) -> FALSE | AC136: =IF(L136="-",1,0)*AC$1 -> 1 | AD136: =AND(AC136=0,AC$1=1) -> FALSE
A137: 133 | C137: - | D137: - | E137: =IF(D137="-",0,D137) -> 0 | F137: - | G137: =IF(F137="-",0,F137) -> 0 | H137: - | I137: =IF(H137="-",0,H137) -> 0 | J137: - | K137: =IF(J137="-",0,J137) -> 0 | L137: - | M137: =IF(L137="-",0,L137) -> 0 | O137: =E137+G137+I137+K137+M137 -> 0 | P137: =MAX(D137,F137,H137,J137,L137) -> 0 | Q137: =IF(S137=1,O137,IF(S137=0,(O137-P137),"-")) -> - | R137: =COUNTIF(U137:AD137,"=TRUE") -> 0 | S137: =AE$1-R137 -> 5 | T137: =IF(S137<2,"Yes","No") -> No | U137: =IF(D137="-",1,0)*U$1 -> 1 | V137: =AND(U137=0,U$1=1) -> FALSE | W137: =IF(F137="-",1,0)*W$1 -> 1 | X137: =AND(W137=0,W$1=1) -> FALSE | Y137: =IF(H137="-",1,0)*Y$1 -> 1 | Z137: =AND(Y137=0,Y$1=1) -> FALSE | AA137: =IF(J137="-",1,0)*AA$1 -> 1 | AB137: =AND(AA137=0,AA$1=1) -> FALSE | AC137: =IF(L137="-",1,0)*AC$1 -> 1 | AD137: =AND(AC137=0,AC$1=1) -> FALSE
A138: 134 | C138: - | D138: - | E138: =IF(D138="-",0,D138) -> 0 | F138: - | G138: =IF(F138="-",0,F138) -> 0 | H138: - | I138: =IF(H138="-",0,H138) -> 0 | J138: - | K138: =IF(J138="-",0,J138) -> 0 | L138: - | M138: =IF(L138="-",0,L138) -> 0 | O138: =E138+G138+I138+K138+M138 -> 0 | P138: =MAX(D138,F138,H138,J138,L138) -> 0 | Q138: =IF(S138=1,O138,IF(S138=0,(O138-P138),"-")) -> - | R138: =COUNTIF(U138:AD138,"=TRUE") -> 0 | S138: =AE$1-R138 -> 5 | T138: =IF(S138<2,"Yes","No") -> No | U138: =IF(D138="-",1,0)*U$1 -> 1 | V138: =AND(U138=0,U$1=1) -> FALSE | W138: =IF(F138="-",1,0)*W$1 -> 1 | X138: =AND(W138=0,W$1=1) -> FALSE | Y138: =IF(H138="-",1,0)*Y$1 -> 1 | Z138: =AND(Y138=0,Y$1=1) -> FALSE | AA138: =IF(J138="-",1,0)*AA$1 -> 1 | AB138: =AND(AA138=0,AA$1=1) -> FALSE | AC138: =IF(L138="-",1,0)*AC$1 -> 1 | AD138: =AND(AC138=0,AC$1=1) -> FALSE
A139: 135 | C139: - | D139: - | E139: =IF(D139="-",0,D139) -> 0 | F139: - | G139: =IF(F139="-",0,F139) -> 0 | H139: - | I139: =IF(H139="-",0,H139) -> 0 | J139: - | K139: =IF(J139="-",0,J139) -> 0 | L139: - | M139: =IF(L139="-",0,L139) -> 0 | O139: =E139+G139+I139+K139+M139 -> 0 | P139: =MAX(D139,F139,H139,J139,L139) -> 0 | Q139: =IF(S139=1,O139,IF(S139=0,(O139-P139),"-")) -> - | R139: =COUNTIF(U139:AD139,"=TRUE") -> 0 | S139: =AE$1-R139 -> 5 | T139: =IF(S139<2,"Yes","No") -> No | U139: =IF(D139="-",1,0)*U$1 -> 1 | V139: =AND(U139=0,U$1=1) -> FALSE | W139: =IF(F139="-",1,0)*W$1 -> 1 | X139: =AND(W139=0,W$1=1) -> FALSE | Y139: =IF(H139="-",1,0)*Y$1 -> 1 | Z139: =AND(Y139=0,Y$1=1) -> FALSE | AA139: =IF(J139="-",1,0)*AA$1 -> 1 | AB139: =AND(AA139=0,AA$1=1) -> FALSE | AC139: =IF(L139="-",1,0)*AC$1 -> 1 | AD139: =AND(AC139=0,AC$1=1) -> FALSE
A140: 136 | C140: - | D140: - | E140: =IF(D140="-",0,D140) -> 0 | F140: - | G140: =IF(F140="-",0,F140) -> 0 | H140: - | I140: =IF(H140="-",0,H140) -> 0 | J140: - | K140: =IF(J140="-",0,J140) -> 0 | L140: - | M140: =IF(L140="-",0,L140) -> 0 | O140: =E140+G140+I140+K140+M140 -> 0 | P140: =MAX(D140,F140,H140,J140,L140) -> 0 | Q140: =IF(S140=1,O140,IF(S140=0,(O140-P140),"-")) -> - | R140: =COUNTIF(U140:AD140,"=TRUE") -> 0 | S140: =AE$1-R140 -> 5 | T140: =IF(S140<2,"Yes","No") -> No | U140: =IF(D140="-",1,0)*U$1 -> 1 | V140: =AND(U140=0,U$1=1) -> FALSE | W140: =IF(F140="-",1,0)*W$1 -> 1 | X140: =AND(W140=0,W$1=1) -> FALSE | Y140: =IF(H140="-",1,0)*Y$1 -> 1 | Z140: =AND(Y140=0,Y$1=1) -> FALSE | AA140: =IF(J140="-",1,0)*AA$1 -> 1 | AB140: =AND(AA140=0,AA$1=1) -> FALSE | AC140: =IF(L140="-",1,0)*AC$1 -> 1 | AD140: =AND(AC140=0,AC$1=1) -> FALSE
A141: 137 | C141: - | D141: - | E141: =IF(D141="-",0,D141) -> 0 | F141: - | G141: =IF(F141="-",0,F141) -> 0 | H141: - | I141: =IF(H141="-",0,H141) -> 0 | J141: - | K141: =IF(J141="-",0,J141) -> 0 | L141: - | M141: =IF(L141="-",0,L141) -> 0 | O141: =E141+G141+I141+K141+M141 -> 0 | P141: =MAX(D141,F141,H141,J141,L141) -> 0 | Q141: =IF(S141=1,O141,IF(S141=0,(O141-P141),"-")) -> - | R141: =COUNTIF(U141:AD141,"=TRUE") -> 0 | S141: =AE$1-R141 -> 5 | T141: =IF(S141<2,"Yes","No") -> No | U141: =IF(D141="-",1,0)*U$1 -> 1 | V141: =AND(U141=0,U$1=1) -> FALSE | W141: =IF(F141="-",1,0)*W$1 -> 1 | X141: =AND(W141=0,W$1=1) -> FALSE | Y141: =IF(H141="-",1,0)*Y$1 -> 1 | Z141: =AND(Y141=0,Y$1=1) -> FALSE | AA141: =IF(J141="-",1,0)*AA$1 -> 1 | AB141: =AND(AA141=0,AA$1=1) -> FALSE | AC141: =IF(L141="-",1,0)*AC$1 -> 1 | AD141: =AND(AC141=0,AC$1=1) -> FALSE
A142: 138 | C142: - | D142: - | E142: =IF(D142="-",0,D142) -> 0 | F142: - | G142: =IF(F142="-",0,F142) -> 0 | H142: - | I142: =IF(H142="-",0,H142) -> 0 | J142: - | K142: =IF(J142="-",0,J142) -> 0 | L142: - | M142: =IF(L142="-",0,L142) -> 0 | O142: =E142+G142+I142+K142+M142 -> 0 | P142: =MAX(D142,F142,H142,J142,L142) -> 0 | Q142: =IF(S142=1,O142,IF(S142=0,(O142-P142),"-")) -> - | R142: =COUNTIF(U142:AD142,"=TRUE") -> 0 | S142: =AE$1-R142 -> 5 | T142: =IF(S142<2,"Yes","No") -> No | U142: =IF(D142="-",1,0)*U$1 -> 1 | V142: =AND(U142=0,U$1=1) -> FALSE | W142: =IF(F142="-",1,0)*W$1 -> 1 | X142: =AND(W142=0,W$1=1) -> FALSE | Y142: =IF(H142="-",1,0)*Y$1 -> 1 | Z142: =AND(Y142=0,Y$1=1) -> FALSE | AA142: =IF(J142="-",1,0)*AA$1 -> 1 | AB142: =AND(AA142=0,AA$1=1) -> FALSE | AC142: =IF(L142="-",1,0)*AC$1 -> 1 | AD142: =AND(AC142=0,AC$1=1) -> FALSE
A143: 139 | C143: - | D143: - | E143: =IF(D143="-",0,D143) -> 0 | F143: - | G143: =IF(F143="-",0,F143) -> 0 | H143: - | I143: =IF(H143="-",0,H143) -> 0 | J143: - | K143: =IF(J143="-",0,J143) -> 0 | L143: - | M143: =IF(L143="-",0,L143) -> 0 | O143: =E143+G143+I143+K143+M143 -> 0 | P143: =MAX(D143,F143,H143,J143,L143) -> 0 | Q143: =IF(S143=1,O143,IF(S143=0,(O143-P143),"-")) -> - | R143: =COUNTIF(U143:AD143,"=TRUE") -> 0 | S143: =AE$1-R143 -> 5 | T143: =IF(S143<2,"Yes","No") -> No | U143: =IF(D143="-",1,0)*U$1 -> 1 | V143: =AND(U143=0,U$1=1) -> FALSE | W143: =IF(F143="-",1,0)*W$1 -> 1 | X143: =AND(W143=0,W$1=1) -> FALSE | Y143: =IF(H143="-",1,0)*Y$1 -> 1 | Z143: =AND(Y143=0,Y$1=1) -> FALSE | AA143: =IF(J143="-",1,0)*AA$1 -> 1 | AB143: =AND(AA143=0,AA$1=1) -> FALSE | AC143: =IF(L143="-",1,0)*AC$1 -> 1 | AD143: =AND(AC143=0,AC$1=1) -> FALSE
A144: 140 | C144: - | D144: - | E144: =IF(D144="-",0,D144) -> 0 | F144: - | G144: =IF(F144="-",0,F144) -> 0 | H144: - | I144: =IF(H144="-",0,H144) -> 0 | J144: - | K144: =IF(J144="-",0,J144) -> 0 | L144: - | M144: =IF(L144="-",0,L144) -> 0 | O144: =E144+G144+I144+K144+M144 -> 0 | P144: =MAX(D144,F144,H144,J144,L144) -> 0 | Q144: =IF(S144=1,O144,IF(S144=0,(O144-P144),"-")) -> - | R144: =COUNTIF(U144:AD144,"=TRUE") -> 0 | S144: =AE$1-R144 -> 5 | T144: =IF(S144<2,"Yes","No") -> No | U144: =IF(D144="-",1,0)*U$1 -> 1 | V144: =AND(U144=0,U$1=1) -> FALSE | W144: =IF(F144="-",1,0)*W$1 -> 1 | X144: =AND(W144=0,W$1=1) -> FALSE | Y144: =IF(H144="-",1,0)*Y$1 -> 1 | Z144: =AND(Y144=0,Y$1=1) -> FALSE | AA144: =IF(J144="-",1,0)*AA$1 -> 1 | AB144: =AND(AA144=0,AA$1=1) -> FALSE | AC144: =IF(L144="-",1,0)*AC$1 -> 1 | AD144: =AND(AC144=0,AC$1=1) -> FALSE
A145: 141 | C145: - | D145: - | E145: =IF(D145="-",0,D145) -> 0 | F145: - | G145: =IF(F145="-",0,F145) -> 0 | H145: - | I145: =IF(H145="-",0,H145) -> 0 | J145: - | K145: =IF(J145="-",0,J145) -> 0 | L145: - | M145: =IF(L145="-",0,L145) -> 0 | O145: =E145+G145+I145+K145+M145 -> 0 | P145: =MAX(D145,F145,H145,J145,L145) -> 0 | Q145: =IF(S145=1,O145,IF(S145=0,(O145-P145),"-")) -> - | R145: =COUNTIF(U145:AD145,"=TRUE") -> 0 | S145: =AE$1-R145 -> 5 | T145: =IF(S145<2,"Yes","No") -> No | U145: =IF(D145="-",1,0)*U$1 -> 1 | V145: =AND(U145=0,U$1=1) -> FALSE | W145: =IF(F145="-",1,0)*W$1 -> 1 | X145: =AND(W145=0,W$1=1) -> FALSE | Y145: =IF(H145="-",1,0)*Y$1 -> 1 | Z145: =AND(Y145=0,Y$1=1) -> FALSE | AA145: =IF(J145="-",1,0)*AA$1 -> 1 | AB145: =AND(AA145=0,AA$1=1) -> FALSE | AC145: =IF(L145="-",1,0)*AC$1 -> 1 | AD145: =AND(AC145=0,AC$1=1) -> FALSE
A146: 142 | C146: - | D146: - | E146: =IF(D146="-",0,D146) -> 0 | F146: - | G146: =IF(F146="-",0,F146) -> 0 | H146: - | I146: =IF(H146="-",0,H146) -> 0 | J146: - | K146: =IF(J146="-",0,J146) -> 0 | L146: - | M146: =IF(L146="-",0,L146) -> 0 | O146: =E146+G146+I146+K146+M146 -> 0 | P146: =MAX(D146,F146,H146,J146,L146) -> 0 | Q146: =IF(S146=1,O146,IF(S146=0,(O146-P146),"-")) -> - | R146: =COUNTIF(U146:AD146,"=TRUE") -> 0 | S146: =AE$1-R146 -> 5 | T146: =IF(S146<2,"Yes","No") -> No | U146: =IF(D146="-",1,0)*U$1 -> 1 | V146: =AND(U146=0,U$1=1) -> FALSE | W146: =IF(F146="-",1,0)*W$1 -> 1 | X146: =AND(W146=0,W$1=1) -> FALSE | Y146: =IF(H146="-",1,0)*Y$1 -> 1 | Z146: =AND(Y146=0,Y$1=1) -> FALSE | AA146: =IF(J146="-",1,0)*AA$1 -> 1 | AB146: =AND(AA146=0,AA$1=1) -> FALSE | AC146: =IF(L146="-",1,0)*AC$1 -> 1 | AD146: =AND(AC146=0,AC$1=1) -> FALSE
A147: 143 | C147: - | D147: - | E147: =IF(D147="-",0,D147) -> 0 | F147: - | G147: =IF(F147="-",0,F147) -> 0 | H147: - | I147: =IF(H147="-",0,H147) -> 0 | J147: - | K147: =IF(J147="-",0,J147) -> 0 | L147: - | M147: =IF(L147="-",0,L147) -> 0 | O147: =E147+G147+I147+K147+M147 -> 0 | P147: =MAX(D147,F147,H147,J147,L147) -> 0 | Q147: =IF(S147=1,O147,IF(S147=0,(O147-P147),"-")) -> - | R147: =COUNTIF(U147:AD147,"=TRUE") -> 0 | S147: =AE$1-R147 -> 5 | T147: =IF(S147<2,"Yes","No") -> No | U147: =IF(D147="-",1,0)*U$1 -> 1 | V147: =AND(U147=0,U$1=1) -> FALSE | W147: =IF(F147="-",1,0)*W$1 -> 1 | X147: =AND(W147=0,W$1=1) -> FALSE | Y147: =IF(H147="-",1,0)*Y$1 -> 1 | Z147: =AND(Y147=0,Y$1=1) -> FALSE | AA147: =IF(J147="-",1,0)*AA$1 -> 1 | AB147: =AND(AA147=0,AA$1=1) -> FALSE | AC147: =IF(L147="-",1,0)*AC$1 -> 1 | AD147: =AND(AC147=0,AC$1=1) -> FALSE
A148: 144 | C148: - | D148: - | E148: =IF(D148="-",0,D148) -> 0 | F148: - | G148: =IF(F148="-",0,F148) -> 0 | H148: - | I148: =IF(H148="-",0,H148) -> 0 | J148: - | K148: =IF(J148="-",0,J148) -> 0 | L148: - | M148: =IF(L148="-",0,L148) -> 0 | O148: =E148+G148+I148+K148+M148 -> 0 | P148: =MAX(D148,F148,H148,J148,L148) -> 0 | Q148: =IF(S148=1,O148,IF(S148=0,(O148-P148),"-")) -> - | R148: =COUNTIF(U148:AD148,"=TRUE") -> 0 | S148: =AE$1-R148 -> 5 | T148: =IF(S148<2,"Yes","No") -> No | U148: =IF(D148="-",1,0)*U$1 -> 1 | V148: =AND(U148=0,U$1=1) -> FALSE | W148: =IF(F148="-",1,0)*W$1 -> 1 | X148: =AND(W148=0,W$1=1) -> FALSE | Y148: =IF(H148="-",1,0)*Y$1 -> 1 | Z148: =AND(Y148=0,Y$1=1) -> FALSE | AA148: =IF(J148="-",1,0)*AA$1 -> 1 | AB148: =AND(AA148=0,AA$1=1) -> FALSE | AC148: =IF(L148="-",1,0)*AC$1 -> 1 | AD148: =AND(AC148=0,AC$1=1) -> FALSE
A149: 145 | C149: - | D149: - | E149: =IF(D149="-",0,D149) -> 0 | F149: - | G149: =IF(F149="-",0,F149) -> 0 | H149: - | I149: =IF(H149="-",0,H149) -> 0 | J149: - | K149: =IF(J149="-",0,J149) -> 0 | L149: - | M149: =IF(L149="-",0,L149) -> 0 | O149: =E149+G149+I149+K149+M149 -> 0 | P149: =MAX(D149,F149,H149,J149,L149) -> 0 | Q149: =IF(S149=1,O149,IF(S149=0,(O149-P149),"-")) -> - | R149: =COUNTIF(U149:AD149,"=TRUE") -> 0 | S149: =AE$1-R149 -> 5 | T149: =IF(S149<2,"Yes","No") -> No | U149: =IF(D149="-",1,0)*U$1 -> 1 | V149: =AND(U149=0,U$1=1) -> FALSE | W149: =IF(F149="-",1,0)*W$1 -> 1 | X149: =AND(W149=0,W$1=1) -> FALSE | Y149: =IF(H149="-",1,0)*Y$1 -> 1 | Z149: =AND(Y149=0,Y$1=1) -> FALSE | AA149: =IF(J149="-",1,0)*AA$1 -> 1 | AB149: =AND(AA149=0,AA$1=1) -> FALSE | AC149: =IF(L149="-",1,0)*AC$1 -> 1 | AD149: =AND(AC149=0,AC$1=1) -> FALSE
A150: 146 | C150: - | D150: - | E150: =IF(D150="-",0,D150) -> 0 | F150: - | G150: =IF(F150="-",0,F150) -> 0 | H150: - | I150: =IF(H150="-",0,H150) -> 0 | J150: - | K150: =IF(J150="-",0,J150) -> 0 | L150: - | M150: =IF(L150="-",0,L150) -> 0 | O150: =E150+G150+I150+K150+M150 -> 0 | P150: =MAX(D150,F150,H150,J150,L150) -> 0 | Q150: =IF(S150=1,O150,IF(S150=0,(O150-P150),"-")) -> - | R150: =COUNTIF(U150:AD150,"=TRUE") -> 0 | S150: =AE$1-R150 -> 5 | T150: =IF(S150<2,"Yes","No") -> No | U150: =IF(D150="-",1,0)*U$1 -> 1 | V150: =AND(U150=0,U$1=1) -> FALSE | W150: =IF(F150="-",1,0)*W$1 -> 1 | X150: =AND(W150=0,W$1=1) -> FALSE | Y150: =IF(H150="-",1,0)*Y$1 -> 1 | Z150: =AND(Y150=0,Y$1=1) -> FALSE | AA150: =IF(J150="-",1,0)*AA$1 -> 1 | AB150: =AND(AA150=0,AA$1=1) -> FALSE | AC150: =IF(L150="-",1,0)*AC$1 -> 1 | AD150: =AND(AC150=0,AC$1=1) -> FALSE
A151: 147
A152: 148
A153: 149
A154: 150

Sheet Year 7 Girls Teams
B1: Claimed Last Place | D1: Y | E1: N | F1: -
A3: Total Finishers | B3: ='Year 7 Girls '!D2 -> 59 | F3: ='Year 7 Girls '!G2 -> 50 | J3: ='Year 7 Girls '!H2 -> 50 | N3: ='Year 7 Girls '!J2 -> 39 | R3: ='Year 7 Girls '!L2 -> 47
A4: Team | B4: Race 1 Position | D4: Race 1 Points Total | E4: Claimed Last Place? | F4: Race 2 Postion | H4: Race 2 Points Total | I4: Claimed Last Place? | J4: Race 3 Postion | L4: Race 3 Points Total | M4: Claimed Last Place? | N4: Race 4 Postion | P4: Race 4 Points Total | Q4: Claimed Last Place? | R4: Race 5 Postion | T4: Race 5 Points Total | U4: Claimed Last Place? | V4: Number of claimed last places | W4: Number of Races Without | X4: Number of Races Completed | Y4: Total (All Races)
A5: Brookvale High School | B5: 1 | C5: =IF(B5="-",0,B5) -> 1 | D5: 49 | E5: N | F5: 1 | G5: =IF(F5="-",0,F5) -> 1 | H5: 48 | I5: N | J5: 1 | K5: =IF(J5="-",0,J5) -> 1 | L5: 41 | M5: N | N5: 2 | O5: =IF(N5="-",0,N5) -> 2 | P5: 70 | Q5: Y | R5: 1 | S5: =IF(R5="-",0,R5) -> 1 | T5: 38 | U5: N | V5: =COUNTIF(B5:U5,"Y") -> 1 | W5: =COUNTIF(B5:U5,"n") -> 4 | X5: =V5+W5 -> 5 | Y5: =C5+G5+K5+O5+S5 -> 6
A6: Welland Park Academy | B6: 2 | C6: =IF(B6="-",0,B6) -> 2 | D6: 66 | E6: N | F6: 2 | G6: =IF(F6="-",0,F6) -> 2 | H6: 60 | I6: N | J6: 2 | K6: =IF(J6="-",0,J6) -> 2 | L6: 83 | M6: N | N6: 2 | O6: =IF(N6="-",0,N6) -> 2 | P6: 70 | Q6: N | R6: 2 | S6: =IF(R6="-",0,R6) -> 2 | T6: 70 | U6: N | V6: =COUNTIF(B6:U6,"Y") -> 0 | W6: =COUNTIF(B6:U6,"n") -> 5 | X6: =V6+W6 -> 5 | Y6: =C6+G6+K6+O6+S6 -> 10
A7: Thomas Estley CC | B7: 3 | C7: 3 | D7: 100 | E7: N | F7: - | G7: 0 | H7: - | I7: - | J7: 3 | K7: 3 | L7: 99 | M7: N | N7: 4 | O7: 4 | P7: 85 | Q7: N | R7: 3 | S7: 3 | T7: 97 | U7: N | V7: 0 | W7: 4 | X7: 4 | Y7: 13
A8: Woodbrook Vale School | B8: 4 | C8: 4 | D8: 105 | E8: N | F8: 3 | G8: 3 | H8: 80 | I8: N | J8: 4 | K8: 4 | L8: 107 | M8: N | N8: 1 | O8: 1 | P8: 65 | Q8: N | R8: 4 | S8: 4 | T8: 107 | U8: N | V8: 0 | W8: 5 | X8: 5 | Y8: 16
A9: Lutterworth High School | B9: 5 | C9: =IF(B9="-",0,B9) -> 5 | D9: 129 | E9: Y | F9: - | G9: 0 | H9: - | I9: - | J9: 7 | K9: 7 | L9: 137 | M9: Y | N9: - | O9: 0 | P9: - | Q9: - | R9: - | S9: 0 | T9: - | U9: - | V9: 2 | W9: 0 | X9: 2 | Y9: 12
A10: John Ferneley College | B10: 6 | C10: 6 | D10: 135 | E10: N | F10: - | G10: 0 | H10: - | I10: - | J10: - | K10: 0 | L10: - | M10: - | N10: - | O10: 0 | P10: - | Q10: - | R10: - | S10: 0 | T10: - | U10: - | V10: 0 | W10: 1 | X10: 1 | Y10: 6
A11: The Market Bosworth School | B11: 7 | C11: 7 | D11: 137 | E11: Y | F11: - | G11: 0 | H11: - | I11: - | J11: 6 | K11: 6 | L11: 125 | M11: N | N11: 5 | O11: 5 | P11: 90 | Q11: Y | R11: 6 | S11: 6 | T11: 114 | U11: Y | V11: 3 | W11: 1 | X11: 4 | Y11: 24
A12: Kibworth High School | B12: 8 | C12: 8 | D12: 146 | E12: Y | F12: 4 | G12: 4 | H12: 106 | I12: N | J12: 8 | K12: 8 | L12: 144 | M12: N | N12: 6 | O12: 6 | P12: 135 | Q12: Y | R12: 5 | S12: 5 | T12: 108 | U12: N | V12: 2 | W12: 3 | X12: 5 | Y12: 31
A13: The Martin High School | B13: 9 | C13: 9 | D13: 158 | E13: Y | F13: - | G13: 0 | H13: - | I13: - | J13: - | K13: 0 | L13: - | M13: - | N13: - | O13: 0 | P13: - | Q13: - | R13: - | S13: 0 | T13: - | U13: - | V13: 1 | W13: 0 | X13: 1 | Y13: 9
A14: Loughborough High School | B14: 10 | C14: 10 | D14: 211 | E14: Y | F14: - | G14: 0 | H14: - | I14: - | J14: - | K14: 0 | L14: - | M14: - | N14: - | O14: 0 | P14: - | Q14: - | R14: - | S14: 0 | T14: - | U14: - | V14: 1 | W14: 0 | X14: 1 | Y14: 10
A15: De Lisle College | B15: - | C15: 0 | D15: - | E15: - | F15: 5 | G15: 5 | H15: 158 | I15: Y | J15: - | K15: 0 | L15: - | M15: - | N15: - | O15: 0 | P15: - | Q15: - | R15: - | S15: 0 | T15: - | U15: - | V15: 1 | W15: 0 | X15: 1 | Y15: 5
A16: Redmoor Acadmey | B16: - | C16: 0 | D16: - | E16: - | F16: - | G16: 0 | H16: - | I16: - | J16: 9 | K16: 9 | L16: 176 | M16: Y | N16: 7 | O16: 7 | P16: 150 | Q16: Y | R16: 9 | S16: 9 | T16: 163 | U16: N | V16: 2 | W16: 1 | X16: 3 | Y16: 25
A17: Leicester Grammar School | B17: - | C17: 0 | D17: - | E17: - | F17: - | G17: 0 | H17: - | I17: - | J17: 5 | K17: 5 | L17: 109 | M17: Y | N17: - | O17: 0 | P17: - | Q17: - | R17: - | S17: 0 | T17: - | U17: - | V17: 1 | W17: 0 | X17: 1 | Y17: 5
A18: Humphrey Perkins School | B18: - | C18: 0 | D18: - | E18: - | F18: - | G18: 0 | H18: - | I18: - | J18: - | K18: 0 | L18: - | M18: - | N18: - | O18: 0 | P18: - | Q18: - | R18: 7 | S18: 7 | T18: 144 | U18: Y | V18: 1 | W18: 0 | X18: 1 | Y18: 7
A19: Uppingham CC | B19: - | C19: 0 | D19: - | E19: - | F19: - | G19: =IF(F19="-",0,F19) -> 0 | H19: - | I19: - | J19: - | K19: =IF(J19="-",0,J19) -> 0 | L19: - | N19: - | O19: =IF(N19="-",0,N19) -> 0 | P19: - | Q19: - | R19: 8 | S19: =IF(R19="-",0,R19) -> 8 | T19: 157 | U19: Y | V19: 1 | W19: 0 | X19: 1 | Y19: 8

Sheet Year 7 Boys
B1: Total Number of Runners | C1: Race Complete (Y/N) | D1: ='Year 7 Girls '!D1 -> Y | F1: ='Year 7 Girls '!F1 -> Y | H1: ='Year 7 Girls '!H1 -> Y | J1: ='Year 7 Girls '!J1 -> Y | L1: Y | U1: =IF(D1="Y",1,0) -> 1 | W1: =IF(F1="Y",1,0) -> 1 | Y1: =IF(H1="Y",1,0) -> 1 | AA1: =IF(J1="Y",1,0) -> 1 | AC1: =IF(L1="Y",1,0) -> 1 | AE1: =SUM(U1:AC1) -> 5
B2: =COUNTA(B5:B300) -> 104 | C2: No of Finishers | D2: =MAX(D5:D150) -> 68 | E2: 68 | F2: 66 | G2: 66 | H2: 51 | I2: 51 | J2: 46 | K2: 46 | L2: 40
C3: Number of results recorded | D3: =COUNTIF(D5:D149,">0") -> 68 | F3: =COUNTIF(G5:G149,">0") -> 66 | H3: 51 | J3: 45 | L3: 40
A4: Reset Column | B4: Name | C4: School | D4: Race 1 | E4: Normalised result -1 | F4: Race 2 | G4: Normalised result -2 | H4: Race 3 | I4: Normalised result -3 | J4: Race 4 | K4: Normalised result -4 | L4: Race 5 | M4: Normalised result -5 | O4: Total (All Races) | P4: Lowest Place Finish | Q4: Final Total | R4: Number of Races Completed | S4: League contender? (No. of races - missed) | T4: Elidgible For League Title | U4: Competed in race 1 0 = YES | W4: Competed in race 2 0 = YES | Y4: Competed in race 3 0 = YES | AA4: Competed in race 4 0 = YES | AC4: Competed in race 5 0 = YES
A5: 74 | B5: Lucca Watson-Quilter | C5: Brookvale High School | D5: 1 | E5: =IF(D5="-",0,D5) -> 1 | F5: 1 | G5: =IF(F5="-",0,F5) -> 1 | H5: 1 | I5: =IF(H5="-",0,H5) -> 1 | J5: 1 | K5: =IF(J5="-",0,J5) -> 1 | L5: 1 | M5: =IF(L5="-",0,L5) -> 1 | O5: =E5+G5+I5+K5+M5 -> 5 | P5: =MAX(D5,F5,H5,J5,L5) -> 1 | Q5: =IF(S5=1,O5,IF(S5=0,(O5-P5),"-")) -> 4 | R5: =COUNTIF(U5:AD5,"=TRUE") -> 5 | S5: =AE$1-R5 -> 0 | T5: =IF(S5<2,"Yes","No") -> Yes | U5: =IF(D5="-",1,0)*U$1 -> 0 | V5: =AND(U5=0,U$1=1) -> TRUE | W5: =IF(F5="-",1,0)*W$1 -> 0 | X5: =AND(W5=0,W$1=1) -> TRUE | Y5: =IF(H5="-",1,0)*Y$1 -> 0 | Z5: =AND(Y5=0,Y$1=1) -> TRUE | AA5: =IF(J5="-",1,0)*AA$1 -> 0 | AB5: =AND(AA5=0,AA$1=1) -> TRUE | AC5: =IF(L5="-",1,0)*AC$1 -> 0 | AD5: =AND(AC5=0,AC$1=1) -> TRUE
A6: 2 | B6: Roman Watson-Quilter | C6: Brookvale High School | D6: 2 | E6: =IF(D6="-",0,D6) -> 2 | F6: 2 | G6: =IF(F6="-",0,F6) -> 2 | H6: 2 | I6: =IF(H6="-",0,H6) -> 2 | J6: 2 | K6: =IF(J6="-",0,J6) -> 2 | L6: 2 | M6: =IF(L6="-",0,L6) -> 2 | O6: =E6+G6+I6+K6+M6 -> 10 | P6: =MAX(D6,F6,H6,J6,L6) -> 2 | Q6: =IF(S6=1,O6,IF(S6=0,(O6-P6),"-")) -> 8 | R6: =COUNTIF(U6:AD6,"=TRUE") -> 5 | S6: =AE$1-R6 -> 0 | T6: =IF(S6<2,"Yes","No") -> Yes | U6: =IF(D6="-",1,0)*U$1 -> 0 | V6: =AND(U6=0,U$1=1) -> TRUE | W6: =IF(F6="-",1,0)*W$1 -> 0 | X6: =AND(W6=0,W$1=1) -> TRUE | Y6: =IF(H6="-",1,0)*Y$1 -> 0 | Z6: =AND(Y6=0,Y$1=1) -> TRUE | AA6: =IF(J6="-",1,0)*AA$1 -> 0 | AB6: =AND(AA6=0,AA$1=1) -> TRUE | AC6: =IF(L6="-",1,0)*AC$1 -> 0 | AD6: =AND(AC6=0,AC$1=1) -> TRUE
A7: 5 | B7: George Lowe | C7: Welland Park Academy | D7: 8 | E7: =IF(D7="-",0,D7) -> 8 | F7: 7 | G7: =IF(F7="-",0,F7) -> 7 | H7: - | I7: =IF(H7="-",0,H7) -> 0 | J7: 3 | K7: =IF(J7="-",0,J7) -> 3 | L7: 3 | M7: =IF(L7="-",0,L7) -> 3 | O7: =E7+G7+I7+K7+M7 -> 21 | P7: =MAX(D7,F7,H7,J7,L7) -> 8 | Q7: =IF(S7=1,O7,IF(S7=0,(O7-P7),"-")) -> 21 | R7: =COUNTIF(U7:AD7,"=TRUE") -> 4 | S7: =AE$1-R7 -> 1 | T7: =IF(S7<2,"Yes","No") -> Yes | U7: =IF(D7="-",1,0)*U$1 -> 0 | V7: =AND(U7=0,U$1=1) -> TRUE | W7: =IF(F7="-",1,0)*W$1 -> 0 | X7: =AND(W7=0,W$1=1) -> TRUE | Y7: =IF(H7="-",1,0)*Y$1 -> 1 | Z7: =AND(Y7=0,Y$1=1) -> FALSE | AA7: =IF(J7="-",1,0)*AA$1 -> 0 | AB7: =AND(AA7=0,AA$1=1) -> TRUE | AC7: =IF(L7="-",1,0)*AC$1 -> 0 | AD7: =AND(AC7=0,AC$1=1) -> TRUE
A8: 36 | B8: Tyler Chapman | C8: Welland Park Academy | D8: 6 | E8: =IF(D8="-",0,D8) -> 6 | F8: 8 | G8: =IF(F8="-",0,F8) -> 8 | H8: 5 | I8: =IF(H8="-",0,H8) -> 5 | J8: 4 | K8: =IF(J8="-",0,J8) -> 4 | L8: 4 | M8: =IF(L8="-",0,L8) -> 4 | O8: =E8+G8+I8+K8+M8 -> 27 | P8: =MAX(D8,F8,H8,J8,L8) -> 8 | Q8: =IF(S8=1,O8,IF(S8=0,(O8-P8),"-")) -> 19 | R8: =COUNTIF(U8:AD8,"=TRUE") -> 5 | S8: =AE$1-R8 -> 0 | T8: =IF(S8<2,"Yes","No") -> Yes | U8: =IF(D8="-",1,0)*U$1 -> 0 | V8: =AND(U8=0,U$1=1) -> TRUE | W8: =IF(F8="-",1,0)*W$1 -> 0 | X8: =AND(W8=0,W$1=1) -> TRUE | Y8: =IF(H8="-",1,0)*Y$1 -> 0 | Z8: =AND(Y8=0,Y$1=1) -> TRUE | AA8: =IF(J8="-",1,0)*AA$1 -> 0 | AB8: =AND(AA8=0,AA$1=1) -> TRUE | AC8: =IF(L8="-",1,0)*AC$1 -> 0 | AD8: =AND(AC8=0,AC$1=1) -> TRUE
A9: 23 | B9: Oliver Lewin | C9: Uppingham CC | D9: - | E9: =IF(D9="-",0,D9) -> 0 | F9: - | G9: =IF(F9="-",0,F9) -> 0 | H9: 6 | I9: =IF(H9="-",0,H9) -> 6 | J9: 10 | K9: =IF(J9="-",0,J9) -> 10 | L9: 5 | M9: =IF(L9="-",0,L9) -> 5 | O9: =E9+G9+I9+K9+M9 -> 21 | P9: =MAX(D9,F9,H9,J9,L9) -> 10 | Q9: =IF(S9=1,O9,IF(S9=0,(O9-P9),"-")) -> - | R9: =COUNTIF(U9:AD9,"=TRUE") -> 3 | S9: =AE$1-R9 -> 2 | T9: =IF(S9<2,"Yes","No") -> No | U9: =IF(D9="-",1,0)*U$1 -> 1 | V9: =AND(U9=0,U$1=1) -> FALSE | W9: =IF(F9="-",1,0)*W$1 -> 1 | X9: =AND(W9=0,W$1=1) -> FALSE | Y9: =IF(H9="-",1,0)*Y$1 -> 0 | Z9: =AND(Y9=0,Y$1=1) -> TRUE | AA9: =IF(J9="-",1,0)*AA$1 -> 0 | AB9: =AND(AA9=0,AA$1=1) -> TRUE | AC9: =IF(L9="-",1,0)*AC$1 -> 0 | AD9: =AND(AC9=0,AC$1=1) -> TRUE
A10: 43 | B10: Harvey Finch | C10: Welland Park Academy | D10: 12 | E10: =IF(D10="-",0,D10) -> 12 | F10: 12 | G10: =IF(F10="-",0,F10) -> 12 | H10: 8 | I10: =IF(H10="-",0,H10) -> 8 | J10: 7 | K10: =IF(J10="-",0,J10) -> 7 | L10: 6 | M10: =IF(L10="-",0,L10) -> 6 | O10: =E10+G10+I10+K10+M10 -> 45 | P10: =MAX(D10,F10,H10,J10,L10) -> 12 | Q10: =IF(S10=1,O10,IF(S10=0,(O10-P10),"-")) -> 33 | R10: =COUNTIF(U10:AD10,"=TRUE") -> 5 | S10: =AE$1-R10 -> 0 | T10: =IF(S10<2,"Yes","No") -> Yes | U10: =IF(D10="-",1,0)*U$1 -> 0 | V10: =AND(U10=0,U$1=1) -> TRUE | W10: =IF(F10="-",1,0)*W$1 -> 0 | X10: =AND(W10=0,W$1=1) -> TRUE | Y10: =IF(H10="-",1,0)*Y$1 -> 0 | Z10: =AND(Y10=0,Y$1=1) -> TRUE | AA10: =IF(J10="-",1,0)*AA$1 -> 0 | AB10: =AND(AA10=0,AA$1=1) -> TRUE | AC10: =IF(L10="-",1,0)*AC$1 -> 0 | AD10: =AND(AC10=0,AC$1=1) -> TRUE
A11: 19 | B11: Charlie Combey | C11: Brockington College | D11: 5 | E11: =IF(D11="-",0,D11) -> 5 | F11: 13 | G11: =IF(F11="-",0,F11) -> 13 | H11: 12 | I11: =IF(H11="-",0,H11) -> 12 | J11: 8 | K11: =IF(J11="-",0,J11) -> 8 | L11: 7 | M11: =IF(L11="-",0,L11) -> 7 | O11: =E11+G11+I11+K11+M11 -> 45 | P11: =MAX(D11,F11,H11,J11,L11) -> 13 | Q11: =IF(S11=1,O11,IF(S11=0,(O11-P11),"-")) -> 32 | R11: =COUNTIF(U11:AD11,"=TRUE") -> 5 | S11: =AE$1-R11 -> 0 | T11: =IF(S11<2,"Yes","No") -> Yes | U11: =IF(D11="-",1,0)*U$1 -> 0 | V11: =AND(U11=0,U$1=1) -> TRUE | W11: =IF(F11="-",1,0)*W$1 -> 0 | X11: =AND(W11=0,W$1=1) -> TRUE | Y11: =IF(H11="-",1,0)*Y$1 -> 0 | Z11: =AND(Y11=0,Y$1=1) -> TRUE | AA11: =IF(J11="-",1,0)*AA$1 -> 0 | AB11: =AND(AA11=0,AA$1=1) -> TRUE | AC11: =IF(L11="-",1,0)*AC$1 -> 0 | AD11: =AND(AC11=0,AC$1=1) -> TRUE
A12: 42 | B12: Seamus Hurst | C12: De Lisle College | D12: 11 | E12: =IF(D12="-",0,D12) -> 11 | F12: 15 | G12: =IF(F12="-",0,F12) -> 15 | H12: 4 | I12: =IF(H12="-",0,H12) -> 4 | J12: 5 | K12: =IF(J12="-",0,J12) -> 5 | L12: 8 | M12: =IF(L12="-",0,L12) -> 8 | O12: =E12+G12+I12+K12+M12 -> 43 | P12: =MAX(D12,F12,H12,J12,L12) -> 15 | Q12: =IF(S12=1,O12,IF(S12=0,(O12-P12),"-")) -> 28 | R12: =COUNTIF(U12:AD12,"=TRUE") -> 5 | S12: =AE$1-R12 -> 0 | T12: =IF(S12<2,"Yes","No") -> Yes | U12: =IF(D12="-",1,0)*U$1 -> 0 | V12: =AND(U12=0,U$1=1) -> TRUE | W12: =IF(F12="-",1,0)*W$1 -> 0 | X12: =AND(W12=0,W$1=1) -> TRUE | Y12: =IF(H12="-",1,0)*Y$1 -> 0 | Z12: =AND(Y12=0,Y$1=1) -> TRUE | AA12: =IF(J12="-",1,0)*AA$1 -> 0 | AB12: =AND(AA12=0,AA$1=1) -> TRUE | AC12: =IF(L12="-",1,0)*AC$1 -> 0 | AD12: =AND(AC12=0,AC$1=1) -> TRUE
A13: 84 | B13: Odhran Palmer-Holmes | C13: Bosworth Academy | D13: 20 | E13: =IF(D13="-",0,D13) -> 20 | F13: 10 | G13: =IF(F13="-",0,F13) -> 10 | H13: 9 | I13: =IF(H13="-",0,H13) -> 9 | J13: 20 | K13: =IF(J13="-",0,J13) -> 20 | L13: 9 | M13: =IF(L13="-",0,L13) -> 9 | O13: =E13+G13+I13+K13+M13 -> 68 | P13: =MAX(D13,F13,H13,J13,L13) -> 20 | Q13: =IF(S13=1,O13,IF(S13=0,(O13-P13),"-")) -> 48 | R13: =COUNTIF(U13:AD13,"=TRUE") -> 5 | S13: =AE$1-R13 -> 0 | T13: =IF(S13<2,"Yes","No") -> Yes | U13: =IF(D13="-",1,0)*U$1 -> 0 | V13: =AND(U13=0,U$1=1) -> TRUE | W13: =IF(F13="-",1,0)*W$1 -> 0 | X13: =AND(W13=0,W$1=1) -> TRUE | Y13: =IF(H13="-",1,0)*Y$1 -> 0 | Z13: =AND(Y13=0,Y$1=1) -> TRUE | AA13: =IF(J13="-",1,0)*AA$1 -> 0 | AB13: =AND(AA13=0,AA$1=1) -> TRUE | AC13: =IF(L13="-",1,0)*AC$1 -> 0 | AD13: =AND(AC13=0,AC$1=1) -> TRUE
A14: 22 | B14: Elliott Butler | C14: Thomas Estley CC | D14: 4 | E14: =IF(D14="-",0,D14) -> 4 | F14: 4 | G14: =IF(F14="-",0,F14) -> 4 | H14: 7 | I14: =IF(H14="-",0,H14) -> 7 | J14: 9 | K14: =IF(J14="-",0,J14) -> 9 | L14: 10 | M14: =IF(L14="-",0,L14) -> 10 | O14: =E14+G14+I14+K14+M14 -> 34 | P14: =MAX(D14,F14,H14,J14,L14) -> 10 | Q14: =IF(S14=1,O14,IF(S14=0,(O14-P14),"-")) -> 24 | R14: =COUNTIF(U14:AD14,"=TRUE") -> 5 | S14: =AE$1-R14 -> 0 | T14: =IF(S14<2,"Yes","No") -> Yes | U14: =IF(D14="-",1,0)*U$1 -> 0 | V14: =AND(U14=0,U$1=1) -> TRUE | W14: =IF(F14="-",1,0)*W$1 -> 0 | X14: =AND(W14=0,W$1=1) -> TRUE | Y14: =IF(H14="-",1,0)*Y$1 -> 0 | Z14: =AND(Y14=0,Y$1=1) -> TRUE | AA14: =IF(J14="-",1,0)*AA$1 -> 0 | AB14: =AND(AA14=0,AA$1=1) -> TRUE | AC14: =IF(L14="-",1,0)*AC$1 -> 0 | AD14: =AND(AC14=0,AC$1=1) -> TRUE
A15: 46 | B15: Owen Blair | C15: John Ferneley College | D15: - | E15: =IF(D15="-",0,D15) -> 0 | F15: 3 | G15: =IF(F15="-",0,F15) -> 3 | H15: - | I15: =IF(H15="-",0,H15) -> 0 | J15: 6 | K15: =IF(J15="-",0,J15) -> 6 | L15: 11 | M15: =IF(L15="-",0,L15) -> 11 | O15: =E15+G15+I15+K15+M15 -> 20 | P15: =MAX(D15,F15,H15,J15,L15) -> 11 | Q15: =IF(S15=1,O15,IF(S15=0,(O15-P15),"-")) -> - | R15: =COUNTIF(U15:AD15,"=TRUE") -> 3 | S15: =AE$1-R15 -> 2 | T15: =IF(S15<2,"Yes","No") -> No | U15: =IF(D15="-",1,0)*U$1 -> 1 | V15: =AND(U15=0,U$1=1) -> FALSE | W15: =IF(F15="-",1,0)*W$1 -> 0 | X15: =AND(W15=0,W$1=1) -> TRUE | Y15: =IF(H15="-",1,0)*Y$1 -> 1 | Z15: =AND(Y15=0,Y$1=1) -> FALSE | AA15: =IF(J15="-",1,0)*AA$1 -> 0 | AB15: =AND(AA15=0,AA$1=1) -> TRUE | AC15: =IF(L15="-",1,0)*AC$1 -> 0 | AD15: =AND(AC15=0,AC$1=1) -> TRUE
A16: 24 | B16: Fabien Faria | C16: Hastings High School | D16: 17 | E16: =IF(D16="-",0,D16) -> 17 | F16: 11 | G16: =IF(F16="-",0,F16) -> 11 | H16: 14 | I16: =IF(H16="-",0,H16) -> 14 | J16: 14 | K16: =IF(J16="-",0,J16) -> 14 | L16: 12 | M16: =IF(L16="-",0,L16) -> 12 | O16: =E16+G16+I16+K16+M16 -> 68 | P16: =MAX(D16,F16,H16,J16,L16) -> 17 | Q16: =IF(S16=1,O16,IF(S16=0,(O16-P16),"-")) -> 51 | R16: =COUNTIF(U16:AD16,"=TRUE") -> 5 | S16: =AE$1-R16 -> 0 | T16: =IF(S16<2,"Yes","No") -> Yes | U16: =IF(D16="-",1,0)*U$1 -> 0 | V16: =AND(U16=0,U$1=1) -> TRUE | W16: =IF(F16="-",1,0)*W$1 -> 0 | X16: =AND(W16=0,W$1=1) -> TRUE | Y16: =IF(H16="-",1,0)*Y$1 -> 0 | Z16: =AND(Y16=0,Y$1=1) -> TRUE | AA16: =IF(J16="-",1,0)*AA$1 -> 0 | AB16: =AND(AA16=0,AA$1=1) -> TRUE | AC16: =IF(L16="-",1,0)*AC$1 -> 0 | AD16: =AND(AC16=0,AC$1=1) -> TRUE
A17: 68 | B17: Matthew Hollingsworth | C17: Brookvale High School | D17: 10 | E17: =IF(D17="-",0,D17) -> 10 | F17: 30 | G17: =IF(F17="-",0,F17) -> 30 | H17: 11 | I17: =IF(H17="-",0,H17) -> 11 | J17: 16 | K17: =IF(J17="-",0,J17) -> 16 | L17: 13 | M17: =IF(L17="-",0,L17) -> 13 | O17: =E17+G17+I17+K17+M17 -> 80 | P17: =MAX(D17,F17,H17,J17,L17) -> 30 | Q17: =IF(S17=1,O17,IF(S17=0,(O17-P17),"-")) -> 50 | R17: =COUNTIF(U17:AD17,"=TRUE") -> 5 | S17: =AE$1-R17 -> 0 | T17: =IF(S17<2,"Yes","No") -> Yes | U17: =IF(D17="-",1,0)*U$1 -> 0 | V17: =AND(U17=0,U$1=1) -> TRUE | W17: =IF(F17="-",1,0)*W$1 -> 0 | X17: =AND(W17=0,W$1=1) -> TRUE | Y17: =IF(H17="-",1,0)*Y$1 -> 0 | Z17: =AND(Y17=0,Y$1=1) -> TRUE | AA17: =IF(J17="-",1,0)*AA$1 -> 0 | AB17: =AND(AA17=0,AA$1=1) -> TRUE | AC17: =IF(L17="-",1,0)*AC$1 -> 0 | AD17: =AND(AC17=0,AC$1=1) -> TRUE
A18: 62 | B18: Hisham Alkhamesi | C18: Hastings High School | D18: 27 | E18: =IF(D18="-",0,D18) -> 27 | F18: 27 | G18: =IF(F18="-",0,F18) -> 27 | H18: 22 | I18: =IF(H18="-",0,H18) -> 22 | J18: 22 | K18: =IF(J18="-",0,J18) -> 22 | L18: 14 | M18: =IF(L18="-",0,L18) -> 14 | O18: =E18+G18+I18+K18+M18 -> 112 | P18: =MAX(D18,F18,H18,J18,L18) -> 27 | Q18: =IF(S18=1,O18,IF(S18=0,(O18-P18),"-")) -> 85 | R18: =COUNTIF(U18:AD18,"=TRUE") -> 5 | S18: =AE$1-R18 -> 0 | T18: =IF(S18<2,"Yes","No") -> Yes | U18: =IF(D18="-",1,0)*U$1 -> 0 | V18: =AND(U18=0,U$1=1) -> TRUE | W18: =IF(F18="-",1,0)*W$1 -> 0 | X18: =AND(W18=0,W$1=1) -> TRUE | Y18: =IF(H18="-",1,0)*Y$1 -> 0 | Z18: =AND(Y18=0,Y$1=1) -> TRUE | AA18: =IF(J18="-",1,0)*AA$1 -> 0 | AB18: =AND(AA18=0,AA$1=1) -> TRUE | AC18: =IF(L18="-",1,0)*AC$1 -> 0 | AD18: =AND(AC18=0,AC$1=1) -> TRUE
A19: 105 | B19: Jake Lawson | C19: Uppingham CC | D19: - | E19: =IF(D19="-",0,D19) -> 0 | F19: - | G19: =IF(F19="-",0,F19) -> 0 | H19: - | I19: =IF(H19="-",0,H19) -> 0 | J19: - | K19: =IF(J19="-",0,J19) -> 0 | L19: 15 | M19: =IF(L19="-",0,L19) -> 15 | O19: =E19+G19+I19+K19+M19 -> 15 | P19: =MAX(D19,F19,H19,J19,L19) -> 15 | Q19: =IF(S19=1,O19,IF(S19=0,(O19-P19),"-")) -> - | R19: =COUNTIF(U19:AD19,"=TRUE") -> 1 | S19: =AE$1-R19 -> 4 | T19: =IF(S19<2,"Yes","No") -> No | U19: =IF(D19="-",1,0)*U$1 -> 1 | V19: =AND(U19=0,U$1=1) -> FALSE | W19: =IF(F19="-",1,0)*W$1 -> 1 | X19: =AND(W19=0,W$1=1) -> FALSE | Y19: =IF(H19="-",1,0)*Y$1 -> 1 | Z19: =AND(Y19=0,Y$1=1) -> FALSE | AA19: =IF(J19="-",1,0)*AA$1 -> 1 | AB19: =AND(AA19=0,AA$1=1) -> FALSE | AC19: =IF(L19="-",1,0)*AC$1 -> 0 | AD19: =AND(AC19=0,AC$1=1) -> TRUE
A20: 69 | B20: Ethan Hill | C20: Thomas Estley CC | D20: 26 | E20: =IF(D20="-",0,D20) -> 26 | F20: 22 | G20: =IF(F20="-",0,F20) -> 22 | H20: 21 | I20: =IF(H20="-",0,H20) -> 21 | J20: 17 | K20: =IF(J20="-",0,J20) -> 17 | L20: 16 | M20: =IF(L20="-",0,L20) -> 16 | O20: =E20+G20+I20+K20+M20 -> 102 | P20: =MAX(D20,F20,H20,J20,L20) -> 26 | Q20: =IF(S20=1,O20,IF(S20=0,(O20-P20),"-")) -> 76 | R20: =COUNTIF(U20:AD20,"=TRUE") -> 5 | S20: =AE$1-R20 -> 0 | T20: =IF(S20<2,"Yes","No") -> Yes | U20: =IF(D20="-",1,0)*U$1 -> 0 | V20: =AND(U20=0,U$1=1) -> TRUE | W20: =IF(F20="-",1,0)*W$1 -> 0 | X20: =AND(W20=0,W$1=1) -> TRUE | Y20: =IF(H20="-",1,0)*Y$1 -> 0 | Z20: =AND(Y20=0,Y$1=1) -> TRUE | AA20: =IF(J20="-",1,0)*AA$1 -> 0 | AB20: =AND(AA20=0,AA$1=1) -> TRUE | AC20: =IF(L20="-",1,0)*AC$1 -> 0 | AD20: =AND(AC20=0,AC$1=1) -> TRUE
A21: 78 | B21: Elliott Hodson | C21: Brookvale High School | D21: 29 | E21: =IF(D21="-",0,D21) -> 29 | F21: - | G21: =IF(F21="-",0,F21) -> 0 | H21: 13 | I21: =IF(H21="-",0,H21) -> 13 | J21: 23 | K21: =IF(J21="-",0,J21) -> 23 | L21: 17 | M21: =IF(L21="-",0,L21) -> 17 | O21: =E21+G21+I21+K21+M21 -> 82 | P21: =MAX(D21,F21,H21,J21,L21) -> 29 | Q21: =IF(S21=1,O21,IF(S21=0,(O21-P21),"-")) -> 82 | R21: =COUNTIF(U21:AD21,"=TRUE") -> 4 | S21: =AE$1-R21 -> 1 | T21: =IF(S21<2,"Yes","No") -> Yes | U21: =IF(D21="-",1,0)*U$1 -> 0 | V21: =AND(U21=0,U$1=1) -> TRUE | W21: =IF(F21="-",1,0)*W$1 -> 1 | X21: =AND(W21=0,W$1=1) -> FALSE | Y21: =IF(H21="-",1,0)*Y$1 -> 0 | Z21: =AND(Y21=0,Y$1=1) -> TRUE | AA21: =IF(J21="-",1,0)*AA$1 -> 0 | AB21: =AND(AA21=0,AA$1=1) -> TRUE | AC21: =IF(L21="-",1,0)*AC$1 -> 0 | AD21: =AND(AC21=0,AC$1=1) -> TRUE
A22: 4 | B22: Connor Paul | C22: Redmoor Academy | D22: 25 | E22: =IF(D22="-",0,D22) -> 25 | F22: 19 | G22: =IF(F22="-",0,F22) -> 19 | H22: 26 | I22: =IF(H22="-",0,H22) -> 26 | J22: 26 | K22: =IF(J22="-",0,J22) -> 26 | L22: 18 | M22: =IF(L22="-",0,L22) -> 18 | O22: =E22+G22+I22+K22+M22 -> 114 | P22: =MAX(D22,F22,H22,J22,L22) -> 26 | Q22: =IF(S22=1,O22,IF(S22=0,(O22-P22),"-")) -> 88 | R22: =COUNTIF(U22:AD22,"=TRUE") -> 5 | S22: =AE$1-R22 -> 0 | T22: =IF(S22<2,"Yes","No") -> Yes | U22: =IF(D22="-",1,0)*U$1 -> 0 | V22: =AND(U22=0,U$1=1) -> TRUE | W22: =IF(F22="-",1,0)*W$1 -> 0 | X22: =AND(W22=0,W$1=1) -> TRUE | Y22: =IF(H22="-",1,0)*Y$1 -> 0 | Z22: =AND(Y22=0,Y$1=1) -> TRUE | AA22: =IF(J22="-",1,0)*AA$1 -> 0 | AB22: =AND(AA22=0,AA$1=1) -> TRUE | AC22: =IF(L22="-",1,0)*AC$1 -> 0 | AD22: =AND(AC22=0,AC$1=1) -> TRUE
A23: 85 | B23: Sandy Jarvis | C23: Loughborough Grammar School | D23: 18 | E23: =IF(D23="-",0,D23) -> 18 | F23: - | G23: =IF(F23="-",0,F23) -> 0 | H23: 15 | I23: =IF(H23="-",0,H23) -> 15 | J23: 27 | K23: =IF(J23="-",0,J23) -> 27 | L23: 19 | M23: =IF(L23="-",0,L23) -> 19 | O23: =E23+G23+I23+K23+M23 -> 79 | P23: =MAX(D23,F23,H23,J23,L23) -> 27 | Q23: =IF(S23=1,O23,IF(S23=0,(O23-P23),"-")) -> 79 | R23: =COUNTIF(U23:AD23,"=TRUE") -> 4 | S23: =AE$1-R23 -> 1 | T23: =IF(S23<2,"Yes","No") -> Yes | U23: =IF(D23="-",1,0)*U$1 -> 0 | V23: =AND(U23=0,U$1=1) -> TRUE | W23: =IF(F23="-",1,0)*W$1 -> 1 | X23: =AND(W23=0,W$1=1) -> FALSE | Y23: =IF(H23="-",1,0)*Y$1 -> 0 | Z23: =AND(Y23=0,Y$1=1) -> TRUE | AA23: =IF(J23="-",1,0)*AA$1 -> 0 | AB23: =AND(AA23=0,AA$1=1) -> TRUE | AC23: =IF(L23="-",1,0)*AC$1 -> 0 | AD23: =AND(AC23=0,AC$1=1) -> TRUE
A24: 64 | B24: Lewis Neale | C24: Thomas Estley CC | D24: - | E24: =IF(D24="-",0,D24) -> 0 | F24: - | G24: =IF(F24="-",0,F24) -> 0 | H24: 18 | I24: =IF(H24="-",0,H24) -> 18 | J24: - | K24: =IF(J24="-",0,J24) -> 0 | L24: 20 | M24: =IF(L24="-",0,L24) -> 20 | O24: =E24+G24+I24+K24+M24 -> 38 | P24: =MAX(D24,F24,H24,J24,L24) -> 20 | Q24: =IF(S24=1,O24,IF(S24=0,(O24-P24),"-")) -> - | R24: =COUNTIF(U24:AD24,"=TRUE") -> 2 | S24: =AE$1-R24 -> 3 | T24: =IF(S24<2,"Yes","No") -> No | U24: =IF(D24="-",1,0)*U$1 -> 1 | V24: =AND(U24=0,U$1=1) -> FALSE | W24: =IF(F24="-",1,0)*W$1 -> 1 | X24: =AND(W24=0,W$1=1) -> FALSE | Y24: =IF(H24="-",1,0)*Y$1 -> 0 | Z24: =AND(Y24=0,Y$1=1) -> TRUE | AA24: =IF(J24="-",1,0)*AA$1 -> 1 | AB24: =AND(AA24=0,AA$1=1) -> FALSE | AC24: =IF(L24="-",1,0)*AC$1 -> 0 | AD24: =AND(AC24=0,AC$1=1) -> TRUE
A25: 94 | B25: Jo Waters | C25: Loughborough Grammar School | D25: 22 | E25: =IF(D25="-",0,D25) -> 22 | F25: 20 | G25: =IF(F25="-",0,F25) -> 20 | H25: - | I25: =IF(H25="-",0,H25) -> 0 | J25: - | K25: =IF(J25="-",0,J25) -> 0 | L25: 21 | M25: =IF(L25="-",0,L25) -> 21 | O25: =E25+G25+I25+K25+M25 -> 63 | P25: =MAX(D25,F25,H25,J25,L25) -> 22 | Q25: =IF(S25=1,O25,IF(S25=0,(O25-P25),"-")) -> - | R25: =COUNTIF(U25:AD25,"=TRUE") -> 3 | S25: =AE$1-R25 -> 2 | T25: =IF(S25<2,"Yes","No") -> No | U25: =IF(D25="-",1,0)*U$1 -> 0 | V25: =AND(U25=0,U$1=1) -> TRUE | W25: =IF(F25="-",1,0)*W$1 -> 0 | X25: =AND(W25=0,W$1=1) -> TRUE | Y25: =IF(H25="-",1,0)*Y$1 -> 1 | Z25: =AND(Y25=0,Y$1=1) -> FALSE | AA25: =IF(J25="-",1,0)*AA$1 -> 1 | AB25: =AND(AA25=0,AA$1=1) -> FALSE | AC25: =IF(L25="-",1,0)*AC$1 -> 0 | AD25: =AND(AC25=0,AC$1=1) -> TRUE
A26: 96 | B26: Ben Hyde | C26: Uppingham CC | D26: - | E26: =IF(D26="-",0,D26) -> 0 | F26: - | G26: =IF(F26="-",0,F26) -> 0 | H26: 20 | I26: =IF(H26="-",0,H26) -> 20 | J26: 24 | K26: =IF(J26="-",0,J26) -> 24 | L26: 22 | M26: =IF(L26="-",0,L26) -> 22 | O26: =E26+G26+I26+K26+M26 -> 66 | P26: =MAX(D26,F26,H26,J26,L26) -> 24 | Q26: =IF(S26=1,O26,IF(S26=0,(O26-P26),"-")) -> - | R26: =COUNTIF(U26:AD26,"=TRUE") -> 3 | S26: =AE$1-R26 -> 2 | T26: =IF(S26<2,"Yes","No") -> No | U26: =IF(D26="-",1,0)*U$1 -> 1 | V26: =AND(U26=0,U$1=1) -> FALSE | W26: =IF(F26="-",1,0)*W$1 -> 1 | X26: =AND(W26=0,W$1=1) -> FALSE | Y26: =IF(H26="-",1,0)*Y$1 -> 0 | Z26: =AND(Y26=0,Y$1=1) -> TRUE | AA26: =IF(J26="-",1,0)*AA$1 -> 0 | AB26: =AND(AA26=0,AA$1=1) -> TRUE | AC26: =IF(L26="-",1,0)*AC$1 -> 0 | AD26: =AND(AC26=0,AC$1=1) -> TRUE
A27: 17 | B27: Josh Smith | C27: Brookvale High School | D27: 42 | E27: =IF(D27="-",0,D27) -> 42 | F27: 24 | G27: =IF(F27="-",0,F27) -> 24 | H27: 16 | I27: =IF(H27="-",0,H27) -> 16 | J27: 13 | K27: =IF(J27="-",0,J27) -> 13 | L27: 23 | M27: =IF(L27="-",0,L27) -> 23 | O27: =E27+G27+I27+K27+M27 -> 118 | P27: =MAX(D27,F27,H27,J27,L27) -> 42 | Q27: =IF(S27=1,O27,IF(S27=0,(O27-P27),"-")) -> 76 | R27: =COUNTIF(U27:AD27,"=TRUE") -> 5 | S27: =AE$1-R27 -> 0 | T27: =IF(S27<2,"Yes","No") -> Yes | U27: =IF(D27="-",1,0)*U$1 -> 0 | V27: =AND(U27=0,U$1=1) -> TRUE | W27: =IF(F27="-",1,0)*W$1 -> 0 | X27: =AND(W27=0,W$1=1) -> TRUE | Y27: =IF(H27="-",1,0)*Y$1 -> 0 | Z27: =AND(Y27=0,Y$1=1) -> TRUE | AA27: =IF(J27="-",1,0)*AA$1 -> 0 | AB27: =AND(AA27=0,AA$1=1) -> TRUE | AC27: =IF(L27="-",1,0)*AC$1 -> 0 | AD27: =AND(AC27=0,AC$1=1) -> TRUE
A28: 102 | B28: Alex Villamanti | C28: Welland Park Academy | D28: - | E28: =IF(D28="-",0,D28) -> 0 | F28: - | G28: =IF(F28="-",0,F28) -> 0 | H28: - | I28: =IF(H28="-",0,H28) -> 0 | J28: 25 | K28: =IF(J28="-",0,J28) -> 25 | L28: 24 | M28: =IF(L28="-",0,L28) -> 24 | O28: =E28+G28+I28+K28+M28 -> 49 | P28: =MAX(D28,F28,H28,J28,L28) -> 25 | Q28: =IF(S28=1,O28,IF(S28=0,(O28-P28),"-")) -> - | R28: =COUNTIF(U28:AD28,"=TRUE") -> 2 | S28: =AE$1-R28 -> 3 | T28: =IF(S28<2,"Yes","No") -> No | U28: =IF(D28="-",1,0)*U$1 -> 1 | V28: =AND(U28=0,U$1=1) -> FALSE | W28: =IF(F28="-",1,0)*W$1 -> 1 | X28: =AND(W28=0,W$1=1) -> FALSE | Y28: =IF(H28="-",1,0)*Y$1 -> 1 | Z28: =AND(Y28=0,Y$1=1) -> FALSE | AA28: =IF(J28="-",1,0)*AA$1 -> 0 | AB28: =AND(AA28=0,AA$1=1) -> TRUE | AC28: =IF(L28="-",1,0)*AC$1 -> 0 | AD28: =AND(AC28=0,AC$1=1) -> TRUE
A29: 81 | B29: Jack Roe | C29: Ivanhoe College | D29: 16 | E29: =IF(D29="-",0,D29) -> 16 | F29: - | G29: =IF(F29="-",0,F29) -> 0 | H29: 24 | I29: =IF(H29="-",0,H29) -> 24 | J29: 31 | K29: =IF(J29="-",0,J29) -> 31 | L29: 25 | M29: =IF(L29="-",0,L29) -> 25 | O29: =E29+G29+I29+K29+M29 -> 96 | P29: =MAX(D29,F29,H29,J29,L29) -> 31 | Q29: =IF(S29=1,O29,IF(S29=0,(O29-P29),"-")) -> 96 | R29: =COUNTIF(U29:AD29,"=TRUE") -> 4 | S29: =AE$1-R29 -> 1 | T29: =IF(S29<2,"Yes","No") -> Yes | U29: =IF(D29="-",1,0)*U$1 -> 0 | V29: =AND(U29=0,U$1=1) -> TRUE | W29: =IF(F29="-",1,0)*W$1 -> 1 | X29: =AND(W29=0,W$1=1) -> FALSE | Y29: =IF(H29="-",1,0)*Y$1 -> 0 | Z29: =AND(Y29=0,Y$1=1) -> TRUE | AA29: =IF(J29="-",1,0)*AA$1 -> 0 | AB29: =AND(AA29=0,AA$1=1) -> TRUE | AC29: =IF(L29="-",1,0)*AC$1 -> 0 | AD29: =AND(AC29=0,AC$1=1) -> TRUE
A30: 90 | B30: Gabriel Hurst | C30: De Lisle College | D30: 48 | E30: =IF(D30="-",0,D30) -> 48 | F30: 40 | G30: =IF(F30="-",0,F30) -> 40 | H30: 34 | I30: =IF(H30="-",0,H30) -> 34 | J30: 28 | K30: =IF(J30="-",0,J30) -> 28 | L30: 26 | M30: =IF(L30="-",0,L30) -> 26 | O30: =E30+G30+I30+K30+M30 -> 176 | P30: =MAX(D30,F30,H30,J30,L30) -> 48 | Q30: =IF(S30=1,O30,IF(S30=0,(O30-P30),"-")) -> 128 | R30: =COUNTIF(U30:AD30,"=TRUE") -> 5 | S30: =AE$1-R30 -> 0 | T30: =IF(S30<2,"Yes","No") -> Yes | U30: =IF(D30="-",1,0)*U$1 -> 0 | V30: =AND(U30=0,U$1=1) -> TRUE | W30: =IF(F30="-",1,0)*W$1 -> 0 | X30: =AND(W30=0,W$1=1) -> TRUE | Y30: =IF(H30="-",1,0)*Y$1 -> 0 | Z30: =AND(Y30=0,Y$1=1) -> TRUE | AA30: =IF(J30="-",1,0)*AA$1 -> 0 | AB30: =AND(AA30=0,AA$1=1) -> TRUE | AC30: =IF(L30="-",1,0)*AC$1 -> 0 | AD30: =AND(AC30=0,AC$1=1) -> TRUE
A31: 16 | B31: Matthew Hull | C31: Loughborough Grammar School | D31: 21 | E31: =IF(D31="-",0,D31) -> 21 | F31: 33 | G31: =IF(F31="-",0,F31) -> 33 | H31: - | I31: =IF(H31="-",0,H31) -> 0 | J31: - | K31: =IF(J31="-",0,J31) -> 0 | L31: 27 | M31: =IF(L31="-",0,L31) -> 27 | O31: =E31+G31+I31+K31+M31 -> 81 | P31: =MAX(D31,F31,H31,J31,L31) -> 33 | Q31: =IF(S31=1,O31,IF(S31=0,(O31-P31),"-")) -> - | R31: =COUNTIF(U31:AD31,"=TRUE") -> 3 | S31: =AE$1-R31 -> 2 | T31: =IF(S31<2,"Yes","No") -> No | U31: =IF(D31="-",1,0)*U$1 -> 0 | V31: =AND(U31=0,U$1=1) -> TRUE | W31: =IF(F31="-",1,0)*W$1 -> 0 | X31: =AND(W31=0,W$1=1) -> TRUE | Y31: =IF(H31="-",1,0)*Y$1 -> 1 | Z31: =AND(Y31=0,Y$1=1) -> FALSE | AA31: =IF(J31="-",1,0)*AA$1 -> 1 | AB31: =AND(AA31=0,AA$1=1) -> FALSE | AC31: =IF(L31="-",1,0)*AC$1 -> 0 | AD31: =AND(AC31=0,AC$1=1) -> TRUE
A32: 73 | B32: Sam Cattell | C32: De Lisle College | D32: - | E32: =IF(D32="-",0,D32) -> 0 | F32: 17 | G32: =IF(F32="-",0,F32) -> 17 | H32: 17 | I32: =IF(H32="-",0,H32) -> 17 | J32: 18 | K32: =IF(J32="-",0,J32) -> 18 | L32: 28 | M32: =IF(L32="-",0,L32) -> 28 | O32: =E32+G32+I32+K32+M32 -> 80 | P32: =MAX(D32,F32,H32,J32,L32) -> 28 | Q32: =IF(S32=1,O32,IF(S32=0,(O32-P32),"-")) -> 80 | R32: =COUNTIF(U32:AD32,"=TRUE") -> 4 | S32: =AE$1-R32 -> 1 | T32: =IF(S32<2,"Yes","No") -> Yes | U32: =IF(D32="-",1,0)*U$1 -> 1 | V32: =AND(U32=0,U$1=1) -> FALSE | W32: =IF(F32="-",1,0)*W$1 -> 0 | X32: =AND(W32=0,W$1=1) -> TRUE | Y32: =IF(H32="-",1,0)*Y$1 -> 0 | Z32: =AND(Y32=0,Y$1=1) -> TRUE | AA32: =IF(J32="-",1,0)*AA$1 -> 0 | AB32: =AND(AA32=0,AA$1=1) -> TRUE | AC32: =IF(L32="-",1,0)*AC$1 -> 0 | AD32: =AND(AC32=0,AC$1=1) -> TRUE
A33: 104 | B33: Toby Brightman | C33: Shepshed High School | D33: - | E33: =IF(D33="-",0,D33) -> 0 | F33: - | G33: =IF(F33="-",0,F33) -> 0 | H33: - | I33: =IF(H33="-",0,H33) -> 0 | J33: - | K33: =IF(J33="-",0,J33) -> 0 | L33: 29 | M33: =IF(L33="-",0,L33) -> 29 | O33: =E33+G33+I33+K33+M33 -> 29 | P33: =MAX(D33,F33,H33,J33,L33) -> 29 | Q33: =IF(S33=1,O33,IF(S33=0,(O33-P33),"-")) -> - | R33: =COUNTIF(U33:AD33,"=TRUE") -> 1 | S33: =AE$1-R33 -> 4 | T33: =IF(S33<2,"Yes","No") -> No | U33: =IF(D33="-",1,0)*U$1 -> 1 | V33: =AND(U33=0,U$1=1) -> FALSE | W33: =IF(F33="-",1,0)*W$1 -> 1 | X33: =AND(W33=0,W$1=1) -> FALSE | Y33: =IF(H33="-",1,0)*Y$1 -> 1 | Z33: =AND(Y33=0,Y$1=1) -> FALSE | AA33: =IF(J33="-",1,0)*AA$1 -> 1 | AB33: =AND(AA33=0,AA$1=1) -> FALSE | AC33: =IF(L33="-",1,0)*AC$1 -> 0 | AD33: =AND(AC33=0,AC$1=1) -> TRUE
A34: 48 | B34: Dominic Powell | C34: Welland Park Academy | D34: 45 | E34: =IF(D34="-",0,D34) -> 45 | F34: 32 | G34: =IF(F34="-",0,F34) -> 32 | H34: 36 | I34: =IF(H34="-",0,H34) -> 36 | J34: - | K34: =IF(J34="-",0,J34) -> 0 | L34: 30 | M34: =IF(L34="-",0,L34) -> 30 | O34: =E34+G34+I34+K34+M34 -> 143 | P34: =MAX(D34,F34,H34,J34,L34) -> 45 | Q34: =IF(S34=1,O34,IF(S34=0,(O34-P34),"-")) -> 143 | R34: =COUNTIF(U34:AD34,"=TRUE") -> 4 | S34: =AE$1-R34 -> 1 | T34: =IF(S34<2,"Yes","No") -> Yes | U34: =IF(D34="-",1,0)*U$1 -> 0 | V34: =AND(U34=0,U$1=1) -> TRUE | W34: =IF(F34="-",1,0)*W$1 -> 0 | X34: =AND(W34=0,W$1=1) -> TRUE | Y34: =IF(H34="-",1,0)*Y$1 -> 0 | Z34: =AND(Y34=0,Y$1=1) -> TRUE | AA34: =IF(J34="-",1,0)*AA$1 -> 1 | AB34: =AND(AA34=0,AA$1=1) -> FALSE | AC34: =IF(L34="-",1,0)*AC$1 -> 0 | AD34: =AND(AC34=0,AC$1=1) -> TRUE
A35: 27 | B35: Ethan Williams | C35: Brockington College | D35: 30 | E35: =IF(D35="-",0,D35) -> 30 | F35: 28 | G35: =IF(F35="-",0,F35) -> 28 | H35: 40 | I35: =IF(H35="-",0,H35) -> 40 | J35: 36 | K35: =IF(J35="-",0,J35) -> 36 | L35: 31 | M35: =IF(L35="-",0,L35) -> 31 | O35: =E35+G35+I35+K35+M35 -> 165 | P35: =MAX(D35,F35,H35,J35,L35) -> 40 | Q35: =IF(S35=1,O35,IF(S35=0,(O35-P35),"-")) -> 125 | R35: =COUNTIF(U35:AD35,"=TRUE") -> 5 | S35: =AE$1-R35 -> 0 | T35: =IF(S35<2,"Yes","No") -> Yes | U35: =IF(D35="-",1,0)*U$1 -> 0 | V35: =AND(U35=0,U$1=1) -> TRUE | W35: =IF(F35="-",1,0)*W$1 -> 0 | X35: =AND(W35=0,W$1=1) -> TRUE | Y35: =IF(H35="-",1,0)*Y$1 -> 0 | Z35: =AND(Y35=0,Y$1=1) -> TRUE | AA35: =IF(J35="-",1,0)*AA$1 -> 0 | AB35: =AND(AA35=0,AA$1=1) -> TRUE | AC35: =IF(L35="-",1,0)*AC$1 -> 0 | AD35: =AND(AC35=0,AC$1=1) -> TRUE
A36: 37 | B36: Patrick Frobisher | C36: De Lisle College | D36: 39 | E36: =IF(D36="-",0,D36) -> 39 | F36: - | G36: =IF(F36="-",0,F36) -> 0 | H36: - | I36: =IF(H36="-",0,H36) -> 0 | J36: - | K36: =IF(J36="-",0,J36) -> 0 | L36: 32 | M36: =IF(L36="-",0,L36) -> 32 | O36: =E36+G36+I36+K36+M36 -> 71 | P36: =MAX(D36,F36,H36,J36,L36) -> 39 | Q36: =IF(S36=1,O36,IF(S36=0,(O36-P36),"-")) -> - | R36: =COUNTIF(U36:AD36,"=TRUE") -> 2 | S36: =AE$1-R36 -> 3 | T36: =IF(S36<2,"Yes","No") -> No | U36: =IF(D36="-",1,0)*U$1 -> 0 | V36: =AND(U36=0,U$1=1) -> TRUE | W36: =IF(F36="-",1,0)*W$1 -> 1 | X36: =AND(W36=0,W$1=1) -> FALSE | Y36: =IF(H36="-",1,0)*Y$1 -> 1 | Z36: =AND(Y36=0,Y$1=1) -> FALSE | AA36: =IF(J36="-",1,0)*AA$1 -> 1 | AB36: =AND(AA36=0,AA$1=1) -> FALSE | AC36: =IF(L36="-",1,0)*AC$1 -> 0 | AD36: =AND(AC36=0,AC$1=1) -> TRUE
A37: 26 | B37: Rakib Chowdhury | C37: Crown Hills CC | D37: 53 | E37: =IF(D37="-",0,D37) -> 53 | F37: 31 | G37: =IF(F37="-",0,F37) -> 31 | H37: 33 | I37: =IF(H37="-",0,H37) -> 33 | J37: - | K37: =IF(J37="-",0,J37) -> 0 | L37: 33 | M37: =IF(L37="-",0,L37) -> 33 | O37: =E37+G37+I37+K37+M37 -> 150 | P37: =MAX(D37,F37,H37,J37,L37) -> 53 | Q37: =IF(S37=1,O37,IF(S37=0,(O37-P37),"-")) -> 150 | R37: =COUNTIF(U37:AD37,"=TRUE") -> 4 | S37: =AE$1-R37 -> 1 | T37: =IF(S37<2,"Yes","No") -> Yes | U37: =IF(D37="-",1,0)*U$1 -> 0 | V37: =AND(U37=0,U$1=1) -> TRUE | W37: =IF(F37="-",1,0)*W$1 -> 0 | X37: =AND(W37=0,W$1=1) -> TRUE | Y37: =IF(H37="-",1,0)*Y$1 -> 0 | Z37: =AND(Y37=0,Y$1=1) -> TRUE | AA37: =IF(J37="-",1,0)*AA$1 -> 1 | AB37: =AND(AA37=0,AA$1=1) -> FALSE | AC37: =IF(L37="-",1,0)*AC$1 -> 0 | AD37: =AND(AC37=0,AC$1=1) -> TRUE
A38: 12 | B38: Eden Harrison | C38: Castle Rock High School | D38: 41 | E38: =IF(D38="-",0,D38) -> 41 | F38: 42 | G38: =IF(F38="-",0,F38) -> 42 | H38: 39 | I38: =IF(H38="-",0,H38) -> 39 | J38: 38 | K38: =IF(J38="-",0,J38) -> 38 | L38: 34 | M38: =IF(L38="-",0,L38) -> 34 | O38: =E38+G38+I38+K38+M38 -> 194 | P38: =MAX(D38,F38,H38,J38,L38) -> 42 | Q38: =IF(S38=1,O38,IF(S38=0,(O38-P38),"-")) -> 152 | R38: =COUNTIF(U38:AD38,"=TRUE") -> 5 | S38: =AE$1-R38 -> 0 | T38: =IF(S38<2,"Yes","No") -> Yes | U38: =IF(D38="-",1,0)*U$1 -> 0 | V38: =AND(U38=0,U$1=1) -> TRUE | W38: =IF(F38="-",1,0)*W$1 -> 0 | X38: =AND(W38=0,W$1=1) -> TRUE | Y38: =IF(H38="-",1,0)*Y$1 -> 0 | Z38: =AND(Y38=0,Y$1=1) -> TRUE | AA38: =IF(J38="-",1,0)*AA$1 -> 0 | AB38: =AND(AA38=0,AA$1=1) -> TRUE | AC38: =IF(L38="-",1,0)*AC$1 -> 0 | AD38: =AND(AC38=0,AC$1=1) -> TRUE
A39: 92 | B39: William Deely | C39: Uppingham CC | D39: 47 | E39: =IF(D39="-",0,D39) -> 47 | F39: 44 | G39: =IF(F39="-",0,F39) -> 44 | H39: 42 | I39: =IF(H39="-",0,H39) -> 42 | J39: 40 | K39: =IF(J39="-",0,J39) -> 40 | L39: 35 | M39: =IF(L39="-",0,L39) -> 35 | O39: =E39+G39+I39+K39+M39 -> 208 | P39: =MAX(D39,F39,H39,J39,L39) -> 47 | Q39: =IF(S39=1,O39,IF(S39=0,(O39-P39),"-")) -> 161 | R39: =COUNTIF(U39:AD39,"=TRUE") -> 5 | S39: =AE$1-R39 -> 0 | T39: =IF(S39<2,"Yes","No") -> Yes | U39: =IF(D39="-",1,0)*U$1 -> 0 | V39: =AND(U39=0,U$1=1) -> TRUE | W39: =IF(F39="-",1,0)*W$1 -> 0 | X39: =AND(W39=0,W$1=1) -> TRUE | Y39: =IF(H39="-",1,0)*Y$1 -> 0 | Z39: =AND(Y39=0,Y$1=1) -> TRUE | AA39: =IF(J39="-",1,0)*AA$1 -> 0 | AB39: =AND(AA39=0,AA$1=1) -> TRUE | AC39: =IF(L39="-",1,0)*AC$1 -> 0 | AD39: =AND(AC39=0,AC$1=1) -> TRUE
A40: 103 | B40: Charlie Laundon | C40: Brookvale High School | D40: - | E40: =IF(D40="-",0,D40) -> 0 | F40: - | G40: =IF(F40="-",0,F40) -> 0 | H40: - | I40: =IF(H40="-",0,H40) -> 0 | J40: 37 | K40: =IF(J40="-",0,J40) -> 37 | L40: 36 | M40: =IF(L40="-",0,L40) -> 36 | O40: =E40+G40+I40+K40+M40 -> 73 | P40: =MAX(D40,F40,H40,J40,L40) -> 37 | Q40: =IF(S40=1,O40,IF(S40=0,(O40-P40),"-")) -> - | R40: =COUNTIF(U40:AD40,"=TRUE") -> 2 | S40: =AE$1-R40 -> 3 | T40: =IF(S40<2,"Yes","No") -> No | U40: =IF(D40="-",1,0)*U$1 -> 1 | V40: =AND(U40=0,U$1=1) -> FALSE | W40: =IF(F40="-",1,0)*W$1 -> 1 | X40: =AND(W40=0,W$1=1) -> FALSE | Y40: =IF(H40="-",1,0)*Y$1 -> 1 | Z40: =AND(Y40=0,Y$1=1) -> FALSE | AA40: =IF(J40="-",1,0)*AA$1 -> 0 | AB40: =AND(AA40=0,AA$1=1) -> TRUE | AC40: =IF(L40="-",1,0)*AC$1 -> 0 | AD40: =AND(AC40=0,AC$1=1) -> TRUE
A41: 80 | B41: Barnaby Smith | C41: Uppingham CC | D41: - | E41: =IF(D41="-",0,D41) -> 0 | F41: 47 | G41: =IF(F41="-",0,F41) -> 47 | H41: - | I41: =IF(H41="-",0,H41) -> 0 | J41: - | K41: =IF(J41="-",0,J41) -> 0 | L41: 37 | M41: =IF(L41="-",0,L41) -> 37 | O41: =E41+G41+I41+K41+M41 -> 84 | P41: =MAX(D41,F41,H41,J41,L41) -> 47 | Q41: =IF(S41=1,O41,IF(S41=0,(O41-P41),"-")) -> - | R41: =COUNTIF(U41:AD41,"=TRUE") -> 2 | S41: =AE$1-R41 -> 3 | T41: =IF(S41<2,"Yes","No") -> No | U41: =IF(D41="-",1,0)*U$1 -> 1 | V41: =AND(U41=0,U$1=1) -> FALSE | W41: =IF(F41="-",1,0)*W$1 -> 0 | X41: =AND(W41=0,W$1=1) -> TRUE | Y41: =IF(H41="-",1,0)*Y$1 -> 1 | Z41: =AND(Y41=0,Y$1=1) -> FALSE | AA41: =IF(J41="-",1,0)*AA$1 -> 1 | AB41: =AND(AA41=0,AA$1=1) -> FALSE | AC41: =IF(L41="-",1,0)*AC$1 -> 0 | AD41: =AND(AC41=0,AC$1=1) -> TRUE
A42: 60 | B42: David McCabe | C42: De Lisle College | D42: 52 | E42: =IF(D42="-",0,D42) -> 52 | F42: 48 | G42: =IF(F42="-",0,F42) -> 48 | H42: 41 | I42: =IF(H42="-",0,H42) -> 41 | J42: - | K42: =IF(J42="-",0,J42) -> 0 | L42: 38 | M42: =IF(L42="-",0,L42) -> 38 | O42: =E42+G42+I42+K42+M42 -> 179 | P42: =MAX(D42,F42,H42,J42,L42) -> 52 | Q42: =IF(S42=1,O42,IF(S42=0,(O42-P42),"-")) -> 179 | R42: =COUNTIF(U42:AD42,"=TRUE") -> 4 | S42: =AE$1-R42 -> 1 | T42: =IF(S42<2,"Yes","No") -> Yes | U42: =IF(D42="-",1,0)*U$1 -> 0 | V42: =AND(U42=0,U$1=1) -> TRUE | W42: =IF(F42="-",1,0)*W$1 -> 0 | X42: =AND(W42=0,W$1=1) -> TRUE | Y42: =IF(H42="-",1,0)*Y$1 -> 0 | Z42: =AND(Y42=0,Y$1=1) -> TRUE | AA42: =IF(J42="-",1,0)*AA$1 -> 1 | AB42: =AND(AA42=0,AA$1=1) -> FALSE | AC42: =IF(L42="-",1,0)*AC$1 -> 0 | AD42: =AND(AC42=0,AC$1=1) -> TRUE
A43: 66 | B43: Tadhg Hinds | C43: St Pauls Catholic School | D43: 55 | E43: =IF(D43="-",0,D43) -> 55 | F43: 49 | G43: =IF(F43="-",0,F43) -> 49 | H43: - | I43: =IF(H43="-",0,H43) -> 0 | J43: 35 | K43: =IF(J43="-",0,J43) -> 35 | L43: 39 | M43: =IF(L43="-",0,L43) -> 39 | O43: =E43+G43+I43+K43+M43 -> 178 | P43: =MAX(D43,F43,H43,J43,L43) -> 55 | Q43: =IF(S43=1,O43,IF(S43=0,(O43-P43),"-")) -> 178 | R43: =COUNTIF(U43:AD43,"=TRUE") -> 4 | S43: =AE$1-R43 -> 1 | T43: =IF(S43<2,"Yes","No") -> Yes | U43: =IF(D43="-",1,0)*U$1 -> 0 | V43: =AND(U43=0,U$1=1) -> TRUE | W43: =IF(F43="-",1,0)*W$1 -> 0 | X43: =AND(W43=0,W$1=1) -> TRUE | Y43: =IF(H43="-",1,0)*Y$1 -> 1 | Z43: =AND(Y43=0,Y$1=1) -> FALSE | AA43: =IF(J43="-",1,0)*AA$1 -> 0 | AB43: =AND(AA43=0,AA$1=1) -> TRUE | AC43: =IF(L43="-",1,0)*AC$1 -> 0 | AD43: =AND(AC43=0,AC$1=1) -> TRUE
A44: 44 | B44: Mitesh Solanki | C44: Crown Hills CC | D44: 62 | E44: =IF(D44="-",0,D44) -> 62 | F44: 62 | G44: =IF(F44="-",0,F44) -> 62 | H44: 49 | I44: =IF(H44="-",0,H44) -> 49 | J44: 46 | K44: =IF(J44="-",0,J44) -> 46 | L44: 40 | M44: =IF(L44="-",0,L44) -> 40 | O44: =E44+G44+I44+K44+M44 -> 259 | P44: =MAX(D44,F44,H44,J44,L44) -> 62 | Q44: =IF(S44=1,O44,IF(S44=0,(O44-P44),"-")) -> 197 | R44: =COUNTIF(U44:AD44,"=TRUE") -> 5 | S44: =AE$1-R44 -> 0 | T44: =IF(S44<2,"Yes","No") -> Yes | U44: =IF(D44="-",1,0)*U$1 -> 0 | V44: =AND(U44=0,U$1=1) -> TRUE | W44: =IF(F44="-",1,0)*W$1 -> 0 | X44: =AND(W44=0,W$1=1) -> TRUE | Y44: =IF(H44="-",1,0)*Y$1 -> 0 | Z44: =AND(Y44=0,Y$1=1) -> TRUE | AA44: =IF(J44="-",1,0)*AA$1 -> 0 | AB44: =AND(AA44=0,AA$1=1) -> TRUE | AC44: =IF(L44="-",1,0)*AC$1 -> 0 | AD44: =AND(AC44=0,AC$1=1) -> TRUE
A45: 71 | B45: Damian Anand | C45: St Pauls Catholic School | D45: - | E45: =IF(D45="-",0,D45) -> 0 | F45: - | G45: =IF(F45="-",0,F45) -> 0 | H45: 10 | I45: =IF(H45="-",0,H45) -> 10 | J45: 11 | K45: =IF(J45="-",0,J45) -> 11 | L45: - | M45: =IF(L45="-",0,L45) -> 0 | O45: =E45+G45+I45+K45+M45 -> 21 | P45: =MAX(D45,F45,H45,J45,L45) -> 11 | Q45: =IF(S45=1,O45,IF(S45=0,(O45-P45),"-")) -> - | R45: =COUNTIF(U45:AD45,"=TRUE") -> 2 | S45: =AE$1-R45 -> 3 | T45: =IF(S45<2,"Yes","No") -> No | U45: =IF(D45="-",1,0)*U$1 -> 1 | V45: =AND(U45=0,U$1=1) -> FALSE | W45: =IF(F45="-",1,0)*W$1 -> 1 | X45: =AND(W45=0,W$1=1) -> FALSE | Y45: =IF(H45="-",1,0)*Y$1 -> 0 | Z45: =AND(Y45=0,Y$1=1) -> TRUE | AA45: =IF(J45="-",1,0)*AA$1 -> 0 | AB45: =AND(AA45=0,AA$1=1) -> TRUE | AC45: =IF(L45="-",1,0)*AC$1 -> 1 | AD45: =AND(AC45=0,AC$1=1) -> FALSE
A46: 45 | B46: Oli Winder | C46: Lutterworth High School | D46: 9 | E46: =IF(D46="-",0,D46) -> 9 | F46: 6 | G46: =IF(F46="-",0,F46) -> 6 | H46: 19 | I46: =IF(H46="-",0,H46) -> 19 | J46: 15 | K46: =IF(J46="-",0,J46) -> 15 | L46: - | M46: =IF(L46="-",0,L46) -> 0 | O46: =E46+G46+I46+K46+M46 -> 49 | P46: =MAX(D46,F46,H46,J46,L46) -> 19 | Q46: =IF(S46=1,O46,IF(S46=0,(O46-P46),"-")) -> 49 | R46: =COUNTIF(U46:AD46,"=TRUE") -> 4 | S46: =AE$1-R46 -> 1 | T46: =IF(S46<2,"Yes","No") -> Yes | U46: =IF(D46="-",1,0)*U$1 -> 0 | V46: =AND(U46=0,U$1=1) -> TRUE | W46: =IF(F46="-",1,0)*W$1 -> 0 | X46: =AND(W46=0,W$1=1) -> TRUE | Y46: =IF(H46="-",1,0)*Y$1 -> 0 | Z46: =AND(Y46=0,Y$1=1) -> TRUE | AA46: =IF(J46="-",1,0)*AA$1 -> 0 | AB46: =AND(AA46=0,AA$1=1) -> TRUE | AC46: =IF(L46="-",1,0)*AC$1 -> 1 | AD46: =AND(AC46=0,AC$1=1) -> FALSE
A47: 100 | B47: Lewis Moore | C47: Thomas Estley CC | D47: - | E47: =IF(D47="-",0,D47) -> 0 | F47: - | G47: =IF(F47="-",0,F47) -> 0 | H47: - | I47: =IF(H47="-",0,H47) -> 0 | J47: 19 | K47: =IF(J47="-",0,J47) -> 19 | L47: - | M47: =IF(L47="-",0,L47) -> 0 | O47: =E47+G47+I47+K47+M47 -> 19 | P47: =MAX(D47,F47,H47,J47,L47) -> 19 | Q47: =IF(S47=1,O47,IF(S47=0,(O47-P47),"-")) -> - | R47: =COUNTIF(U47:AD47,"=TRUE") -> 1 | S47: =AE$1-R47 -> 4 | T47: =IF(S47<2,"Yes","No") -> No | U47: =IF(D47="-",1,0)*U$1 -> 1 | V47: =AND(U47=0,U$1=1) -> FALSE | W47: =IF(F47="-",1,0)*W$1 -> 1 | X47: =AND(W47=0,W$1=1) -> FALSE | Y47: =IF(H47="-",1,0)*Y$1 -> 1 | Z47: =AND(Y47=0,Y$1=1) -> FALSE | AA47: =IF(J47="-",1,0)*AA$1 -> 0 | AB47: =AND(AA47=0,AA$1=1) -> TRUE | AC47: =IF(L47="-",1,0)*AC$1 -> 1 | AD47: =AND(AC47=0,AC$1=1) -> FALSE
A48: 97 | B48: Riley Harrison | C48: The Martin High School | D48: - | E48: =IF(D48="-",0,D48) -> 0 | F48: - | G48: =IF(F48="-",0,F48) -> 0 | H48: - | I48: =IF(H48="-",0,H48) -> 0 | J48: 21 | K48: =IF(J48="-",0,J48) -> 21 | L48: - | M48: =IF(L48="-",0,L48) -> 0 | O48: =E48+G48+I48+K48+M48 -> 21 | P48: =MAX(D48,F48,H48,J48,L48) -> 21 | Q48: =IF(S48=1,O48,IF(S48=0,(O48-P48),"-")) -> - | R48: =COUNTIF(U48:AD48,"=TRUE") -> 1 | S48: =AE$1-R48 -> 4 | T48: =IF(S48<2,"Yes","No") -> No | U48: =IF(D48="-",1,0)*U$1 -> 1 | V48: =AND(U48=0,U$1=1) -> FALSE | W48: =IF(F48="-",1,0)*W$1 -> 1 | X48: =AND(W48=0,W$1=1) -> FALSE | Y48: =IF(H48="-",1,0)*Y$1 -> 1 | Z48: =AND(Y48=0,Y$1=1) -> FALSE | AA48: =IF(J48="-",1,0)*AA$1 -> 0 | AB48: =AND(AA48=0,AA$1=1) -> TRUE | AC48: =IF(L48="-",1,0)*AC$1 -> 1 | AD48: =AND(AC48=0,AC$1=1) -> FALSE
A49: 79 | B49: Oliver Makin | C49: Rawlins College | D49: 35 | E49: =IF(D49="-",0,D49) -> 35 | F49: 35 | G49: =IF(F49="-",0,F49) -> 35 | H49: 35 | I49: =IF(H49="-",0,H49) -> 35 | J49: 29 | K49: =IF(J49="-",0,J49) -> 29 | L49: - | M49: =IF(L49="-",0,L49) -> 0 | O49: =E49+G49+I49+K49+M49 -> 134 | P49: =MAX(D49,F49,H49,J49,L49) -> 35 | Q49: =IF(S49=1,O49,IF(S49=0,(O49-P49),"-")) -> 134 | R49: =COUNTIF(U49:AD49,"=TRUE") -> 4 | S49: =AE$1-R49 -> 1 | T49: =IF(S49<2,"Yes","No") -> Yes | U49: =IF(D49="-",1,0)*U$1 -> 0 | V49: =AND(U49=0,U$1=1) -> TRUE | W49: =IF(F49="-",1,0)*W$1 -> 0 | X49: =AND(W49=0,W$1=1) -> TRUE | Y49: =IF(H49="-",1,0)*Y$1 -> 0 | Z49: =AND(Y49=0,Y$1=1) -> TRUE | AA49: =IF(J49="-",1,0)*AA$1 -> 0 | AB49: =AND(AA49=0,AA$1=1) -> TRUE | AC49: =IF(L49="-",1,0)*AC$1 -> 1 | AD49: =AND(AC49=0,AC$1=1) -> FALSE
A50: 49 | B50: Ben Thomas | C50: Redmoor Academy | D50: 23 | E50: =IF(D50="-",0,D50) -> 23 | F50: 18 | G50: =IF(F50="-",0,F50) -> 18 | H50: 29 | I50: =IF(H50="-",0,H50) -> 29 | J50: 30 | K50: =IF(J50="-",0,J50) -> 30 | L50: - | M50: =IF(L50="-",0,L50) -> 0 | O50: =E50+G50+I50+K50+M50 -> 100 | P50: =MAX(D50,F50,H50,J50,L50) -> 30 | Q50: =IF(S50=1,O50,IF(S50=0,(O50-P50),"-")) -> 100 | R50: =COUNTIF(U50:AD50,"=TRUE") -> 4 | S50: =AE$1-R50 -> 1 | T50: =IF(S50<2,"Yes","No") -> Yes | U50: =IF(D50="-",1,0)*U$1 -> 0 | V50: =AND(U50=0,U$1=1) -> TRUE | W50: =IF(F50="-",1,0)*W$1 -> 0 | X50: =AND(W50=0,W$1=1) -> TRUE | Y50: =IF(H50="-",1,0)*Y$1 -> 0 | Z50: =AND(Y50=0,Y$1=1) -> TRUE | AA50: =IF(J50="-",1,0)*AA$1 -> 0 | AB50: =AND(AA50=0,AA$1=1) -> TRUE | AC50: =IF(L50="-",1,0)*AC$1 -> 1 | AD50: =AND(AC50=0,AC$1=1) -> FALSE
A51: 77 | B51: Luke Jeal | C51: Brookvale High School | D51: - | E51: =IF(D51="-",0,D51) -> 0 | F51: 43 | G51: =IF(F51="-",0,F51) -> 43 | H51: 31 | I51: =IF(H51="-",0,H51) -> 31 | J51: 32 | K51: =IF(J51="-",0,J51) -> 32 | L51: - | M51: =IF(L51="-",0,L51) -> 0 | O51: =E51+G51+I51+K51+M51 -> 106 | P51: =MAX(D51,F51,H51,J51,L51) -> 43 | Q51: =IF(S51=1,O51,IF(S51=0,(O51-P51),"-")) -> - | R51: =COUNTIF(U51:AD51,"=TRUE") -> 3 | S51: =AE$1-R51 -> 2 | T51: =IF(S51<2,"Yes","No") -> No | U51: =IF(D51="-",1,0)*U$1 -> 1 | V51: =AND(U51=0,U$1=1) -> FALSE | W51: =IF(F51="-",1,0)*W$1 -> 0 | X51: =AND(W51=0,W$1=1) -> TRUE | Y51: =IF(H51="-",1,0)*Y$1 -> 0 | Z51: =AND(Y51=0,Y$1=1) -> TRUE | AA51: =IF(J51="-",1,0)*AA$1 -> 0 | AB51: =AND(AA51=0,AA$1=1) -> TRUE | AC51: =IF(L51="-",1,0)*AC$1 -> 1 | AD51: =AND(AC51=0,AC$1=1) -> FALSE
A52: 98 | B52: Harvey Crewe | C52: The Martin High School | D52: - | E52: =IF(D52="-",0,D52) -> 0 | F52: - | G52: =IF(F52="-",0,F52) -> 0 | H52: - | I52: =IF(H52="-",0,H52) -> 0 | J52: 33 | K52: =IF(J52="-",0,J52) -> 33 | L52: - | M52: =IF(L52="-",0,L52) -> 0 | O52: =E52+G52+I52+K52+M52 -> 33 | P52: =MAX(D52,F52,H52,J52,L52) -> 33 | Q52: =IF(S52=1,O52,IF(S52=0,(O52-P52),"-")) -> - | R52: =COUNTIF(U52:AD52,"=TRUE") -> 1 | S52: =AE$1-R52 -> 4 | T52: =IF(S52<2,"Yes","No") -> No | U52: =IF(D52="-",1,0)*U$1 -> 1 | V52: =AND(U52=0,U$1=1) -> FALSE | W52: =IF(F52="-",1,0)*W$1 -> 1 | X52: =AND(W52=0,W$1=1) -> FALSE | Y52: =IF(H52="-",1,0)*Y$1 -> 1 | Z52: =AND(Y52=0,Y$1=1) -> FALSE | AA52: =IF(J52="-",1,0)*AA$1 -> 0 | AB52: =AND(AA52=0,AA$1=1) -> TRUE | AC52: =IF(L52="-",1,0)*AC$1 -> 1 | AD52: =AND(AC52=0,AC$1=1) -> FALSE
A53: 99 | B53: William Reuben | C53: Rawlins College | D53: - | E53: =IF(D53="-",0,D53) -> 0 | F53: - | G53: =IF(F53="-",0,F53) -> 0 | H53: - | I53: =IF(H53="-",0,H53) -> 0 | J53: 34 | K53: =IF(J53="-",0,J53) -> 34 | L53: - | M53: =IF(L53="-",0,L53) -> 0 | O53: =E53+G53+I53+K53+M53 -> 34 | P53: =MAX(D53,F53,H53,J53,L53) -> 34 | Q53: =IF(S53=1,O53,IF(S53=0,(O53-P53),"-")) -> - | R53: =COUNTIF(U53:AD53,"=TRUE") -> 1 | S53: =AE$1-R53 -> 4 | T53: =IF(S53<2,"Yes","No") -> No | U53: =IF(D53="-",1,0)*U$1 -> 1 | V53: =AND(U53=0,U$1=1) -> FALSE | W53: =IF(F53="-",1,0)*W$1 -> 1 | X53: =AND(W53=0,W$1=1) -> FALSE | Y53: =IF(H53="-",1,0)*Y$1 -> 1 | Z53: =AND(Y53=0,Y$1=1) -> FALSE | AA53: =IF(J53="-",1,0)*AA$1 -> 0 | AB53: =AND(AA53=0,AA$1=1) -> TRUE | AC53: =IF(L53="-",1,0)*AC$1 -> 1 | AD53: =AND(AC53=0,AC$1=1) -> FALSE
A54: 101 | B54: Callum Woodward | C54: John Ferneley College | D54: - | E54: =IF(D54="-",0,D54) -> 0 | F54: - | G54: =IF(F54="-",0,F54) -> 0 | H54: - | I54: =IF(H54="-",0,H54) -> 0 | J54: 39 | K54: =IF(J54="-",0,J54) -> 39 | L54: - | M54: =IF(L54="-",0,L54) -> 0 | O54: =E54+G54+I54+K54+M54 -> 39 | P54: =MAX(D54,F54,H54,J54,L54) -> 39 | Q54: =IF(S54=1,O54,IF(S54=0,(O54-P54),"-")) -> - | R54: =COUNTIF(U54:AD54,"=TRUE") -> 1 | S54: =AE$1-R54 -> 4 | T54: =IF(S54<2,"Yes","No") -> No | U54: =IF(D54="-",1,0)*U$1 -> 1 | V54: =AND(U54=0,U$1=1) -> FALSE | W54: =IF(F54="-",1,0)*W$1 -> 1 | X54: =AND(W54=0,W$1=1) -> FALSE | Y54: =IF(H54="-",1,0)*Y$1 -> 1 | Z54: =AND(Y54=0,Y$1=1) -> FALSE | AA54: =IF(J54="-",1,0)*AA$1 -> 0 | AB54: =AND(AA54=0,AA$1=1) -> TRUE | AC54: =IF(L54="-",1,0)*AC$1 -> 1 | AD54: =AND(AC54=0,AC$1=1) -> FALSE
A55: 65 | B55: Antonio Moore | C55: Brookvale High School | D55: 61 | E55: =IF(D55="-",0,D55) -> 61 | F55: 53 | G55: =IF(F55="-",0,F55) -> 53 | H55: 46 | I55: =IF(H55="-",0,H55) -> 46 | J55: 41 | K55: =IF(J55="-",0,J55) -> 41 | L55: - | M55: =IF(L55="-",0,L55) -> 0 | O55: =E55+G55+I55+K55+M55 -> 201 | P55: =MAX(D55,F55,H55,J55,L55) -> 61 | Q55: =IF(S55=1,O55,IF(S55=0,(O55-P55),"-")) -> 201 | R55: =COUNTIF(U55:AD55,"=TRUE") -> 4 | S55: =AE$1-R55 -> 1 | T55: =IF(S55<2,"Yes","No") -> Yes | U55: =IF(D55="-",1,0)*U$1 -> 0 | V55: =AND(U55=0,U$1=1) -> TRUE | W55: =IF(F55="-",1,0)*W$1 -> 0 | X55: =AND(W55=0,W$1=1) -> TRUE | Y55: =IF(H55="-",1,0)*Y$1 -> 0 | Z55: =AND(Y55=0,Y$1=1) -> TRUE | AA55: =IF(J55="-",1,0)*AA$1 -> 0 | AB55: =AND(AA55=0,AA$1=1) -> TRUE | AC55: =IF(L55="-",1,0)*AC$1 -> 1 | AD55: =AND(AC55=0,AC$1=1) -> FALSE
A56: 35 | B56: Jude Wright | C56: De Lisle College | D56: 64 | E56: =IF(D56="-",0,D56) -> 64 | F56: 56 | G56: =IF(F56="-",0,F56) -> 56 | H56: - | I56: =IF(H56="-",0,H56) -> 0 | J56: 42 | K56: =IF(J56="-",0,J56) -> 42 | L56: - | M56: =IF(L56="-",0,L56) -> 0 | O56: =E56+G56+I56+K56+M56 -> 162 | P56: =MAX(D56,F56,H56,J56,L56) -> 64 | Q56: =IF(S56=1,O56,IF(S56=0,(O56-P56),"-")) -> - | R56: =COUNTIF(U56:AD56,"=TRUE") -> 3 | S56: =AE$1-R56 -> 2 | T56: =IF(S56<2,"Yes","No") -> No | U56: =IF(D56="-",1,0)*U$1 -> 0 | V56: =AND(U56=0,U$1=1) -> TRUE | W56: =IF(F56="-",1,0)*W$1 -> 0 | X56: =AND(W56=0,W$1=1) -> TRUE | Y56: =IF(H56="-",1,0)*Y$1 -> 1 | Z56: =AND(Y56=0,Y$1=1) -> FALSE | AA56: =IF(J56="-",1,0)*AA$1 -> 0 | AB56: =AND(AA56=0,AA$1=1) -> TRUE | AC56: =IF(L56="-",1,0)*AC$1 -> 1 | AD56: =AND(AC56=0,AC$1=1) -> FALSE
A57: 91 | B57: Tom Dingwall | C57: John Ferneley College | D57: 49 | E57: =IF(D57="-",0,D57) -> 49 | F57: 46 | G57: =IF(F57="-",0,F57) -> 46 | H57: - | I57: =IF(H57="-",0,H57) -> 0 | J57: 43 | K57: =IF(J57="-",0,J57) -> 43 | L57: - | M57: =IF(L57="-",0,L57) -> 0 | O57: =E57+G57+I57+K57+M57 -> 138 | P57: =MAX(D57,F57,H57,J57,L57) -> 49 | Q57: =IF(S57=1,O57,IF(S57=0,(O57-P57),"-")) -> - | R57: =COUNTIF(U57:AD57,"=TRUE") -> 3 | S57: =AE$1-R57 -> 2 | T57: =IF(S57<2,"Yes","No") -> No | U57: =IF(D57="-",1,0)*U$1 -> 0 | V57: =AND(U57=0,U$1=1) -> TRUE | W57: =IF(F57="-",1,0)*W$1 -> 0 | X57: =AND(W57=0,W$1=1) -> TRUE | Y57: =IF(H57="-",1,0)*Y$1 -> 1 | Z57: =AND(Y57=0,Y$1=1) -> FALSE | AA57: =IF(J57="-",1,0)*AA$1 -> 0 | AB57: =AND(AA57=0,AA$1=1) -> TRUE | AC57: =IF(L57="-",1,0)*AC$1 -> 1 | AD57: =AND(AC57=0,AC$1=1) -> FALSE
A58: 8 | B58: Lewis Winkless | C58: Brookvale High School | D58: 63 | E58: =IF(D58="-",0,D58) -> 63 | F58: 54 | G58: =IF(F58="-",0,F58) -> 54 | H58: 44 | I58: =IF(H58="-",0,H58) -> 44 | J58: 44 | K58: =IF(J58="-",0,J58) -> 44 | L58: - | M58: =IF(L58="-",0,L58) -> 0 | O58: =E58+G58+I58+K58+M58 -> 205 | P58: =MAX(D58,F58,H58,J58,L58) -> 63 | Q58: =IF(S58=1,O58,IF(S58=0,(O58-P58),"-")) -> 205 | R58: =COUNTIF(U58:AD58,"=TRUE") -> 4 | S58: =AE$1-R58 -> 1 | T58: =IF(S58<2,"Yes","No") -> Yes | U58: =IF(D58="-",1,0)*U$1 -> 0 | V58: =AND(U58=0,U$1=1) -> TRUE | W58: =IF(F58="-",1,0)*W$1 -> 0 | X58: =AND(W58=0,W$1=1) -> TRUE | Y58: =IF(H58="-",1,0)*Y$1 -> 0 | Z58: =AND(Y58=0,Y$1=1) -> TRUE | AA58: =IF(J58="-",1,0)*AA$1 -> 0 | AB58: =AND(AA58=0,AA$1=1) -> TRUE | AC58: =IF(L58="-",1,0)*AC$1 -> 1 | AD58: =AND(AC58=0,AC$1=1) -> FALSE
A59: 34 | B59: Tion Fortune | C59: Crown Hills CC | D59: 58 | E59: =IF(D59="-",0,D59) -> 58 | F59: 58 | G59: =IF(F59="-",0,F59) -> 58 | H59: 48 | I59: =IF(H59="-",0,H59) -> 48 | J59: 45 | K59: =IF(J59="-",0,J59) -> 45 | L59: - | M59: =IF(L59="-",0,L59) -> 0 | O59: =E59+G59+I59+K59+M59 -> 209 | P59: =MAX(D59,F59,H59,J59,L59) -> 58 | Q59: =IF(S59=1,O59,IF(S59=0,(O59-P59),"-")) -> 209 | R59: =COUNTIF(U59:AD59,"=TRUE") -> 4 | S59: =AE$1-R59 -> 1 | T59: =IF(S59<2,"Yes","No") -> Yes | U59: =IF(D59="-",1,0)*U$1 -> 0 | V59: =AND(U59=0,U$1=1) -> TRUE | W59: =IF(F59="-",1,0)*W$1 -> 0 | X59: =AND(W59=0,W$1=1) -> TRUE | Y59: =IF(H59="-",1,0)*Y$1 -> 0 | Z59: =AND(Y59=0,Y$1=1) -> TRUE | AA59: =IF(J59="-",1,0)*AA$1 -> 0 | AB59: =AND(AA59=0,AA$1=1) -> TRUE | AC59: =IF(L59="-",1,0)*AC$1 -> 1 | AD59: =AND(AC59=0,AC$1=1) -> FALSE
A60: 54 | B60: Thomas Pollard | C60: Newbridge High School | D60: 7 | E60: =IF(D60="-",0,D60) -> 7 | F60: 5 | G60: =IF(F60="-",0,F60) -> 5 | H60: 3 | I60: =IF(H60="-",0,H60) -> 3 | J60: - | K60: =IF(J60="-",0,J60) -> 0 | L60: - | M60: =IF(L60="-",0,L60) -> 0 | O60: =E60+G60+I60+K60+M60 -> 15 | P60: =MAX(D60,F60,H60,J60,L60) -> 7 | Q60: =IF(S60=1,O60,IF(S60=0,(O60-P60),"-")) -> - | R60: =COUNTIF(U60:AD60,"=TRUE") -> 3 | S60: =AE$1-R60 -> 2 | T60: =IF(S60<2,"Yes","No") -> No | U60: =IF(D60="-",1,0)*U$1 -> 0 | V60: =AND(U60=0,U$1=1) -> TRUE | W60: =IF(F60="-",1,0)*W$1 -> 0 | X60: =AND(W60=0,W$1=1) -> TRUE | Y60: =IF(H60="-",1,0)*Y$1 -> 0 | Z60: =AND(Y60=0,Y$1=1) -> TRUE | AA60: =IF(J60="-",1,0)*AA$1 -> 1 | AB60: =AND(AA60=0,AA$1=1) -> FALSE | AC60: =IF(L60="-",1,0)*AC$1 -> 1 | AD60: =AND(AC60=0,AC$1=1) -> FALSE
A61: 87 | B61: Shaylan Ghai | C61: Loughborough Grammar School | D61: 38 | E61: =IF(D61="-",0,D61) -> 38 | F61: 34 | G61: =IF(F61="-",0,F61) -> 34 | H61: 23 | I61: =IF(H61="-",0,H61) -> 23 | J61: - | K61: =IF(J61="-",0,J61) -> 0 | L61: - | M61: =IF(L61="-",0,L61) -> 0 | O61: =E61+G61+I61+K61+M61 -> 95 | P61: =MAX(D61,F61,H61,J61,L61) -> 38 | Q61: =IF(S61=1,O61,IF(S61=0,(O61-P61),"-")) -> - | R61: =COUNTIF(U61:AD61,"=TRUE") -> 3 | S61: =AE$1-R61 -> 2 | T61: =IF(S61<2,"Yes","No") -> No | U61: =IF(D61="-",1,0)*U$1 -> 0 | V61: =AND(U61=0,U$1=1) -> TRUE | W61: =IF(F61="-",1,0)*W$1 -> 0 | X61: =AND(W61=0,W$1=1) -> TRUE | Y61: =IF(H61="-",1,0)*Y$1 -> 0 | Z61: =AND(Y61=0,Y$1=1) -> TRUE | AA61: =IF(J61="-",1,0)*AA$1 -> 1 | AB61: =AND(AA61=0,AA$1=1) -> FALSE | AC61: =IF(L61="-",1,0)*AC$1 -> 1 | AD61: =AND(AC61=0,AC$1=1) -> FALSE
A62: 11 | B62: Angus Gladstone | C62: Lutterworth High School | D62: - | E62: =IF(D62="-",0,D62) -> 0 | F62: 29 | G62: =IF(F62="-",0,F62) -> 29 | H62: 25 | I62: =IF(H62="-",0,H62) -> 25 | J62: - | K62: =IF(J62="-",0,J62) -> 0 | L62: - | M62: =IF(L62="-",0,L62) -> 0 | O62: =E62+G62+I62+K62+M62 -> 54 | P62: =MAX(D62,F62,H62,J62,L62) -> 29 | Q62: =IF(S62=1,O62,IF(S62=0,(O62-P62),"-")) -> - | R62: =COUNTIF(U62:AD62,"=TRUE") -> 2 | S62: =AE$1-R62 -> 3 | T62: =IF(S62<2,"Yes","No") -> No | U62: =IF(D62="-",1,0)*U$1 -> 1 | V62: =AND(U62=0,U$1=1) -> FALSE | W62: =IF(F62="-",1,0)*W$1 -> 0 | X62: =AND(W62=0,W$1=1) -> TRUE | Y62: =IF(H62="-",1,0)*Y$1 -> 0 | Z62: =AND(Y62=0,Y$1=1) -> TRUE | AA62: =IF(J62="-",1,0)*AA$1 -> 1 | AB62: =AND(AA62=0,AA$1=1) -> FALSE | AC62: =IF(L62="-",1,0)*AC$1 -> 1 | AD62: =AND(AC62=0,AC$1=1) -> FALSE
A63: 39 | B63: Flynn Robinson | C63: Bosworth Academy | D63: - | E63: =IF(D63="-",0,D63) -> 0 | F63: - | G63: =IF(F63="-",0,F63) -> 0 | H63: 27 | I63: =IF(H63="-",0,H63) -> 27 | J63: - | K63: =IF(J63="-",0,J63) -> 0 | L63: - | M63: =IF(L63="-",0,L63) -> 0 | O63: =E63+G63+I63+K63+M63 -> 27 | P63: =MAX(D63,F63,H63,J63,L63) -> 27 | Q63: =IF(S63=1,O63,IF(S63=0,(O63-P63),"-")) -> - | R63: =COUNTIF(U63:AD63,"=TRUE") -> 1 | S63: =AE$1-R63 -> 4 | T63: =IF(S63<2,"Yes","No") -> No | U63: =IF(D63="-",1,0)*U$1 -> 1 | V63: =AND(U63=0,U$1=1) -> FALSE | W63: =IF(F63="-",1,0)*W$1 -> 1 | X63: =AND(W63=0,W$1=1) -> FALSE | Y63: =IF(H63="-",1,0)*Y$1 -> 0 | Z63: =AND(Y63=0,Y$1=1) -> TRUE | AA63: =IF(J63="-",1,0)*AA$1 -> 1 | AB63: =AND(AA63=0,AA$1=1) -> FALSE | AC63: =IF(L63="-",1,0)*AC$1 -> 1 | AD63: =AND(AC63=0,AC$1=1) -> FALSE
A64: 9 | B64: Kirk Mellors | C64: Shepshed High School | D64: - | E64: =IF(D64="-",0,D64) -> 0 | F64: - | G64: =IF(F64="-",0,F64) -> 0 | H64: 28 | I64: =IF(H64="-",0,H64) -> 28 | J64: - | K64: =IF(J64="-",0,J64) -> 0 | L64: - | M64: =IF(L64="-",0,L64) -> 0 | O64: =E64+G64+I64+K64+M64 -> 28 | P64: =MAX(D64,F64,H64,J64,L64) -> 28 | Q64: =IF(S64=1,O64,IF(S64=0,(O64-P64),"-")) -> - | R64: =COUNTIF(U64:AD64,"=TRUE") -> 1 | S64: =AE$1-R64 -> 4 | T64: =IF(S64<2,"Yes","No") -> No | U64: =IF(D64="-",1,0)*U$1 -> 1 | V64: =AND(U64=0,U$1=1) -> FALSE | W64: =IF(F64="-",1,0)*W$1 -> 1 | X64: =AND(W64=0,W$1=1) -> FALSE | Y64: =IF(H64="-",1,0)*Y$1 -> 0 | Z64: =AND(Y64=0,Y$1=1) -> TRUE | AA64: =IF(J64="-",1,0)*AA$1 -> 1 | AB64: =AND(AA64=0,AA$1=1) -> FALSE | AC64: =IF(L64="-",1,0)*AC$1 -> 1 | AD64: =AND(AC64=0,AC$1=1) -> FALSE
A65: 88 | B65: Jason Schulz | C65: Bosworth Academy | D65: 31 | E65: =IF(D65="-",0,D65) -> 31 | F65: 23 | G65: =IF(F65="-",0,F65) -> 23 | H65: 30 | I65: =IF(H65="-",0,H65) -> 30 | J65: - | K65: =IF(J65="-",0,J65) -> 0 | L65: - | M65: =IF(L65="-",0,L65) -> 0 | O65: =E65+G65+I65+K65+M65 -> 84 | P65: =MAX(D65,F65,H65,J65,L65) -> 31 | Q65: =IF(S65=1,O65,IF(S65=0,(O65-P65),"-")) -> - | R65: =COUNTIF(U65:AD65,"=TRUE") -> 3 | S65: =AE$1-R65 -> 2 | T65: =IF(S65<2,"Yes","No") -> No | U65: =IF(D65="-",1,0)*U$1 -> 0 | V65: =AND(U65=0,U$1=1) -> TRUE | W65: =IF(F65="-",1,0)*W$1 -> 0 | X65: =AND(W65=0,W$1=1) -> TRUE | Y65: =IF(H65="-",1,0)*Y$1 -> 0 | Z65: =AND(Y65=0,Y$1=1) -> TRUE | AA65: =IF(J65="-",1,0)*AA$1 -> 1 | AB65: =AND(AA65=0,AA$1=1) -> FALSE | AC65: =IF(L65="-",1,0)*AC$1 -> 1 | AD65: =AND(AC65=0,AC$1=1) -> FALSE
A66: 72 | B66: Jordan Barnard-Briers | C66: Thomas Estley CC | D66: - | E66: =IF(D66="-",0,D66) -> 0 | F66: 36 | G66: =IF(F66="-",0,F66) -> 36 | H66: 32 | I66: =IF(H66="-",0,H66) -> 32 | J66: - | K66: =IF(J66="-",0,J66) -> 0 | L66: - | M66: =IF(L66="-",0,L66) -> 0 | O66: =E66+G66+I66+K66+M66 -> 68 | P66: =MAX(D66,F66,H66,J66,L66) -> 36 | Q66: =IF(S66=1,O66,IF(S66=0,(O66-P66),"-")) -> - | R66: =COUNTIF(U66:AD66,"=TRUE") -> 2 | S66: =AE$1-R66 -> 3 | T66: =IF(S66<2,"Yes","No") -> No | U66: =IF(D66="-",1,0)*U$1 -> 1 | V66: =AND(U66=0,U$1=1) -> FALSE | W66: =IF(F66="-",1,0)*W$1 -> 0 | X66: =AND(W66=0,W$1=1) -> TRUE | Y66: =IF(H66="-",1,0)*Y$1 -> 0 | Z66: =AND(Y66=0,Y$1=1) -> TRUE | AA66: =IF(J66="-",1,0)*AA$1 -> 1 | AB66: =AND(AA66=0,AA$1=1) -> FALSE | AC66: =IF(L66="-",1,0)*AC$1 -> 1 | AD66: =AND(AC66=0,AC$1=1) -> FALSE
A67: 14 | B67: Jake Chandler | C67: Lutterworth High School | D67: 54 | E67: =IF(D67="-",0,D67) -> 54 | F67: 38 | G67: =IF(F67="-",0,F67) -> 38 | H67: 37 | I67: =IF(H67="-",0,H67) -> 37 | J67: - | K67: =IF(J67="-",0,J67) -> 0 | L67: - | M67: =IF(L67="-",0,L67) -> 0 | O67: =E67+G67+I67+K67+M67 -> 129 | P67: =MAX(D67,F67,H67,J67,L67) -> 54 | Q67: =IF(S67=1,O67,IF(S67=0,(O67-P67),"-")) -> - | R67: =COUNTIF(U67:AD67,"=TRUE") -> 3 | S67: =AE$1-R67 -> 2 | T67: =IF(S67<2,"Yes","No") -> No | U67: =IF(D67="-",1,0)*U$1 -> 0 | V67: =AND(U67=0,U$1=1) -> TRUE | W67: =IF(F67="-",1,0)*W$1 -> 0 | X67: =AND(W67=0,W$1=1) -> TRUE | Y67: =IF(H67="-",1,0)*Y$1 -> 0 | Z67: =AND(Y67=0,Y$1=1) -> TRUE | AA67: =IF(J67="-",1,0)*AA$1 -> 1 | AB67: =AND(AA67=0,AA$1=1) -> FALSE | AC67: =IF(L67="-",1,0)*AC$1 -> 1 | AD67: =AND(AC67=0,AC$1=1) -> FALSE
A68: 13 | B68: Rohan Didier | C68: Bosworth Academy | D68: - | E68: =IF(D68="-",0,D68) -> 0 | F68: - | G68: =IF(F68="-",0,F68) -> 0 | H68: 38 | I68: =IF(H68="-",0,H68) -> 38 | J68: - | K68: =IF(J68="-",0,J68) -> 0 | L68: - | M68: =IF(L68="-",0,L68) -> 0 | O68: =E68+G68+I68+K68+M68 -> 38 | P68: =MAX(D68,F68,H68,J68,L68) -> 38 | Q68: =IF(S68=1,O68,IF(S68=0,(O68-P68),"-")) -> - | R68: =COUNTIF(U68:AD68,"=TRUE") -> 1 | S68: =AE$1-R68 -> 4 | T68: =IF(S68<2,"Yes","No") -> No | U68: =IF(D68="-",1,0)*U$1 -> 1 | V68: =AND(U68=0,U$1=1) -> FALSE | W68: =IF(F68="-",1,0)*W$1 -> 1 | X68: =AND(W68=0,W$1=1) -> FALSE | Y68: =IF(H68="-",1,0)*Y$1 -> 0 | Z68: =AND(Y68=0,Y$1=1) -> TRUE | AA68: =IF(J68="-",1,0)*AA$1 -> 1 | AB68: =AND(AA68=0,AA$1=1) -> FALSE | AC68: =IF(L68="-",1,0)*AC$1 -> 1 | AD68: =AND(AC68=0,AC$1=1) -> FALSE
A69: 41 | B69: Mohammed Khansaheb | C69: Crown Hills CC | D69: - | E69: =IF(D69="-",0,D69) -> 0 | F69: 55 | G69: =IF(F69="-",0,F69) -> 55 | H69: 43 | I69: =IF(H69="-",0,H69) -> 43 | J69: - | K69: =IF(J69="-",0,J69) -> 0 | L69: - | M69: =IF(L69="-",0,L69) -> 0 | O69: =E69+G69+I69+K69+M69 -> 98 | P69: =MAX(D69,F69,H69,J69,L69) -> 55 | Q69: =IF(S69=1,O69,IF(S69=0,(O69-P69),"-")) -> - | R69: =COUNTIF(U69:AD69,"=TRUE") -> 2 | S69: =AE$1-R69 -> 3 | T69: =IF(S69<2,"Yes","No") -> No | U69: =IF(D69="-",1,0)*U$1 -> 1 | V69: =AND(U69=0,U$1=1) -> FALSE | W69: =IF(F69="-",1,0)*W$1 -> 0 | X69: =AND(W69=0,W$1=1) -> TRUE | Y69: =IF(H69="-",1,0)*Y$1 -> 0 | Z69: =AND(Y69=0,Y$1=1) -> TRUE | AA69: =IF(J69="-",1,0)*AA$1 -> 1 | AB69: =AND(AA69=0,AA$1=1) -> FALSE | AC69: =IF(L69="-",1,0)*AC$1 -> 1 | AD69: =AND(AC69=0,AC$1=1) -> FALSE
A70: 6 | B70: Joe Donsham | C70: Bosworth Academy | D70: - | E70: =IF(D70="-",0,D70) -> 0 | F70: - | G70: =IF(F70="-",0,F70) -> 0 | H70: 45 | I70: =IF(H70="-",0,H70) -> 45 | J70: - | K70: =IF(J70="-",0,J70) -> 0 | L70: - | M70: =IF(L70="-",0,L70) -> 0 | O70: =E70+G70+I70+K70+M70 -> 45 | P70: =MAX(D70,F70,H70,J70,L70) -> 45 | Q70: =IF(S70=1,O70,IF(S70=0,(O70-P70),"-")) -> - | R70: =COUNTIF(U70:AD70,"=TRUE") -> 1 | S70: =AE$1-R70 -> 4 | T70: =IF(S70<2,"Yes","No") -> No | U70: =IF(D70="-",1,0)*U$1 -> 1 | V70: =AND(U70=0,U$1=1) -> FALSE | W70: =IF(F70="-",1,0)*W$1 -> 1 | X70: =AND(W70=0,W$1=1) -> FALSE | Y70: =IF(H70="-",1,0)*Y$1 -> 0 | Z70: =AND(Y70=0,Y$1=1) -> TRUE | AA70: =IF(J70="-",1,0)*AA$1 -> 1 | AB70: =AND(AA70=0,AA$1=1) -> FALSE | AC70: =IF(L70="-",1,0)*AC$1 -> 1 | AD70: =AND(AC70=0,AC$1=1) -> FALSE
A71: 15 | B71: Muhammed Shah | C71: Crown Hills CC | D71: - | E71: =IF(D71="-",0,D71) -> 0 | F71: 50 | G71: =IF(F71="-",0,F71) -> 50 | H71: 47 | I71: =IF(H71="-",0,H71) -> 47 | J71: - | K71: =IF(J71="-",0,J71) -> 0 | L71: - | M71: =IF(L71="-",0,L71) -> 0 | O71: =E71+G71+I71+K71+M71 -> 97 | P71: =MAX(D71,F71,H71,J71,L71) -> 50 | Q71: =IF(S71=1,O71,IF(S71=0,(O71-P71),"-")) -> - | R71: =COUNTIF(U71:AD71,"=TRUE") -> 2 | S71: =AE$1-R71 -> 3 | T71: =IF(S71<2,"Yes","No") -> No | U71: =IF(D71="-",1,0)*U$1 -> 1 | V71: =AND(U71=0,U$1=1) -> FALSE | W71: =IF(F71="-",1,0)*W$1 -> 0 | X71: =AND(W71=0,W$1=1) -> TRUE | Y71: =IF(H71="-",1,0)*Y$1 -> 0 | Z71: =AND(Y71=0,Y$1=1) -> TRUE | AA71: =IF(J71="-",1,0)*AA$1 -> 1 | AB71: =AND(AA71=0,AA$1=1) -> FALSE | AC71: =IF(L71="-",1,0)*AC$1 -> 1 | AD71: =AND(AC71=0,AC$1=1) -> FALSE
A72: 57 | B72: Adam Bowditch | C72: Welland Park Academy | D72: - | E72: =IF(D72="-",0,D72) -> 0 | F72: - | G72: =IF(F72="-",0,F72) -> 0 | H72: 50 | I72: =IF(H72="-",0,H72) -> 50 | J72: - | K72: =IF(J72="-",0,J72) -> 0 | L72: - | M72: =IF(L72="-",0,L72) -> 0 | O72: =E72+G72+I72+K72+M72 -> 50 | P72: =MAX(D72,F72,H72,J72,L72) -> 50 | Q72: =IF(S72=1,O72,IF(S72=0,(O72-P72),"-")) -> - | R72: =COUNTIF(U72:AD72,"=TRUE") -> 1 | S72: =AE$1-R72 -> 4 | T72: =IF(S72<2,"Yes","No") -> No | U72: =IF(D72="-",1,0)*U$1 -> 1 | V72: =AND(U72=0,U$1=1) -> FALSE | W72: =IF(F72="-",1,0)*W$1 -> 1 | X72: =AND(W72=0,W$1=1) -> FALSE | Y72: =IF(H72="-",1,0)*Y$1 -> 0 | Z72: =AND(Y72=0,Y$1=1) -> TRUE | AA72: =IF(J72="-",1,0)*AA$1 -> 1 | AB72: =AND(AA72=0,AA$1=1) -> FALSE | AC72: =IF(L72="-",1,0)*AC$1 -> 1 | AD72: =AND(AC72=0,AC$1=1) -> FALSE
A73: 61 | B73: Ziyad Mamodo | C73: Crown Hills CC | D73: - | E73: =IF(D73="-",0,D73) -> 0 | F73: 63 | G73: =IF(F73="-",0,F73) -> 63 | H73: 51 | I73: =IF(H73="-",0,H73) -> 51 | J73: - | K73: =IF(J73="-",0,J73) -> 0 | L73: - | M73: =IF(L73="-",0,L73) -> 0 | O73: =E73+G73+I73+K73+M73 -> 114 | P73: =MAX(D73,F73,H73,J73,L73) -> 63 | Q73: =IF(S73=1,O73,IF(S73=0,(O73-P73),"-")) -> - | R73: =COUNTIF(U73:AD73,"=TRUE") -> 2 | S73: =AE$1-R73 -> 3 | T73: =IF(S73<2,"Yes","No") -> No | U73: =IF(D73="-",1,0)*U$1 -> 1 | V73: =AND(U73=0,U$1=1) -> FALSE | W73: =IF(F73="-",1,0)*W$1 -> 0 | X73: =AND(W73=0,W$1=1) -> TRUE | Y73: =IF(H73="-",1,0)*Y$1 -> 0 | Z73: =AND(Y73=0,Y$1=1) -> TRUE | AA73: =IF(J73="-",1,0)*AA$1 -> 1 | AB73: =AND(AA73=0,AA$1=1) -> FALSE | AC73: =IF(L73="-",1,0)*AC$1 -> 1 | AD73: =AND(AC73=0,AC$1=1) -> FALSE
A74: 25 | B74: Aidan Elsworth | C74: St Martins | D74: 14 | E74: =IF(D74="-",0,D74) -> 14 | F74: 9 | G74: =IF(F74="-",0,F74) -> 9 | H74: - | I74: =IF(H74="-",0,H74) -> 0 | J74: - | K74: =IF(J74="-",0,J74) -> 0 | L74: - | M74: =IF(L74="-",0,L74) -> 0 | O74: =E74+G74+I74+K74+M74 -> 23 | P74: =MAX(D74,F74,H74,J74,L74) -> 14 | Q74: =IF(S74=1,O74,IF(S74=0,(O74-P74),"-")) -> - | R74: =COUNTIF(U74:AD74,"=TRUE") -> 2 | S74: =AE$1-R74 -> 3 | T74: =IF(S74<2,"Yes","No") -> No | U74: =IF(D74="-",1,0)*U$1 -> 0 | V74: =AND(U74=0,U$1=1) -> TRUE | W74: =IF(F74="-",1,0)*W$1 -> 0 | X74: =AND(W74=0,W$1=1) -> TRUE | Y74: =IF(H74="-",1,0)*Y$1 -> 1 | Z74: =AND(Y74=0,Y$1=1) -> FALSE | AA74: =IF(J74="-",1,0)*AA$1 -> 1 | AB74: =AND(AA74=0,AA$1=1) -> FALSE | AC74: =IF(L74="-",1,0)*AC$1 -> 1 | AD74: =AND(AC74=0,AC$1=1) -> FALSE
A75: 76 | B75: Tom Williams | C75: Loughborough Grammar School | D75: - | E75: =IF(D75="-",0,D75) -> 0 | F75: 14 | G75: =IF(F75="-",0,F75) -> 14 | H75: - | I75: =IF(H75="-",0,H75) -> 0 | J75: - | K75: =IF(J75="-",0,J75) -> 0 | L75: - | M75: =IF(L75="-",0,L75) -> 0 | O75: =E75+G75+I75+K75+M75 -> 14 | P75: =MAX(D75,F75,H75,J75,L75) -> 14 | Q75: =IF(S75=1,O75,IF(S75=0,(O75-P75),"-")) -> - | R75: =COUNTIF(U75:AD75,"=TRUE") -> 1 | S75: =AE$1-R75 -> 4 | T75: =IF(S75<2,"Yes","No") -> No | U75: =IF(D75="-",1,0)*U$1 -> 1 | V75: =AND(U75=0,U$1=1) -> FALSE | W75: =IF(F75="-",1,0)*W$1 -> 0 | X75: =AND(W75=0,W$1=1) -> TRUE | Y75: =IF(H75="-",1,0)*Y$1 -> 1 | Z75: =AND(Y75=0,Y$1=1) -> FALSE | AA75: =IF(J75="-",1,0)*AA$1 -> 1 | AB75: =AND(AA75=0,AA$1=1) -> FALSE | AC75: =IF(L75="-",1,0)*AC$1 -> 1 | AD75: =AND(AC75=0,AC$1=1) -> FALSE
A76: 40 | B76: Luca de Silva | C76: The Martin High School | D76: - | E76: =IF(D76="-",0,D76) -> 0 | F76: 16 | G76: =IF(F76="-",0,F76) -> 16 | H76: - | I76: =IF(H76="-",0,H76) -> 0 | J76: - | K76: =IF(J76="-",0,J76) -> 0 | L76: - | M76: =IF(L76="-",0,L76) -> 0 | O76: =E76+G76+I76+K76+M76 -> 16 | P76: =MAX(D76,F76,H76,J76,L76) -> 16 | Q76: =IF(S76=1,O76,IF(S76=0,(O76-P76),"-")) -> - | R76: =COUNTIF(U76:AD76,"=TRUE") -> 1 | S76: =AE$1-R76 -> 4 | T76: =IF(S76<2,"Yes","No") -> No | U76: =IF(D76="-",1,0)*U$1 -> 1 | V76: =AND(U76=0,U$1=1) -> FALSE | W76: =IF(F76="-",1,0)*W$1 -> 0 | X76: =AND(W76=0,W$1=1) -> TRUE | Y76: =IF(H76="-",1,0)*Y$1 -> 1 | Z76: =AND(Y76=0,Y$1=1) -> FALSE | AA76: =IF(J76="-",1,0)*AA$1 -> 1 | AB76: =AND(AA76=0,AA$1=1) -> FALSE | AC76: =IF(L76="-",1,0)*AC$1 -> 1 | AD76: =AND(AC76=0,AC$1=1) -> FALSE
A77: 7 | B77: Harry Lawler | C77: Humphrey Perkins School | D77: 24 | E77: =IF(D77="-",0,D77) -> 24 | F77: 21 | G77: =IF(F77="-",0,F77) -> 21 | H77: - | I77: =IF(H77="-",0,H77) -> 0 | J77: - | K77: =IF(J77="-",0,J77) -> 0 | L77: - | M77: =IF(L77="-",0,L77) -> 0 | O77: =E77+G77+I77+K77+M77 -> 45 | P77: =MAX(D77,F77,H77,J77,L77) -> 24 | Q77: =IF(S77=1,O77,IF(S77=0,(O77-P77),"-")) -> - | R77: =COUNTIF(U77:AD77,"=TRUE") -> 2 | S77: =AE$1-R77 -> 3 | T77: =IF(S77<2,"Yes","No") -> No | U77: =IF(D77="-",1,0)*U$1 -> 0 | V77: =AND(U77=0,U$1=1) -> TRUE | W77: =IF(F77="-",1,0)*W$1 -> 0 | X77: =AND(W77=0,W$1=1) -> TRUE | Y77: =IF(H77="-",1,0)*Y$1 -> 1 | Z77: =AND(Y77=0,Y$1=1) -> FALSE | AA77: =IF(J77="-",1,0)*AA$1 -> 1 | AB77: =AND(AA77=0,AA$1=1) -> FALSE | AC77: =IF(L77="-",1,0)*AC$1 -> 1 | AD77: =AND(AC77=0,AC$1=1) -> FALSE
A78: 83 | B78: Matthew Tierney | C78: Long Field Academy | D78: 33 | E78: =IF(D78="-",0,D78) -> 33 | F78: 25 | G78: =IF(F78="-",0,F78) -> 25 | H78: - | I78: =IF(H78="-",0,H78) -> 0 | J78: - | K78: =IF(J78="-",0,J78) -> 0 | L78: - | M78: =IF(L78="-",0,L78) -> 0 | O78: =E78+G78+I78+K78+M78 -> 58 | P78: =MAX(D78,F78,H78,J78,L78) -> 33 | Q78: =IF(S78=1,O78,IF(S78=0,(O78-P78),"-")) -> - | R78: =COUNTIF(U78:AD78,"=TRUE") -> 2 | S78: =AE$1-R78 -> 3 | T78: =IF(S78<2,"Yes","No") -> No | U78: =IF(D78="-",1,0)*U$1 -> 0 | V78: =AND(U78=0,U$1=1) -> TRUE | W78: =IF(F78="-",1,0)*W$1 -> 0 | X78: =AND(W78=0,W$1=1) -> TRUE | Y78: =IF(H78="-",1,0)*Y$1 -> 1 | Z78: =AND(Y78=0,Y$1=1) -> FALSE | AA78: =IF(J78="-",1,0)*AA$1 -> 1 | AB78: =AND(AA78=0,AA$1=1) -> FALSE | AC78: =IF(L78="-",1,0)*AC$1 -> 1 | AD78: =AND(AC78=0,AC$1=1) -> FALSE
A79: 47 | B79: James Noble | C79: The Martin High School | D79: 34 | E79: =IF(D79="-",0,D79) -> 34 | F79: 26 | G79: =IF(F79="-",0,F79) -> 26 | H79: - | I79: =IF(H79="-",0,H79) -> 0 | J79: - | K79: =IF(J79="-",0,J79) -> 0 | L79: - | M79: =IF(L79="-",0,L79) -> 0 | O79: =E79+G79+I79+K79+M79 -> 60 | P79: =MAX(D79,F79,H79,J79,L79) -> 34 | Q79: =IF(S79=1,O79,IF(S79=0,(O79-P79),"-")) -> - | R79: =COUNTIF(U79:AD79,"=TRUE") -> 2 | S79: =AE$1-R79 -> 3 | T79: =IF(S79<2,"Yes","No") -> No | U79: =IF(D79="-",1,0)*U$1 -> 0 | V79: =AND(U79=0,U$1=1) -> TRUE | W79: =IF(F79="-",1,0)*W$1 -> 0 | X79: =AND(W79=0,W$1=1) -> TRUE | Y79: =IF(H79="-",1,0)*Y$1 -> 1 | Z79: =AND(Y79=0,Y$1=1) -> FALSE | AA79: =IF(J79="-",1,0)*AA$1 -> 1 | AB79: =AND(AA79=0,AA$1=1) -> FALSE | AC79: =IF(L79="-",1,0)*AC$1 -> 1 | AD79: =AND(AC79=0,AC$1=1) -> FALSE
A80: 53 | B80: Nathan Booker | C80: Kibworth High School | D80: 40 | E80: =IF(D80="-",0,D80) -> 40 | F80: 37 | G80: =IF(F80="-",0,F80) -> 37 | H80: - | I80: =IF(H80="-",0,H80) -> 0 | J80: - | K80: =IF(J80="-",0,J80) -> 0 | L80: - | M80: =IF(L80="-",0,L80) -> 0 | O80: =E80+G80+I80+K80+M80 -> 77 | P80: =MAX(D80,F80,H80,J80,L80) -> 40 | Q80: =IF(S80=1,O80,IF(S80=0,(O80-P80),"-")) -> - | R80: =COUNTIF(U80:AD80,"=TRUE") -> 2 | S80: =AE$1-R80 -> 3 | T80: =IF(S80<2,"Yes","No") -> No | U80: =IF(D80="-",1,0)*U$1 -> 0 | V80: =AND(U80=0,U$1=1) -> TRUE | W80: =IF(F80="-",1,0)*W$1 -> 0 | X80: =AND(W80=0,W$1=1) -> TRUE | Y80: =IF(H80="-",1,0)*Y$1 -> 1 | Z80: =AND(Y80=0,Y$1=1) -> FALSE | AA80: =IF(J80="-",1,0)*AA$1 -> 1 | AB80: =AND(AA80=0,AA$1=1) -> FALSE | AC80: =IF(L80="-",1,0)*AC$1 -> 1 | AD80: =AND(AC80=0,AC$1=1) -> FALSE
A81: 38 | B81: Chris Frape | C81: Bosworth Academy | D81: - | E81: =IF(D81="-",0,D81) -> 0 | F81: 39 | G81: =IF(F81="-",0,F81) -> 39 | H81: - | I81: =IF(H81="-",0,H81) -> 0 | J81: - | K81: =IF(J81="-",0,J81) -> 0 | L81: - | M81: =IF(L81="-",0,L81) -> 0 | O81: =E81+G81+I81+K81+M81 -> 39 | P81: =MAX(D81,F81,H81,J81,L81) -> 39 | Q81: =IF(S81=1,O81,IF(S81=0,(O81-P81),"-")) -> - | R81: =COUNTIF(U81:AD81,"=TRUE") -> 1 | S81: =AE$1-R81 -> 4 | T81: =IF(S81<2,"Yes","No") -> No | U81: =IF(D81="-",1,0)*U$1 -> 1 | V81: =AND(U81=0,U$1=1) -> FALSE | W81: =IF(F81="-",1,0)*W$1 -> 0 | X81: =AND(W81=0,W$1=1) -> TRUE | Y81: =IF(H81="-",1,0)*Y$1 -> 1 | Z81: =AND(Y81=0,Y$1=1) -> FALSE | AA81: =IF(J81="-",1,0)*AA$1 -> 1 | AB81: =AND(AA81=0,AA$1=1) -> FALSE | AC81: =IF(L81="-",1,0)*AC$1 -> 1 | AD81: =AND(AC81=0,AC$1=1) -> FALSE
A82: 55 | B82: Stefan Bernhardt | C82: Loughborough Grammar School | D82: 46 | E82: =IF(D82="-",0,D82) -> 46 | F82: 41 | G82: =IF(F82="-",0,F82) -> 41 | H82: - | I82: =IF(H82="-",0,H82) -> 0 | J82: - | K82: =IF(J82="-",0,J82) -> 0 | L82: - | M82: =IF(L82="-",0,L82) -> 0 | O82: =E82+G82+I82+K82+M82 -> 87 | P82: =MAX(D82,F82,H82,J82,L82) -> 46 | Q82: =IF(S82=1,O82,IF(S82=0,(O82-P82),"-")) -> - | R82: =COUNTIF(U82:AD82,"=TRUE") -> 2 | S82: =AE$1-R82 -> 3 | T82: =IF(S82<2,"Yes","No") -> No | U82: =IF(D82="-",1,0)*U$1 -> 0 | V82: =AND(U82=0,U$1=1) -> TRUE | W82: =IF(F82="-",1,0)*W$1 -> 0 | X82: =AND(W82=0,W$1=1) -> TRUE | Y82: =IF(H82="-",1,0)*Y$1 -> 1 | Z82: =AND(Y82=0,Y$1=1) -> FALSE | AA82: =IF(J82="-",1,0)*AA$1 -> 1 | AB82: =AND(AA82=0,AA$1=1) -> FALSE | AC82: =IF(L82="-",1,0)*AC$1 -> 1 | AD82: =AND(AC82=0,AC$1=1) -> FALSE
A83: 21 | B83: Hugo Cavner | C83: John Ferneley College | D83: - | E83: =IF(D83="-",0,D83) -> 0 | F83: 45 | G83: =IF(F83="-",0,F83) -> 45 | H83: - | I83: =IF(H83="-",0,H83) -> 0 | J83: - | K83: =IF(J83="-",0,J83) -> 0 | L83: - | M83: =IF(L83="-",0,L83) -> 0 | O83: =E83+G83+I83+K83+M83 -> 45 | P83: =MAX(D83,F83,H83,J83,L83) -> 45 | Q83: =IF(S83=1,O83,IF(S83=0,(O83-P83),"-")) -> - | R83: =COUNTIF(U83:AD83,"=TRUE") -> 1 | S83: =AE$1-R83 -> 4 | T83: =IF(S83<2,"Yes","No") -> No | U83: =IF(D83="-",1,0)*U$1 -> 1 | V83: =AND(U83=0,U$1=1) -> FALSE | W83: =IF(F83="-",1,0)*W$1 -> 0 | X83: =AND(W83=0,W$1=1) -> TRUE | Y83: =IF(H83="-",1,0)*Y$1 -> 1 | Z83: =AND(Y83=0,Y$1=1) -> FALSE | AA83: =IF(J83="-",1,0)*AA$1 -> 1 | AB83: =AND(AA83=0,AA$1=1) -> FALSE | AC83: =IF(L83="-",1,0)*AC$1 -> 1 | AD83: =AND(AC83=0,AC$1=1) -> FALSE
A84: 58 | B84: Avi Sampat | C84: Crown Hills CC | D84: - | E84: =IF(D84="-",0,D84) -> 0 | F84: 51 | G84: =IF(F84="-",0,F84) -> 51 | H84: - | I84: =IF(H84="-",0,H84) -> 0 | J84: - | K84: =IF(J84="-",0,J84) -> 0 | L84: - | M84: =IF(L84="-",0,L84) -> 0 | O84: =E84+G84+I84+K84+M84 -> 51 | P84: =MAX(D84,F84,H84,J84,L84) -> 51 | Q84: =IF(S84=1,O84,IF(S84=0,(O84-P84),"-")) -> - | R84: =COUNTIF(U84:AD84,"=TRUE") -> 1 | S84: =AE$1-R84 -> 4 | T84: =IF(S84<2,"Yes","No") -> No | U84: =IF(D84="-",1,0)*U$1 -> 1 | V84: =AND(U84=0,U$1=1) -> FALSE | W84: =IF(F84="-",1,0)*W$1 -> 0 | X84: =AND(W84=0,W$1=1) -> TRUE | Y84: =IF(H84="-",1,0)*Y$1 -> 1 | Z84: =AND(Y84=0,Y$1=1) -> FALSE | AA84: =IF(J84="-",1,0)*AA$1 -> 1 | AB84: =AND(AA84=0,AA$1=1) -> FALSE | AC84: =IF(L84="-",1,0)*AC$1 -> 1 | AD84: =AND(AC84=0,AC$1=1) -> FALSE
A85: 75 | B85: David Alcott | C85: Brookvale High School | D85: 60 | E85: =IF(D85="-",0,D85) -> 60 | F85: 52 | G85: =IF(F85="-",0,F85) -> 52 | H85: - | I85: =IF(H85="-",0,H85) -> 0 | J85: - | K85: =IF(J85="-",0,J85) -> 0 | L85: - | M85: =IF(L85="-",0,L85) -> 0 | O85: =E85+G85+I85+K85+M85 -> 112 | P85: =MAX(D85,F85,H85,J85,L85) -> 60 | Q85: =IF(S85=1,O85,IF(S85=0,(O85-P85),"-")) -> - | R85: =COUNTIF(U85:AD85,"=TRUE") -> 2 | S85: =AE$1-R85 -> 3 | T85: =IF(S85<2,"Yes","No") -> No | U85: =IF(D85="-",1,0)*U$1 -> 0 | V85: =AND(U85=0,U$1=1) -> TRUE | W85: =IF(F85="-",1,0)*W$1 -> 0 | X85: =AND(W85=0,W$1=1) -> TRUE | Y85: =IF(H85="-",1,0)*Y$1 -> 1 | Z85: =AND(Y85=0,Y$1=1) -> FALSE | AA85: =IF(J85="-",1,0)*AA$1 -> 1 | AB85: =AND(AA85=0,AA$1=1) -> FALSE | AC85: =IF(L85="-",1,0)*AC$1 -> 1 | AD85: =AND(AC85=0,AC$1=1) -> FALSE
A86: 20 | B86: Myles Fenwick | C86: Uppingham CC | D86: - | E86: =IF(D86="-",0,D86) -> 0 | F86: 57 | G86: =IF(F86="-",0,F86) -> 57 | H86: - | I86: =IF(H86="-",0,H86) -> 0 | J86: - | K86: =IF(J86="-",0,J86) -> 0 | L86: - | M86: =IF(L86="-",0,L86) -> 0 | O86: =E86+G86+I86+K86+M86 -> 57 | P86: =MAX(D86,F86,H86,J86,L86) -> 57 | Q86: =IF(S86=1,O86,IF(S86=0,(O86-P86),"-")) -> - | R86: =COUNTIF(U86:AD86,"=TRUE") -> 1 | S86: =AE$1-R86 -> 4 | T86: =IF(S86<2,"Yes","No") -> No | U86: =IF(D86="-",1,0)*U$1 -> 1 | V86: =AND(U86=0,U$1=1) -> FALSE | W86: =IF(F86="-",1,0)*W$1 -> 0 | X86: =AND(W86=0,W$1=1) -> TRUE | Y86: =IF(H86="-",1,0)*Y$1 -> 1 | Z86: =AND(Y86=0,Y$1=1) -> FALSE | AA86: =IF(J86="-",1,0)*AA$1 -> 1 | AB86: =AND(AA86=0,AA$1=1) -> FALSE | AC86: =IF(L86="-",1,0)*AC$1 -> 1 | AD86: =AND(AC86=0,AC$1=1) -> FALSE
A87: 18 | B87: Abdi Malik Hirsi | C87: Crown Hills CC | D87: - | E87: =IF(D87="-",0,D87) -> 0 | F87: 59 | G87: =IF(F87="-",0,F87) -> 59 | H87: - | I87: =IF(H87="-",0,H87) -> 0 | J87: - | K87: =IF(J87="-",0,J87) -> 0 | L87: - | M87: =IF(L87="-",0,L87) -> 0 | O87: =E87+G87+I87+K87+M87 -> 59 | P87: =MAX(D87,F87,H87,J87,L87) -> 59 | Q87: =IF(S87=1,O87,IF(S87=0,(O87-P87),"-")) -> - | R87: =COUNTIF(U87:AD87,"=TRUE") -> 1 | S87: =AE$1-R87 -> 4 | T87: =IF(S87<2,"Yes","No") -> No | U87: =IF(D87="-",1,0)*U$1 -> 1 | V87: =AND(U87=0,U$1=1) -> FALSE | W87: =IF(F87="-",1,0)*W$1 -> 0 | X87: =AND(W87=0,W$1=1) -> TRUE | Y87: =IF(H87="-",1,0)*Y$1 -> 1 | Z87: =AND(Y87=0,Y$1=1) -> FALSE | AA87: =IF(J87="-",1,0)*AA$1 -> 1 | AB87: =AND(AA87=0,AA$1=1) -> FALSE | AC87: =IF(L87="-",1,0)*AC$1 -> 1 | AD87: =AND(AC87=0,AC$1=1) -> FALSE
A88: 56 | B88: Adam Lower | C88: Bosworth Academy | D88: 65 | E88: =IF(D88="-",0,D88) -> 65 | F88: 60 | G88: =IF(F88="-",0,F88) -> 60 | H88: - | I88: =IF(H88="-",0,H88) -> 0 | J88: - | K88: =IF(J88="-",0,J88) -> 0 | L88: - | M88: =IF(L88="-",0,L88) -> 0 | O88: =E88+G88+I88+K88+M88 -> 125 | P88: =MAX(D88,F88,H88,J88,L88) -> 65 | Q88: =IF(S88=1,O88,IF(S88=0,(O88-P88),"-")) -> - | R88: =COUNTIF(U88:AD88,"=TRUE") -> 2 | S88: =AE$1-R88 -> 3 | T88: =IF(S88<2,"Yes","No") -> No | U88: =IF(D88="-",1,0)*U$1 -> 0 | V88: =AND(U88=0,U$1=1) -> TRUE | W88: =IF(F88="-",1,0)*W$1 -> 0 | X88: =AND(W88=0,W$1=1) -> TRUE | Y88: =IF(H88="-",1,0)*Y$1 -> 1 | Z88: =AND(Y88=0,Y$1=1) -> FALSE | AA88: =IF(J88="-",1,0)*AA$1 -> 1 | AB88: =AND(AA88=0,AA$1=1) -> FALSE | AC88: =IF(L88="-",1,0)*AC$1 -> 1 | AD88: =AND(AC88=0,AC$1=1) -> FALSE
A89: 29 | B89: Lucas Perkins | C89: Lutterworth High School | D89: - | E89: =IF(D89="-",0,D89) -> 0 | F89: 61 | G89: =IF(F89="-",0,F89) -> 61 | H89: - | I89: =IF(H89="-",0,H89) -> 0 | J89: - | K89: =IF(J89="-",0,J89) -> 0 | L89: - | M89: =IF(L89="-",0,L89) -> 0 | O89: =E89+G89+I89+K89+M89 -> 61 | P89: =MAX(D89,F89,H89,J89,L89) -> 61 | Q89: =IF(S89=1,O89,IF(S89=0,(O89-P89),"-")) -> - | R89: =COUNTIF(U89:AD89,"=TRUE") -> 1 | S89: =AE$1-R89 -> 4 | T89: =IF(S89<2,"Yes","No") -> No | U89: =IF(D89="-",1,0)*U$1 -> 1 | V89: =AND(U89=0,U$1=1) -> FALSE | W89: =IF(F89="-",1,0)*W$1 -> 0 | X89: =AND(W89=0,W$1=1) -> TRUE | Y89: =IF(H89="-",1,0)*Y$1 -> 1 | Z89: =AND(Y89=0,Y$1=1) -> FALSE | AA89: =IF(J89="-",1,0)*AA$1 -> 1 | AB89: =AND(AA89=0,AA$1=1) -> FALSE | AC89: =IF(L89="-",1,0)*AC$1 -> 1 | AD89: =AND(AC89=0,AC$1=1) -> FALSE
A90: 82 | B90: Henry Cooke | C90: Manor High School | D90: 56 | E90: =IF(D90="-",0,D90) -> 56 | F90: 64 | G90: =IF(F90="-",0,F90) -> 64 | H90: - | I90: =IF(H90="-",0,H90) -> 0 | J90: - | K90: =IF(J90="-",0,J90) -> 0 | L90: - | M90: =IF(L90="-",0,L90) -> 0 | O90: =E90+G90+I90+K90+M90 -> 120 | P90: =MAX(D90,F90,H90,J90,L90) -> 64 | Q90: =IF(S90=1,O90,IF(S90=0,(O90-P90),"-")) -> - | R90: =COUNTIF(U90:AD90,"=TRUE") -> 2 | S90: =AE$1-R90 -> 3 | T90: =IF(S90<2,"Yes","No") -> No | U90: =IF(D90="-",1,0)*U$1 -> 0 | V90: =AND(U90=0,U$1=1) -> TRUE | W90: =IF(F90="-",1,0)*W$1 -> 0 | X90: =AND(W90=0,W$1=1) -> TRUE | Y90: =IF(H90="-",1,0)*Y$1 -> 1 | Z90: =AND(Y90=0,Y$1=1) -> FALSE | AA90: =IF(J90="-",1,0)*AA$1 -> 1 | AB90: =AND(AA90=0,AA$1=1) -> FALSE | AC90: =IF(L90="-",1,0)*AC$1 -> 1 | AD90: =AND(AC90=0,AC$1=1) -> FALSE
A91: 86 | B91: Tyler Silk | C91: John Ferneley College | D91: 67 | E91: =IF(D91="-",0,D91) -> 67 | F91: 65 | G91: =IF(F91="-",0,F91) -> 65 | H91: - | I91: =IF(H91="-",0,H91) -> 0 | J91: - | K91: =IF(J91="-",0,J91) -> 0 | L91: - | M91: =IF(L91="-",0,L91) -> 0 | O91: =E91+G91+I91+K91+M91 -> 132 | P91: =MAX(D91,F91,H91,J91,L91) -> 67 | Q91: =IF(S91=1,O91,IF(S91=0,(O91-P91),"-")) -> - | R91: =COUNTIF(U91:AD91,"=TRUE") -> 2 | S91: =AE$1-R91 -> 3 | T91: =IF(S91<2,"Yes","No") -> No | U91: =IF(D91="-",1,0)*U$1 -> 0 | V91: =AND(U91=0,U$1=1) -> TRUE | W91: =IF(F91="-",1,0)*W$1 -> 0 | X91: =AND(W91=0,W$1=1) -> TRUE | Y91: =IF(H91="-",1,0)*Y$1 -> 1 | Z91: =AND(Y91=0,Y$1=1) -> FALSE | AA91: =IF(J91="-",1,0)*AA$1 -> 1 | AB91: =AND(AA91=0,AA$1=1) -> FALSE | AC91: =IF(L91="-",1,0)*AC$1 -> 1 | AD91: =AND(AC91=0,AC$1=1) -> FALSE
A92: 32 | B92: Harry Staley | C92: John Ferneley College | D92: - | E92: =IF(D92="-",0,D92) -> 0 | F92: 66 | G92: =IF(F92="-",0,F92) -> 66 | H92: - | I92: =IF(H92="-",0,H92) -> 0 | J92: - | K92: =IF(J92="-",0,J92) -> 0 | L92: - | M92: =IF(L92="-",0,L92) -> 0 | O92: =E92+G92+I92+K92+M92 -> 66 | P92: =MAX(D92,F92,H92,J92,L92) -> 66 | Q92: =IF(S92=1,O92,IF(S92=0,(O92-P92),"-")) -> - | R92: =COUNTIF(U92:AD92,"=TRUE") -> 1 | S92: =AE$1-R92 -> 4 | T92: =IF(S92<2,"Yes","No") -> No | U92: =IF(D92="-",1,0)*U$1 -> 1 | V92: =AND(U92=0,U$1=1) -> FALSE | W92: =IF(F92="-",1,0)*W$1 -> 0 | X92: =AND(W92=0,W$1=1) -> TRUE | Y92: =IF(H92="-",1,0)*Y$1 -> 1 | Z92: =AND(Y92=0,Y$1=1) -> FALSE | AA92: =IF(J92="-",1,0)*AA$1 -> 1 | AB92: =AND(AA92=0,AA$1=1) -> FALSE | AC92: =IF(L92="-",1,0)*AC$1 -> 1 | AD92: =AND(AC92=0,AC$1=1) -> FALSE
A93: 50 | B93: ? Jones | C93: Loughborough Grammar School | D93: 3 | E93: =IF(D93="-",0,D93) -> 3 | F93: - | G93: =IF(F93="-",0,F93) -> 0 | H93: - | I93: =IF(H93="-",0,H93) -> 0 | J93: - | K93: =IF(J93="-",0,J93) -> 0 | L93: - | M93: =IF(L93="-",0,L93) -> 0 | O93: =E93+G93+I93+K93+M93 -> 3 | P93: =MAX(D93,F93,H93,J93,L93) -> 3 | Q93: =IF(S93=1,O93,IF(S93=0,(O93-P93),"-")) -> - | R93: =COUNTIF(U93:AD93,"=TRUE") -> 1 | S93: =AE$1-R93 -> 4 | T93: =IF(S93<2,"Yes","No") -> No | U93: =IF(D93="-",1,0)*U$1 -> 0 | V93: =AND(U93=0,U$1=1) -> TRUE | W93: =IF(F93="-",1,0)*W$1 -> 1 | X93: =AND(W93=0,W$1=1) -> FALSE | Y93: =IF(H93="-",1,0)*Y$1 -> 1 | Z93: =AND(Y93=0,Y$1=1) -> FALSE | AA93: =IF(J93="-",1,0)*AA$1 -> 1 | AB93: =AND(AA93=0,AA$1=1) -> FALSE | AC93: =IF(L93="-",1,0)*AC$1 -> 1 | AD93: =AND(AC93=0,AC$1=1) -> FALSE
A94: 1 | B94: Harrison Stuart | C94: Roundhill Academy | D94: 13 | E94: =IF(D94="-",0,D94) -> 13 | F94: - | G94: =IF(F94="-",0,F94) -> 0 | H94: - | I94: =IF(H94="-",0,H94) -> 0 | J94: - | K94: =IF(J94="-",0,J94) -> 0 | L94: - | M94: =IF(L94="-",0,L94) -> 0 | O94: =E94+G94+I94+K94+M94 -> 13 | P94: =MAX(D94,F94,H94,J94,L94) -> 13 | Q94: =IF(S94=1,O94,IF(S94=0,(O94-P94),"-")) -> - | R94: =COUNTIF(U94:AD94,"=TRUE") -> 1 | S94: =AE$1-R94 -> 4 | T94: =IF(S94<2,"Yes","No") -> No | U94: =IF(D94="-",1,0)*U$1 -> 0 | V94: =AND(U94=0,U$1=1) -> TRUE | W94: =IF(F94="-",1,0)*W$1 -> 1 | X94: =AND(W94=0,W$1=1) -> FALSE | Y94: =IF(H94="-",1,0)*Y$1 -> 1 | Z94: =AND(Y94=0,Y$1=1) -> FALSE | AA94: =IF(J94="-",1,0)*AA$1 -> 1 | AB94: =AND(AA94=0,AA$1=1) -> FALSE | AC94: =IF(L94="-",1,0)*AC$1 -> 1 | AD94: =AND(AC94=0,AC$1=1) -> FALSE
A95: 30 | B95: Ryan Elston | C95: Rawlins College | D95: 15 | E95: =IF(D95="-",0,D95) -> 15 | F95: - | G95: =IF(F95="-",0,F95) -> 0 | H95: - | I95: =IF(H95="-",0,H95) -> 0 | J95: - | K95: =IF(J95="-",0,J95) -> 0 | L95: - | M95: =IF(L95="-",0,L95) -> 0 | O95: =E95+G95+I95+K95+M95 -> 15 | P95: =MAX(D95,F95,H95,J95,L95) -> 15 | Q95: =IF(S95=1,O95,IF(S95=0,(O95-P95),"-")) -> - | R95: =COUNTIF(U95:AD95,"=TRUE") -> 1 | S95: =AE$1-R95 -> 4 | T95: =IF(S95<2,"Yes","No") -> No | U95: =IF(D95="-",1,0)*U$1 -> 0 | V95: =AND(U95=0,U$1=1) -> TRUE | W95: =IF(F95="-",1,0)*W$1 -> 1 | X95: =AND(W95=0,W$1=1) -> FALSE | Y95: =IF(H95="-",1,0)*Y$1 -> 1 | Z95: =AND(Y95=0,Y$1=1) -> FALSE | AA95: =IF(J95="-",1,0)*AA$1 -> 1 | AB95: =AND(AA95=0,AA$1=1) -> FALSE | AC95: =IF(L95="-",1,0)*AC$1 -> 1 | AD95: =AND(AC95=0,AC$1=1) -> FALSE
A96: 70 | B96: James Creedon | C96: St Pauls Catholic School | D96: 19 | E96: =IF(D96="-",0,D96) -> 19 | F96: - | G96: =IF(F96="-",0,F96) -> 0 | H96: - | I96: =IF(H96="-",0,H96) -> 0 | J96: - | K96: =IF(J96="-",0,J96) -> 0 | L96: - | M96: =IF(L96="-",0,L96) -> 0 | O96: =E96+G96+I96+K96+M96 -> 19 | P96: =MAX(D96,F96,H96,J96,L96) -> 19 | Q96: =IF(S96=1,O96,IF(S96=0,(O96-P96),"-")) -> - | R96: =COUNTIF(U96:AD96,"=TRUE") -> 1 | S96: =AE$1-R96 -> 4 | T96: =IF(S96<2,"Yes","No") -> No | U96: =IF(D96="-",1,0)*U$1 -> 0 | V96: =AND(U96=0,U$1=1) -> TRUE | W96: =IF(F96="-",1,0)*W$1 -> 1 | X96: =AND(W96=0,W$1=1) -> FALSE | Y96: =IF(H96="-",1,0)*Y$1 -> 1 | Z96: =AND(Y96=0,Y$1=1) -> FALSE | AA96: =IF(J96="-",1,0)*AA$1 -> 1 | AB96: =AND(AA96=0,AA$1=1) -> FALSE | AC96: =IF(L96="-",1,0)*AC$1 -> 1 | AD96: =AND(AC96=0,AC$1=1) -> FALSE
A97: 63 | B97: Abdalrahim Mohammed | C97: Crown Hills CC | D97: 28 | E97: =IF(D97="-",0,D97) -> 28 | F97: - | G97: =IF(F97="-",0,F97) -> 0 | H97: - | I97: =IF(H97="-",0,H97) -> 0 | J97: - | K97: =IF(J97="-",0,J97) -> 0 | L97: - | M97: =IF(L97="-",0,L97) -> 0 | O97: =E97+G97+I97+K97+M97 -> 28 | P97: =MAX(D97,F97,H97,J97,L97) -> 28 | Q97: =IF(S97=1,O97,IF(S97=0,(O97-P97),"-")) -> - | R97: =COUNTIF(U97:AD97,"=TRUE") -> 1 | S97: =AE$1-R97 -> 4 | T97: =IF(S97<2,"Yes","No") -> No | U97: =IF(D97="-",1,0)*U$1 -> 0 | V97: =AND(U97=0,U$1=1) -> TRUE | W97: =IF(F97="-",1,0)*W$1 -> 1 | X97: =AND(W97=0,W$1=1) -> FALSE | Y97: =IF(H97="-",1,0)*Y$1 -> 1 | Z97: =AND(Y97=0,Y$1=1) -> FALSE | AA97: =IF(J97="-",1,0)*AA$1 -> 1 | AB97: =AND(AA97=0,AA$1=1) -> FALSE | AC97: =IF(L97="-",1,0)*AC$1 -> 1 | AD97: =AND(AC97=0,AC$1=1) -> FALSE
A98: 93 | B98: Sam Partis | C98: The Martin High School | D98: 32 | E98: =IF(D98="-",0,D98) -> 32 | F98: - | G98: =IF(F98="-",0,F98) -> 0 | H98: - | I98: =IF(H98="-",0,H98) -> 0 | J98: - | K98: =IF(J98="-",0,J98) -> 0 | L98: - | M98: =IF(L98="-",0,L98) -> 0 | O98: =E98+G98+I98+K98+M98 -> 32 | P98: =MAX(D98,F98,H98,J98,L98) -> 32 | Q98: =IF(S98=1,O98,IF(S98=0,(O98-P98),"-")) -> - | R98: =COUNTIF(U98:AD98,"=TRUE") -> 1 | S98: =AE$1-R98 -> 4 | T98: =IF(S98<2,"Yes","No") -> No | U98: =IF(D98="-",1,0)*U$1 -> 0 | V98: =AND(U98=0,U$1=1) -> TRUE | W98: =IF(F98="-",1,0)*W$1 -> 1 | X98: =AND(W98=0,W$1=1) -> FALSE | Y98: =IF(H98="-",1,0)*Y$1 -> 1 | Z98: =AND(Y98=0,Y$1=1) -> FALSE | AA98: =IF(J98="-",1,0)*AA$1 -> 1 | AB98: =AND(AA98=0,AA$1=1) -> FALSE | AC98: =IF(L98="-",1,0)*AC$1 -> 1 | AD98: =AND(AC98=0,AC$1=1) -> FALSE
A99: 33 | B99: Finn O'Brien | C99: Rawlins College | D99: 36 | E99: =IF(D99="-",0,D99) -> 36 | F99: - | G99: =IF(F99="-",0,F99) -> 0 | H99: - | I99: =IF(H99="-",0,H99) -> 0 | J99: - | K99: =IF(J99="-",0,J99) -> 0 | L99: - | M99: =IF(L99="-",0,L99) -> 0 | O99: =E99+G99+I99+K99+M99 -> 36 | P99: =MAX(D99,F99,H99,J99,L99) -> 36 | Q99: =IF(S99=1,O99,IF(S99=0,(O99-P99),"-")) -> - | R99: =COUNTIF(U99:AD99,"=TRUE") -> 1 | S99: =AE$1-R99 -> 4 | T99: =IF(S99<2,"Yes","No") -> No | U99: =IF(D99="-",1,0)*U$1 -> 0 | V99: =AND(U99=0,U$1=1) -> TRUE | W99: =IF(F99="-",1,0)*W$1 -> 1 | X99: =AND(W99=0,W$1=1) -> FALSE | Y99: =IF(H99="-",1,0)*Y$1 -> 1 | Z99: =AND(Y99=0,Y$1=1) -> FALSE | AA99: =IF(J99="-",1,0)*AA$1 -> 1 | AB99: =AND(AA99=0,AA$1=1) -> FALSE | AC99: =IF(L99="-",1,0)*AC$1 -> 1 | AD99: =AND(AC99=0,AC$1=1) -> FALSE
A100: 95 | B100: Jak Green | C100: Redmoor Academy | D100: 37 | E100: =IF(D100="-",0,D100) -> 37 | F100: - | G100: =IF(F100="-",0,F100) -> 0 | H100: - | I100: =IF(H100="-",0,H100) -> 0 | J100: - | K100: =IF(J100="-",0,J100) -> 0 | L100: - | M100: =IF(L100="-",0,L100) -> 0 | O100: =E100+G100+I100+K100+M100 -> 37 | P100: =MAX(D100,F100,H100,J100,L100) -> 37 | Q100: =IF(S100=1,O100,IF(S100=0,(O100-P100),"-")) -> - | R100: =COUNTIF(U100:AD100,"=TRUE") -> 1 | S100: =AE$1-R100 -> 4 | T100: =IF(S100<2,"Yes","No") -> No | U100: =IF(D100="-",1,0)*U$1 -> 0 | V100: =AND(U100=0,U$1=1) -> TRUE | W100: =IF(F100="-",1,0)*W$1 -> 1 | X100: =AND(W100=0,W$1=1) -> FALSE | Y100: =IF(H100="-",1,0)*Y$1 -> 1 | Z100: =AND(Y100=0,Y$1=1) -> FALSE | AA100: =IF(J100="-",1,0)*AA$1 -> 1 | AB100: =AND(AA100=0,AA$1=1) -> FALSE | AC100: =IF(L100="-",1,0)*AC$1 -> 1 | AD100: =AND(AC100=0,AC$1=1) -> FALSE
A101: 31 | B101: James O'Brien | C101: Rawlins College | D101: 43 | E101: =IF(D101="-",0,D101) -> 43 | F101: - | G101: =IF(F101="-",0,F101) -> 0 | H101: - | I101: =IF(H101="-",0,H101) -> 0 | J101: - | K101: =IF(J101="-",0,J101) -> 0 | L101: - | M101: =IF(L101="-",0,L101) -> 0 | O101: =E101+G101+I101+K101+M101 -> 43 | P101: =MAX(D101,F101,H101,J101,L101) -> 43 | Q101: =IF(S101=1,O101,IF(S101=0,(O101-P101),"-")) -> - | R101: =COUNTIF(U101:AD101,"=TRUE") -> 1 | S101: =AE$1-R101 -> 4 | T101: =IF(S101<2,"Yes","No") -> No | U101: =IF(D101="-",1,0)*U$1 -> 0 | V101: =AND(U101=0,U$1=1) -> TRUE | W101: =IF(F101="-",1,0)*W$1 -> 1 | X101: =AND(W101=0,W$1=1) -> FALSE | Y101: =IF(H101="-",1,0)*Y$1 -> 1 | Z101: =AND(Y101=0,Y$1=1) -> FALSE | AA101: =IF(J101="-",1,0)*AA$1 -> 1 | AB101: =AND(AA101=0,AA$1=1) -> FALSE | AC101: =IF(L101="-",1,0)*AC$1 -> 1 | AD101: =AND(AC101=0,AC$1=1) -> FALSE
A102: 67 | B102: Luke Chapman | C102: The Martin High School | D102: 44 | E102: =IF(D102="-",0,D102) -> 44 | F102: - | G102: =IF(F102="-",0,F102) -> 0 | H102: - | I102: =IF(H102="-",0,H102) -> 0 | J102: - | K102: =IF(J102="-",0,J102) -> 0 | L102: - | M102: =IF(L102="-",0,L102) -> 0 | O102: =E102+G102+I102+K102+M102 -> 44 | P102: =MAX(D102,F102,H102,J102,L102) -> 44 | Q102: =IF(S102=1,O102,IF(S102=0,(O102-P102),"-")) -> - | R102: =COUNTIF(U102:AD102,"=TRUE") -> 1 | S102: =AE$1-R102 -> 4 | T102: =IF(S102<2,"Yes","No") -> No | U102: =IF(D102="-",1,0)*U$1 -> 0 | V102: =AND(U102=0,U$1=1) -> TRUE | W102: =IF(F102="-",1,0)*W$1 -> 1 | X102: =AND(W102=0,W$1=1) -> FALSE | Y102: =IF(H102="-",1,0)*Y$1 -> 1 | Z102: =AND(Y102=0,Y$1=1) -> FALSE | AA102: =IF(J102="-",1,0)*AA$1 -> 1 | AB102: =AND(AA102=0,AA$1=1) -> FALSE | AC102: =IF(L102="-",1,0)*AC$1 -> 1 | AD102: =AND(AC102=0,AC$1=1) -> FALSE
A103: 89 | B103: Jude Singleton | C103: Kibworth High School | D103: 50 | E103: =IF(D103="-",0,D103) -> 50 | F103: - | G103: =IF(F103="-",0,F103) -> 0 | H103: - | I103: =IF(H103="-",0,H103) -> 0 | J103: - | K103: =IF(J103="-",0,J103) -> 0 | L103: - | M103: =IF(L103="-",0,L103) -> 0 | O103: =E103+G103+I103+K103+M103 -> 50 | P103: =MAX(D103,F103,H103,J103,L103) -> 50 | Q103: =IF(S103=1,O103,IF(S103=0,(O103-P103),"-")) -> - | R103: =COUNTIF(U103:AD103,"=TRUE") -> 1 | S103: =AE$1-R103 -> 4 | T103: =IF(S103<2,"Yes","No") -> No | U103: =IF(D103="-",1,0)*U$1 -> 0 | V103: =AND(U103=0,U$1=1) -> TRUE | W103: =IF(F103="-",1,0)*W$1 -> 1 | X103: =AND(W103=0,W$1=1) -> FALSE | Y103: =IF(H103="-",1,0)*Y$1 -> 1 | Z103: =AND(Y103=0,Y$1=1) -> FALSE | AA103: =IF(J103="-",1,0)*AA$1 -> 1 | AB103: =AND(AA103=0,AA$1=1) -> FALSE | AC103: =IF(L103="-",1,0)*AC$1 -> 1 | AD103: =AND(AC103=0,AC$1=1) -> FALSE
A104: 59 | B104: Ben Copley | C104: John Ferneley College | D104: 51 | E104: =IF(D104="-",0,D104) -> 51 | F104: - | G104: =IF(F104="-",0,F104) -> 0 | H104: - | I104: =IF(H104="-",0,H104) -> 0 | J104: - | K104: =IF(J104="-",0,J104) -> 0 | L104: - | M104: =IF(L104="-",0,L104) -> 0 | O104: =E104+G104+I104+K104+M104 -> 51 | P104: =MAX(D104,F104,H104,J104,L104) -> 51 | Q104: =IF(S104=1,O104,IF(S104=0,(O104-P104),"-")) -> - | R104: =COUNTIF(U104:AD104,"=TRUE") -> 1 | S104: =AE$1-R104 -> 4 | T104: =IF(S104<2,"Yes","No") -> No | U104: =IF(D104="-",1,0)*U$1 -> 0 | V104: =AND(U104=0,U$1=1) -> TRUE | W104: =IF(F104="-",1,0)*W$1 -> 1 | X104: =AND(W104=0,W$1=1) -> FALSE | Y104: =IF(H104="-",1,0)*Y$1 -> 1 | Z104: =AND(Y104=0,Y$1=1) -> FALSE | AA104: =IF(J104="-",1,0)*AA$1 -> 1 | AB104: =AND(AA104=0,AA$1=1) -> FALSE | AC104: =IF(L104="-",1,0)*AC$1 -> 1 | AD104: =AND(AC104=0,AC$1=1) -> FALSE
A105: 10 | B105: Adam Walker | C105: Hastings High School | D105: 57 | E105: =IF(D105="-",0,D105) -> 57 | F105: - | G105: =IF(F105="-",0,F105) -> 0 | H105: - | I105: =IF(H105="-",0,H105) -> 0 | J105: - | K105: =IF(J105="-",0,J105) -> 0 | L105: - | M105: =IF(L105="-",0,L105) -> 0 | O105: =E105+G105+I105+K105+M105 -> 57 | P105: =MAX(D105,F105,H105,J105,L105) -> 57 | Q105: =IF(S105=1,O105,IF(S105=0,(O105-P105),"-")) -> - | R105: =COUNTIF(U105:AD105,"=TRUE") -> 1 | S105: =AE$1-R105 -> 4 | T105: =IF(S105<2,"Yes","No") -> No | U105: =IF(D105="-",1,0)*U$1 -> 0 | V105: =AND(U105=0,U$1=1) -> TRUE | W105: =IF(F105="-",1,0)*W$1 -> 1 | X105: =AND(W105=0,W$1=1) -> FALSE | Y105: =IF(H105="-",1,0)*Y$1 -> 1 | Z105: =AND(Y105=0,Y$1=1) -> FALSE | AA105: =IF(J105="-",1,0)*AA$1 -> 1 | AB105: =AND(AA105=0,AA$1=1) -> FALSE | AC105: =IF(L105="-",1,0)*AC$1 -> 1 | AD105: =AND(AC105=0,AC$1=1) -> FALSE
A106: 3 | B106: Josh Abbott | C106: De Lisle College | D106: 59 | E106: =IF(D106="-",0,D106) -> 59 | F106: - | G106: =IF(F106="-",0,F106) -> 0 | H106: - | I106: =IF(H106="-",0,H106) -> 0 | J106: - | K106: =IF(J106="-",0,J106) -> 0 | L106: - | M106: =IF(L106="-",0,L106) -> 0 | O106: =E106+G106+I106+K106+M106 -> 59 | P106: =MAX(D106,F106,H106,J106,L106) -> 59 | Q106: =IF(S106=1,O106,IF(S106=0,(O106-P106),"-")) -> - | R106: =COUNTIF(U106:AD106,"=TRUE") -> 1 | S106: =AE$1-R106 -> 4 | T106: =IF(S106<2,"Yes","No") -> No | U106: =IF(D106="-",1,0)*U$1 -> 0 | V106: =AND(U106=0,U$1=1) -> TRUE | W106: =IF(F106="-",1,0)*W$1 -> 1 | X106: =AND(W106=0,W$1=1) -> FALSE | Y106: =IF(H106="-",1,0)*Y$1 -> 1 | Z106: =AND(Y106=0,Y$1=1) -> FALSE | AA106: =IF(J106="-",1,0)*AA$1 -> 1 | AB106: =AND(AA106=0,AA$1=1) -> FALSE | AC106: =IF(L106="-",1,0)*AC$1 -> 1 | AD106: =AND(AC106=0,AC$1=1) -> FALSE
A107: 28 | B107: Mohammed Ali | C107: Crown Hills CC | D107: 66 | E107: =IF(D107="-",0,D107) -> 66 | F107: - | G107: =IF(F107="-",0,F107) -> 0 | H107: - | I107: =IF(H107="-",0,H107) -> 0 | J107: - | K107: =IF(J107="-",0,J107) -> 0 | L107: - | M107: =IF(L107="-",0,L107) -> 0 | O107: =E107+G107+I107+K107+M107 -> 66 | P107: =MAX(D107,F107,H107,J107,L107) -> 66 | Q107: =IF(S107=1,O107,IF(S107=0,(O107-P107),"-")) -> - | R107: =COUNTIF(U107:AD107,"=TRUE") -> 1 | S107: =AE$1-R107 -> 4 | T107: =IF(S107<2,"Yes","No") -> No | U107: =IF(D107="-",1,0)*U$1 -> 0 | V107: =AND(U107=0,U$1=1) -> TRUE | W107: =IF(F107="-",1,0)*W$1 -> 1 | X107: =AND(W107=0,W$1=1) -> FALSE | Y107: =IF(H107="-",1,0)*Y$1 -> 1 | Z107: =AND(Y107=0,Y$1=1) -> FALSE | AA107: =IF(J107="-",1,0)*AA$1 -> 1 | AB107: =AND(AA107=0,AA$1=1) -> FALSE | AC107: =IF(L107="-",1,0)*AC$1 -> 1 | AD107: =AND(AC107=0,AC$1=1) -> FALSE
A108: 52 | B108: Arthur Chan | C108: Loughborough Grammar School | D108: 68 | E108: =IF(D108="-",0,D108) -> 68 | F108: - | G108: =IF(F108="-",0,F108) -> 0 | H108: - | I108: =IF(H108="-",0,H108) -> 0 | J108: - | K108: =IF(J108="-",0,J108) -> 0 | L108: - | M108: =IF(L108="-",0,L108) -> 0 | O108: =E108+G108+I108+K108+M108 -> 68 | P108: =MAX(D108,F108,H108,J108,L108) -> 68 | Q108: =IF(S108=1,O108,IF(S108=0,(O108-P108),"-")) -> - | R108: =COUNTIF(U108:AD108,"=TRUE") -> 1 | S108: =AE$1-R108 -> 4 | T108: =IF(S108<2,"Yes","No") -> No | U108: =IF(D108="-",1,0)*U$1 -> 0 | V108: =AND(U108=0,U$1=1) -> TRUE | W108: =IF(F108="-",1,0)*W$1 -> 1 | X108: =AND(W108=0,W$1=1) -> FALSE | Y108: =IF(H108="-",1,0)*Y$1 -> 1 | Z108: =AND(Y108=0,Y$1=1) -> FALSE | AA108: =IF(J108="-",1,0)*AA$1 -> 1 | AB108: =AND(AA108=0,AA$1=1) -> FALSE | AC108: =IF(L108="-",1,0)*AC$1 -> 1 | AD108: =AND(AC108=0,AC$1=1) -> FALSE
A109: 106 | C109: - | D109: - | E109: =IF(D109="-",0,D109) -> 0 | F109: - | G109: =IF(F109="-",0,F109) -> 0 | H109: - | I109: =IF(H109="-",0,H109) -> 0 | J109: - | K109: =IF(J109="-",0,J109) -> 0 | L109: - | M109: =IF(L109="-",0,L109) -> 0 | O109: =E109+G109+I109+K109+M109 -> 0 | P109: =MAX(D109,F109,H109,J109,L109) -> 0 | Q109: =IF(S109=1,O109,IF(S109=0,(O109-P109),"-")) -> - | R109: =COUNTIF(U109:AD109,"=TRUE") -> 0 | S109: =AE$1-R109 -> 5 | T109: =IF(S109<2,"Yes","No") -> No | U109: =IF(D109="-",1,0)*U$1 -> 1 | V109: =AND(U109=0,U$1=1) -> FALSE | W109: =IF(F109="-",1,0)*W$1 -> 1 | X109: =AND(W109=0,W$1=1) -> FALSE | Y109: =IF(H109="-",1,0)*Y$1 -> 1 | Z109: =AND(Y109=0,Y$1=1) -> FALSE | AA109: =IF(J109="-",1,0)*AA$1 -> 1 | AB109: =AND(AA109=0,AA$1=1) -> FALSE | AC109: =IF(L109="-",1,0)*AC$1 -> 1 | AD109: =AND(AC109=0,AC$1=1) -> FALSE
A110: 107 | C110: - | D110: - | E110: =IF(D110="-",0,D110) -> 0 | F110: - | G110: =IF(F110="-",0,F110) -> 0 | H110: - | I110: =IF(H110="-",0,H110) -> 0 | J110: - | K110: =IF(J110="-",0,J110) -> 0 | L110: - | M110: =IF(L110="-",0,L110) -> 0 | O110: =E110+G110+I110+K110+M110 -> 0 | P110: =MAX(D110,F110,H110,J110,L110) -> 0 | Q110: =IF(S110=1,O110,IF(S110=0,(O110-P110),"-")) -> - | R110: =COUNTIF(U110:AD110,"=TRUE") -> 0 | S110: =AE$1-R110 -> 5 | T110: =IF(S110<2,"Yes","No") -> No | U110: =IF(D110="-",1,0)*U$1 -> 1 | V110: =AND(U110=0,U$1=1) -> FALSE | W110: =IF(F110="-",1,0)*W$1 -> 1 | X110: =AND(W110=0,W$1=1) -> FALSE | Y110: =IF(H110="-",1,0)*Y$1 -> 1 | Z110: =AND(Y110=0,Y$1=1) -> FALSE | AA110: =IF(J110="-",1,0)*AA$1 -> 1 | AB110: =AND(AA110=0,AA$1=1) -> FALSE | AC110: =IF(L110="-",1,0)*AC$1 -> 1 | AD110: =AND(AC110=0,AC$1=1) -> FALSE
A111: 108 | C111: - | D111: - | E111: =IF(D111="-",0,D111) -> 0 | F111: - | G111: =IF(F111="-",0,F111) -> 0 | H111: - | I111: =IF(H111="-",0,H111) -> 0 | J111: - | K111: =IF(J111="-",0,J111) -> 0 | L111: - | M111: =IF(L111="-",0,L111) -> 0 | O111: =E111+G111+I111+K111+M111 -> 0 | P111: =MAX(D111,F111,H111,J111,L111) -> 0 | Q111: =IF(S111=1,O111,IF(S111=0,(O111-P111),"-")) -> - | R111: =COUNTIF(U111:AD111,"=TRUE") -> 0 | S111: =AE$1-R111 -> 5 | T111: =IF(S111<2,"Yes","No") -> No | U111: =IF(D111="-",1,0)*U$1 -> 1 | V111: =AND(U111=0,U$1=1) -> FALSE | W111: =IF(F111="-",1,0)*W$1 -> 1 | X111: =AND(W111=0,W$1=1) -> FALSE | Y111: =IF(H111="-",1,0)*Y$1 -> 1 | Z111: =AND(Y111=0,Y$1=1) -> FALSE | AA111: =IF(J111="-",1,0)*AA$1 -> 1 | AB111: =AND(AA111=0,AA$1=1) -> FALSE | AC111: =IF(L111="-",1,0)*AC$1 -> 1 | AD111: =AND(AC111=0,AC$1=1) -> FALSE
A112: 109 | C112: - | D112: - | E112: =IF(D112="-",0,D112) -> 0 | F112: - | G112: =IF(F112="-",0,F112) -> 0 | H112: - | I112: =IF(H112="-",0,H112) -> 0 | J112: - | K112: =IF(J112="-",0,J112) -> 0 | L112: - | M112: =IF(L112="-",0,L112) -> 0 | O112: =E112+G112+I112+K112+M112 -> 0 | P112: =MAX(D112,F112,H112,J112,L112) -> 0 | Q112: =IF(S112=1,O112,IF(S112=0,(O112-P112),"-")) -> - | R112: =COUNTIF(U112:AD112,"=TRUE") -> 0 | S112: =AE$1-R112 -> 5 | T112: =IF(S112<2,"Yes","No") -> No | U112: =IF(D112="-",1,0)*U$1 -> 1 | V112: =AND(U112=0,U$1=1) -> FALSE | W112: =IF(F112="-",1,0)*W$1 -> 1 | X112: =AND(W112=0,W$1=1) -> FALSE | Y112: =IF(H112="-",1,0)*Y$1 -> 1 | Z112: =AND(Y112=0,Y$1=1) -> FALSE | AA112: =IF(J112="-",1,0)*AA$1 -> 1 | AB112: =AND(AA112=0,AA$1=1) -> FALSE | AC112: =IF(L112="-",1,0)*AC$1 -> 1 | AD112: =AND(AC112=0,AC$1=1) -> FALSE
A113: 110 | C113: - | D113: - | E113: =IF(D113="-",0,D113) -> 0 | F113: - | G113: =IF(F113="-",0,F113) -> 0 | H113: - | I113: =IF(H113="-",0,H113) -> 0 | J113: - | K113: =IF(J113="-",0,J113) -> 0 | L113: - | M113: =IF(L113="-",0,L113) -> 0 | O113: =E113+G113+I113+K113+M113 -> 0 | P113: =MAX(D113,F113,H113,J113,L113) -> 0 | Q113: =IF(S113=1,O113,IF(S113=0,(O113-P113),"-")) -> - | R113: =COUNTIF(U113:AD113,"=TRUE") -> 0 | S113: =AE$1-R113 -> 5 | T113: =IF(S113<2,"Yes","No") -> No | U113: =IF(D113="-",1,0)*U$1 -> 1 | V113: =AND(U113=0,U$1=1) -> FALSE | W113: =IF(F113="-",1,0)*W$1 -> 1 | X113: =AND(W113=0,W$1=1) -> FALSE | Y113: =IF(H113="-",1,0)*Y$1 -> 1 | Z113: =AND(Y113=0,Y$1=1) -> FALSE | AA113: =IF(J113="-",1,0)*AA$1 -> 1 | AB113: =AND(AA113=0,AA$1=1) -> FALSE | AC113: =IF(L113="-",1,0)*AC$1 -> 1 | AD113: =AND(AC113=0,AC$1=1) -> FALSE
A114: 111 | C114: - | D114: - | E114: =IF(D114="-",0,D114) -> 0 | F114: - | G114: =IF(F114="-",0,F114) -> 0 | H114: - | I114: =IF(H114="-",0,H114) -> 0 | J114: - | K114: =IF(J114="-",0,J114) -> 0 | L114: - | M114: =IF(L114="-",0,L114) -> 0 | O114: =E114+G114+I114+K114+M114 -> 0 | P114: =MAX(D114,F114,H114,J114,L114) -> 0 | Q114: =IF(S114=1,O114,IF(S114=0,(O114-P114),"-")) -> - | R114: =COUNTIF(U114:AD114,"=TRUE") -> 0 | S114: =AE$1-R114 -> 5 | T114: =IF(S114<2,"Yes","No") -> No | U114: =IF(D114="-",1,0)*U$1 -> 1 | V114: =AND(U114=0,U$1=1) -> FALSE | W114: =IF(F114="-",1,0)*W$1 -> 1 | X114: =AND(W114=0,W$1=1) -> FALSE | Y114: =IF(H114="-",1,0)*Y$1 -> 1 | Z114: =AND(Y114=0,Y$1=1) -> FALSE | AA114: =IF(J114="-",1,0)*AA$1 -> 1 | AB114: =AND(AA114=0,AA$1=1) -> FALSE | AC114: =IF(L114="-",1,0)*AC$1 -> 1 | AD114: =AND(AC114=0,AC$1=1) -> FALSE
A115: 112 | C115: - | D115: - | E115: =IF(D115="-",0,D115) -> 0 | F115: - | G115: =IF(F115="-",0,F115) -> 0 | H115: - | I115: =IF(H115="-",0,H115) -> 0 | J115: - | K115: =IF(J115="-",0,J115) -> 0 | L115: - | M115: =IF(L115="-",0,L115) -> 0 | O115: =E115+G115+I115+K115+M115 -> 0 | P115: =MAX(D115,F115,H115,J115,L115) -> 0 | Q115: =IF(S115=1,O115,IF(S115=0,(O115-P115),"-")) -> - | R115: =COUNTIF(U115:AD115,"=TRUE") -> 0 | S115: =AE$1-R115 -> 5 | T115: =IF(S115<2,"Yes","No") -> No | U115: =IF(D115="-",1,0)*U$1 -> 1 | V115: =AND(U115=0,U$1=1) -> FALSE | W115: =IF(F115="-",1,0)*W$1 -> 1 | X115: =AND(W115=0,W$1=1) -> FALSE | Y115: =IF(H115="-",1,0)*Y$1 -> 1 | Z115: =AND(Y115=0,Y$1=1) -> FALSE | AA115: =IF(J115="-",1,0)*AA$1 -> 1 | AB115: =AND(AA115=0,AA$1=1) -> FALSE | AC115: =IF(L115="-",1,0)*AC$1 -> 1 | AD115: =AND(AC115=0,AC$1=1) -> FALSE
A116: 113 | C116: - | D116: - | E116: =IF(D116="-",0,D116) -> 0 | F116: - | G116: =IF(F116="-",0,F116) -> 0 | H116: - | I116: =IF(H116="-",0,H116) -> 0 | J116: - | K116: =IF(J116="-",0,J116) -> 0 | L116: - | M116: =IF(L116="-",0,L116) -> 0 | O116: =E116+G116+I116+K116+M116 -> 0 | P116: =MAX(D116,F116,H116,J116,L116) -> 0 | Q116: =IF(S116=1,O116,IF(S116=0,(O116-P116),"-")) -> - | R116: =COUNTIF(U116:AD116,"=TRUE") -> 0 | S116: =AE$1-R116 -> 5 | T116: =IF(S116<2,"Yes","No") -> No | U116: =IF(D116="-",1,0)*U$1 -> 1 | V116: =AND(U116=0,U$1=1) -> FALSE | W116: =IF(F116="-",1,0)*W$1 -> 1 | X116: =AND(W116=0,W$1=1) -> FALSE | Y116: =IF(H116="-",1,0)*Y$1 -> 1 | Z116: =AND(Y116=0,Y$1=1) -> FALSE | AA116: =IF(J116="-",1,0)*AA$1 -> 1 | AB116: =AND(AA116=0,AA$1=1) -> FALSE | AC116: =IF(L116="-",1,0)*AC$1 -> 1 | AD116: =AND(AC116=0,AC$1=1) -> FALSE
A117: 114 | C117: - | D117: - | E117: =IF(D117="-",0,D117) -> 0 | F117: - | G117: =IF(F117="-",0,F117) -> 0 | H117: - | I117: =IF(H117="-",0,H117) -> 0 | J117: - | K117: =IF(J117="-",0,J117) -> 0 | L117: - | M117: =IF(L117="-",0,L117) -> 0 | O117: =E117+G117+I117+K117+M117 -> 0 | P117: =MAX(D117,F117,H117,J117,L117) -> 0 | Q117: =IF(S117=1,O117,IF(S117=0,(O117-P117),"-")) -> - | R117: =COUNTIF(U117:AD117,"=TRUE") -> 0 | S117: =AE$1-R117 -> 5 | T117: =IF(S117<2,"Yes","No") -> No | U117: =IF(D117="-",1,0)*U$1 -> 1 | V117: =AND(U117=0,U$1=1) -> FALSE | W117: =IF(F117="-",1,0)*W$1 -> 1 | X117: =AND(W117=0,W$1=1) -> FALSE | Y117: =IF(H117="-",1,0)*Y$1 -> 1 | Z117: =AND(Y117=0,Y$1=1) -> FALSE | AA117: =IF(J117="-",1,0)*AA$1 -> 1 | AB117: =AND(AA117=0,AA$1=1) -> FALSE | AC117: =IF(L117="-",1,0)*AC$1 -> 1 | AD117: =AND(AC117=0,AC$1=1) -> FALSE
A118: 115 | C118: - | D118: - | E118: =IF(D118="-",0,D118) -> 0 | F118: - | G118: =IF(F118="-",0,F118) -> 0 | H118: - | I118: =IF(H118="-",0,H118) -> 0 | J118: - | K118: =IF(J118="-",0,J118) -> 0 | L118: - | M118: =IF(L118="-",0,L118) -> 0 | O118: =E118+G118+I118+K118+M118 -> 0 | P118: =MAX(D118,F118,H118,J118,L118) -> 0 | Q118: =IF(S118=1,O118,IF(S118=0,(O118-P118),"-")) -> - | R118: =COUNTIF(U118:AD118,"=TRUE") -> 0 | S118: =AE$1-R118 -> 5 | T118: =IF(S118<2,"Yes","No") -> No | U118: =IF(D118="-",1,0)*U$1 -> 1 | V118: =AND(U118=0,U$1=1) -> FALSE | W118: =IF(F118="-",1,0)*W$1 -> 1 | X118: =AND(W118=0,W$1=1) -> FALSE | Y118: =IF(H118="-",1,0)*Y$1 -> 1 | Z118: =AND(Y118=0,Y$1=1) -> FALSE | AA118: =IF(J118="-",1,0)*AA$1 -> 1 | AB118: =AND(AA118=0,AA$1=1) -> FALSE | AC118: =IF(L118="-",1,0)*AC$1 -> 1 | AD118: =AND(AC118=0,AC$1=1) -> FALSE
A119: 116 | C119: - | D119: - | E119: =IF(D119="-",0,D119) -> 0 | F119: - | G119: =IF(F119="-",0,F119) -> 0 | H119: - | I119: =IF(H119="-",0,H119) -> 0 | J119: - | K119: =IF(J119="-",0,J119) -> 0 | L119: - | M119: =IF(L119="-",0,L119) -> 0 | O119: =E119+G119+I119+K119+M119 -> 0 | P119: =MAX(D119,F119,H119,J119,L119) -> 0 | Q119: =IF(S119=1,O119,IF(S119=0,(O119-P119),"-")) -> - | R119: =COUNTIF(U119:AD119,"=TRUE") -> 0 | S119: =AE$1-R119 -> 5 | T119: =IF(S119<2,"Yes","No") -> No | U119: =IF(D119="-",1,0)*U$1 -> 1 | V119: =AND(U119=0,U$1=1) -> FALSE | W119: =IF(F119="-",1,0)*W$1 -> 1 | X119: =AND(W119=0,W$1=1) -> FALSE | Y119: =IF(H119="-",1,0)*Y$1 -> 1 | Z119: =AND(Y119=0,Y$1=1) -> FALSE | AA119: =IF(J119="-",1,0)*AA$1 -> 1 | AB119: =AND(AA119=0,AA$1=1) -> FALSE | AC119: =IF(L119="-",1,0)*AC$1 -> 1 | AD119: =AND(AC119=0,AC$1=1) -> FALSE
A120: 117 | C120: - | D120: - | E120: =IF(D120="-",0,D120) -> 0 | F120: - | G120: =IF(F120="-",0,F120) -> 0 | H120: - | I120: =IF(H120="-",0,H120) -> 0 | J120: - | K120: =IF(J120="-",0,J120) -> 0 | L120: - | M120: =IF(L120="-",0,L120) -> 0 | O120: =E120+G120+I120+K120+M120 -> 0 | P120: =MAX(D120,F120,H120,J120,L120) -> 0 | Q120: =IF(S120=1,O120,IF(S120=0,(O120-P120),"-")) -> - | R120: =COUNTIF(U120:AD120,"=TRUE") -> 0 | S120: =AE$1-R120 -> 5 | T120: =IF(S120<2,"Yes","No") -> No | U120: =IF(D120="-",1,0)*U$1 -> 1 | V120: =AND(U120=0,U$1=1) -> FALSE | W120: =IF(F120="-",1,0)*W$1 -> 1 | X120: =AND(W120=0,W$1=1) -> FALSE | Y120: =IF(H120="-",1,0)*Y$1 -> 1 | Z120: =AND(Y120=0,Y$1=1) -> FALSE | AA120: =IF(J120="-",1,0)*AA$1 -> 1 | AB120: =AND(AA120=0,AA$1=1) -> FALSE | AC120: =IF(L120="-",1,0)*AC$1 -> 1 | AD120: =AND(AC120=0,AC$1=1) -> FALSE
A121: 118 | C121: - | D121: - | E121: =IF(D121="-",0,D121) -> 0 | F121: - | G121: =IF(F121="-",0,F121) -> 0 | H121: - | I121: =IF(H121="-",0,H121) -> 0 | J121: - | K121: =IF(J121="-",0,J121) -> 0 | L121: - | M121: =IF(L121="-",0,L121) -> 0 | O121: =E121+G121+I121+K121+M121 -> 0 | P121: =MAX(D121,F121,H121,J121,L121) -> 0 | Q121: =IF(S121=1,O121,IF(S121=0,(O121-P121),"-")) -> - | R121: =COUNTIF(U121:AD121,"=TRUE") -> 0 | S121: =AE$1-R121 -> 5 | T121: =IF(S121<2,"Yes","No") -> No | U121: =IF(D121="-",1,0)*U$1 -> 1 | V121: =AND(U121=0,U$1=1) -> FALSE | W121: =IF(F121="-",1,0)*W$1 -> 1 | X121: =AND(W121=0,W$1=1) -> FALSE | Y121: =IF(H121="-",1,0)*Y$1 -> 1 | Z121: =AND(Y121=0,Y$1=1) -> FALSE | AA121: =IF(J121="-",1,0)*AA$1 -> 1 | AB121: =AND(AA121=0,AA$1=1) -> FALSE | AC121: =IF(L121="-",1,0)*AC$1 -> 1 | AD121: =AND(AC121=0,AC$1=1) -> FALSE
A122: 119 | C122: - | D122: - | E122: =IF(D122="-",0,D122) -> 0 | F122: - | G122: =IF(F122="-",0,F122) -> 0 | H122: - | I122: =IF(H122="-",0,H122) -> 0 | J122: - | K122: =IF(J122="-",0,J122) -> 0 | L122: - | M122: =IF(L122="-",0,L122) -> 0 | O122: =E122+G122+I122+K122+M122 -> 0 | P122: =MAX(D122,F122,H122,J122,L122) -> 0 | Q122: =IF(S122=1,O122,IF(S122=0,(O122-P122),"-")) -> - | R122: =COUNTIF(U122:AD122,"=TRUE") -> 0 | S122: =AE$1-R122 -> 5 | T122: =IF(S122<2,"Yes","No") -> No | U122: =IF(D122="-",1,0)*U$1 -> 1 | V122: =AND(U122=0,U$1=1) -> FALSE | W122: =IF(F122="-",1,0)*W$1 -> 1 | X122: =AND(W122=0,W$1=1) -> FALSE | Y122: =IF(H122="-",1,0)*Y$1 -> 1 | Z122: =AND(Y122=0,Y$1=1) -> FALSE | AA122: =IF(J122="-",1,0)*AA$1 -> 1 | AB122: =AND(AA122=0,AA$1=1) -> FALSE | AC122: =IF(L122="-",1,0)*AC$1 -> 1 | AD122: =AND(AC122=0,AC$1=1) -> FALSE
A123: 120 | C123: - | D123: - | E123: =IF(D123="-",0,D123) -> 0 | F123: - | G123: =IF(F123="-",0,F123) -> 0 | H123: - | I123: =IF(H123="-",0,H123) -> 0 | J123: - | K123: =IF(J123="-",0,J123) -> 0 | L123: - | M123: =IF(L123="-",0,L123) -> 0 | O123: =E123+G123+I123+K123+M123 -> 0 | P123: =MAX(D123,F123,H123,J123,L123) -> 0 | Q123: =IF(S123=1,O123,IF(S123=0,(O123-P123),"-")) -> - | R123: =COUNTIF(U123:AD123,"=TRUE") -> 0 | S123: =AE$1-R123 -> 5 | T123: =IF(S123<2,"Yes","No") -> No | U123: =IF(D123="-",1,0)*U$1 -> 1 | V123: =AND(U123=0,U$1=1) -> FALSE | W123: =IF(F123="-",1,0)*W$1 -> 1 | X123: =AND(W123=0,W$1=1) -> FALSE | Y123: =IF(H123="-",1,0)*Y$1 -> 1 | Z123: =AND(Y123=0,Y$1=1) -> FALSE | AA123: =IF(J123="-",1,0)*AA$1 -> 1 | AB123: =AND(AA123=0,AA$1=1) -> FALSE | AC123: =IF(L123="-",1,0)*AC$1 -> 1 | AD123: =AND(AC123=0,AC$1=1) -> FALSE
A124: 121 | C124: - | D124: - | E124: =IF(D124="-",0,D124) -> 0 | F124: - | G124: =IF(F124="-",0,F124) -> 0 | H124: - | I124: =IF(H124="-",0,H124) -> 0 | J124: - | K124: =IF(J124="-",0,J124) -> 0 | L124: - | M124: =IF(L124="-",0,L124) -> 0 | O124: =E124+G124+I124+K124+M124 -> 0 | P124: =MAX(D124,F124,H124,J124,L124) -> 0 | Q124: =IF(S124=1,O124,IF(S124=0,(O124-P124),"-")) -> - | R124: =COUNTIF(U124:AD124,"=TRUE") -> 0 | S124: =AE$1-R124 -> 5 | T124: =IF(S124<2,"Yes","No") -> No | U124: =IF(D124="-",1,0)*U$1 -> 1 | V124: =AND(U124=0,U$1=1) -> FALSE | W124: =IF(F124="-",1,0)*W$1 -> 1 | X124: =AND(W124=0,W$1=1) -> FALSE | Y124: =IF(H124="-",1,0)*Y$1 -> 1 | Z124: =AND(Y124=0,Y$1=1) -> FALSE | AA124: =IF(J124="-",1,0)*AA$1 -> 1 | AB124: =AND(AA124=0,AA$1=1) -> FALSE | AC124: =IF(L124="-",1,0)*AC$1 -> 1 | AD124: =AND(AC124=0,AC$1=1) -> FALSE
A125: 122 | C125: - | D125: - | E125: =IF(D125="-",0,D125) -> 0 | F125: - | G125: =IF(F125="-",0,F125) -> 0 | H125: - | I125: =IF(H125="-",0,H125) -> 0 | J125: - | K125: =IF(J125="-",0,J125) -> 0 | L125: - | M125: =IF(L125="-",0,L125) -> 0 | O125: =E125+G125+I125+K125+M125 -> 0 | P125: =MAX(D125,F125,H125,J125,L125) -> 0 | Q125: =IF(S125=1,O125,IF(S125=0,(O125-P125),"-")) -> - | R125: =COUNTIF(U125:AD125,"=TRUE") -> 0 | S125: =AE$1-R125 -> 5 | T125: =IF(S125<2,"Yes","No") -> No | U125: =IF(D125="-",1,0)*U$1 -> 1 | V125: =AND(U125=0,U$1=1) -> FALSE | W125: =IF(F125="-",1,0)*W$1 -> 1 | X125: =AND(W125=0,W$1=1) -> FALSE | Y125: =IF(H125="-",1,0)*Y$1 -> 1 | Z125: =AND(Y125=0,Y$1=1) -> FALSE | AA125: =IF(J125="-",1,0)*AA$1 -> 1 | AB125: =AND(AA125=0,AA$1=1) -> FALSE | AC125: =IF(L125="-",1,0)*AC$1 -> 1 | AD125: =AND(AC125=0,AC$1=1) -> FALSE
A126: 123 | C126: - | D126: - | E126: =IF(D126="-",0,D126) -> 0 | F126: - | G126: =IF(F126="-",0,F126) -> 0 | H126: - | I126: =IF(H126="-",0,H126) -> 0 | J126: - | K126: =IF(J126="-",0,J126) -> 0 | L126: - | M126: =IF(L126="-",0,L126) -> 0 | O126: =E126+G126+I126+K126+M126 -> 0 | P126: =MAX(D126,F126,H126,J126,L126) -> 0 | Q126: =IF(S126=1,O126,IF(S126=0,(O126-P126),"-")) -> - | R126: =COUNTIF(U126:AD126,"=TRUE") -> 0 | S126: =AE$1-R126 -> 5 | T126: =IF(S126<2,"Yes","No") -> No | U126: =IF(D126="-",1,0)*U$1 -> 1 | V126: =AND(U126=0,U$1=1) -> FALSE | W126: =IF(F126="-",1,0)*W$1 -> 1 | X126: =AND(W126=0,W$1=1) -> FALSE | Y126: =IF(H126="-",1,0)*Y$1 -> 1 | Z126: =AND(Y126=0,Y$1=1) -> FALSE | AA126: =IF(J126="-",1,0)*AA$1 -> 1 | AB126: =AND(AA126=0,AA$1=1) -> FALSE | AC126: =IF(L126="-",1,0)*AC$1 -> 1 | AD126: =AND(AC126=0,AC$1=1) -> FALSE
A127: 124 | C127: - | D127: - | E127: =IF(D127="-",0,D127) -> 0 | F127: - | G127: =IF(F127="-",0,F127) -> 0 | H127: - | I127: =IF(H127="-",0,H127) -> 0 | J127: - | K127: =IF(J127="-",0,J127) -> 0 | L127: - | M127: =IF(L127="-",0,L127) -> 0 | O127: =E127+G127+I127+K127+M127 -> 0 | P127: =MAX(D127,F127,H127,J127,L127) -> 0 | Q127: =IF(S127=1,O127,IF(S127=0,(O127-P127),"-")) -> - | R127: =COUNTIF(U127:AD127,"=TRUE") -> 0 | S127: =AE$1-R127 -> 5 | T127: =IF(S127<2,"Yes","No") -> No | U127: =IF(D127="-",1,0)*U$1 -> 1 | V127: =AND(U127=0,U$1=1) -> FALSE | W127: =IF(F127="-",1,0)*W$1 -> 1 | X127: =AND(W127=0,W$1=1) -> FALSE | Y127: =IF(H127="-",1,0)*Y$1 -> 1 | Z127: =AND(Y127=0,Y$1=1) -> FALSE | AA127: =IF(J127="-",1,0)*AA$1 -> 1 | AB127: =AND(AA127=0,AA$1=1) -> FALSE | AC127: =IF(L127="-",1,0)*AC$1 -> 1 | AD127: =AND(AC127=0,AC$1=1) -> FALSE
A128: 125 | C128: - | D128: - | E128: =IF(D128="-",0,D128) -> 0 | F128: - | G128: =IF(F128="-",0,F128) -> 0 | H128: - | I128: =IF(H128="-",0,H128) -> 0 | J128: - | K128: =IF(J128="-",0,J128) -> 0 | L128: - | M128: =IF(L128="-",0,L128) -> 0 | O128: =E128+G128+I128+K128+M128 -> 0 | P128: =MAX(D128,F128,H128,J128,L128) -> 0 | Q128: =IF(S128=1,O128,IF(S128=0,(O128-P128),"-")) -> - | R128: =COUNTIF(U128:AD128,"=TRUE") -> 0 | S128: =AE$1-R128 -> 5 | T128: =IF(S128<2,"Yes","No") -> No | U128: =IF(D128="-",1,0)*U$1 -> 1 | V128: =AND(U128=0,U$1=1) -> FALSE | W128: =IF(F128="-",1,0)*W$1 -> 1 | X128: =AND(W128=0,W$1=1) -> FALSE | Y128: =IF(H128="-",1,0)*Y$1 -> 1 | Z128: =AND(Y128=0,Y$1=1) -> FALSE | AA128: =IF(J128="-",1,0)*AA$1 -> 1 | AB128: =AND(AA128=0,AA$1=1) -> FALSE | AC128: =IF(L128="-",1,0)*AC$1 -> 1 | AD128: =AND(AC128=0,AC$1=1) -> FALSE
A129: 126 | C129: - | D129: - | E129: =IF(D129="-",0,D129) -> 0 | F129: - | G129: =IF(F129="-",0,F129) -> 0 | H129: - | I129: =IF(H129="-",0,H129) -> 0 | J129: - | K129: =IF(J129="-",0,J129) -> 0 | L129: - | M129: =IF(L129="-",0,L129) -> 0 | O129: =E129+G129+I129+K129+M129 -> 0 | P129: =MAX(D129,F129,H129,J129,L129) -> 0 | Q129: =IF(S129=1,O129,IF(S129=0,(O129-P129),"-")) -> - | R129: =COUNTIF(U129:AD129,"=TRUE") -> 0 | S129: =AE$1-R129 -> 5 | T129: =IF(S129<2,"Yes","No") -> No | U129: =IF(D129="-",1,0)*U$1 -> 1 | V129: =AND(U129=0,U$1=1) -> FALSE | W129: =IF(F129="-",1,0)*W$1 -> 1 | X129: =AND(W129=0,W$1=1) -> FALSE | Y129: =IF(H129="-",1,0)*Y$1 -> 1 | Z129: =AND(Y129=0,Y$1=1) -> FALSE | AA129: =IF(J129="-",1,0)*AA$1 -> 1 | AB129: =AND(AA129=0,AA$1=1) -> FALSE | AC129: =IF(L129="-",1,0)*AC$1 -> 1 | AD129: =AND(AC129=0,AC$1=1) -> FALSE
A130: 127 | C130: - | D130: - | E130: =IF(D130="-",0,D130) -> 0 | F130: - | G130: =IF(F130="-",0,F130) -> 0 | H130: - | I130: =IF(H130="-",0,H130) -> 0 | J130: - | K130: =IF(J130="-",0,J130) -> 0 | L130: - | M130: =IF(L130="-",0,L130) -> 0 | O130: =E130+G130+I130+K130+M130 -> 0 | P130: =MAX(D130,F130,H130,J130,L130) -> 0 | Q130: =IF(S130=1,O130,IF(S130=0,(O130-P130),"-")) -> - | R130: =COUNTIF(U130:AD130,"=TRUE") -> 0 | S130: =AE$1-R130 -> 5 | T130: =IF(S130<2,"Yes","No") -> No | U130: =IF(D130="-",1,0)*U$1 -> 1 | V130: =AND(U130=0,U$1=1) -> FALSE | W130: =IF(F130="-",1,0)*W$1 -> 1 | X130: =AND(W130=0,W$1=1) -> FALSE | Y130: =IF(H130="-",1,0)*Y$1 -> 1 | Z130: =AND(Y130=0,Y$1=1) -> FALSE | AA130: =IF(J130="-",1,0)*AA$1 -> 1 | AB130: =AND(AA130=0,AA$1=1) -> FALSE | AC130: =IF(L130="-",1,0)*AC$1 -> 1 | AD130: =AND(AC130=0,AC$1=1) -> FALSE
A131: 128 | C131: - | D131: - | E131: =IF(D131="-",0,D131) -> 0 | F131: - | G131: =IF(F131="-",0,F131) -> 0 | H131: - | I131: =IF(H131="-",0,H131) -> 0 | J131: - | K131: =IF(J131="-",0,J131) -> 0 | L131: - | M131: =IF(L131="-",0,L131) -> 0 | O131: =E131+G131+I131+K131+M131 -> 0 | P131: =MAX(D131,F131,H131,J131,L131) -> 0 | Q131: =IF(S131=1,O131,IF(S131=0,(O131-P131),"-")) -> - | R131: =COUNTIF(U131:AD131,"=TRUE") -> 0 | S131: =AE$1-R131 -> 5 | T131: =IF(S131<2,"Yes","No") -> No | U131: =IF(D131="-",1,0)*U$1 -> 1 | V131: =AND(U131=0,U$1=1) -> FALSE | W131: =IF(F131="-",1,0)*W$1 -> 1 | X131: =AND(W131=0,W$1=1) -> FALSE | Y131: =IF(H131="-",1,0)*Y$1 -> 1 | Z131: =AND(Y131=0,Y$1=1) -> FALSE | AA131: =IF(J131="-",1,0)*AA$1 -> 1 | AB131: =AND(AA131=0,AA$1=1) -> FALSE | AC131: =IF(L131="-",1,0)*AC$1 -> 1 | AD131: =AND(AC131=0,AC$1=1) -> FALSE
A132: 129 | C132: - | D132: - | E132: =IF(D132="-",0,D132) -> 0 | F132: - | G132: =IF(F132="-",0,F132) -> 0 | H132: - | I132: =IF(H132="-",0,H132) -> 0 | J132: - | K132: =IF(J132="-",0,J132) -> 0 | L132: - | M132: =IF(L132="-",0,L132) -> 0 | O132: =E132+G132+I132+K132+M132 -> 0 | P132: =MAX(D132,F132,H132,J132,L132) -> 0 | Q132: =IF(S132=1,O132,IF(S132=0,(O132-P132),"-")) -> - | R132: =COUNTIF(U132:AD132,"=TRUE") -> 0 | S132: =AE$1-R132 -> 5 | T132: =IF(S132<2,"Yes","No") -> No | U132: =IF(D132="-",1,0)*U$1 -> 1 | V132: =AND(U132=0,U$1=1) -> FALSE | W132: =IF(F132="-",1,0)*W$1 -> 1 | X132: =AND(W132=0,W$1=1) -> FALSE | Y132: =IF(H132="-",1,0)*Y$1 -> 1 | Z132: =AND(Y132=0,Y$1=1) -> FALSE | AA132: =IF(J132="-",1,0)*AA$1 -> 1 | AB132: =AND(AA132=0,AA$1=1) -> FALSE | AC132: =IF(L132="-",1,0)*AC$1 -> 1 | AD132: =AND(AC132=0,AC$1=1) -> FALSE
A133: 130 | C133: - | D133: - | E133: =IF(D133="-",0,D133) -> 0 | F133: - | G133: =IF(F133="-",0,F133) -> 0 | H133: - | I133: =IF(H133="-",0,H133) -> 0 | J133: - | K133: =IF(J133="-",0,J133) -> 0 | L133: - | M133: =IF(L133="-",0,L133) -> 0 | O133: =E133+G133+I133+K133+M133 -> 0 | P133: =MAX(D133,F133,H133,J133,L133) -> 0 | Q133: =IF(S133=1,O133,IF(S133=0,(O133-P133),"-")) -> - | R133: =COUNTIF(U133:AD133,"=TRUE") -> 0 | S133: =AE$1-R133 -> 5 | T133: =IF(S133<2,"Yes","No") -> No | U133: =IF(D133="-",1,0)*U$1 -> 1 | V133: =AND(U133=0,U$1=1) -> FALSE | W133: =IF(F133="-",1,0)*W$1 -> 1 | X133: =AND(W133=0,W$1=1) -> FALSE | Y133: =IF(H133="-",1,0)*Y$1 -> 1 | Z133: =AND(Y133=0,Y$1=1) -> FALSE | AA133: =IF(J133="-",1,0)*AA$1 -> 1 | AB133: =AND(AA133=0,AA$1=1) -> FALSE | AC133: =IF(L133="-",1,0)*AC$1 -> 1 | AD133: =AND(AC133=0,AC$1=1) -> FALSE
A134: 131 | C134: - | D134: - | E134: =IF(D134="-",0,D134) -> 0 | F134: - | G134: =IF(F134="-",0,F134) -> 0 | H134: - | I134: =IF(H134="-",0,H134) -> 0 | J134: - | K134: =IF(J134="-",0,J134) -> 0 | L134: - | M134: =IF(L134="-",0,L134) -> 0 | O134: =E134+G134+I134+K134+M134 -> 0 | P134: =MAX(D134,F134,H134,J134,L134) -> 0 | Q134: =IF(S134=1,O134,IF(S134=0,(O134-P134),"-")) -> - | R134: =COUNTIF(U134:AD134,"=TRUE") -> 0 | S134: =AE$1-R134 -> 5 | T134: =IF(S134<2,"Yes","No") -> No | U134: =IF(D134="-",1,0)*U$1 -> 1 | V134: =AND(U134=0,U$1=1) -> FALSE | W134: =IF(F134="-",1,0)*W$1 -> 1 | X134: =AND(W134=0,W$1=1) -> FALSE | Y134: =IF(H134="-",1,0)*Y$1 -> 1 | Z134: =AND(Y134=0,Y$1=1) -> FALSE | AA134: =IF(J134="-",1,0)*AA$1 -> 1 | AB134: =AND(AA134=0,AA$1=1) -> FALSE | AC134: =IF(L134="-",1,0)*AC$1 -> 1 | AD134: =AND(AC134=0,AC$1=1) -> FALSE
A135: 132 | C135: - | D135: - | E135: =IF(D135="-",0,D135) -> 0 | F135: - | G135: =IF(F135="-",0,F135) -> 0 | H135: - | I135: =IF(H135="-",0,H135) -> 0 | J135: - | K135: =IF(J135="-",0,J135) -> 0 | L135: - | M135: =IF(L135="-",0,L135) -> 0 | O135: =E135+G135+I135+K135+M135 -> 0 | P135: =MAX(D135,F135,H135,J135,L135) -> 0 | Q135: =IF(S135=1,O135,IF(S135=0,(O135-P135),"-")) -> - | R135: =COUNTIF(U135:AD135,"=TRUE") -> 0 | S135: =AE$1-R135 -> 5 | T135: =IF(S135<2,"Yes","No") -> No | U135: =IF(D135="-",1,0)*U$1 -> 1 | V135: =AND(U135=0,U$1=1) -> FALSE | W135: =IF(F135="-",1,0)*W$1 -> 1 | X135: =AND(W135=0,W$1=1) -> FALSE | Y135: =IF(H135="-",1,0)*Y$1 -> 1 | Z135: =AND(Y135=0,Y$1=1) -> FALSE | AA135: =IF(J135="-",1,0)*AA$1 -> 1 | AB135: =AND(AA135=0,AA$1=1) -> FALSE | AC135: =IF(L135="-",1,0)*AC$1 -> 1 | AD135: =AND(AC135=0,AC$1=1) -> FALSE
A136: 133 | C136: - | D136: - | E136: =IF(D136="-",0,D136) -> 0 | F136: - | G136: =IF(F136="-",0,F136) -> 0 | H136: - | I136: =IF(H136="-",0,H136) -> 0 | J136: - | K136: =IF(J136="-",0,J136) -> 0 | L136: - | M136: =IF(L136="-",0,L136) -> 0 | O136: =E136+G136+I136+K136+M136 -> 0 | P136: =MAX(D136,F136,H136,J136,L136) -> 0 | Q136: =IF(S136=1,O136,IF(S136=0,(O136-P136),"-")) -> - | R136: =COUNTIF(U136:AD136,"=TRUE") -> 0 | S136: =AE$1-R136 -> 5 | T136: =IF(S136<2,"Yes","No") -> No | U136: =IF(D136="-",1,0)*U$1 -> 1 | V136: =AND(U136=0,U$1=1) -> FALSE | W136: =IF(F136="-",1,0)*W$1 -> 1 | X136: =AND(W136=0,W$1=1) -> FALSE | Y136: =IF(H136="-",1,0)*Y$1 -> 1 | Z136: =AND(Y136=0,Y$1=1) -> FALSE | AA136: =IF(J136="-",1,0)*AA$1 -> 1 | AB136: =AND(AA136=0,AA$1=1) -> FALSE | AC136: =IF(L136="-",1,0)*AC$1 -> 1 | AD136: =AND(AC136=0,AC$1=1) -> FALSE
A137: 134 | C137: - | D137: - | E137: =IF(D137="-",0,D137) -> 0 | F137: - | G137: =IF(F137="-",0,F137) -> 0 | H137: - | I137: =IF(H137="-",0,H137) -> 0 | J137: - | K137: =IF(J137="-",0,J137) -> 0 | L137: - | M137: =IF(L137="-",0,L137) -> 0 | O137: =E137+G137+I137+K137+M137 -> 0 | P137: =MAX(D137,F137,H137,J137,L137) -> 0 | Q137: =IF(S137=1,O137,IF(S137=0,(O137-P137),"-")) -> - | R137: =COUNTIF(U137:AD137,"=TRUE") -> 0 | S137: =AE$1-R137 -> 5 | T137: =IF(S137<2,"Yes","No") -> No | U137: =IF(D137="-",1,0)*U$1 -> 1 | V137: =AND(U137=0,U$1=1) -> FALSE | W137: =IF(F137="-",1,0)*W$1 -> 1 | X137: =AND(W137=0,W$1=1) -> FALSE | Y137: =IF(H137="-",1,0)*Y$1 -> 1 | Z137: =AND(Y137=0,Y$1=1) -> FALSE | AA137: =IF(J137="-",1,0)*AA$1 -> 1 | AB137: =AND(AA137=0,AA$1=1) -> FALSE | AC137: =IF(L137="-",1,0)*AC$1 -> 1 | AD137: =AND(AC137=0,AC$1=1) -> FALSE
A138: 135 | C138: - | D138: - | E138: =IF(D138="-",0,D138) -> 0 | F138: - | G138: =IF(F138="-",0,F138) -> 0 | H138: - | I138: =IF(H138="-",0,H138) -> 0 | J138: - | K138: =IF(J138="-",0,J138) -> 0 | L138: - | M138: =IF(L138="-",0,L138) -> 0 | O138: =E138+G138+I138+K138+M138 -> 0 | P138: =MAX(D138,F138,H138,J138,L138) -> 0 | Q138: =IF(S138=1,O138,IF(S138=0,(O138-P138),"-")) -> - | R138: =COUNTIF(U138:AD138,"=TRUE") -> 0 | S138: =AE$1-R138 -> 5 | T138: =IF(S138<2,"Yes","No") -> No | U138: =IF(D138="-",1,0)*U$1 -> 1 | V138: =AND(U138=0,U$1=1) -> FALSE | W138: =IF(F138="-",1,0)*W$1 -> 1 | X138: =AND(W138=0,W$1=1) -> FALSE | Y138: =IF(H138="-",1,0)*Y$1 -> 1 | Z138: =AND(Y138=0,Y$1=1) -> FALSE | AA138: =IF(J138="-",1,0)*AA$1 -> 1 | AB138: =AND(AA138=0,AA$1=1) -> FALSE | AC138: =IF(L138="-",1,0)*AC$1 -> 1 | AD138: =AND(AC138=0,AC$1=1) -> FALSE
A139: 136 | C139: - | D139: - | E139: =IF(D139="-",0,D139) -> 0 | F139: - | G139: =IF(F139="-",0,F139) -> 0 | H139: - | I139: =IF(H139="-",0,H139) -> 0 | J139: - | K139: =IF(J139="-",0,J139) -> 0 | L139: - | M139: =IF(L139="-",0,L139) -> 0 | O139: =E139+G139+I139+K139+M139 -> 0 | P139: =MAX(D139,F139,H139,J139,L139) -> 0 | Q139: =IF(S139=1,O139,IF(S139=0,(O139-P139),"-")) -> - | R139: =COUNTIF(U139:AD139,"=TRUE") -> 0 | S139: =AE$1-R139 -> 5 | T139: =IF(S139<2,"Yes","No") -> No | U139: =IF(D139="-",1,0)*U$1 -> 1 | V139: =AND(U139=0,U$1=1) -> FALSE | W139: =IF(F139="-",1,0)*W$1 -> 1 | X139: =AND(W139=0,W$1=1) -> FALSE | Y139: =IF(H139="-",1,0)*Y$1 -> 1 | Z139: =AND(Y139=0,Y$1=1) -> FALSE | AA139: =IF(J139="-",1,0)*AA$1 -> 1 | AB139: =AND(AA139=0,AA$1=1) -> FALSE | AC139: =IF(L139="-",1,0)*AC$1 -> 1 | AD139: =AND(AC139=0,AC$1=1) -> FALSE
A140: 137 | C140: - | D140: - | E140: =IF(D140="-",0,D140) -> 0 | F140: - | G140: =IF(F140="-",0,F140) -> 0 | H140: - | I140: =IF(H140="-",0,H140) -> 0 | J140: - | K140: =IF(J140="-",0,J140) -> 0 | L140: - | M140: =IF(L140="-",0,L140) -> 0 | O140: =E140+G140+I140+K140+M140 -> 0 | P140: =MAX(D140,F140,H140,J140,L140) -> 0 | Q140: =IF(S140=1,O140,IF(S140=0,(O140-P140),"-")) -> - | R140: =COUNTIF(U140:AD140,"=TRUE") -> 0 | S140: =AE$1-R140 -> 5 | T140: =IF(S140<2,"Yes","No") -> No | U140: =IF(D140="-",1,0)*U$1 -> 1 | V140: =AND(U140=0,U$1=1) -> FALSE | W140: =IF(F140="-",1,0)*W$1 -> 1 | X140: =AND(W140=0,W$1=1) -> FALSE | Y140: =IF(H140="-",1,0)*Y$1 -> 1 | Z140: =AND(Y140=0,Y$1=1) -> FALSE | AA140: =IF(J140="-",1,0)*AA$1 -> 1 | AB140: =AND(AA140=0,AA$1=1) -> FALSE | AC140: =IF(L140="-",1,0)*AC$1 -> 1 | AD140: =AND(AC140=0,AC$1=1) -> FALSE
A141: 138 | C141: - | D141: - | E141: =IF(D141="-",0,D141) -> 0 | F141: - | G141: =IF(F141="-",0,F141) -> 0 | H141: - | I141: =IF(H141="-",0,H141) -> 0 | J141: - | K141: =IF(J141="-",0,J141) -> 0 | L141: - | M141: =IF(L141="-",0,L141) -> 0 | O141: =E141+G141+I141+K141+M141 -> 0 | P141: =MAX(D141,F141,H141,J141,L141) -> 0 | Q141: =IF(S141=1,O141,IF(S141=0,(O141-P141),"-")) -> - | R141: =COUNTIF(U141:AD141,"=TRUE") -> 0 | S141: =AE$1-R141 -> 5 | T141: =IF(S141<2,"Yes","No") -> No | U141: =IF(D141="-",1,0)*U$1 -> 1 | V141: =AND(U141=0,U$1=1) -> FALSE | W141: =IF(F141="-",1,0)*W$1 -> 1 | X141: =AND(W141=0,W$1=1) -> FALSE | Y141: =IF(H141="-",1,0)*Y$1 -> 1 | Z141: =AND(Y141=0,Y$1=1) -> FALSE | AA141: =IF(J141="-",1,0)*AA$1 -> 1 | AB141: =AND(AA141=0,AA$1=1) -> FALSE | AC141: =IF(L141="-",1,0)*AC$1 -> 1 | AD141: =AND(AC141=0,AC$1=1) -> FALSE
A142: 139 | C142: - | D142: - | E142: =IF(D142="-",0,D142) -> 0 | F142: - | G142: =IF(F142="-",0,F142) -> 0 | H142: - | I142: =IF(H142="-",0,H142) -> 0 | J142: - | K142: =IF(J142="-",0,J142) -> 0 | L142: - | M142: =IF(L142="-",0,L142) -> 0 | O142: =E142+G142+I142+K142+M142 -> 0 | P142: =MAX(D142,F142,H142,J142,L142) -> 0 | Q142: =IF(S142=1,O142,IF(S142=0,(O142-P142),"-")) -> - | R142: =COUNTIF(U142:AD142,"=TRUE") -> 0 | S142: =AE$1-R142 -> 5 | T142: =IF(S142<2,"Yes","No") -> No | U142: =IF(D142="-",1,0)*U$1 -> 1 | V142: =AND(U142=0,U$1=1) -> FALSE | W142: =IF(F142="-",1,0)*W$1 -> 1 | X142: =AND(W142=0,W$1=1) -> FALSE | Y142: =IF(H142="-",1,0)*Y$1 -> 1 | Z142: =AND(Y142=0,Y$1=1) -> FALSE | AA142: =IF(J142="-",1,0)*AA$1 -> 1 | AB142: =AND(AA142=0,AA$1=1) -> FALSE | AC142: =IF(L142="-",1,0)*AC$1 -> 1 | AD142: =AND(AC142=0,AC$1=1) -> FALSE
A143: 140 | C143: - | D143: - | E143: =IF(D143="-",0,D143) -> 0 | F143: - | G143: =IF(F143="-",0,F143) -> 0 | H143: - | I143: =IF(H143="-",0,H143) -> 0 | J143: - | K143: =IF(J143="-",0,J143) -> 0 | L143: - | M143: =IF(L143="-",0,L143) -> 0 | O143: =E143+G143+I143+K143+M143 -> 0 | P143: =MAX(D143,F143,H143,J143,L143) -> 0 | Q143: =IF(S143=1,O143,IF(S143=0,(O143-P143),"-")) -> - | R143: =COUNTIF(U143:AD143,"=TRUE") -> 0 | S143: =AE$1-R143 -> 5 | T143: =IF(S143<2,"Yes","No") -> No | U143: =IF(D143="-",1,0)*U$1 -> 1 | V143: =AND(U143=0,U$1=1) -> FALSE | W143: =IF(F143="-",1,0)*W$1 -> 1 | X143: =AND(W143=0,W$1=1) -> FALSE | Y143: =IF(H143="-",1,0)*Y$1 -> 1 | Z143: =AND(Y143=0,Y$1=1) -> FALSE | AA143: =IF(J143="-",1,0)*AA$1 -> 1 | AB143: =AND(AA143=0,AA$1=1) -> FALSE | AC143: =IF(L143="-",1,0)*AC$1 -> 1 | AD143: =AND(AC143=0,AC$1=1) -> FALSE
A144: 141 | C144: - | D144: - | E144: =IF(D144="-",0,D144) -> 0 | F144: - | G144: =IF(F144="-",0,F144) -> 0 | H144: - | I144: =IF(H144="-",0,H144) -> 0 | J144: - | K144: =IF(J144="-",0,J144) -> 0 | L144: - | M144: =IF(L144="-",0,L144) -> 0 | O144: =E144+G144+I144+K144+M144 -> 0 | P144: =MAX(D144,F144,H144,J144,L144) -> 0 | Q144: =IF(S144=1,O144,IF(S144=0,(O144-P144),"-")) -> - | R144: =COUNTIF(U144:AD144,"=TRUE") -> 0 | S144: =AE$1-R144 -> 5 | T144: =IF(S144<2,"Yes","No") -> No | U144: =IF(D144="-",1,0)*U$1 -> 1 | V144: =AND(U144=0,U$1=1) -> FALSE | W144: =IF(F144="-",1,0)*W$1 -> 1 | X144: =AND(W144=0,W$1=1) -> FALSE | Y144: =IF(H144="-",1,0)*Y$1 -> 1 | Z144: =AND(Y144=0,Y$1=1) -> FALSE | AA144: =IF(J144="-",1,0)*AA$1 -> 1 | AB144: =AND(AA144=0,AA$1=1) -> FALSE | AC144: =IF(L144="-",1,0)*AC$1 -> 1 | AD144: =AND(AC144=0,AC$1=1) -> FALSE
A145: 142 | C145: - | D145: - | E145: =IF(D145="-",0,D145) -> 0 | F145: - | G145: =IF(F145="-",0,F145) -> 0 | H145: - | I145: =IF(H145="-",0,H145) -> 0 | J145: - | K145: =IF(J145="-",0,J145) -> 0 | L145: - | M145: =IF(L145="-",0,L145) -> 0 | O145: =E145+G145+I145+K145+M145 -> 0 | P145: =MAX(D145,F145,H145,J145,L145) -> 0 | Q145: =IF(S145=1,O145,IF(S145=0,(O145-P145),"-")) -> - | R145: =COUNTIF(U145:AD145,"=TRUE") -> 0 | S145: =AE$1-R145 -> 5 | T145: =IF(S145<2,"Yes","No") -> No | U145: =IF(D145="-",1,0)*U$1 -> 1 | V145: =AND(U145=0,U$1=1) -> FALSE | W145: =IF(F145="-",1,0)*W$1 -> 1 | X145: =AND(W145=0,W$1=1) -> FALSE | Y145: =IF(H145="-",1,0)*Y$1 -> 1 | Z145: =AND(Y145=0,Y$1=1) -> FALSE | AA145: =IF(J145="-",1,0)*AA$1 -> 1 | AB145: =AND(AA145=0,AA$1=1) -> FALSE | AC145: =IF(L145="-",1,0)*AC$1 -> 1 | AD145: =AND(AC145=0,AC$1=1) -> FALSE
A146: 143 | C146: - | D146: - | E146: =IF(D146="-",0,D146) -> 0 | F146: - | G146: =IF(F146="-",0,F146) -> 0 | H146: - | I146: =IF(H146="-",0,H146) -> 0 | J146: - | K146: =IF(J146="-",0,J146) -> 0 | L146: - | M146: =IF(L146="-",0,L146) -> 0 | O146: =E146+G146+I146+K146+M146 -> 0 | P146: =MAX(D146,F146,H146,J146,L146) -> 0 | Q146: =IF(S146=1,O146,IF(S146=0,(O146-P146),"-")) -> - | R146: =COUNTIF(U146:AD146,"=TRUE") -> 0 | S146: =AE$1-R146 -> 5 | T146: =IF(S146<2,"Yes","No") -> No | U146: =IF(D146="-",1,0)*U$1 -> 1 | V146: =AND(U146=0,U$1=1) -> FALSE | W146: =IF(F146="-",1,0)*W$1 -> 1 | X146: =AND(W146=0,W$1=1) -> FALSE | Y146: =IF(H146="-",1,0)*Y$1 -> 1 | Z146: =AND(Y146=0,Y$1=1) -> FALSE | AA146: =IF(J146="-",1,0)*AA$1 -> 1 | AB146: =AND(AA146=0,AA$1=1) -> FALSE | AC146: =IF(L146="-",1,0)*AC$1 -> 1 | AD146: =AND(AC146=0,AC$1=1) -> FALSE
A147: 144 | C147: - | D147: - | E147: =IF(D147="-",0,D147) -> 0 | F147: - | G147: =IF(F147="-",0,F147) -> 0 | H147: - | I147: =IF(H147="-",0,H147) -> 0 | J147: - | K147: =IF(J147="-",0,J147) -> 0 | L147: - | M147: =IF(L147="-",0,L147) -> 0 | O147: =E147+G147+I147+K147+M147 -> 0 | P147: =MAX(D147,F147,H147,J147,L147) -> 0 | Q147: =IF(S147=1,O147,IF(S147=0,(O147-P147),"-")) -> - | R147: =COUNTIF(U147:AD147,"=TRUE") -> 0 | S147: =AE$1-R147 -> 5 | T147: =IF(S147<2,"Yes","No") -> No | U147: =IF(D147="-",1,0)*U$1 -> 1 | V147: =AND(U147=0,U$1=1) -> FALSE | W147: =IF(F147="-",1,0)*W$1 -> 1 | X147: =AND(W147=0,W$1=1) -> FALSE | Y147: =IF(H147="-",1,0)*Y$1 -> 1 | Z147: =AND(Y147=0,Y$1=1) -> FALSE | AA147: =IF(J147="-",1,0)*AA$1 -> 1 | AB147: =AND(AA147=0,AA$1=1) -> FALSE | AC147: =IF(L147="-",1,0)*AC$1 -> 1 | AD147: =AND(AC147=0,AC$1=1) -> FALSE
A148: 145 | C148: - | D148: - | E148: =IF(D148="-",0,D148) -> 0 | F148: - | G148: =IF(F148="-",0,F148) -> 0 | H148: - | I148: =IF(H148="-",0,H148) -> 0 | J148: - | K148: =IF(J148="-",0,J148) -> 0 | L148: - | M148: =IF(L148="-",0,L148) -> 0 | O148: =E148+G148+I148+K148+M148 -> 0 | P148: =MAX(D148,F148,H148,J148,L148) -> 0 | Q148: =IF(S148=1,O148,IF(S148=0,(O148-P148),"-")) -> - | R148: =COUNTIF(U148:AD148,"=TRUE") -> 0 | S148: =AE$1-R148 -> 5 | T148: =IF(S148<2,"Yes","No") -> No | U148: =IF(D148="-",1,0)*U$1 -> 1 | V148: =AND(U148=0,U$1=1) -> FALSE | W148: =IF(F148="-",1,0)*W$1 -> 1 | X148: =AND(W148=0,W$1=1) -> FALSE | Y148: =IF(H148="-",1,0)*Y$1 -> 1 | Z148: =AND(Y148=0,Y$1=1) -> FALSE | AA148: =IF(J148="-",1,0)*AA$1 -> 1 | AB148: =AND(AA148=0,AA$1=1) -> FALSE | AC148: =IF(L148="-",1,0)*AC$1 -> 1 | AD148: =AND(AC148=0,AC$1=1) -> FALSE
A149: 146 | C149: - | D149: - | E149: =IF(D149="-",0,D149) -> 0 | F149: - | G149: =IF(F149="-",0,F149) -> 0 | H149: - | I149: =IF(H149="-",0,H149) -> 0 | J149: - | K149: =IF(J149="-",0,J149) -> 0 | L149: - | M149: =IF(L149="-",0,L149) -> 0 | O149: =E149+G149+I149+K149+M149 -> 0 | P149: =MAX(D149,F149,H149,J149,L149) -> 0 | Q149: =IF(S149=1,O149,IF(S149=0,(O149-P149),"-")) -> - | R149: =COUNTIF(U149:AD149,"=TRUE") -> 0 | S149: =AE$1-R149 -> 5 | T149: =IF(S149<2,"Yes","No") -> No | U149: =IF(D149="-",1,0)*U$1 -> 1 | V149: =AND(U149=0,U$1=1) -> FALSE | W149: =IF(F149="-",1,0)*W$1 -> 1 | X149: =AND(W149=0,W$1=1) -> FALSE | Y149: =IF(H149="-",1,0)*Y$1 -> 1 | Z149: =AND(Y149=0,Y$1=1) -> FALSE | AA149: =IF(J149="-",1,0)*AA$1 -> 1 | AB149: =AND(AA149=0,AA$1=1) -> FALSE | AC149: =IF(L149="-",1,0)*AC$1 -> 1 | AD149: =AND(AC149=0,AC$1=1) -> FALSE
A150: 147
A151: 148
A152: 149
A153: 150

Sheet Year 7 Boys Teams
B1: Claimed Last Place | D1: Y | E1: N | F1: -
A3: Total Finishers | B3: ='Year 7 Boys'!D2 -> 68 | F3: ='Year 7 Boys'!G2 -> 66 | J3: ='Year 7 Boys'!H2 -> 51 | N3: ='Year 7 Boys'!J2 -> 46 | R3: ='Year 7 Boys'!L2 -> 40
A4: Team | B4: Race 1 Position | D4: Race 1 Points Total | E4: Claimed Last Place? | F4: Race 2 Postion | H4: Race 2 Points Total | I4: Claimed Last Place? | J4: Race 3 Postion | L4: Race 3 Points Total | M4: Claimed Last Place? | N4: Race 4 Postion | P4: Race 4 Points Total | Q4: Claimed Last Place? | R4: Race 5 Postion | T4: Race 5 Points Total | U4: Claimed Last Place? | V4: Number of claimed last places | W4: Number of Races Without | X4: Number of Races Completed | Y4: Total (All Races)
A5: Brookvale High School A | B5: 1 | C5: =IF(B5="-",0,B5) -> 1 | D5: 42 | E5: N | F5: 1 | G5: =IF(F5="-",0,F5) -> 1 | H5: 57 | I5: N | J5: 1 | K5: =IF(J5="-",0,J5) -> 1 | L5: 27 | M5: N | N5: 1 | O5: =IF(N5="-",0,N5) -> 1 | P5: 32 | Q5: N | R5: 1 | S5: =IF(R5="-",0,R5) -> 1 | T5: 33 | U5: N | V5: =COUNTIF(B5:U5,"Y") -> 0 | W5: =COUNTIF(B5:U5,"n") -> 5 | X5: =V5+W5 -> 5 | Y5: =C5+G5+K5+O5+S5 -> 5
A6: Loughborough Grammar School A | B6: 2 | C6: =IF(B6="-",0,B6) -> 2 | D6: 64 | E6: N | F6: 3 | G6: =IF(F6="-",0,F6) -> 3 | H6: 101 | I6: N | J6: - | K6: =IF(J6="-",0,J6) -> 0 | L6: - | M6: - | N6: - | O6: =IF(N6="-",0,N6) -> 0 | P6: - | Q6: - | R6: 6 | S6: =IF(R6="-",0,R6) -> 6 | T6: 108 | U6: Y | V6: =COUNTIF(B6:U6,"Y") -> 1 | W6: =COUNTIF(B6:U6,"n") -> 2 | X6: =V6+W6 -> 3 | Y6: =C6+G6+K6+O6+S6 -> 11
A7: Welland Park Academy | B7: 3 | C7: 3 | D7: 71 | E7: N | F7: 2 | G7: 2 | H7: 59 | I7: N | J7: 4 | K7: 4 | L7: 99 | M7: N | N7: 2 | O7: 2 | P7: 39 | Q7: N | R7: 2 | S7: 2 | T7: 37 | U7: N | V7: 0 | W7: 5 | X7: 5 | Y7: 13
A8: Rawlins College | B8: 4 | C8: 4 | D8: 129 | E8: N | F8: - | G8: 0 | H8: - | I8: - | J8: - | K8: 0 | L8: - | M8: - | N8: - | O8: 0 | P8: - | Q8: - | R8: - | S8: 0 | T8: - | U8: - | V8: 0 | W8: 1 | X8: 1 | Y8: 4
A9: De Lisle College | B9: 5 | C9: =IF(B9="-",0,B9) -> 5 | D9: 150 | E9: N | F9: 4 | G9: 4 | H9: 120 | I9: N | J9: 3 | K9: 3 | L9: 96 | M9: N | N9: 4 | O9: 4 | P9: 93 | Q9: N | R9: 5 | S9: 5 | T9: 94 | U9: N | V9: 0 | W9: 5 | X9: 5 | Y9: 21
A10: Redmoor Academy | B10: 6 | C10: 6 | D10: 154 | E10: Y | F10: - | G10: 0 | H10: - | I10: - | J10: - | K10: 0 | L10: - | M10: - | N10: - | O10: 0 | P10: - | Q10: - | R10: - | S10: 0 | T10: - | U10: - | V10: 1 | W10: 0 | X10: 1 | Y10: 6
A11: Hastings High School | B11: 7 | C11: 7 | D11: 170 | E11: Y | F11: - | G11: 0 | H11: - | I11: - | J11: - | K11: 0 | L11: - | M11: - | N11: - | O11: 0 | P11: - | Q11: - | R11: - | S11: 0 | T11: - | U11: - | V11: 1 | W11: 0 | X11: 1 | Y11: 7
A12: The Martin High School | B12: 8 | C12: 8 | D12: 179 | E12: Y | F12: - | G12: 0 | H12: - | I12: - | J12: - | K12: 0 | L12: - | M12: - | N12: - | O12: 0 | P12: - | Q12: - | R12: - | S12: 0 | T12: - | U12: - | V12: 1 | W12: 0 | X12: 1 | Y12: 8
A13: Bosworth Academy | B13: 9 | C13: 9 | D13: 185 | E13: Y | F13: 6 | G13: 6 | H13: 132 | I13: N | J13: 5 | K13: 5 | L13: 104 | M13: N | N13: - | O13: 0 | P13: - | Q13: - | R13: - | S13: 0 | T13: - | U13: - | V13: 1 | W13: 2 | X13: 3 | Y13: 20
A14: Crown Hills CC A | B14: 10 | C14: 10 | D14: 201 | E14: N | F14: 9 | G14: 9 | H14: 187 | I14: N | J14: 9 | K14: 9 | L14: 171 | M14: N | N14: - | O14: 0 | P14: - | Q14: - | R14: - | S14: 0 | T14: - | U14: - | V14: 0 | W14: 3 | X14: 3 | Y14: 28
A15: Loughborough Grammar School B | B15: 11 | C15: 11 | D15: 221 | E15: Y | F15: - | G15: 0 | H15: - | I15: - | J15: - | K15: 0 | L15: - | M15: - | N15: - | O15: 0 | P15: - | Q15: - | R15: - | S15: 0 | T15: - | U15: - | V15: 1 | W15: 0 | X15: 1 | Y15: 11
A16: Brookvale High School B | B16: 12 | C16: 12 | D16: 226 | E16: N | F16: 10 | G16: 10 | H16: 202 | I16: N | J16: 8 | K16: 8 | L16: 137 | M16: N | N16: 6 | O16: 6 | P16: 133 | Q16: N | R16: - | S16: 0 | T16: - | U16: - | V16: 0 | W16: 4 | X16: 4 | Y16: 36
A17: John Ferneley College | B17: 13 | C17: 13 | D17: 236 | E17: Y | F17: 8 | G17: 8 | H17: 159 | I17: N | J17: - | K17: 0 | L17: - | M17: - | N17: 7 | O17: 7 | P17: 135 | Q17: Y | R17: - | S17: 0 | T17: - | U17: - | V17: 2 | W17: 1 | X17: 3 | Y17: 28
A18: Thomas Estley CC | B18: - | C18: 0 | D18: - | E18: - | F18: 5 | G18: =IF(F18="-",0,F18) -> 5 | H18: 129 | I18: Y | J18: 2 | K18: =IF(J18="-",0,J18) -> 2 | L18: 78 | M18: N | N18: 3 | O18: =IF(N18="-",0,N18) -> 3 | P18: 92 | Q18: Y | R18: 4 | S18: =IF(R18="-",0,R18) -> 4 | T18: 87 | U18: N | V18: 2 | W18: 2 | X18: 4 | Y18: 14
A19: Lutterworth High School | B19: - | C19: =IF(B19="-",0,B19) -> 0 | D19: - | E19: - | F19: 7 | G19: =IF(F19="-",0,F19) -> 7 | H19: 134 | I19: N | J19: 7 | K19: =IF(J19="-",0,J19) -> 7 | L19: 133 | M19: Y | N19: - | O19: =IF(N19="-",0,N19) -> 0 | P19: - | Q19: - | R19: - | S19: =IF(R19="-",0,R19) -> 0 | T19: - | U19: - | V19: =COUNTIF(B19:U19,"Y") -> 1 | W19: =COUNTIF(B19:U19,"n") -> 1 | X19: =V19+W19 -> 2 | Y19: =C19+G19+K19+O19+S19 -> 14
A20: Uppingham CC | B20: - | C20: 0 | D20: - | E20: - | F20: 11 | G20: 11 | H20: 215 | I20: Y | J20: 6 | K20: 6 | L20: 120 | M20: Y | N20: 5 | O20: 5 | P20: 121 | Q20: Y | R20: 3 | S20: 3 | T20: 77 | U20: N | V20: 3 | W20: 1 | X20: 4 | Y20: 25
A21: Crown Hills CC B | B21: - | C21: 0 | D21: - | E21: - | F21: 12 | G21: 12 | H21: 242 | I21: N | J21: - | K21: 0 | L21: - | N21: - | O21: 0 | P21: - | Q21: - | R21: - | S21: 0 | T21: - | U21: - | V21: 0 | W21: 1 | X21: 1 | Y21: 12
B22: - | C22: 0 | D22: - | E22: - | F22: - | G22: 0 | H22: - | I22: - | J22: - | K22: 0 | L22: - | N22: - | O22: 0 | P22: - | Q22: - | R22: - | S22: 0 | T22: - | U22: - | V22: 0 | W22: 0 | X22: 0 | Y22: 0
B23: - | C23: 0 | D23: - | E23: - | F23: - | G23: 0 | H23: - | I23: - | J23: - | K23: 0 | L23: - | N23: - | O23: 0 | P23: - | Q23: - | R23: - | S23: 0 | T23: - | U23: - | V23: 0 | W23: 0 | X23: 0 | Y23: 0
B24: - | C24: 0 | D24: - | E24: - | F24: - | G24: 0 | H24: - | I24: - | J24: - | K24: 0 | L24: - | N24: - | O24: 0 | P24: - | Q24: - | R24: - | S24: 0 | T24: - | U24: - | V24: 0 | W24: 0 | X24: 0 | Y24: 0

Sheet Junior Girls
B1: Total Number of Runners | C1: Race Complete (Y/N) | D1: ='Year 7 Girls '!D1 -> Y | F1: ='Year 7 Girls '!F1 -> Y | H1: ='Year 7 Girls '!H1 -> Y | J1: ='Year 7 Girls '!J1 -> Y | L1: Y | U1: =IF(D1="Y",1,0) -> 1 | W1: =IF(F1="Y",1,0) -> 1 | Y1: =IF(H1="Y",1,0) -> 1 | AA1: =IF(J1="Y",1,0) -> 1 | AC1: =IF(L1="Y",1,0) -> 1 | AE1: =SUM(U1:AC1) -> 5
B2: =COUNTA(B5:B300) -> 87 | C2: No of Finishers | D2: =MAX(D5:D150) -> 55 | E2: 55 | F2: 56 | G2: 56 | H2: 55 | I2: 55 | J2: 42 | K2: 42 | L2: 43
C3: Number of results recorded | D3: =COUNTIF(D5:D149,">0") -> 53 | F3: =COUNTIF(G5:G149,">0") -> 56 | H3: =COUNTIF(I5:I149,">0") -> 55 | J3: =COUNTIF(K5:K149,">0") -> 42 | L3: =COUNTIF(M5:M149,">0") -> 43
A4: Reset Column | B4: Name | C4: School | D4: Race 1 | E4: Normalised result -1 | F4: Race 2 | G4: Normalised result -2 | H4: Race 3 | I4: Normalised result -3 | J4: Race 4 | K4: Normalised result -4 | L4: Race 5 | M4: Normalised result -5 | O4: Total (All Races) | P4: Lowest Place Finish | Q4: Final Total | R4: Number of Races Completed | S4: League contender? (No. of races - missed) | T4: Elidgible For League Title | U4: Competed in race 1 0 = YES | W4: Competed in race 2 0 = YES | Y4: Competed in race 3 0 = YES | AA4: Competed in race 4 0 = YES | AC4: Competed in race 5 0 = YES
A5: 11 | B5: Hannah Seager | C5: De Lisle College | D5: 2 | E5: =IF(D5="-",0,D5) -> 2 | F5: 3 | G5: =IF(F5="-",0,F5) -> 3 | H5: 1 | I5: =IF(H5="-",0,H5) -> 1 | J5: 2 | K5: =IF(J5="-",0,J5) -> 2 | L5: 1 | M5: =IF(L5="-",0,L5) -> 1 | O5: =E5+G5+I5+K5+M5 -> 9 | P5: =MAX(D5,F5,H5,J5,L5) -> 3 | Q5: =IF(S5=1,O5,IF(S5=0,(O5-P5),"-")) -> 6 | R5: =COUNTIF(U5:AD5,"=TRUE") -> 5 | S5: =AE$1-R5 -> 0 | T5: =IF(S5<2,"Yes","No") -> Yes | U5: =IF(D5="-",1,0)*U$1 -> 0 | V5: =AND(U5=0,U$1=1) -> TRUE | W5: =IF(F5="-",1,0)*W$1 -> 0 | X5: =AND(W5=0,W$1=1) -> TRUE | Y5: =IF(H5="-",1,0)*Y$1 -> 0 | Z5: =AND(Y5=0,Y$1=1) -> TRUE | AA5: =IF(J5="-",1,0)*AA$1 -> 0 | AB5: =AND(AA5=0,AA$1=1) -> TRUE | AC5: =IF(L5="-",1,0)*AC$1 -> 0 | AD5: =AND(AC5=0,AC$1=1) -> TRUE
A6: 71 | B6: Neve Grimes | C6: Lutterworth High School | D6: 1 | E6: =IF(D6="-",0,D6) -> 1 | F6: 2 | G6: =IF(F6="-",0,F6) -> 2 | H6: 5 | I6: =IF(H6="-",0,H6) -> 5 | J6: 4 | K6: =IF(J6="-",0,J6) -> 4 | L6: 2 | M6: =IF(L6="-",0,L6) -> 2 | O6: =E6+G6+I6+K6+M6 -> 14 | P6: =MAX(D6,F6,H6,J6,L6) -> 5 | Q6: =IF(S6=1,O6,IF(S6=0,(O6-P6),"-")) -> 9 | R6: =COUNTIF(U6:AD6,"=TRUE") -> 5 | S6: =AE$1-R6 -> 0 | T6: =IF(S6<2,"Yes","No") -> Yes | U6: =IF(D6="-",1,0)*U$1 -> 0 | V6: =AND(U6=0,U$1=1) -> TRUE | W6: =IF(F6="-",1,0)*W$1 -> 0 | X6: =AND(W6=0,W$1=1) -> TRUE | Y6: =IF(H6="-",1,0)*Y$1 -> 0 | Z6: =AND(Y6=0,Y$1=1) -> TRUE | AA6: =IF(J6="-",1,0)*AA$1 -> 0 | AB6: =AND(AA6=0,AA$1=1) -> TRUE | AC6: =IF(L6="-",1,0)*AC$1 -> 0 | AD6: =AND(AC6=0,AC$1=1) -> TRUE
A7: 63 | B7: Emma Richards | C7: Leicester Grammar School | D7: 7 | E7: =IF(D7="-",0,D7) -> 7 | F7: 7 | G7: =IF(F7="-",0,F7) -> 7 | H7: 3 | I7: =IF(H7="-",0,H7) -> 3 | J7: 3 | K7: =IF(J7="-",0,J7) -> 3 | L7: 3 | M7: =IF(L7="-",0,L7) -> 3 | O7: =E7+G7+I7+K7+M7 -> 23 | P7: =MAX(D7,F7,H7,J7,L7) -> 7 | Q7: =IF(S7=1,O7,IF(S7=0,(O7-P7),"-")) -> 16 | R7: =COUNTIF(U7:AD7,"=TRUE") -> 5 | S7: =AE$1-R7 -> 0 | T7: =IF(S7<2,"Yes","No") -> Yes | U7: =IF(D7="-",1,0)*U$1 -> 0 | V7: =AND(U7=0,U$1=1) -> TRUE | W7: =IF(F7="-",1,0)*W$1 -> 0 | X7: =AND(W7=0,W$1=1) -> TRUE | Y7: =IF(H7="-",1,0)*Y$1 -> 0 | Z7: =AND(Y7=0,Y$1=1) -> TRUE | AA7: =IF(J7="-",1,0)*AA$1 -> 0 | AB7: =AND(AA7=0,AA$1=1) -> TRUE | AC7: =IF(L7="-",1,0)*AC$1 -> 0 | AD7: =AND(AC7=0,AC$1=1) -> TRUE
A8: 5 | B8: Mia Atkinson | C8: Ratcliffe College | D8: - | E8: =IF(D8="-",0,D8) -> 0 | F8: 1 | G8: =IF(F8="-",0,F8) -> 1 | H8: - | I8: =IF(H8="-",0,H8) -> 0 | J8: 1 | K8: =IF(J8="-",0,J8) -> 1 | L8: 4 | M8: =IF(L8="-",0,L8) -> 4 | O8: =E8+G8+I8+K8+M8 -> 6 | P8: =MAX(D8,F8,H8,J8,L8) -> 4 | Q8: =IF(S8=1,O8,IF(S8=0,(O8-P8),"-")) -> - | R8: =COUNTIF(U8:AD8,"=TRUE") -> 3 | S8: =AE$1-R8 -> 2 | T8: =IF(S8<2,"Yes","No") -> No | U8: =IF(D8="-",1,0)*U$1 -> 1 | V8: =AND(U8=0,U$1=1) -> FALSE | W8: =IF(F8="-",1,0)*W$1 -> 0 | X8: =AND(W8=0,W$1=1) -> TRUE | Y8: =IF(H8="-",1,0)*Y$1 -> 1 | Z8: =AND(Y8=0,Y$1=1) -> FALSE | AA8: =IF(J8="-",1,0)*AA$1 -> 0 | AB8: =AND(AA8=0,AA$1=1) -> TRUE | AC8: =IF(L8="-",1,0)*AC$1 -> 0 | AD8: =AND(AC8=0,AC$1=1) -> TRUE
A9: 68 | B9: Laura Aryeetey | C9: Woodbrook Vale School | D9: - | E9: =IF(D9="-",0,D9) -> 0 | F9: 6 | G9: =IF(F9="-",0,F9) -> 6 | H9: 4 | I9: =IF(H9="-",0,H9) -> 4 | J9: 5 | K9: =IF(J9="-",0,J9) -> 5 | L9: 5 | M9: =IF(L9="-",0,L9) -> 5 | O9: =E9+G9+I9+K9+M9 -> 20 | P9: =MAX(D9,F9,H9,J9,L9) -> 6 | Q9: =IF(S9=1,O9,IF(S9=0,(O9-P9),"-")) -> 20 | R9: =COUNTIF(U9:AD9,"=TRUE") -> 4 | S9: =AE$1-R9 -> 1 | T9: =IF(S9<2,"Yes","No") -> Yes | U9: =IF(D9="-",1,0)*U$1 -> 1 | V9: =AND(U9=0,U$1=1) -> FALSE | W9: =IF(F9="-",1,0)*W$1 -> 0 | X9: =AND(W9=0,W$1=1) -> TRUE | Y9: =IF(H9="-",1,0)*Y$1 -> 0 | Z9: =AND(Y9=0,Y$1=1) -> TRUE | AA9: =IF(J9="-",1,0)*AA$1 -> 0 | AB9: =AND(AA9=0,AA$1=1) -> TRUE | AC9: =IF(L9="-",1,0)*AC$1 -> 0 | AD9: =AND(AC9=0,AC$1=1) -> TRUE
A10: 33 | B10: Lottie Edwards | C10: Welland Park Academy | D10: 4 | E10: =IF(D10="-",0,D10) -> 4 | F10: 5 | G10: =IF(F10="-",0,F10) -> 5 | H10: 9 | I10: =IF(H10="-",0,H10) -> 9 | J10: 9 | K10: =IF(J10="-",0,J10) -> 9 | L10: 6 | M10: =IF(L10="-",0,L10) -> 6 | O10: =E10+G10+I10+K10+M10 -> 33 | P10: =MAX(D10,F10,H10,J10,L10) -> 9 | Q10: =IF(S10=1,O10,IF(S10=0,(O10-P10),"-")) -> 24 | R10: =COUNTIF(U10:AD10,"=TRUE") -> 5 | S10: =AE$1-R10 -> 0 | T10: =IF(S10<2,"Yes","No") -> Yes | U10: =IF(D10="-",1,0)*U$1 -> 0 | V10: =AND(U10=0,U$1=1) -> TRUE | W10: =IF(F10="-",1,0)*W$1 -> 0 | X10: =AND(W10=0,W$1=1) -> TRUE | Y10: =IF(H10="-",1,0)*Y$1 -> 0 | Z10: =AND(Y10=0,Y$1=1) -> TRUE | AA10: =IF(J10="-",1,0)*AA$1 -> 0 | AB10: =AND(AA10=0,AA$1=1) -> TRUE | AC10: =IF(L10="-",1,0)*AC$1 -> 0 | AD10: =AND(AC10=0,AC$1=1) -> TRUE
A11: 2 | B11: Fern Harrison | C11: English Martyrs Catholic School | D11: 3 | E11: =IF(D11="-",0,D11) -> 3 | F11: 4 | G11: =IF(F11="-",0,F11) -> 4 | H11: 2 | I11: =IF(H11="-",0,H11) -> 2 | J11: 11 | K11: =IF(J11="-",0,J11) -> 11 | L11: 7 | M11: =IF(L11="-",0,L11) -> 7 | O11: =E11+G11+I11+K11+M11 -> 27 | P11: =MAX(D11,F11,H11,J11,L11) -> 11 | Q11: =IF(S11=1,O11,IF(S11=0,(O11-P11),"-")) -> 16 | R11: =COUNTIF(U11:AD11,"=TRUE") -> 5 | S11: =AE$1-R11 -> 0 | T11: =IF(S11<2,"Yes","No") -> Yes | U11: =IF(D11="-",1,0)*U$1 -> 0 | V11: =AND(U11=0,U$1=1) -> TRUE | W11: =IF(F11="-",1,0)*W$1 -> 0 | X11: =AND(W11=0,W$1=1) -> TRUE | Y11: =IF(H11="-",1,0)*Y$1 -> 0 | Z11: =AND(Y11=0,Y$1=1) -> TRUE | AA11: =IF(J11="-",1,0)*AA$1 -> 0 | AB11: =AND(AA11=0,AA$1=1) -> TRUE | AC11: =IF(L11="-",1,0)*AC$1 -> 0 | AD11: =AND(AC11=0,AC$1=1) -> TRUE
A12: 29 | B12: Grace Smith | C12: Sir Jonathon North CC | D12: 9 | E12: =IF(D12="-",0,D12) -> 9 | F12: - | G12: =IF(F12="-",0,F12) -> 0 | H12: 10 | I12: =IF(H12="-",0,H12) -> 10 | J12: 8 | K12: =IF(J12="-",0,J12) -> 8 | L12: 8 | M12: =IF(L12="-",0,L12) -> 8 | O12: =E12+G12+I12+K12+M12 -> 35 | P12: =MAX(D12,F12,H12,J12,L12) -> 10 | Q12: =IF(S12=1,O12,IF(S12=0,(O12-P12),"-")) -> 35 | R12: =COUNTIF(U12:AD12,"=TRUE") -> 4 | S12: =AE$1-R12 -> 1 | T12: =IF(S12<2,"Yes","No") -> Yes | U12: =IF(D12="-",1,0)*U$1 -> 0 | V12: =AND(U12=0,U$1=1) -> TRUE | W12: =IF(F12="-",1,0)*W$1 -> 1 | X12: =AND(W12=0,W$1=1) -> FALSE | Y12: =IF(H12="-",1,0)*Y$1 -> 0 | Z12: =AND(Y12=0,Y$1=1) -> TRUE | AA12: =IF(J12="-",1,0)*AA$1 -> 0 | AB12: =AND(AA12=0,AA$1=1) -> TRUE | AC12: =IF(L12="-",1,0)*AC$1 -> 0 | AD12: =AND(AC12=0,AC$1=1) -> TRUE
A13: 80 | B13: Zena Challenger | C13: Thomas Estley CC | D13: 6 | E13: =IF(D13="-",0,D13) -> 6 | F13: 9 | G13: =IF(F13="-",0,F13) -> 9 | H13: 7 | I13: =IF(H13="-",0,H13) -> 7 | J13: 7 | K13: =IF(J13="-",0,J13) -> 7 | L13: 9 | M13: =IF(L13="-",0,L13) -> 9 | O13: =E13+G13+I13+K13+M13 -> 38 | P13: =MAX(D13,F13,H13,J13,L13) -> 9 | Q13: =IF(S13=1,O13,IF(S13=0,(O13-P13),"-")) -> 29 | R13: =COUNTIF(U13:AD13,"=TRUE") -> 5 | S13: =AE$1-R13 -> 0 | T13: =IF(S13<2,"Yes","No") -> Yes | U13: =IF(D13="-",1,0)*U$1 -> 0 | V13: =AND(U13=0,U$1=1) -> TRUE | W13: =IF(F13="-",1,0)*W$1 -> 0 | X13: =AND(W13=0,W$1=1) -> TRUE | Y13: =IF(H13="-",1,0)*Y$1 -> 0 | Z13: =AND(Y13=0,Y$1=1) -> TRUE | AA13: =IF(J13="-",1,0)*AA$1 -> 0 | AB13: =AND(AA13=0,AA$1=1) -> TRUE | AC13: =IF(L13="-",1,0)*AC$1 -> 0 | AD13: =AND(AC13=0,AC$1=1) -> TRUE
A14: 26 | B14: Rhea Cooper | C14: Lutterworth High School | D14: - | E14: =IF(D14="-",0,D14) -> 0 | F14: 8 | G14: =IF(F14="-",0,F14) -> 8 | H14: 6 | I14: =IF(H14="-",0,H14) -> 6 | J14: 6 | K14: =IF(J14="-",0,J14) -> 6 | L14: 10 | M14: =IF(L14="-",0,L14) -> 10 | O14: =E14+G14+I14+K14+M14 -> 30 | P14: =MAX(D14,F14,H14,J14,L14) -> 10 | Q14: =IF(S14=1,O14,IF(S14=0,(O14-P14),"-")) -> 30 | R14: =COUNTIF(U14:AD14,"=TRUE") -> 4 | S14: =AE$1-R14 -> 1 | T14: =IF(S14<2,"Yes","No") -> Yes | U14: =IF(D14="-",1,0)*U$1 -> 1 | V14: =AND(U14=0,U$1=1) -> FALSE | W14: =IF(F14="-",1,0)*W$1 -> 0 | X14: =AND(W14=0,W$1=1) -> TRUE | Y14: =IF(H14="-",1,0)*Y$1 -> 0 | Z14: =AND(Y14=0,Y$1=1) -> TRUE | AA14: =IF(J14="-",1,0)*AA$1 -> 0 | AB14: =AND(AA14=0,AA$1=1) -> TRUE | AC14: =IF(L14="-",1,0)*AC$1 -> 0 | AD14: =AND(AC14=0,AC$1=1) -> TRUE
A15: 43 | B15: Hannah Ord | C15: Manor High School | D15: 10 | E15: =IF(D15="-",0,D15) -> 10 | F15: 11 | G15: =IF(F15="-",0,F15) -> 11 | H15: 8 | I15: =IF(H15="-",0,H15) -> 8 | J15: 10 | K15: =IF(J15="-",0,J15) -> 10 | L15: 11 | M15: =IF(L15="-",0,L15) -> 11 | O15: =E15+G15+I15+K15+M15 -> 50 | P15: =MAX(D15,F15,H15,J15,L15) -> 11 | Q15: =IF(S15=1,O15,IF(S15=0,(O15-P15),"-")) -> 39 | R15: =COUNTIF(U15:AD15,"=TRUE") -> 5 | S15: =AE$1-R15 -> 0 | T15: =IF(S15<2,"Yes","No") -> Yes | U15: =IF(D15="-",1,0)*U$1 -> 0 | V15: =AND(U15=0,U$1=1) -> TRUE | W15: =IF(F15="-",1,0)*W$1 -> 0 | X15: =AND(W15=0,W$1=1) -> TRUE | Y15: =IF(H15="-",1,0)*Y$1 -> 0 | Z15: =AND(Y15=0,Y$1=1) -> TRUE | AA15: =IF(J15="-",1,0)*AA$1 -> 0 | AB15: =AND(AA15=0,AA$1=1) -> TRUE | AC15: =IF(L15="-",1,0)*AC$1 -> 0 | AD15: =AND(AC15=0,AC$1=1) -> TRUE
A16: 51 | B16: Lily Gregory | C16: Sir Jonathon North CC | D16: 17 | E16: =IF(D16="-",0,D16) -> 17 | F16: 12 | G16: =IF(F16="-",0,F16) -> 12 | H16: 19 | I16: =IF(H16="-",0,H16) -> 19 | J16: 14 | K16: =IF(J16="-",0,J16) -> 14 | L16: 12 | M16: =IF(L16="-",0,L16) -> 12 | O16: =E16+G16+I16+K16+M16 -> 74 | P16: =MAX(D16,F16,H16,J16,L16) -> 19 | Q16: =IF(S16=1,O16,IF(S16=0,(O16-P16),"-")) -> 55 | R16: =COUNTIF(U16:AD16,"=TRUE") -> 5 | S16: =AE$1-R16 -> 0 | T16: =IF(S16<2,"Yes","No") -> Yes | U16: =IF(D16="-",1,0)*U$1 -> 0 | V16: =AND(U16=0,U$1=1) -> TRUE | W16: =IF(F16="-",1,0)*W$1 -> 0 | X16: =AND(W16=0,W$1=1) -> TRUE | Y16: =IF(H16="-",1,0)*Y$1 -> 0 | Z16: =AND(Y16=0,Y$1=1) -> TRUE | AA16: =IF(J16="-",1,0)*AA$1 -> 0 | AB16: =AND(AA16=0,AA$1=1) -> TRUE | AC16: =IF(L16="-",1,0)*AC$1 -> 0 | AD16: =AND(AC16=0,AC$1=1) -> TRUE
A17: 60 | B17: Beane Moore | C17: Thomas Estley CC | D17: 5 | E17: =IF(D17="-",0,D17) -> 5 | F17: - | G17: =IF(F17="-",0,F17) -> 0 | H17: 11 | I17: =IF(H17="-",0,H17) -> 11 | J17: 15 | K17: =IF(J17="-",0,J17) -> 15 | L17: 13 | M17: =IF(L17="-",0,L17) -> 13 | O17: =E17+G17+I17+K17+M17 -> 44 | P17: =MAX(D17,F17,H17,J17,L17) -> 15 | Q17: =IF(S17=1,O17,IF(S17=0,(O17-P17),"-")) -> 44 | R17: =COUNTIF(U17:AD17,"=TRUE") -> 4 | S17: =AE$1-R17 -> 1 | T17: =IF(S17<2,"Yes","No") -> Yes | U17: =IF(D17="-",1,0)*U$1 -> 0 | V17: =AND(U17=0,U$1=1) -> TRUE | W17: =IF(F17="-",1,0)*W$1 -> 1 | X17: =AND(W17=0,W$1=1) -> FALSE | Y17: =IF(H17="-",1,0)*Y$1 -> 0 | Z17: =AND(Y17=0,Y$1=1) -> TRUE | AA17: =IF(J17="-",1,0)*AA$1 -> 0 | AB17: =AND(AA17=0,AA$1=1) -> TRUE | AC17: =IF(L17="-",1,0)*AC$1 -> 0 | AD17: =AND(AC17=0,AC$1=1) -> TRUE
A18: 21 | B18: Alexandra Here | C18: Rawlins College | D18: 19 | E18: =IF(D18="-",0,D18) -> 19 | F18: - | G18: =IF(F18="-",0,F18) -> 0 | H18: 12 | I18: =IF(H18="-",0,H18) -> 12 | J18: 13 | K18: =IF(J18="-",0,J18) -> 13 | L18: 14 | M18: =IF(L18="-",0,L18) -> 14 | O18: =E18+G18+I18+K18+M18 -> 58 | P18: =MAX(D18,F18,H18,J18,L18) -> 19 | Q18: =IF(S18=1,O18,IF(S18=0,(O18-P18),"-")) -> 58 | R18: =COUNTIF(U18:AD18,"=TRUE") -> 4 | S18: =AE$1-R18 -> 1 | T18: =IF(S18<2,"Yes","No") -> Yes | U18: =IF(D18="-",1,0)*U$1 -> 0 | V18: =AND(U18=0,U$1=1) -> TRUE | W18: =IF(F18="-",1,0)*W$1 -> 1 | X18: =AND(W18=0,W$1=1) -> FALSE | Y18: =IF(H18="-",1,0)*Y$1 -> 0 | Z18: =AND(Y18=0,Y$1=1) -> TRUE | AA18: =IF(J18="-",1,0)*AA$1 -> 0 | AB18: =AND(AA18=0,AA$1=1) -> TRUE | AC18: =IF(L18="-",1,0)*AC$1 -> 0 | AD18: =AND(AC18=0,AC$1=1) -> TRUE
A19: 50 | B19: Rosie Weselby | C19: Gartree High School | D19: 15 | E19: =IF(D19="-",0,D19) -> 15 | F19: - | G19: =IF(F19="-",0,F19) -> 0 | H19: 18 | I19: =IF(H19="-",0,H19) -> 18 | J19: 16 | K19: =IF(J19="-",0,J19) -> 16 | L19: 15 | M19: =IF(L19="-",0,L19) -> 15 | O19: =E19+G19+I19+K19+M19 -> 64 | P19: =MAX(D19,F19,H19,J19,L19) -> 18 | Q19: =IF(S19=1,O19,IF(S19=0,(O19-P19),"-")) -> 64 | R19: =COUNTIF(U19:AD19,"=TRUE") -> 4 | S19: =AE$1-R19 -> 1 | T19: =IF(S19<2,"Yes","No") -> Yes | U19: =IF(D19="-",1,0)*U$1 -> 0 | V19: =AND(U19=0,U$1=1) -> TRUE | W19: =IF(F19="-",1,0)*W$1 -> 1 | X19: =AND(W19=0,W$1=1) -> FALSE | Y19: =IF(H19="-",1,0)*Y$1 -> 0 | Z19: =AND(Y19=0,Y$1=1) -> TRUE | AA19: =IF(J19="-",1,0)*AA$1 -> 0 | AB19: =AND(AA19=0,AA$1=1) -> TRUE | AC19: =IF(L19="-",1,0)*AC$1 -> 0 | AD19: =AND(AC19=0,AC$1=1) -> TRUE
A20: 18 | B20: Josie Wood | C20: Kibworth High School | D20: 27 | E20: =IF(D20="-",0,D20) -> 27 | F20: 21 | G20: =IF(F20="-",0,F20) -> 21 | H20: 16 | I20: =IF(H20="-",0,H20) -> 16 | J20: 18 | K20: =IF(J20="-",0,J20) -> 18 | L20: 16 | M20: =IF(L20="-",0,L20) -> 16 | O20: =E20+G20+I20+K20+M20 -> 98 | P20: =MAX(D20,F20,H20,J20,L20) -> 27 | Q20: =IF(S20=1,O20,IF(S20=0,(O20-P20),"-")) -> 71 | R20: =COUNTIF(U20:AD20,"=TRUE") -> 5 | S20: =AE$1-R20 -> 0 | T20: =IF(S20<2,"Yes","No") -> Yes | U20: =IF(D20="-",1,0)*U$1 -> 0 | V20: =AND(U20=0,U$1=1) -> TRUE | W20: =IF(F20="-",1,0)*W$1 -> 0 | X20: =AND(W20=0,W$1=1) -> TRUE | Y20: =IF(H20="-",1,0)*Y$1 -> 0 | Z20: =AND(Y20=0,Y$1=1) -> TRUE | AA20: =IF(J20="-",1,0)*AA$1 -> 0 | AB20: =AND(AA20=0,AA$1=1) -> TRUE | AC20: =IF(L20="-",1,0)*AC$1 -> 0 | AD20: =AND(AC20=0,AC$1=1) -> TRUE
A21: 87 | B21: Peta Jones | C21: Loughborough High School | D21: - | E21: =IF(D21="-",0,D21) -> 0 | F21: - | G21: =IF(F21="-",0,F21) -> 0 | H21: - | I21: =IF(H21="-",0,H21) -> 0 | J21: 20 | K21: =IF(J21="-",0,J21) -> 20 | L21: 17 | M21: =IF(L21="-",0,L21) -> 17 | O21: =E21+G21+I21+K21+M21 -> 37 | P21: =MAX(D21,F21,H21,J21,L21) -> 20 | Q21: =IF(S21=1,O21,IF(S21=0,(O21-P21),"-")) -> - | R21: =COUNTIF(U21:AD21,"=TRUE") -> 2 | S21: =AE$1-R21 -> 3 | T21: =IF(S21<2,"Yes","No") -> No | U21: =IF(D21="-",1,0)*U$1 -> 1 | V21: =AND(U21=0,U$1=1) -> FALSE | W21: =IF(F21="-",1,0)*W$1 -> 1 | X21: =AND(W21=0,W$1=1) -> FALSE | Y21: =IF(H21="-",1,0)*Y$1 -> 1 | Z21: =AND(Y21=0,Y$1=1) -> FALSE | AA21: =IF(J21="-",1,0)*AA$1 -> 0 | AB21: =AND(AA21=0,AA$1=1) -> TRUE | AC21: =IF(L21="-",1,0)*AC$1 -> 0 | AD21: =AND(AC21=0,AC$1=1) -> TRUE
A22: 13 | B22: Megan Gray | C22: Manor High School | D22: 18 | E22: =IF(D22="-",0,D22) -> 18 | F22: 35 | G22: =IF(F22="-",0,F22) -> 35 | H22: 20 | I22: =IF(H22="-",0,H22) -> 20 | J22: 21 | K22: =IF(J22="-",0,J22) -> 21 | L22: 18 | M22: =IF(L22="-",0,L22) -> 18 | O22: =E22+G22+I22+K22+M22 -> 112 | P22: =MAX(D22,F22,H22,J22,L22) -> 35 | Q22: =IF(S22=1,O22,IF(S22=0,(O22-P22),"-")) -> 77 | R22: =COUNTIF(U22:AD22,"=TRUE") -> 5 | S22: =AE$1-R22 -> 0 | T22: =IF(S22<2,"Yes","No") -> Yes | U22: =IF(D22="-",1,0)*U$1 -> 0 | V22: =AND(U22=0,U$1=1) -> TRUE | W22: =IF(F22="-",1,0)*W$1 -> 0 | X22: =AND(W22=0,W$1=1) -> TRUE | Y22: =IF(H22="-",1,0)*Y$1 -> 0 | Z22: =AND(Y22=0,Y$1=1) -> TRUE | AA22: =IF(J22="-",1,0)*AA$1 -> 0 | AB22: =AND(AA22=0,AA$1=1) -> TRUE | AC22: =IF(L22="-",1,0)*AC$1 -> 0 | AD22: =AND(AC22=0,AC$1=1) -> TRUE
A23: 1 | B23: Jocelyn Parkes-Bowen | C23: Kibworth High School | D23: 35 | E23: =IF(D23="-",0,D23) -> 35 | F23: - | G23: =IF(F23="-",0,F23) -> 0 | H23: 30 | I23: =IF(H23="-",0,H23) -> 30 | J23: 25 | K23: =IF(J23="-",0,J23) -> 25 | L23: 19 | M23: =IF(L23="-",0,L23) -> 19 | O23: =E23+G23+I23+K23+M23 -> 109 | P23: =MAX(D23,F23,H23,J23,L23) -> 35 | Q23: =IF(S23=1,O23,IF(S23=0,(O23-P23),"-")) -> 109 | R23: =COUNTIF(U23:AD23,"=TRUE") -> 4 | S23: =AE$1-R23 -> 1 | T23: =IF(S23<2,"Yes","No") -> Yes | U23: =IF(D23="-",1,0)*U$1 -> 0 | V23: =AND(U23=0,U$1=1) -> TRUE | W23: =IF(F23="-",1,0)*W$1 -> 1 | X23: =AND(W23=0,W$1=1) -> FALSE | Y23: =IF(H23="-",1,0)*Y$1 -> 0 | Z23: =AND(Y23=0,Y$1=1) -> TRUE | AA23: =IF(J23="-",1,0)*AA$1 -> 0 | AB23: =AND(AA23=0,AA$1=1) -> TRUE | AC23: =IF(L23="-",1,0)*AC$1 -> 0 | AD23: =AND(AC23=0,AC$1=1) -> TRUE
A24: 84 | B24: Izzy McDaid | C24: Lutterworth High School | D24: - | E24: =IF(D24="-",0,D24) -> 0 | F24: - | G24: =IF(F24="-",0,F24) -> 0 | H24: 24 | I24: =IF(H24="-",0,H24) -> 24 | J24: 22 | K24: =IF(J24="-",0,J24) -> 22 | L24: 20 | M24: =IF(L24="-",0,L24) -> 20 | O24: =E24+G24+I24+K24+M24 -> 66 | P24: =MAX(D24,F24,H24,J24,L24) -> 24 | Q24: =IF(S24=1,O24,IF(S24=0,(O24-P24),"-")) -> - | R24: =COUNTIF(U24:AD24,"=TRUE") -> 3 | S24: =AE$1-R24 -> 2 | T24: =IF(S24<2,"Yes","No") -> No | U24: =IF(D24="-",1,0)*U$1 -> 1 | V24: =AND(U24=0,U$1=1) -> FALSE | W24: =IF(F24="-",1,0)*W$1 -> 1 | X24: =AND(W24=0,W$1=1) -> FALSE | Y24: =IF(H24="-",1,0)*Y$1 -> 0 | Z24: =AND(Y24=0,Y$1=1) -> TRUE | AA24: =IF(J24="-",1,0)*AA$1 -> 0 | AB24: =AND(AA24=0,AA$1=1) -> TRUE | AC24: =IF(L24="-",1,0)*AC$1 -> 0 | AD24: =AND(AC24=0,AC$1=1) -> TRUE
A25: 47 | B25: Amy Johnson | C25: Loughborough High School | D25: 32 | E25: =IF(D25="-",0,D25) -> 32 | F25: 37 | G25: =IF(F25="-",0,F25) -> 37 | H25: 31 | I25: =IF(H25="-",0,H25) -> 31 | J25: - | K25: =IF(J25="-",0,J25) -> 0 | L25: 21 | M25: =IF(L25="-",0,L25) -> 21 | O25: =E25+G25+I25+K25+M25 -> 121 | P25: =MAX(D25,F25,H25,J25,L25) -> 37 | Q25: =IF(S25=1,O25,IF(S25=0,(O25-P25),"-")) -> 121 | R25: =COUNTIF(U25:AD25,"=TRUE") -> 4 | S25: =AE$1-R25 -> 1 | T25: =IF(S25<2,"Yes","No") -> Yes | U25: =IF(D25="-",1,0)*U$1 -> 0 | V25: =AND(U25=0,U$1=1) -> TRUE | W25: =IF(F25="-",1,0)*W$1 -> 0 | X25: =AND(W25=0,W$1=1) -> TRUE | Y25: =IF(H25="-",1,0)*Y$1 -> 0 | Z25: =AND(Y25=0,Y$1=1) -> TRUE | AA25: =IF(J25="-",1,0)*AA$1 -> 1 | AB25: =AND(AA25=0,AA$1=1) -> FALSE | AC25: =IF(L25="-",1,0)*AC$1 -> 0 | AD25: =AND(AC25=0,AC$1=1) -> TRUE
A26: 74 | B26: Mateenah Mogra | C26: Manor High School | D26: 26 | E26: =IF(D26="-",0,D26) -> 26 | F26: 18 | G26: =IF(F26="-",0,F26) -> 18 | H26: 29 | I26: =IF(H26="-",0,H26) -> 29 | J26: 23 | K26: =IF(J26="-",0,J26) -> 23 | L26: 22 | M26: =IF(L26="-",0,L26) -> 22 | O26: =E26+G26+I26+K26+M26 -> 118 | P26: =MAX(D26,F26,H26,J26,L26) -> 29 | Q26: =IF(S26=1,O26,IF(S26=0,(O26-P26),"-")) -> 89 | R26: =COUNTIF(U26:AD26,"=TRUE") -> 5 | S26: =AE$1-R26 -> 0 | T26: =IF(S26<2,"Yes","No") -> Yes | U26: =IF(D26="-",1,0)*U$1 -> 0 | V26: =AND(U26=0,U$1=1) -> TRUE | W26: =IF(F26="-",1,0)*W$1 -> 0 | X26: =AND(W26=0,W$1=1) -> TRUE | Y26: =IF(H26="-",1,0)*Y$1 -> 0 | Z26: =AND(Y26=0,Y$1=1) -> TRUE | AA26: =IF(J26="-",1,0)*AA$1 -> 0 | AB26: =AND(AA26=0,AA$1=1) -> TRUE | AC26: =IF(L26="-",1,0)*AC$1 -> 0 | AD26: =AND(AC26=0,AC$1=1) -> TRUE
A27: 6 | B27: Gemma Jones | C27: Uppingham CC | D27: 21 | E27: =IF(D27="-",0,D27) -> 21 | F27: 25 | G27: =IF(F27="-",0,F27) -> 25 | H27: 25 | I27: =IF(H27="-",0,H27) -> 25 | J27: - | K27: =IF(J27="-",0,J27) -> 0 | L27: 23 | M27: =IF(L27="-",0,L27) -> 23 | O27: =E27+G27+I27+K27+M27 -> 94 | P27: =MAX(D27,F27,H27,J27,L27) -> 25 | Q27: =IF(S27=1,O27,IF(S27=0,(O27-P27),"-")) -> 94 | R27: =COUNTIF(U27:AD27,"=TRUE") -> 4 | S27: =AE$1-R27 -> 1 | T27: =IF(S27<2,"Yes","No") -> Yes | U27: =IF(D27="-",1,0)*U$1 -> 0 | V27: =AND(U27=0,U$1=1) -> TRUE | W27: =IF(F27="-",1,0)*W$1 -> 0 | X27: =AND(W27=0,W$1=1) -> TRUE | Y27: =IF(H27="-",1,0)*Y$1 -> 0 | Z27: =AND(Y27=0,Y$1=1) -> TRUE | AA27: =IF(J27="-",1,0)*AA$1 -> 1 | AB27: =AND(AA27=0,AA$1=1) -> FALSE | AC27: =IF(L27="-",1,0)*AC$1 -> 0 | AD27: =AND(AC27=0,AC$1=1) -> TRUE
A28: 14 | B28: Rosie Low | C28: Lutterworth High School | D28: 33 | E28: =IF(D28="-",0,D28) -> 33 | F28: 32 | G28: =IF(F28="-",0,F28) -> 32 | H28: 22 | I28: =IF(H28="-",0,H28) -> 22 | J28: - | K28: =IF(J28="-",0,J28) -> 0 | L28: 24 | M28: =IF(L28="-",0,L28) -> 24 | O28: =E28+G28+I28+K28+M28 -> 111 | P28: =MAX(D28,F28,H28,J28,L28) -> 33 | Q28: =IF(S28=1,O28,IF(S28=0,(O28-P28),"-")) -> 111 | R28: =COUNTIF(U28:AD28,"=TRUE") -> 4 | S28: =AE$1-R28 -> 1 | T28: =IF(S28<2,"Yes","No") -> Yes | U28: =IF(D28="-",1,0)*U$1 -> 0 | V28: =AND(U28=0,U$1=1) -> TRUE | W28: =IF(F28="-",1,0)*W$1 -> 0 | X28: =AND(W28=0,W$1=1) -> TRUE | Y28: =IF(H28="-",1,0)*Y$1 -> 0 | Z28: =AND(Y28=0,Y$1=1) -> TRUE | AA28: =IF(J28="-",1,0)*AA$1 -> 1 | AB28: =AND(AA28=0,AA$1=1) -> FALSE | AC28: =IF(L28="-",1,0)*AC$1 -> 0 | AD28: =AND(AC28=0,AC$1=1) -> TRUE
A29: 41 | B29: Hannah Stewart | C29: Welland Park Academy | D29: 24 | E29: =IF(D29="-",0,D29) -> 24 | F29: - | G29: =IF(F29="-",0,F29) -> 0 | H29: - | I29: =IF(H29="-",0,H29) -> 0 | J29: - | K29: =IF(J29="-",0,J29) -> 0 | L29: 25 | M29: =IF(L29="-",0,L29) -> 25 | O29: =E29+G29+I29+K29+M29 -> 49 | P29: =MAX(D29,F29,H29,J29,L29) -> 25 | Q29: =IF(S29=1,O29,IF(S29=0,(O29-P29),"-")) -> - | R29: =COUNTIF(U29:AD29,"=TRUE") -> 2 | S29: =AE$1-R29 -> 3 | T29: =IF(S29<2,"Yes","No") -> No | U29: =IF(D29="-",1,0)*U$1 -> 0 | V29: =AND(U29=0,U$1=1) -> TRUE | W29: =IF(F29="-",1,0)*W$1 -> 1 | X29: =AND(W29=0,W$1=1) -> FALSE | Y29: =IF(H29="-",1,0)*Y$1 -> 1 | Z29: =AND(Y29=0,Y$1=1) -> FALSE | AA29: =IF(J29="-",1,0)*AA$1 -> 1 | AB29: =AND(AA29=0,AA$1=1) -> FALSE | AC29: =IF(L29="-",1,0)*AC$1 -> 0 | AD29: =AND(AC29=0,AC$1=1) -> TRUE
A30: 3 | B30: Ursi Clapp | C30: Welland Park Academy | D30: 30 | E30: =IF(D30="-",0,D30) -> 30 | F30: 23 | G30: =IF(F30="-",0,F30) -> 23 | H30: 17 | I30: =IF(H30="-",0,H30) -> 17 | J30: 19 | K30: =IF(J30="-",0,J30) -> 19 | L30: 26 | M30: =IF(L30="-",0,L30) -> 26 | O30: =E30+G30+I30+K30+M30 -> 115 | P30: =MAX(D30,F30,H30,J30,L30) -> 30 | Q30: =IF(S30=1,O30,IF(S30=0,(O30-P30),"-")) -> 85 | R30: =COUNTIF(U30:AD30,"=TRUE") -> 5 | S30: =AE$1-R30 -> 0 | T30: =IF(S30<2,"Yes","No") -> Yes | U30: =IF(D30="-",1,0)*U$1 -> 0 | V30: =AND(U30=0,U$1=1) -> TRUE | W30: =IF(F30="-",1,0)*W$1 -> 0 | X30: =AND(W30=0,W$1=1) -> TRUE | Y30: =IF(H30="-",1,0)*Y$1 -> 0 | Z30: =AND(Y30=0,Y$1=1) -> TRUE | AA30: =IF(J30="-",1,0)*AA$1 -> 0 | AB30: =AND(AA30=0,AA$1=1) -> TRUE | AC30: =IF(L30="-",1,0)*AC$1 -> 0 | AD30: =AND(AC30=0,AC$1=1) -> TRUE
A31: 65 | B31: Lucy Thomas | C31: Long Field Academy | D31: 34 | E31: =IF(D31="-",0,D31) -> 34 | F31: 29 | G31: =IF(F31="-",0,F31) -> 29 | H31: 32 | I31: =IF(H31="-",0,H31) -> 32 | J31: 27 | K31: =IF(J31="-",0,J31) -> 27 | L31: 27 | M31: =IF(L31="-",0,L31) -> 27 | O31: =E31+G31+I31+K31+M31 -> 149 | P31: =MAX(D31,F31,H31,J31,L31) -> 34 | Q31: =IF(S31=1,O31,IF(S31=0,(O31-P31),"-")) -> 115 | R31: =COUNTIF(U31:AD31,"=TRUE") -> 5 | S31: =AE$1-R31 -> 0 | T31: =IF(S31<2,"Yes","No") -> Yes | U31: =IF(D31="-",1,0)*U$1 -> 0 | V31: =AND(U31=0,U$1=1) -> TRUE | W31: =IF(F31="-",1,0)*W$1 -> 0 | X31: =AND(W31=0,W$1=1) -> TRUE | Y31: =IF(H31="-",1,0)*Y$1 -> 0 | Z31: =AND(Y31=0,Y$1=1) -> TRUE | AA31: =IF(J31="-",1,0)*AA$1 -> 0 | AB31: =AND(AA31=0,AA$1=1) -> TRUE | AC31: =IF(L31="-",1,0)*AC$1 -> 0 | AD31: =AND(AC31=0,AC$1=1) -> TRUE
A32: 45 | B32: Amelia Walsh | C32: St Pauls Catholic School | D32: - | E32: =IF(D32="-",0,D32) -> 0 | F32: 30 | G32: =IF(F32="-",0,F32) -> 30 | H32: - | I32: =IF(H32="-",0,H32) -> 0 | J32: 31 | K32: =IF(J32="-",0,J32) -> 31 | L32: 28 | M32: =IF(L32="-",0,L32) -> 28 | O32: =E32+G32+I32+K32+M32 -> 89 | P32: =MAX(D32,F32,H32,J32,L32) -> 31 | Q32: =IF(S32=1,O32,IF(S32=0,(O32-P32),"-")) -> - | R32: =COUNTIF(U32:AD32,"=TRUE") -> 3 | S32: =AE$1-R32 -> 2 | T32: =IF(S32<2,"Yes","No") -> No | U32: =IF(D32="-",1,0)*U$1 -> 1 | V32: =AND(U32=0,U$1=1) -> FALSE | W32: =IF(F32="-",1,0)*W$1 -> 0 | X32: =AND(W32=0,W$1=1) -> TRUE | Y32: =IF(H32="-",1,0)*Y$1 -> 1 | Z32: =AND(Y32=0,Y$1=1) -> FALSE | AA32: =IF(J32="-",1,0)*AA$1 -> 0 | AB32: =AND(AA32=0,AA$1=1) -> TRUE | AC32: =IF(L32="-",1,0)*AC$1 -> 0 | AD32: =AND(AC32=0,AC$1=1) -> TRUE
A33: 66 | B33: Izzy Jones | C33: Long Field Academy | D33: - | E33: =IF(D33="-",0,D33) -> 0 | F33: 40 | G33: =IF(F33="-",0,F33) -> 40 | H33: 50 | I33: =IF(H33="-",0,H33) -> 50 | J33: 29 | K33: =IF(J33="-",0,J33) -> 29 | L33: 29 | M33: =IF(L33="-",0,L33) -> 29 | O33: =E33+G33+I33+K33+M33 -> 148 | P33: =MAX(D33,F33,H33,J33,L33) -> 50 | Q33: =IF(S33=1,O33,IF(S33=0,(O33-P33),"-")) -> 148 | R33: =COUNTIF(U33:AD33,"=TRUE") -> 4 | S33: =AE$1-R33 -> 1 | T33: =IF(S33<2,"Yes","No") -> Yes | U33: =IF(D33="-",1,0)*U$1 -> 1 | V33: =AND(U33=0,U$1=1) -> FALSE | W33: =IF(F33="-",1,0)*W$1 -> 0 | X33: =AND(W33=0,W$1=1) -> TRUE | Y33: =IF(H33="-",1,0)*Y$1 -> 0 | Z33: =AND(Y33=0,Y$1=1) -> TRUE | AA33: =IF(J33="-",1,0)*AA$1 -> 0 | AB33: =AND(AA33=0,AA$1=1) -> TRUE | AC33: =IF(L33="-",1,0)*AC$1 -> 0 | AD33: =AND(AC33=0,AC$1=1) -> TRUE
A34: 40 | B34: Ella Thomas | C34: Long Field Academy | D34: 43 | E34: =IF(D34="-",0,D34) -> 43 | F34: 39 | G34: =IF(F34="-",0,F34) -> 39 | H34: 40 | I34: =IF(H34="-",0,H34) -> 40 | J34: 30 | K34: =IF(J34="-",0,J34) -> 30 | L34: 30 | M34: =IF(L34="-",0,L34) -> 30 | O34: =E34+G34+I34+K34+M34 -> 182 | P34: =MAX(D34,F34,H34,J34,L34) -> 43 | Q34: =IF(S34=1,O34,IF(S34=0,(O34-P34),"-")) -> 139 | R34: =COUNTIF(U34:AD34,"=TRUE") -> 5 | S34: =AE$1-R34 -> 0 | T34: =IF(S34<2,"Yes","No") -> Yes | U34: =IF(D34="-",1,0)*U$1 -> 0 | V34: =AND(U34=0,U$1=1) -> TRUE | W34: =IF(F34="-",1,0)*W$1 -> 0 | X34: =AND(W34=0,W$1=1) -> TRUE | Y34: =IF(H34="-",1,0)*Y$1 -> 0 | Z34: =AND(Y34=0,Y$1=1) -> TRUE | AA34: =IF(J34="-",1,0)*AA$1 -> 0 | AB34: =AND(AA34=0,AA$1=1) -> TRUE | AC34: =IF(L34="-",1,0)*AC$1 -> 0 | AD34: =AND(AC34=0,AC$1=1) -> TRUE
A35: 31 | B35: Lizzie Swannell | C35: Manor High School | D35: 28 | E35: =IF(D35="-",0,D35) -> 28 | F35: 28 | G35: =IF(F35="-",0,F35) -> 28 | H35: 28 | I35: =IF(H35="-",0,H35) -> 28 | J35: - | K35: =IF(J35="-",0,J35) -> 0 | L35: 31 | M35: =IF(L35="-",0,L35) -> 31 | O35: =E35+G35+I35+K35+M35 -> 115 | P35: =MAX(D35,F35,H35,J35,L35) -> 31 | Q35: =IF(S35=1,O35,IF(S35=0,(O35-P35),"-")) -> 115 | R35: =COUNTIF(U35:AD35,"=TRUE") -> 4 | S35: =AE$1-R35 -> 1 | T35: =IF(S35<2,"Yes","No") -> Yes | U35: =IF(D35="-",1,0)*U$1 -> 0 | V35: =AND(U35=0,U$1=1) -> TRUE | W35: =IF(F35="-",1,0)*W$1 -> 0 | X35: =AND(W35=0,W$1=1) -> TRUE | Y35: =IF(H35="-",1,0)*Y$1 -> 0 | Z35: =AND(Y35=0,Y$1=1) -> TRUE | AA35: =IF(J35="-",1,0)*AA$1 -> 1 | AB35: =AND(AA35=0,AA$1=1) -> FALSE | AC35: =IF(L35="-",1,0)*AC$1 -> 0 | AD35: =AND(AC35=0,AC$1=1) -> TRUE
A36: 7 | B36: Megan Horley | C36: St Pauls Catholic School | D36: - | E36: =IF(D36="-",0,D36) -> 0 | F36: 41 | G36: =IF(F36="-",0,F36) -> 41 | H36: - | I36: =IF(H36="-",0,H36) -> 0 | J36: 28 | K36: =IF(J36="-",0,J36) -> 28 | L36: 32 | M36: =IF(L36="-",0,L36) -> 32 | O36: =E36+G36+I36+K36+M36 -> 101 | P36: =MAX(D36,F36,H36,J36,L36) -> 41 | Q36: =IF(S36=1,O36,IF(S36=0,(O36-P36),"-")) -> - | R36: =COUNTIF(U36:AD36,"=TRUE") -> 3 | S36: =AE$1-R36 -> 2 | T36: =IF(S36<2,"Yes","No") -> No | U36: =IF(D36="-",1,0)*U$1 -> 1 | V36: =AND(U36=0,U$1=1) -> FALSE | W36: =IF(F36="-",1,0)*W$1 -> 0 | X36: =AND(W36=0,W$1=1) -> TRUE | Y36: =IF(H36="-",1,0)*Y$1 -> 1 | Z36: =AND(Y36=0,Y$1=1) -> FALSE | AA36: =IF(J36="-",1,0)*AA$1 -> 0 | AB36: =AND(AA36=0,AA$1=1) -> TRUE | AC36: =IF(L36="-",1,0)*AC$1 -> 0 | AD36: =AND(AC36=0,AC$1=1) -> TRUE
A37: 64 | B37: Imogen James | C37: Welland Park Academy | D37: 36 | E37: =IF(D37="-",0,D37) -> 36 | F37: - | G37: =IF(F37="-",0,F37) -> 0 | H37: 45 | I37: =IF(H37="-",0,H37) -> 45 | J37: 35 | K37: =IF(J37="-",0,J37) -> 35 | L37: 33 | M37: =IF(L37="-",0,L37) -> 33 | O37: =E37+G37+I37+K37+M37 -> 149 | P37: =MAX(D37,F37,H37,J37,L37) -> 45 | Q37: =IF(S37=1,O37,IF(S37=0,(O37-P37),"-")) -> 149 | R37: =COUNTIF(U37:AD37,"=TRUE") -> 4 | S37: =AE$1-R37 -> 1 | T37: =IF(S37<2,"Yes","No") -> Yes | U37: =IF(D37="-",1,0)*U$1 -> 0 | V37: =AND(U37=0,U$1=1) -> TRUE | W37: =IF(F37="-",1,0)*W$1 -> 1 | X37: =AND(W37=0,W$1=1) -> FALSE | Y37: =IF(H37="-",1,0)*Y$1 -> 0 | Z37: =AND(Y37=0,Y$1=1) -> TRUE | AA37: =IF(J37="-",1,0)*AA$1 -> 0 | AB37: =AND(AA37=0,AA$1=1) -> TRUE | AC37: =IF(L37="-",1,0)*AC$1 -> 0 | AD37: =AND(AC37=0,AC$1=1) -> TRUE
A38: 37 | B38: Hannah Lacey | C38: Thomas Estley CC | D38: 37 | E38: =IF(D38="-",0,D38) -> 37 | F38: 43 | G38: =IF(F38="-",0,F38) -> 43 | H38: - | I38: =IF(H38="-",0,H38) -> 0 | J38: 36 | K38: =IF(J38="-",0,J38) -> 36 | L38: 34 | M38: =IF(L38="-",0,L38) -> 34 | O38: =E38+G38+I38+K38+M38 -> 150 | P38: =MAX(D38,F38,H38,J38,L38) -> 43 | Q38: =IF(S38=1,O38,IF(S38=0,(O38-P38),"-")) -> 150 | R38: =COUNTIF(U38:AD38,"=TRUE") -> 4 | S38: =AE$1-R38 -> 1 | T38: =IF(S38<2,"Yes","No") -> Yes | U38: =IF(D38="-",1,0)*U$1 -> 0 | V38: =AND(U38=0,U$1=1) -> TRUE | W38: =IF(F38="-",1,0)*W$1 -> 0 | X38: =AND(W38=0,W$1=1) -> TRUE | Y38: =IF(H38="-",1,0)*Y$1 -> 1 | Z38: =AND(Y38=0,Y$1=1) -> FALSE | AA38: =IF(J38="-",1,0)*AA$1 -> 0 | AB38: =AND(AA38=0,AA$1=1) -> TRUE | AC38: =IF(L38="-",1,0)*AC$1 -> 0 | AD38: =AND(AC38=0,AC$1=1) -> TRUE
A39: 57 | B39: Grace Cameron | C39: De Lisle College | D39: 44 | E39: =IF(D39="-",0,D39) -> 44 | F39: 44 | G39: =IF(F39="-",0,F39) -> 44 | H39: 49 | I39: =IF(H39="-",0,H39) -> 49 | J39: - | K39: =IF(J39="-",0,J39) -> 0 | L39: 35 | M39: =IF(L39="-",0,L39) -> 35 | O39: =E39+G39+I39+K39+M39 -> 172 | P39: =MAX(D39,F39,H39,J39,L39) -> 49 | Q39: =IF(S39=1,O39,IF(S39=0,(O39-P39),"-")) -> 172 | R39: =COUNTIF(U39:AD39,"=TRUE") -> 4 | S39: =AE$1-R39 -> 1 | T39: =IF(S39<2,"Yes","No") -> Yes | U39: =IF(D39="-",1,0)*U$1 -> 0 | V39: =AND(U39=0,U$1=1) -> TRUE | W39: =IF(F39="-",1,0)*W$1 -> 0 | X39: =AND(W39=0,W$1=1) -> TRUE | Y39: =IF(H39="-",1,0)*Y$1 -> 0 | Z39: =AND(Y39=0,Y$1=1) -> TRUE | AA39: =IF(J39="-",1,0)*AA$1 -> 1 | AB39: =AND(AA39=0,AA$1=1) -> FALSE | AC39: =IF(L39="-",1,0)*AC$1 -> 0 | AD39: =AND(AC39=0,AC$1=1) -> TRUE
A40: 9 | B40: Alice Lyons | C40: The Market Bosworth School | D40: - | E40: =IF(D40="-",0,D40) -> 0 | F40: - | G40: =IF(F40="-",0,F40) -> 0 | H40: 48 | I40: =IF(H40="-",0,H40) -> 48 | J40: 37 | K40: =IF(J40="-",0,J40) -> 37 | L40: 36 | M40: =IF(L40="-",0,L40) -> 36 | O40: =E40+G40+I40+K40+M40 -> 121 | P40: =MAX(D40,F40,H40,J40,L40) -> 48 | Q40: =IF(S40=1,O40,IF(S40=0,(O40-P40),"-")) -> - | R40: =COUNTIF(U40:AD40,"=TRUE") -> 3 | S40: =AE$1-R40 -> 2 | T40: =IF(S40<2,"Yes","No") -> No | U40: =IF(D40="-",1,0)*U$1 -> 1 | V40: =AND(U40=0,U$1=1) -> FALSE | W40: =IF(F40="-",1,0)*W$1 -> 1 | X40: =AND(W40=0,W$1=1) -> FALSE | Y40: =IF(H40="-",1,0)*Y$1 -> 0 | Z40: =AND(Y40=0,Y$1=1) -> TRUE | AA40: =IF(J40="-",1,0)*AA$1 -> 0 | AB40: =AND(AA40=0,AA$1=1) -> TRUE | AC40: =IF(L40="-",1,0)*AC$1 -> 0 | AD40: =AND(AC40=0,AC$1=1) -> TRUE
A41: 36 | B41: Sarah Fowles | C41: The Market Bosworth School | D41: - | E41: =IF(D41="-",0,D41) -> 0 | F41: 45 | G41: =IF(F41="-",0,F41) -> 45 | H41: 47 | I41: =IF(H41="-",0,H41) -> 47 | J41: 32 | K41: =IF(J41="-",0,J41) -> 32 | L41: 37 | M41: =IF(L41="-",0,L41) -> 37 | O41: =E41+G41+I41+K41+M41 -> 161 | P41: =MAX(D41,F41,H41,J41,L41) -> 47 | Q41: =IF(S41=1,O41,IF(S41=0,(O41-P41),"-")) -> 161 | R41: =COUNTIF(U41:AD41,"=TRUE") -> 4 | S41: =AE$1-R41 -> 1 | T41: =IF(S41<2,"Yes","No") -> Yes | U41: =IF(D41="-",1,0)*U$1 -> 1 | V41: =AND(U41=0,U$1=1) -> FALSE | W41: =IF(F41="-",1,0)*W$1 -> 0 | X41: =AND(W41=0,W$1=1) -> TRUE | Y41: =IF(H41="-",1,0)*Y$1 -> 0 | Z41: =AND(Y41=0,Y$1=1) -> TRUE | AA41: =IF(J41="-",1,0)*AA$1 -> 0 | AB41: =AND(AA41=0,AA$1=1) -> TRUE | AC41: =IF(L41="-",1,0)*AC$1 -> 0 | AD41: =AND(AC41=0,AC$1=1) -> TRUE
A42: 88 | B42: Katie Gibbons | C42: Long Field Academy | D42: - | E42: =IF(D42="-",0,D42) -> 0 | F42: - | G42: =IF(F42="-",0,F42) -> 0 | H42: - | I42: =IF(H42="-",0,H42) -> 0 | J42: 40 | K42: =IF(J42="-",0,J42) -> 40 | L42: 38 | M42: =IF(L42="-",0,L42) -> 38 | O42: =E42+G42+I42+K42+M42 -> 78 | P42: =MAX(D42,F42,H42,J42,L42) -> 40 | Q42: =IF(S42=1,O42,IF(S42=0,(O42-P42),"-")) -> - | R42: =COUNTIF(U42:AD42,"=TRUE") -> 2 | S42: =AE$1-R42 -> 3 | T42: =IF(S42<2,"Yes","No") -> No | U42: =IF(D42="-",1,0)*U$1 -> 1 | V42: =AND(U42=0,U$1=1) -> FALSE | W42: =IF(F42="-",1,0)*W$1 -> 1 | X42: =AND(W42=0,W$1=1) -> FALSE | Y42: =IF(H42="-",1,0)*Y$1 -> 1 | Z42: =AND(Y42=0,Y$1=1) -> FALSE | AA42: =IF(J42="-",1,0)*AA$1 -> 0 | AB42: =AND(AA42=0,AA$1=1) -> TRUE | AC42: =IF(L42="-",1,0)*AC$1 -> 0 | AD42: =AND(AC42=0,AC$1=1) -> TRUE
A43: 79 | B43: Amadea Tristanto | C43: De Lisle College | D43: 53 | E43: =IF(D43="-",0,D43) -> 53 | F43: 46 | G43: =IF(F43="-",0,F43) -> 46 | H43: 52 | I43: =IF(H43="-",0,H43) -> 52 | J43: - | K43: =IF(J43="-",0,J43) -> 0 | L43: 39 | M43: =IF(L43="-",0,L43) -> 39 | O43: =E43+G43+I43+K43+M43 -> 190 | P43: =MAX(D43,F43,H43,J43,L43) -> 53 | Q43: =IF(S43=1,O43,IF(S43=0,(O43-P43),"-")) -> 190 | R43: =COUNTIF(U43:AD43,"=TRUE") -> 4 | S43: =AE$1-R43 -> 1 | T43: =IF(S43<2,"Yes","No") -> Yes | U43: =IF(D43="-",1,0)*U$1 -> 0 | V43: =AND(U43=0,U$1=1) -> TRUE | W43: =IF(F43="-",1,0)*W$1 -> 0 | X43: =AND(W43=0,W$1=1) -> TRUE | Y43: =IF(H43="-",1,0)*Y$1 -> 0 | Z43: =AND(Y43=0,Y$1=1) -> TRUE | AA43: =IF(J43="-",1,0)*AA$1 -> 1 | AB43: =AND(AA43=0,AA$1=1) -> FALSE | AC43: =IF(L43="-",1,0)*AC$1 -> 0 | AD43: =AND(AC43=0,AC$1=1) -> TRUE
A44: 25 | B44: Anna Whitehead | C44: Manor High School | D44: - | E44: =IF(D44="-",0,D44) -> 0 | F44: 49 | G44: =IF(F44="-",0,F44) -> 49 | H44: 53 | I44: =IF(H44="-",0,H44) -> 53 | J44: - | K44: =IF(J44="-",0,J44) -> 0 | L44: 40 | M44: =IF(L44="-",0,L44) -> 40 | O44: =E44+G44+I44+K44+M44 -> 142 | P44: =MAX(D44,F44,H44,J44,L44) -> 53 | Q44: =IF(S44=1,O44,IF(S44=0,(O44-P44),"-")) -> - | R44: =COUNTIF(U44:AD44,"=TRUE") -> 3 | S44: =AE$1-R44 -> 2 | T44: =IF(S44<2,"Yes","No") -> No | U44: =IF(D44="-",1,0)*U$1 -> 1 | V44: =AND(U44=0,U$1=1) -> FALSE | W44: =IF(F44="-",1,0)*W$1 -> 0 | X44: =AND(W44=0,W$1=1) -> TRUE | Y44: =IF(H44="-",1,0)*Y$1 -> 0 | Z44: =AND(Y44=0,Y$1=1) -> TRUE | AA44: =IF(J44="-",1,0)*AA$1 -> 1 | AB44: =AND(AA44=0,AA$1=1) -> FALSE | AC44: =IF(L44="-",1,0)*AC$1 -> 0 | AD44: =AND(AC44=0,AC$1=1) -> TRUE
A45: 20 | B45: Ciera Manley | C45: Thomas Estley CC | D45: - | E45: =IF(D45="-",0,D45) -> 0 | F45: 56 | G45: =IF(F45="-",0,F45) -> 56 | H45: 54 | I45: =IF(H45="-",0,H45) -> 54 | J45: 42 | K45: =IF(J45="-",0,J45) -> 42 | L45: 41 | M45: =IF(L45="-",0,L45) -> 41 | O45: =E45+G45+I45+K45+M45 -> 193 | P45: =MAX(D45,F45,H45,J45,L45) -> 56 | Q45: =IF(S45=1,O45,IF(S45=0,(O45-P45),"-")) -> 193 | R45: =COUNTIF(U45:AD45,"=TRUE") -> 4 | S45: =AE$1-R45 -> 1 | T45: =IF(S45<2,"Yes","No") -> Yes | U45: =IF(D45="-",1,0)*U$1 -> 1 | V45: =AND(U45=0,U$1=1) -> FALSE | W45: =IF(F45="-",1,0)*W$1 -> 0 | X45: =AND(W45=0,W$1=1) -> TRUE | Y45: =IF(H45="-",1,0)*Y$1 -> 0 | Z45: =AND(Y45=0,Y$1=1) -> TRUE | AA45: =IF(J45="-",1,0)*AA$1 -> 0 | AB45: =AND(AA45=0,AA$1=1) -> TRUE | AC45: =IF(L45="-",1,0)*AC$1 -> 0 | AD45: =AND(AC45=0,AC$1=1) -> TRUE
A46: 69 | B46: Hannah Disney | C46: Wreake Valley Academy | D46: 51 | E46: =IF(D46="-",0,D46) -> 51 | F46: 50 | G46: =IF(F46="-",0,F46) -> 50 | H46: 46 | I46: =IF(H46="-",0,H46) -> 46 | J46: 41 | K46: =IF(J46="-",0,J46) -> 41 | L46: 42 | M46: =IF(L46="-",0,L46) -> 42 | O46: =E46+G46+I46+K46+M46 -> 230 | P46: =MAX(D46,F46,H46,J46,L46) -> 51 | Q46: =IF(S46=1,O46,IF(S46=0,(O46-P46),"-")) -> 179 | R46: =COUNTIF(U46:AD46,"=TRUE") -> 5 | S46: =AE$1-R46 -> 0 | T46: =IF(S46<2,"Yes","No") -> Yes | U46: =IF(D46="-",1,0)*U$1 -> 0 | V46: =AND(U46=0,U$1=1) -> TRUE | W46: =IF(F46="-",1,0)*W$1 -> 0 | X46: =AND(W46=0,W$1=1) -> TRUE | Y46: =IF(H46="-",1,0)*Y$1 -> 0 | Z46: =AND(Y46=0,Y$1=1) -> TRUE | AA46: =IF(J46="-",1,0)*AA$1 -> 0 | AB46: =AND(AA46=0,AA$1=1) -> TRUE | AC46: =IF(L46="-",1,0)*AC$1 -> 0 | AD46: =AND(AC46=0,AC$1=1) -> TRUE
A47: 75 | B47: Nancie Laurance | C47: Welland Park Academy | D47: 39 | E47: =IF(D47="-",0,D47) -> 39 | F47: 38 | G47: =IF(F47="-",0,F47) -> 38 | H47: 34 | I47: =IF(H47="-",0,H47) -> 34 | J47: 33 | K47: =IF(J47="-",0,J47) -> 33 | L47: 43 | M47: =IF(L47="-",0,L47) -> 43 | O47: =E47+G47+I47+K47+M47 -> 187 | P47: =MAX(D47,F47,H47,J47,L47) -> 43 | Q47: =IF(S47=1,O47,IF(S47=0,(O47-P47),"-")) -> 144 | R47: =COUNTIF(U47:AD47,"=TRUE") -> 5 | S47: =AE$1-R47 -> 0 | T47: =IF(S47<2,"Yes","No") -> Yes | U47: =IF(D47="-",1,0)*U$1 -> 0 | V47: =AND(U47=0,U$1=1) -> TRUE | W47: =IF(F47="-",1,0)*W$1 -> 0 | X47: =AND(W47=0,W$1=1) -> TRUE | Y47: =IF(H47="-",1,0)*Y$1 -> 0 | Z47: =AND(Y47=0,Y$1=1) -> TRUE | AA47: =IF(J47="-",1,0)*AA$1 -> 0 | AB47: =AND(AA47=0,AA$1=1) -> TRUE | AC47: =IF(L47="-",1,0)*AC$1 -> 0 | AD47: =AND(AC47=0,AC$1=1) -> TRUE
A48: 32 | B48: Chloe Bubb | C48: Lutterworth High School | D48: - | E48: =IF(D48="-",0,D48) -> 0 | F48: 17 | G48: =IF(F48="-",0,F48) -> 17 | H48: 14 | I48: =IF(H48="-",0,H48) -> 14 | J48: 12 | K48: =IF(J48="-",0,J48) -> 12 | L48: - | M48: =IF(L48="-",0,L48) -> 0 | O48: =E48+G48+I48+K48+M48 -> 43 | P48: =MAX(D48,F48,H48,J48,L48) -> 17 | Q48: =IF(S48=1,O48,IF(S48=0,(O48-P48),"-")) -> - | R48: =COUNTIF(U48:AD48,"=TRUE") -> 3 | S48: =AE$1-R48 -> 2 | T48: =IF(S48<2,"Yes","No") -> No | U48: =IF(D48="-",1,0)*U$1 -> 1 | V48: =AND(U48=0,U$1=1) -> FALSE | W48: =IF(F48="-",1,0)*W$1 -> 0 | X48: =AND(W48=0,W$1=1) -> TRUE | Y48: =IF(H48="-",1,0)*Y$1 -> 0 | Z48: =AND(Y48=0,Y$1=1) -> TRUE | AA48: =IF(J48="-",1,0)*AA$1 -> 0 | AB48: =AND(AA48=0,AA$1=1) -> TRUE | AC48: =IF(L48="-",1,0)*AC$1 -> 1 | AD48: =AND(AC48=0,AC$1=1) -> FALSE
A49: 46 | B49: Emily McTaggart | C49: Leicester Grammar School | D49: 22 | E49: =IF(D49="-",0,D49) -> 22 | F49: 22 | G49: =IF(F49="-",0,F49) -> 22 | H49: - | I49: =IF(H49="-",0,H49) -> 0 | J49: 17 | K49: =IF(J49="-",0,J49) -> 17 | L49: - | M49: =IF(L49="-",0,L49) -> 0 | O49: =E49+G49+I49+K49+M49 -> 61 | P49: =MAX(D49,F49,H49,J49,L49) -> 22 | Q49: =IF(S49=1,O49,IF(S49=0,(O49-P49),"-")) -> - | R49: =COUNTIF(U49:AD49,"=TRUE") -> 3 | S49: =AE$1-R49 -> 2 | T49: =IF(S49<2,"Yes","No") -> No | U49: =IF(D49="-",1,0)*U$1 -> 0 | V49: =AND(U49=0,U$1=1) -> TRUE | W49: =IF(F49="-",1,0)*W$1 -> 0 | X49: =AND(W49=0,W$1=1) -> TRUE | Y49: =IF(H49="-",1,0)*Y$1 -> 1 | Z49: =AND(Y49=0,Y$1=1) -> FALSE | AA49: =IF(J49="-",1,0)*AA$1 -> 0 | AB49: =AND(AA49=0,AA$1=1) -> TRUE | AC49: =IF(L49="-",1,0)*AC$1 -> 1 | AD49: =AND(AC49=0,AC$1=1) -> FALSE
A50: 35 | B50: Charlotte Powis | C50: Lutterworth High School | D50: - | E50: =IF(D50="-",0,D50) -> 0 | F50: 20 | G50: =IF(F50="-",0,F50) -> 20 | H50: - | I50: =IF(H50="-",0,H50) -> 0 | J50: 24 | K50: =IF(J50="-",0,J50) -> 24 | L50: - | M50: =IF(L50="-",0,L50) -> 0 | O50: =E50+G50+I50+K50+M50 -> 44 | P50: =MAX(D50,F50,H50,J50,L50) -> 24 | Q50: =IF(S50=1,O50,IF(S50=0,(O50-P50),"-")) -> - | R50: =COUNTIF(U50:AD50,"=TRUE") -> 2 | S50: =AE$1-R50 -> 3 | T50: =IF(S50<2,"Yes","No") -> No | U50: =IF(D50="-",1,0)*U$1 -> 1 | V50: =AND(U50=0,U$1=1) -> FALSE | W50: =IF(F50="-",1,0)*W$1 -> 0 | X50: =AND(W50=0,W$1=1) -> TRUE | Y50: =IF(H50="-",1,0)*Y$1 -> 1 | Z50: =AND(Y50=0,Y$1=1) -> FALSE | AA50: =IF(J50="-",1,0)*AA$1 -> 0 | AB50: =AND(AA50=0,AA$1=1) -> TRUE | AC50: =IF(L50="-",1,0)*AC$1 -> 1 | AD50: =AND(AC50=0,AC$1=1) -> FALSE
A51: 72 | B51: Ellen Gibbs | C51: St Martins | D51: 20 | E51: =IF(D51="-",0,D51) -> 20 | F51: 24 | G51: =IF(F51="-",0,F51) -> 24 | H51: 23 | I51: =IF(H51="-",0,H51) -> 23 | J51: 26 | K51: =IF(J51="-",0,J51) -> 26 | L51: - | M51: =IF(L51="-",0,L51) -> 0 | O51: =E51+G51+I51+K51+M51 -> 93 | P51: =MAX(D51,F51,H51,J51,L51) -> 26 | Q51: =IF(S51=1,O51,IF(S51=0,(O51-P51),"-")) -> 93 | R51: =COUNTIF(U51:AD51,"=TRUE") -> 4 | S51: =AE$1-R51 -> 1 | T51: =IF(S51<2,"Yes","No") -> Yes | U51: =IF(D51="-",1,0)*U$1 -> 0 | V51: =AND(U51=0,U$1=1) -> TRUE | W51: =IF(F51="-",1,0)*W$1 -> 0 | X51: =AND(W51=0,W$1=1) -> TRUE | Y51: =IF(H51="-",1,0)*Y$1 -> 0 | Z51: =AND(Y51=0,Y$1=1) -> TRUE | AA51: =IF(J51="-",1,0)*AA$1 -> 0 | AB51: =AND(AA51=0,AA$1=1) -> TRUE | AC51: =IF(L51="-",1,0)*AC$1 -> 1 | AD51: =AND(AC51=0,AC$1=1) -> FALSE
A52: 67 | B52: Beth McManus | C52: Thomas Estley CC | D52: 31 | E52: =IF(D52="-",0,D52) -> 31 | F52: 34 | G52: =IF(F52="-",0,F52) -> 34 | H52: 33 | I52: =IF(H52="-",0,H52) -> 33 | J52: 34 | K52: =IF(J52="-",0,J52) -> 34 | L52: - | M52: =IF(L52="-",0,L52) -> 0 | O52: =E52+G52+I52+K52+M52 -> 132 | P52: =MAX(D52,F52,H52,J52,L52) -> 34 | Q52: =IF(S52=1,O52,IF(S52=0,(O52-P52),"-")) -> 132 | R52: =COUNTIF(U52:AD52,"=TRUE") -> 4 | S52: =AE$1-R52 -> 1 | T52: =IF(S52<2,"Yes","No") -> Yes | U52: =IF(D52="-",1,0)*U$1 -> 0 | V52: =AND(U52=0,U$1=1) -> TRUE | W52: =IF(F52="-",1,0)*W$1 -> 0 | X52: =AND(W52=0,W$1=1) -> TRUE | Y52: =IF(H52="-",1,0)*Y$1 -> 0 | Z52: =AND(Y52=0,Y$1=1) -> TRUE | AA52: =IF(J52="-",1,0)*AA$1 -> 0 | AB52: =AND(AA52=0,AA$1=1) -> TRUE | AC52: =IF(L52="-",1,0)*AC$1 -> 1 | AD52: =AND(AC52=0,AC$1=1) -> FALSE
A53: 4 | B53: Lucy Sharp | C53: Humphrey Perkins School | D53: - | E53: =IF(D53="-",0,D53) -> 0 | F53: 36 | G53: =IF(F53="-",0,F53) -> 36 | H53: 39 | I53: =IF(H53="-",0,H53) -> 39 | J53: 38 | K53: =IF(J53="-",0,J53) -> 38 | L53: - | M53: =IF(L53="-",0,L53) -> 0 | O53: =E53+G53+I53+K53+M53 -> 113 | P53: =MAX(D53,F53,H53,J53,L53) -> 39 | Q53: =IF(S53=1,O53,IF(S53=0,(O53-P53),"-")) -> - | R53: =COUNTIF(U53:AD53,"=TRUE") -> 3 | S53: =AE$1-R53 -> 2 | T53: =IF(S53<2,"Yes","No") -> No | U53: =IF(D53="-",1,0)*U$1 -> 1 | V53: =AND(U53=0,U$1=1) -> FALSE | W53: =IF(F53="-",1,0)*W$1 -> 0 | X53: =AND(W53=0,W$1=1) -> TRUE | Y53: =IF(H53="-",1,0)*Y$1 -> 0 | Z53: =AND(Y53=0,Y$1=1) -> TRUE | AA53: =IF(J53="-",1,0)*AA$1 -> 0 | AB53: =AND(AA53=0,AA$1=1) -> TRUE | AC53: =IF(L53="-",1,0)*AC$1 -> 1 | AD53: =AND(AC53=0,AC$1=1) -> FALSE
A54: 34 | B54: Rebekah Garratt | C54: Brookvale High School | D54: 41 | E54: =IF(D54="-",0,D54) -> 41 | F54: 27 | G54: =IF(F54="-",0,F54) -> 27 | H54: 43 | I54: =IF(H54="-",0,H54) -> 43 | J54: 39 | K54: =IF(J54="-",0,J54) -> 39 | L54: - | M54: =IF(L54="-",0,L54) -> 0 | O54: =E54+G54+I54+K54+M54 -> 150 | P54: =MAX(D54,F54,H54,J54,L54) -> 43 | Q54: =IF(S54=1,O54,IF(S54=0,(O54-P54),"-")) -> 150 | R54: =COUNTIF(U54:AD54,"=TRUE") -> 4 | S54: =AE$1-R54 -> 1 | T54: =IF(S54<2,"Yes","No") -> Yes | U54: =IF(D54="-",1,0)*U$1 -> 0 | V54: =AND(U54=0,U$1=1) -> TRUE | W54: =IF(F54="-",1,0)*W$1 -> 0 | X54: =AND(W54=0,W$1=1) -> TRUE | Y54: =IF(H54="-",1,0)*Y$1 -> 0 | Z54: =AND(Y54=0,Y$1=1) -> TRUE | AA54: =IF(J54="-",1,0)*AA$1 -> 0 | AB54: =AND(AA54=0,AA$1=1) -> TRUE | AC54: =IF(L54="-",1,0)*AC$1 -> 1 | AD54: =AND(AC54=0,AC$1=1) -> FALSE
A55: 28 | B55: Scarlett Wilson | C55: Uppingham CC | D55: - | E55: =IF(D55="-",0,D55) -> 0 | F55: 14 | G55: =IF(F55="-",0,F55) -> 14 | H55: 13 | I55: =IF(H55="-",0,H55) -> 13 | J55: - | K55: =IF(J55="-",0,J55) -> 0 | L55: - | M55: =IF(L55="-",0,L55) -> 0 | O55: =E55+G55+I55+K55+M55 -> 27 | P55: =MAX(D55,F55,H55,J55,L55) -> 14 | Q55: =IF(S55=1,O55,IF(S55=0,(O55-P55),"-")) -> - | R55: =COUNTIF(U55:AD55,"=TRUE") -> 2 | S55: =AE$1-R55 -> 3 | T55: =IF(S55<2,"Yes","No") -> No | U55: =IF(D55="-",1,0)*U$1 -> 1 | V55: =AND(U55=0,U$1=1) -> FALSE | W55: =IF(F55="-",1,0)*W$1 -> 0 | X55: =AND(W55=0,W$1=1) -> TRUE | Y55: =IF(H55="-",1,0)*Y$1 -> 0 | Z55: =AND(Y55=0,Y$1=1) -> TRUE | AA55: =IF(J55="-",1,0)*AA$1 -> 1 | AB55: =AND(AA55=0,AA$1=1) -> FALSE | AC55: =IF(L55="-",1,0)*AC$1 -> 1 | AD55: =AND(AC55=0,AC$1=1) -> FALSE
A56: 22 | B56: Katie West | C56: Hind Leys College | D56: - | E56: =IF(D56="-",0,D56) -> 0 | F56: - | G56: =IF(F56="-",0,F56) -> 0 | H56: 15 | I56: =IF(H56="-",0,H56) -> 15 | J56: - | K56: =IF(J56="-",0,J56) -> 0 | L56: - | M56: =IF(L56="-",0,L56) -> 0 | O56: =E56+G56+I56+K56+M56 -> 15 | P56: =MAX(D56,F56,H56,J56,L56) -> 15 | Q56: =IF(S56=1,O56,IF(S56=0,(O56-P56),"-")) -> - | R56: =COUNTIF(U56:AD56,"=TRUE") -> 1 | S56: =AE$1-R56 -> 4 | T56: =IF(S56<2,"Yes","No") -> No | U56: =IF(D56="-",1,0)*U$1 -> 1 | V56: =AND(U56=0,U$1=1) -> FALSE | W56: =IF(F56="-",1,0)*W$1 -> 1 | X56: =AND(W56=0,W$1=1) -> FALSE | Y56: =IF(H56="-",1,0)*Y$1 -> 0 | Z56: =AND(Y56=0,Y$1=1) -> TRUE | AA56: =IF(J56="-",1,0)*AA$1 -> 1 | AB56: =AND(AA56=0,AA$1=1) -> FALSE | AC56: =IF(L56="-",1,0)*AC$1 -> 1 | AD56: =AND(AC56=0,AC$1=1) -> FALSE
A57: 44 | B57: Jasmine Stevens | C57: De Lisle College | D57: 11 | E57: =IF(D57="-",0,D57) -> 11 | F57: - | G57: =IF(F57="-",0,F57) -> 0 | H57: 21 | I57: =IF(H57="-",0,H57) -> 21 | J57: - | K57: =IF(J57="-",0,J57) -> 0 | L57: - | M57: =IF(L57="-",0,L57) -> 0 | O57: =E57+G57+I57+K57+M57 -> 32 | P57: =MAX(D57,F57,H57,J57,L57) -> 21 | Q57: =IF(S57=1,O57,IF(S57=0,(O57-P57),"-")) -> - | R57: =COUNTIF(U57:AD57,"=TRUE") -> 2 | S57: =AE$1-R57 -> 3 | T57: =IF(S57<2,"Yes","No") -> No | U57: =IF(D57="-",1,0)*U$1 -> 0 | V57: =AND(U57=0,U$1=1) -> TRUE | W57: =IF(F57="-",1,0)*W$1 -> 1 | X57: =AND(W57=0,W$1=1) -> FALSE | Y57: =IF(H57="-",1,0)*Y$1 -> 0 | Z57: =AND(Y57=0,Y$1=1) -> TRUE | AA57: =IF(J57="-",1,0)*AA$1 -> 1 | AB57: =AND(AA57=0,AA$1=1) -> FALSE | AC57: =IF(L57="-",1,0)*AC$1 -> 1 | AD57: =AND(AC57=0,AC$1=1) -> FALSE
